Workbook

Sheet Inputs
G2: INPUT OPTIONS
B4: Prepared By : | C4: Rocky Mountain Power | F4: Allocation / Calculation Options: | J4: Target Rate of Return
B5: Jurisdiction : | C5: State of Utah
B6: Test Period : | C6: 12 Months Ended June 2013 | F6: Jurisdictional | J6: Percent ROR = | L6: =ActualROR+((L7*NetToGross))/TotalRateBase -> 0.07780031876
B7: Factor Method : | C7: =IF(COSFacVal=1,$X$12,IF(COSFacVal=2,$X$13,IF(COSFacVal=3,X14,$X$15))) -> 2010 Protocol (Non Wgt) | F7: Functional Factors - | J7: Dollar Increase = | L7: 78892813
J8: Stipulated Increase =
B9: Factor 10: | C9: Demand % = | D9: 0.75 | F9: Distribution
B10: Factor 11: | C10: Demand % = | D10: 0.5 | F10: Functional Factors -
S11: 1 | T11: Func Factors | U11: 1 | V11: DistFunc Factors | W11: 1 | X11: COS Factors | Y11: 1 | Z11: IncomeTaxOptions | AB11: ROR - WorkArea
B12: Factor 85: | C12: Demand % = | D12: 0.75 | F12: COS Factors - | T12: 2010 Protocol | V12: 2010 Protocol | X12: 2010 Protocol (Non Wgt) | Z12: Calculated Income Tax
B13: Factor 86: | C13: Demand % = | D13: 0 | T13: Rolled-In | V13: Rolled-In | X13: 2010 Protocol (Monthly Wgt) | Z13: Allocated on Rate Base | AB13: 0.075 | AC13: FALSE
B14: Factor 87: | C14: Demand % = | D14: 0.75 | F14: Income Taxes - | T14: Option1 | V14: Option1 | X14: Rolled-In | AB14: Target Increase - $ | AC14: ='Summary Table'!$M$67 -> 78892813
B15: Factor 88: | C15: Demand % = | D15: 0.75 | T15: Option2 | V15: Option2 | X15: Option1 - Undefined
B16: Factor 89: | C16: Demand % = | D16: 0 | T16: Option3 | V16: Option3 | AB16: Target ROR - % | AC16: =ActualROR+((AC17*NetToGross))/TotalRateBase -> 0.07780031876
B17: Factor 90: | C17: Demand % = | D17: 0 | F17: Effective Tot Tax % | G17: = | H17: =+H18+H20 -> 0.37951 | K17: Capital | L17: Embedded | M17: Weighted | AC17: 78892813
B18: Factor 91: | C18: Demand % = | D18: 0 | F18: Effective Fed Tax % | G18: = | H18: =+H19*(1-H20) -> 0.33411 | K18: Structure | L18: Costs | M18: Costs
B19: Factor 92: | C19: Demand % = | D19: 0 | F19: Federal Tax Rate | G19: = | H19: 0.35 | J19: Debt | K19: 0.47501 | L19: 0.05353 | M19: =(K19*L19) -> 0.0254272853
B20: Factor 93: | C20: Demand % = | D20: 0 | F20: State Tax Rate | G20: = | H20: 0.0454 | J20: Preferred | K20: 0.00276 | L20: 0.05436 | M20: =(K20*L20) -> 0.0001500336
B21: Factor 94: | C21: Demand % = | D21: 0 | F21: Net to Gross Factor | G21: = | H21: 0.6192075562 | J21: Common | K21: 0.52223 | L21: 0.1 | M21: =(K21*L21) -> 0.052223
B22: Factor 95: | C22: Demand % = | D22: 0.75 | F22: CCS Regulatory Exp | G22: = | H22: 0 | K22: =SUM(K19:K21) -> 1 | M22: =SUM(M19:M21) -> 0.0778003189
B23: Factor 96: | C23: Demand % = | D23: 0 | F23: Net Lag Days | G23: = | H23: 5.985371458
B24: Factor 134: | C24: OverHead % = | D24: 0.3694468414
G25: Coincident Peak Data | J25: Pacificorp System Peak | L25: Distribution Peak Data
B26: Demand | C26: Sec = | D26: 1.10106 | I26: 1-inc | N26: Substation
B27: Loss Factors: | C27: Pri = | D27: 1.07377 | F27: Month/Yr | G27: Date | H27: Time | I27: 0-exc | J27: mW | K27: % | L27: Date | M27: Time | N27: Peaks
C28: Trn = | D28: 1.04259 | F28: 2012-07-01 | G28: 12 | H28: 16:00 | I28: 1 | J28: 9027.378489 | K28: =J$28/MAX($J$28:$J$39) -> 0.9921745763 | L28: 12 | M28: 17:00:00 | N28: 72
F29: 2012-08-01 | G29: 6 | H29: 17:00 | I29: 1 | J29: 9098.578722 | K29: =J$29/MAX($J$28:$J$39) -> 1 | L29: 28 | M29: 17:00:00 | N29: 27
B30: Energy | C30: Sec = | D30: 1.09322 | F30: 2012-09-01 | G30: 5 | H30: 18:00 | I30: 1 | J30: 8411.711222 | K30: =J$30/MAX($J$28:$J$39) -> 0.9245082643 | L30: 5 | M30: 17:00:00 | N30: 2
B31: Loss Factors: | C31: Pri = | D31: 1.06635 | F31: 2012-10-01 | G31: 2 | H31: 18:00 | I31: 1 | J31: 7639.058 | K31: =J$31/MAX($J$28:$J$39) -> 0.8395880536 | L31: 1 | M31: 16:00:00 | N31: 2
C32: Trn = | D32: 1.04527 | F32: 2012-11-01 | G32: 26 | H32: 19:00 | I32: 1 | J32: 8374.502 | K32: =J$32/MAX($J$28:$J$39) -> 0.9204187001 | L32: 26 | M32: 19:00:00 | N32: 3
F33: 2012-12-01 | G33: 18 | H33: 19:00 | I33: 1 | J33: 8653.148438 | K33: =J$33/MAX($J$28:$J$39) -> 0.9510439709 | L33: 18 | M33: 19:00:00 | N33: 11
B34: Dist Plant - split: | C34: Sec | D34: Pri | F34: 2013-01-01 | G34: 14 | H34: 19:00 | I34: 1 | J34: 8558.482473 | K34: =J$34/MAX($J$28:$J$39) -> 0.9406394926 | L34: 3 | M34: 19:00:00 | N34: 6
B35: Acct 364 = | C35: =1-D35 -> 0.0025 | D35: 0.9975 | F35: 2013-02-01 | G35: 11 | H35: 09:00 | I35: 1 | J35: 8255.539 | K35: =J$35/MAX($J$28:$J$39) -> 0.9073438009 | L35: 11 | M35: 20:00:00 | N35: 2
B36: Acct 365 = | C36: =1-D36 -> 0.3838 | D36: 0.6162 | F36: 2013-03-01 | G36: 4 | H36: 09:00 | I36: 1 | J36: 7896.528 | K36: =J$36/MAX($J$28:$J$39) -> 0.8678858799 | L36: 4 | M36: 20:00:00 | N36: 4
B37: Acct 366 = | C37: =1-D37 -> 0.3212 | D37: 0.6788 | F37: 2013-04-01 | G37: 9 | H37: 09:00 | I37: 1 | J37: 7517.863 | K37: =J$37/MAX($J$28:$J$39) -> 0.8262678414 | L37: 29 | M37: 17:00:00 | N37: 1
B38: Acct 367 = | C38: =1-D38 -> 0.2648 | D38: 0.7352 | F38: 2013-05-01 | G38: 14 | H38: 17:00 | I38: 1 | J38: 8059.322 | K38: =J$38/MAX($J$28:$J$39) -> 0.885778125 | L38: 14 | M38: 18:00:00 | N38: 6
B39: Acct 368 = | C39: =1-D39 -> 1 | D39: 0 | F39: 2013-06-01 | G39: 28 | H39: 17:00 | I39: 1 | J39: 8551.831436 | K39: =J$39/MAX($J$28:$J$39) -> 0.9399084953 | L39: 28 | M39: 17:00:00 | N39: 60

Sheet Summary Table
A1: Summary
A2: =Inputs!$C$4 -> Rocky Mountain Power
A3: Cost Of Service By Rate Schedule
A4: =Inputs!$C$5 -> State of Utah
A5: =Inputs!$C$6 -> 12 Months Ended June 2013
A6: =Inputs!$C$7 -> 2010 Protocol (Non Wgt)
A7: =TEXT(ActualROR,"?.00%")&" = Earned Return on Rate Base" -> 6.92% = Earned Return on Rate Base
B9: A | C9: B | D9: C | E9: D | F9: E | G9: F | H9: G | I9: H | J9: I | K9: J | L9: K | M9: L | N9: M
E10: Return on | F10: Rate of | G10: Total | H10: Generation | I10: Transmission | J10: Distribution | K10: Retail | L10: Misc | M10: Increase | N10: Percentage
A11: Line | B11: Schedule | C11: Description | D11: Annual | E11: Rate | F11: Return | G11: Cost of | H11: Cost of | I11: Cost of | J11: Cost of | K11: Cost of | L11: Cost of | M11: (Decrease) | N11: Change from
A12: No. | B12: No. | D12: Revenue | E12: Base | F12: Index | G12: Service | H12: Service | I12: Service | J12: Service | K12: Service | L12: Service | M12: to = ROR | N12: Current Revenues
A13: 1 | B13: 1 | C13: Residential | D13: ='G+T+D+R+M'!I$102 -> 655411513 | E13: ='G+T+D+R+M'!I$61 -> 0.06174997321 | F13: =(E13/E$25) -> 0.8917820559 | G13: =SUM(H13:L13) -> 672732259 | H13: =Generation!$I101 -> 370243399.7 | I13: =Transmission!$I$101 -> 82333632.41 | J13: =Distribution!$I$101 -> 182097769.1 | K13: =Retail!$I$101 -> 35130017.53 | L13: =Misc!$I$101 -> 2927440.199 | M13: =G13-D13 -> 17320746.03 | N13: ='G+T+D+R+M'!I$111 -> 0.02642728375
A14: =A13+1 -> 2 | B14: 6 | C14: General Service - Large | D14: ='G+T+D+R+M'!J$102 -> 495281417 | E14: ='G+T+D+R+M'!J$61 -> 0.0863287592 | F14: 1.246744482 | G14: =SUM(H14:L14) -> 469897889.7 | H14: =Generation!$J101 -> 321338429.8 | I14: =Transmission!$J$101 -> 68972854.66 | J14: =Distribution!$J$101 -> 77010823.08 | K14: =Retail!$J$101 -> 642836.6714 | L14: =Misc!$J$101 -> 1932945.516 | M14: -25383527.26 | N14: ='G+T+D+R+M'!J$111 -> -0.05125071603
A15: =A14+1 -> 3 | B15: 8 | C15: General Service - Over 1 MW | D15: ='G+T+D+R+M'!K$102 -> 147626610 | E15: ='G+T+D+R+M'!K$61 -> 0.07144063913 | F15: 1.031732918 | G15: 146608592.3 | H15: =Generation!$K101 -> 103710980 | I15: =Transmission!$K$101 -> 21136059.84 | J15: =Distribution!$K$101 -> 21411079.83 | K15: =Retail!$K$101 -> -247333.8426 | L15: =Misc!$K$101 -> 597806.4108 | M15: -1018017.733 | N15: ='G+T+D+R+M'!K$111 -> -0.006895895892
A16: 4 | B16: 7,11,12 | C16: Street & Area Lighting | D16: ='G+T+D+R+M'!L$102 -> 12090420 | E16: ='G+T+D+R+M'!L$61 -> 0.1197016225 | F16: 1.728709398 | G16: 10817151.64 | H16: =Generation!$L101 -> 3370031.533 | I16: =Transmission!$L$101 -> 544296.0019 | J16: =Distribution!$L$101 -> 6510726.622 | K16: =Retail!$L$101 -> 352966.472 | L16: =Misc!$L$101 -> 39131.01271 | M16: -1273268.358 | N16: ='G+T+D+R+M'!L$111 -> -0.1053121693
A17: 5 | B17: 9 | C17: General Service - High Voltage | D17: ='G+T+D+R+M'!M$102 -> 246282083 | E17: ='G+T+D+R+M'!M$61 -> 0.05572637504 | F17: 0.8047903298 | G17: 256470609.6 | H17: =Generation!$M101 -> 213553209.2 | I17: =Transmission!$M$101 -> 41519559.17 | J17: =Distribution!$M$101 -> 855360.4149 | K17: =Retail!$M$101 -> -422061.4735 | L17: =Misc!$M$101 -> 964542.3677 | M17: 10188526.65 | N17: ='G+T+D+R+M'!M$111 -> 0.04136933765
A18: 6 | B18: 10 | C18: Irrigation | D18: ='G+T+D+R+M'!N$102 -> 17405298 | E18: ='G+T+D+R+M'!N$61 -> 0.06154738424 | F18: 0.8888563023 | G18: 17866272.62 | H18: =Generation!$N101 -> 11542677.52 | I18: =Transmission!$N$101 -> 2216896.764 | J18: =Distribution!$N$101 -> 4055918.001 | K18: =Retail!$N$101 -> -24990.92224 | L18: =Misc!$N$101 -> 75771.25385 | M18: 460974.6177 | N18: ='G+T+D+R+M'!N$111 -> 0.02648472998
A19: 7 | B19: 15 | C19: Traffic Signals | D19: ='G+T+D+R+M'!O$102 -> 540194 | E19: ='G+T+D+R+M'!O$61 -> 0.04307748096 | F19: 0.6221172664 | G19: 585611.2146 | H19: =Generation!$O101 -> 284210.0646 | I19: =Transmission!$O$101 -> 50624.48811 | J19: =Distribution!$O$101 -> 147159.9965 | K19: =Retail!$O$101 -> 101505.9943 | L19: =Misc!$O$101 -> 2110.671059 | M19: 45417.21455 | N19: ='G+T+D+R+M'!O$111 -> 0.08407574789
A20: 8 | B20: 15 | C20: Outdoor Lighting | D20: ='G+T+D+R+M'!P$102 -> 1390573 | E20: ='G+T+D+R+M'!P$61 -> 0.1975054231 | F20: 2.852337954 | G20: 1090534.601 | H20: =Generation!$P101 -> 789822.7439 | I20: =Transmission!$P$101 -> 133607.9339 | J20: =Distribution!$P$101 -> 136116.0286 | K20: =Retail!$P$101 -> 27634.07378 | L20: =Misc!$P$101 -> 3353.820419 | M20: -300038.3994 | N20: ='G+T+D+R+M'!P$111 -> -0.2157660183
A21: =A20+1 -> 9 | B21: 23 | C21: General Service - Small | D21: ='G+T+D+R+M'!Q$102 -> 128265580 | E21: ='G+T+D+R+M'!Q$61 -> 0.07887265888 | F21: 1.139064816 | G21: 124308088.3 | H21: =Generation!$Q101 -> 76057984.8 | I21: =Transmission!$Q$101 -> 16639794.89 | J21: =Distribution!$Q$101 -> 29929628.51 | K21: =Retail!$Q$101 -> 1140470.765 | L21: =Misc!$Q$101 -> 540209.3049 | M21: -3957491.732 | N21: ='G+T+D+R+M'!Q$111 -> -0.03085388716
A22: =A21+1 -> 10 | B22: SpC | C22: Customer 1 | D22: ='G+T+D+R+M'!R$102 -> 28232681 | E22: ='G+T+D+R+M'!R$61 -> 0.04174468285 | F22: 0.6028692348 | G22: =SUM(H22:L22) -> 30775861.06 | H22: =Generation!$R101 -> 25734684.8 | I22: =Transmission!$R$101 -> 4801319.888 | J22: =Distribution!$R$101 -> 97980.31387 | K22: =Retail!$R$101 -> 25759.9175 | L22: =Misc!$R$101 -> 116116.1414 | M22: =G22-D22 -> 2543180.057 | N22: ='G+T+D+R+M'!R$111 -> 0.09007929699
A23: =A22+1 -> 11 | B23: SpC | C23: Customer 2 | D23: ='G+T+D+R+M'!S$102 -> 38403587 | E23: ='G+T+D+R+M'!S$61 -> 0.05577984465 | F23: 0.8055625282 | G23: =SUM(H23:L23) -> 39777085.91 | H23: =Generation!$S101 -> 34156944.57 | I23: =Transmission!$S$101 -> 5345443.63 | J23: =Distribution!$S$101 -> 118571.9024 | K23: =Retail!$S$101 -> 28375.79774 | L23: =Misc!$S$101 -> 127750.0162 | M23: =G23-D23 -> 1373498.913 | N23: ='G+T+D+R+M'!S$111 -> 0.03576486
A25: =+A23+1 -> 12 | C25: Total Utah Jurisdiction | D25: =SUM(D13:D23) -> 1770929956 | E25: ='G+T+D+R+M'!H61 -> 0.06924334573 | F25: =(E25/E$25) -> 1 | G25: =SUM(G13:G24) -> 1770929956 | H25: =SUM(H13:H23) -> 1160782375 | I25: 243694089.7 | J25: 322371133.8 | K25: 36755180.98 | L25: 7327176.714 | M25: -1.420266926e-07 | N25: ='G+T+D+R+M'!H$111 -> -1.110408109e-10
A29: Footnotes :
B30: Column C : | C30: Annual revenues based on July 2014 thru June 2015 forecasted data.
B31: Column D : | C31: Calculated Return on Ratebase per July 2014 thru June 2015 Embedded Cost of Service Study
B32: Column E : | C32: Rate of Return Index. Rate of return by rate schedule, divided by Utah Jurisdiction's normalized rate of return.
B33: Column F : | C33: Calculated Full Cost of Service at Jurisdictional Rate of Return per the July 2014 thru June 2015 Embedded COS Study
B34: Column G : | C34: Calculated Generation Cost of Service at Jurisdictional Rate of Return per the July 2014 thru June 2015 Embedded COS Study.
B35: Column H : | C35: Calculated Transmission Cost of Service at Jurisdictional Rate of Return per the July 2014 thru June 2015 Embedded COS Study.
B36: Column I : | C36: Calculated Distribution Cost of Service at Jurisdictional Rate of Return per the July 2014 thru June 2015 Embedded COS Study.
B37: Column J : | C37: Calculated Retail Cost of Service at Jurisdictional Rate of Return per the July 2014 thru June 2015 Embedded COS Study.
B38: Column K : | C38: Calculated Miscellaneous Cost of Service at Jurisdictional Rate of Return per the July 2014 thru June 2015 Embedded COS Study.
B39: Column L : | C39: Increase or Decrease Required to Move From Annual Revenue to Full Cost of Service Dollars.
B40: Column M : | C40: Increase or Decrease Required to Move From Annual Revenue to Full Cost of Service Percent.
A44: =Inputs!C4 -> Rocky Mountain Power
A45: Cost Of Service By Rate Schedule
A46: =Inputs!$C$5 -> State of Utah
A47: =Inputs!$C$6 -> 12 Months Ended June 2013
A48: =Inputs!$C$7 -> 2010 Protocol (Non Wgt)
A49: =TEXT(TargetROR,"?.00%")&" = Target Return on Rate Base" -> 7.78% = Target Return on Rate Base
B51: A | C51: B | D51: C | E51: D | F51: E | G51: F | H51: G | I51: H | J51: I | K51: J | L51: K | M51: L | N51: M
E52: Return on | F52: Rate of | G52: Total | H52: Generation | I52: Transmission | J52: Distribution | K52: Retail | L52: Misc | M52: Increase | N52: Percentage
A53: Line | B53: Schedule | C53: Description | D53: Annual | E53: Rate | F53: Return | G53: Cost of | H53: Cost of | I53: Cost of | J53: Cost of | K53: Cost of | L53: Cost of | M53: (Decrease) | N53: Change from
A54: No. | B54: No. | D54: Revenue | E54: Base | F54: Index | G54: Service | H54: Service | I54: Service | J54: Service | K54: Service | L54: Service | M54: to = ROR | N54: Current Revenues
A55: 1 | B55: 1 | C55: Residential | D55: ='Class Summary'!F$80 -> 655411513 | E55: =(+'G+T+D+R+M'!I$85+'G+T+D+R+M'!I$29)/'G+T+D+R+M'!I$58 -> 0.06174997321 | F55: =(E55/E$67) -> 0.8917820559 | G55: =SUM(H55:L55) -> 715326767.7 | H55: ='Generation Summary'!F$69 -> 389070693.8 | I55: ='Transmission Summary'!$F$69 -> 90228613.76 | J55: ='Distribution Summary'!$F$69 -> 197780695.1 | K55: ='Retail Summary'!$F$69 -> 35248652.09 | L55: ='Misc Summary'!$F$69 -> 2998112.981 | M55: =G55-D55 -> 59915254.73 | N55: =M55/D55 -> 0.09141623781
A56: =A55+1 -> 2 | B56: 6 | C56: General Service - Large | D56: ='Class Summary'!G$80 -> 495281417 | E56: =(+'G+T+D+R+M'!J$85+'G+T+D+R+M'!J$29)/'G+T+D+R+M'!J$58 -> 0.0863287592 | F56: 1.246744482 | G56: 474818862.4 | H56: ='Generation Summary'!G$69 -> 324011579 | I56: ='Transmission Summary'!$G$69 -> 70084393.83 | J56: ='Distribution Summary'!$G$69 -> 78140448.05 | K56: ='Retail Summary'!$G$69 -> 640484.6708 | L56: ='Misc Summary'!$G$69 -> 1941956.852 | M56: -20462554.58 | N56: -0.04131500574
A57: =A56+1 -> 3 | B57: 8 | C57: General Service - Over 1 MW | D57: ='Class Summary'!H80 -> 147626610 | E57: =(+'G+T+D+R+M'!K$85+'G+T+D+R+M'!K$29)/'G+T+D+R+M'!K$58 -> 0.07144063913 | F57: 1.031732918 | G57: 152385068.5 | H57: ='Generation Summary'!H$69 -> 106954779.9 | I57: ='Transmission Summary'!$H$69 -> 22477179.88 | J57: ='Distribution Summary'!$H$69 -> 22613796.79 | K57: ='Retail Summary'!$H$69 -> -269327.3709 | L57: ='Misc Summary'!$H$69 -> 608639.2774 | M57: 4758458.457 | N57: 0.03223306731
A58: 4 | B58: 7,11,12 | C58: Street & Area Lighting | D58: ='Class Summary'!I$80 -> 12090420 | E58: =(+'G+T+D+R+M'!L$85+'G+T+D+R+M'!L$29)/'G+T+D+R+M'!L$58 -> 0.1197016225 | F58: 1.728709398 | G58: 10382848.8 | H58: ='Generation Summary'!I$69 -> 3263919.614 | I58: ='Transmission Summary'!$I$69 -> 503657.5521 | J58: ='Distribution Summary'!$I$69 -> 6225664.836 | K58: ='Retail Summary'!$I$69 -> 351210.8201 | L58: ='Misc Summary'!$I$69 -> 38395.98153 | M58: -1707571.197 | N58: -0.141233406
A59: 5 | B59: 9 | C59: General Service - High Voltage | D59: ='Class Summary'!J$80 -> 246282083 | E59: =(+'G+T+D+R+M'!M$85+'G+T+D+R+M'!M$29)/'G+T+D+R+M'!M$58 -> 0.05572637504 | F59: 0.8047903298 | G59: 273152579.9 | H59: ='Generation Summary'!J$69 -> 225312729.9 | I59: ='Transmission Summary'!$J$69 -> 46457597.96 | J59: ='Distribution Summary'!$J$69 -> 871265.1687 | K59: ='Retail Summary'!$J$69 -> -488719.0879 | L59: ='Misc Summary'!$J$69 -> 999705.9702 | M59: 26870496.89 | N59: 0.1091045543
A60: 6 | B60: 10 | C60: Irrigation | D60: ='Class Summary'!K$80 -> 17405298 | E60: =(+'G+T+D+R+M'!N$85+'G+T+D+R+M'!N$29)/'G+T+D+R+M'!N$58 -> 0.06154738424 | F60: 0.8888563023 | G60: 18977504.78 | H60: ='Generation Summary'!K$69 -> 12067899.45 | I60: ='Transmission Summary'!$K$69 -> 2431964.091 | J60: ='Distribution Summary'!$K$69 -> 4426753.346 | K60: ='Retail Summary'!$K$69 -> -26837.53613 | L60: ='Misc Summary'!$K$69 -> 77725.43312 | M60: 1572206.783 | N60: 0.09032920797
A61: 7 | B61: 15 | C61: Traffic Signals | D61: ='Class Summary'!L$80 -> 540194 | E61: =(+'G+T+D+R+M'!O$85+'G+T+D+R+M'!O$29)/'G+T+D+R+M'!O$58 -> 0.04307748096 | F61: 0.6221172664 | G61: 637527.9542 | H61: ='Generation Summary'!L$69 -> 305493.4047 | I61: ='Transmission Summary'!$L$69 -> 58790.89141 | J61: ='Distribution Summary'!$L$69 -> 168367.4627 | K61: ='Retail Summary'!$L$69 -> 102680.1626 | L61: ='Misc Summary'!$L$69 -> 2196.032793 | M61: 97333.95423 | N61: 0.1801833309
A62: 8 | B62: 15 | C62: Outdoor Lighting | D62: ='Class Summary'!M$80 -> 1390573 | E62: =(+'G+T+D+R+M'!P$85+'G+T+D+R+M'!P$29)/'G+T+D+R+M'!P$58 -> 0.1975054231 | F62: 2.852337954 | G62: 938347.5574 | H62: ='Generation Summary'!M$69 -> 700844.656 | I62: ='Transmission Summary'!$M$69 -> 102235.8525 | J62: ='Distribution Summary'!$M$69 -> 104922.0038 | K62: ='Retail Summary'!$M$69 -> 27305.72399 | L62: ='Misc Summary'!$M$69 -> 3039.321028 | M62: -452225.4426 | N62: -0.3252079845
A63: =A62+1 -> 9 | B63: 23 | C63: General Service - Small | D63: ='Class Summary'!N$80 -> 128265580 | E63: =(+'G+T+D+R+M'!Q$85+'G+T+D+R+M'!Q$29)/'G+T+D+R+M'!Q$58 -> 0.07887265888 | F63: 1.139064816 | G63: 127553840.6 | H63: ='Generation Summary'!N$69 -> 77638937.43 | I63: ='Transmission Summary'!$N$69 -> 17285866.96 | J63: ='Distribution Summary'!$N$69 -> 30977612.52 | K63: ='Retail Summary'!$N$69 -> 1105520.539 | L63: ='Misc Summary'!$N$69 -> 545903.1382 | M63: -711739.4078 | N63: -0.005548950917
A64: =A63+1 -> 10 | B64: SpC | C64: Customer 1 | D64: ='Class Summary'!O$80 -> 28232681 | E64: =(+'G+T+D+R+M'!R$85+'G+T+D+R+M'!R$29)/'G+T+D+R+M'!R$58 -> 0.04174468285 | F64: 0.6028692348 | G64: 33617888.53 | H64: ='Generation Summary'!O$69 -> 27739782.5 | I64: ='Transmission Summary'!$O$69 -> 5630880.194 | J64: ='Distribution Summary'!$O$69 -> 100145.34 | K64: ='Retail Summary'!$O$69 -> 24982.30895 | L64: ='Misc Summary'!$O$69 -> 122098.1932 | M64: 5385207.534 | N64: 0.1907437531
A65: =A64+1 -> 11 | B65: SpC | C65: Customer 2 | D65: ='Class Summary'!P$80 -> 38403587 | E65: =(+'G+T+D+R+M'!S$85+'G+T+D+R+M'!S$29)/'G+T+D+R+M'!S$58 -> 0.05577984465 | F65: 0.8055625282 | G65: 42031532.28 | H65: ='Generation Summary'!P$69 -> 35769964.49 | I65: ='Transmission Summary'!$P$69 -> 5980962.227 | J65: ='Distribution Summary'!$P$69 -> 120049.1938 | K65: ='Retail Summary'!$P$69 -> 27774.90985 | L65: ='Misc Summary'!$P$69 -> 132781.4633 | M65: 3627945.284 | N65: 0.09446891728
A67: =A65+1 -> 12 | C67: Total Utah Jurisdiction | D67: =SUM(D55:D65) -> 1770929956 | E67: =(+'G+T+D+R+M'!H$85+'G+T+D+R+M'!H$29)/'G+T+D+R+M'!H$58 -> 0.06924334573 | F67: =(E67/E$67) -> 1 | G67: =SUM(G55:G65) -> 1849822769 | H67: 1202836624 | I67: =SUM(I55:I65) -> 261242143.2 | J67: =SUM(J55:J65) -> 341529719.8 | K67: =SUM(K55:K65) -> 36743727.23 | L67: =SUM(L55:L65) -> 7470554.644 | M67: =SUM(M55:M65) -> 78892813 | N67: =M67/D67 -> 0.04454880484
A71: Footnotes :
B72: =+$B30 -> Column C : | C72: =+$C30 -> Annual revenues based on July 2014 thru June 2015 forecasted data.
B73: Column D : | C73: Calculated Return on Ratebase per July 2014 thru June 2015 Embedded Cost of Service Study
B74: Column E : | C74: Rate of Return Index. Rate of return by rate schedule, divided by Utah Jurisdiction's normalized rate of return.
B75: Column F : | C75: Calculated Full Cost of Service at Jurisdictional Rate of Return per the July 2014 thru June 2015 Embedded COS Study
B76: Column G : | C76: Calculated Generation Cost of Service at Jurisdictional Rate of Return per the July 2014 thru June 2015 Embedded COS Study.
B77: Column H : | C77: Calculated Transmission Cost of Service at Jurisdictional Rate of Return per the July 2014 thru June 2015 Embedded COS Study.
B78: Column I : | C78: Calculated Distribution Cost of Service at Jurisdictional Rate of Return per the July 2014 thru June 2015 Embedded COS Study.
B79: Column J : | C79: Calculated Retail Cost of Service at Jurisdictional Rate of Return per the July 2014 thru June 2015 Embedded COS Study.
B80: Column K : | C80: Calculated Miscellaneous Cost of Service at Jurisdictional Rate of Return per the July 2014 thru June 2015 Embedded COS Study.
B81: Column L : | C81: Increase or Decrease Required to Move From Annual Revenue to Full Cost of Service Dollars.
B82: Column M : | C82: Increase or Decrease Required to Move From Annual Revenue to Full Cost of Service Percent.

Sheet Unit Costs-earned
B1: Unit Costs @ Earned ROR
B2: =Inputs!$C$4 -> Rocky Mountain Power
B3: Cost Of Service By Rate Schedule
B4: =Inputs!$C$5 -> State of Utah
B5: =Inputs!$C$7 -> 2010 Protocol (Non Wgt)
B6: =Inputs!$C$6 -> 12 Months Ended June 2013
F7: =ActualROR -> 0.06924334573 | G7: = Actual Return On Rate Base
C10: ='Hot Sheet'!$H$10 -> Utah | E10: ='Hot Sheet'!$J$10 -> General | F10: ='Hot Sheet'!$K$10 -> General | G10: ='Hot Sheet'!$L$10 -> Street & Area | H10: ='Hot Sheet'!$M$10 -> General | J10: ='Hot Sheet'!$O$10 -> Traffic | K10: ='Hot Sheet'!$P$10 -> Outdoor | L10: ='Hot Sheet'!$Q$10 -> General
C11: ='Hot Sheet'!$H$11 -> Jurisdiction | D11: ='Hot Sheet'!$I$11 -> Residential | E11: ='Hot Sheet'!$J$11 -> Large Dist. | F11: ='Hot Sheet'!$K$11 -> +1 MW | G11: ='Hot Sheet'!$L$11 -> Lighting | H11: ='Hot Sheet'!$M$11 -> Trans | I11: ='Hot Sheet'!$N$11 -> Irrigation | J11: ='Hot Sheet'!$O$11 -> Signals | K11: ='Hot Sheet'!$P$11 -> Lighting | L11: ='Hot Sheet'!$Q$11 -> Small Dist. | M11: ='Hot Sheet'!R$11 -> Industrial | N11: ='Hot Sheet'!S$11 -> Industrial | O11: Aggregated
B12: Description | C12: ='Hot Sheet'!$H$12 -> Normalized | D12: ='Hot Sheet'!$I$12 -> Sch 1 | E12: ='Hot Sheet'!$J$12 -> Sch 6 | F12: ='Hot Sheet'!$K$12 -> Sch 8 | G12: ='Hot Sheet'!$L$12 -> Sch. 7,11,12 | H12: ='Hot Sheet'!$M$12 -> Sch 9 | I12: ='Hot Sheet'!$N$12 -> Sch 10 | J12: ='Hot Sheet'!$O$12 -> Sch 15 | K12: ='Hot Sheet'!$P$12 -> Sch 15 | L12: ='Hot Sheet'!$Q$12 -> Sch 23 | M12: ='Hot Sheet'!R$12 -> Cust 1 | N12: ='Hot Sheet'!S$12 -> Cust 2 | O12: Industrial
A14: 14 | B14: UNITS
A15: =+A14+1 -> 15 | B15: NCP kW | C15: =SUM(D15:N15) -> 97119572.95 | D15: ='Dist. Factors'!$P$259 -> 55452115.34 | E15: ='Dist. Factors'!P264 -> 17019737.84 | F15: ='Dist. Factors'!P265 -> 4529821.765 | G15: ='Dist. Factors'!P260+'Dist. Factors'!P266+'Dist. Factors'!P277+'Dist. Factors'!P278 -> 246249.5996 | H15: ='Dist. Factors'!P267 -> 9655362.517 | I15: ='Dist. Factors'!P274 -> 603381.6027 | J15: ='Dist. Factors'!P279 -> 8580 | K15: ='Dist. Factors'!P280 -> 51250.4004 | L15: ='Dist. Factors'!P268 -> 6696479.891 | M15: ='Dist. Factors'!P269 -> 1172600 | N15: ='Dist. Factors'!P270 -> 1683994 | O15: =SUM(M15:N15) -> 2856594
A16: =+A15+1 -> 16 | B16: Annual KWH | C16: =SUM(D16:N16) -> 2.251187807e+10 | D16: ='Energy Factor'!C25*1000 -> 6465068351 | E16: ='Energy Factor'!D25*1000 -> 6002510821 | F16: ='Energy Factor'!E25*1000 -> 2081683163 | G16: ='Energy Factor'!F25*1000 -> 85953946 | H16: ='Energy Factor'!G25*1000 -> 4762826168 | I16: ='Energy Factor'!H25*1000 -> 245260940 | J16: ='Energy Factor'!I25*1000 -> 6255301 | K16: ='Energy Factor'!J25*1000 -> 18111271 | L16: ='Energy Factor'!K25*1000 -> 1343737396 | M16: ='Energy Factor'!L25*1000 -> 587625000 | N16: ='Energy Factor'!M25*1000 -> 912845714.8 | O16: =SUM(M16:N16) -> 1500470715
A17: =+A16+1 -> 17 | B17: Average Customers | C17: =SUM(D17:N17) -> 831772 | D17: ='Cust Factors'!D23 -> 720352 | E17: ='Cust Factors'!E23 -> 14995 | F17: ='Cust Factors'!F23 -> 270 | G17: ='Cust Factors'!G23 -> 9463 | H17: ='Cust Factors'!H23 -> 152 | I17: ='Cust Factors'!I23 -> 2966 | J17: ='Cust Factors'!J23 -> 2312 | K17: ='Cust Factors'!K23 -> 657 | L17: ='Cust Factors'!L23 -> 80603 | M17: ='Cust Factors'!M23 -> 1 | N17: ='Cust Factors'!N23 -> 1 | O17: =SUM(M17:N17) -> 2
A18: =+A17+1 -> 18 | B18: Load Factor | C18: =+C16/(C15*730) -> 0.3175280554 | D18: =+D16/(D15*730) -> 0.1597100122 | E18: 0.4831224571 | F18: 0.6295216278 | G18: 0.4781535958 | H18: 0.6757301341 | I18: 0.5568182539 | J18: 0.9987069323 | K18: 0.4840930038 | L18: 0.2748811598 | M18: 0.6864794077 | N18: 0.7425641552 | O18: =+O16/(O15*730) -> 0.7195419914
B19: CP Load Factor | D19: ='Demand Factors'!D29*1000/730/'Demand Factors'!D27 -> 0.6141766936 | E19: ='Demand Factors'!E29*1000/730/'Demand Factors'!E27 -> 0.7704074696 | G19: ='Demand Factors'!G29*1000/730/'Demand Factors'!G27 -> 2.40006236 | H19: ='Demand Factors'!H29*1000/730/'Demand Factors'!H27 -> 0.9536251597 | I19: ='Demand Factors'!I29*1000/730/'Demand Factors'!I27 -> 0.9681716862 | J19: ='Demand Factors'!J29*1000/730/'Demand Factors'!J27 -> 0.9915957283 | K19: ='Demand Factors'!K29*1000/730/'Demand Factors'!K27 -> 2.12978014 | L19: ='Demand Factors'!L29*1000/730/'Demand Factors'!L27 -> 0.6664602799 | M19: ='Demand Factors'!M29*1000/730/'Demand Factors'!M27 -> 0.9596762395 | N19: ='Demand Factors'!N29*1000/730/'Demand Factors'!N27 -> 1.704591647 | O19: =SUM('Demand Factors'!M29:N29)*1000/SUM('Demand Factors'!M27:N27)/730 -> 1.307215255
A20: =+A18+1 -> 19
A21: =+A20+1 -> 20 | B21: GTDRM TOTAL | C21: =+C22/$C22 -> 1 | D21: 0.3798750221 | E21: 0.2653396263 | F21: 0.08278623078 | G21: 0.006108180039 | H21: 0.1448226231 | I21: 0.01008864239 | J21: 0.0003306801552 | K21: 0.0006157985285 | L21: 0.07019366421 | M21: 0.01737836955 | N21: 0.02246116295
A22: =+A21+1 -> 21 | B22: Revenue Requirement | C22: =C100+C106+C34+C40+C52+C58+C70+C76+C82+C88+C94 -> 1770929956 | D22: 672732056 | E22: 469897892.7 | F22: =F100+F106+F34+F40+F52+F58+F70+F76+F82+F88+F94 -> 146608616 | G22: 10817159.01 | H22: 256470721.6 | I22: 17866279.02 | J22: 585611.3926 | K22: 1090536.061 | L22: 124308062.6 | M22: 30775875.22 | N22: 39777146.31 | O22: =SUM(M22:N22) -> 70553021.54
A23: 22 | B23: Per NCP kW | C23: =C22/C$15 -> 18.23453195 | D23: 12.13176543 | E23: 27.60899711 | F23: 32.36520632 | G23: 43.92762069 | H23: 26.56251603 | I23: 29.61024821 | J23: 68.25307606 | K23: 21.27858617 | L23: 18.56319509 | M23: 26.24584276 | N23: 23.62071736 | O23: 24.69830208
A24: 23 | B24: Per KWH | C24: =C22/C$16 -> 0.07866646888 | D24: 0.1040564491 | E24: 0.07828355612 | F24: =F22/F$16 -> 0.07042792036 | G24: 0.1258483119 | H24: 0.05384843212 | I24: 0.07284600238 | J24: 0.09361841941 | K24: 0.06021311596 | L24: 0.0925091934 | M24: 0.05237332521 | N24: 0.0435748842 | O24: 0.04702059217
A25: 24 | B25: Per Customer | C25: =C22/C$17 -> 2129.105038 | D25: 933.8935076 | E25: 31336.97184 | F25: =F22/F$17 -> 542994.8741 | G25: 1143.100392 | H25: 1687307.379 | I25: 6023.694882 | J25: 253.2921248 | K25: 1659.872239 | L25: 1542.226253 | M25: 30775875.22 | N25: 39777146.31 | O25: 35276510.77
A26: 25
A27: 26 | B27: GENERATION-TOTAL | C27: =+C28/$C28 -> 1 | D27: 0.3189600435 | E27: 0.2768291798 | F27: 0.0893457775 | G27: 0.002903247819 | H27: 0.1839736076 | I27: 0.009943882829 | J27: 0.0002448436923 | K27: 0.0006804240152 | L27: 0.06552301347 | M27: 0.02217013242 | N27: 0.02942584735 | O27: 0.05159597977
A28: 27 | B28: Revenue Requirement | C28: =+C34+C40 -> 1160782375 | D28: 370243196.7 | E28: 321338432.8 | F28: =+F34+F40 -> 103711003.8 | G28: 3370038.898 | H28: 213553321.1 | I28: 11542683.92 | J28: 284210.2426 | K28: 789824.2042 | L28: 76057959.18 | M28: 25734698.96 | N28: 34157004.97 | O28: =SUM(M28:N28) -> 59891703.93
A29: 28 | B29: Per NCP kW | C29: =C28/C$15 -> 11.95209513 | D29: 6.676809251 | E29: 18.88033975 | F29: 22.89516214 | G29: 13.6854594 | H29: 22.11758707 | I29: 19.12998983 | J29: 33.1247369 | K29: 15.41108358 | L29: 11.35790153 | M29: 21.94669876 | N29: 20.28332938 | O29: 20.96612397
A30: 29 | B30: Per KWH | C30: =C28/C$16 -> 0.05156310687 | D30: 0.05726825713 | E30: 0.05353400308 | F30: =F28/F$16 -> 0.04982074392 | G30: 0.03920749488 | H30: 0.04483752159 | I30: 0.04706287077 | J30: 0.04543510257 | K30: 0.04360954039 | L30: 0.05660180285 | M30: 0.04379442495 | N30: 0.03741815776 | O30: 0.03991527681
A31: 30 | B31: Per Customer | C31: =C28/C$17 -> 1395.553559 | D31: 513.9753853 | E31: 21429.70542 | F31: =F28/F$17 -> 384114.8288 | G31: 356.1279613 | H31: 1404956.06 | I31: 3891.666866 | J31: 122.9283056 | K31: 1202.167739 | L31: 943.6120142 | M31: 25734698.96 | N31: 34157004.97 | O31: 29945851.97
A32: 31
A33: 32 | B33: GENERATION-DEMAND | C33: =+C34/$C34 -> 1 | D33: 0.3575793778 | E33: 0.280253847 | F33: 0.08467416359 | G33: 0.001388052648 | H33: 0.1595444024 | I33: 0.00859599733 | J33: 0.0002049348837 | K33: 0.0003751283749 | L33: 0.07138309855 | M33: 0.01888049341 | N33: 0.01712050398 | O33: 0.03600099739
A34: 33 | B34: Revenue Requirement | C34: ='Generation Summary'!E$133 -> 509437952.5 | D34: ='Generation Summary'!F$133 -> 182164506.1 | E34: ='Generation Summary'!G$133 -> 142771946 | F34: ='Generation Summary'!H133 -> 43136232.53 | G34: ='Generation Summary'!I$133 -> 707126.6989 | H34: ='Generation Summary'!J$133 -> 81277973.69 | I34: ='Generation Summary'!K$133 -> 4379127.279 | J34: ='Generation Summary'!L$133 -> 104401.6076 | K34: ='Generation Summary'!M$133 -> 191104.6312 | L34: ='Generation Summary'!N$133 -> 36365259.57 | M34: ='Generation Summary'!O$133 -> 9618439.907 | N34: ='Generation Summary'!P$133 -> 8721834.492 | O34: =SUM(M34:N34) -> 18340274.4
A35: 34 | B35: Per NCP kW | C35: =C34/C$15 -> 5.245471505 | D35: 3.285077674 | E35: 8.388610174 | F35: 9.522721812 | G35: 2.871585172 | H35: 8.417910105 | I35: 7.257641366 | J35: 12.16801953 | K35: 3.728841721 | L35: 5.430503811 | M35: 8.202660674 | N35: 5.179255088 | O35: 6.420329385
A36: 35 | B36: Per KWH | C36: =C34/C$16 -> 0.02262974021 | D36: 0.02817673321 | E36: 0.02378537086 | F36: =F34/F$16 -> 0.02072180498 | G36: 0.008226809027 | H36: 0.01706507247 | I36: 0.01785497226 | J36: 0.01669010133 | K36: 0.0105516963 | L36: 0.02706277259 | M36: 0.01636832998 | N36: 0.009554554895 | O36: 0.0122230139
A37: 36 | B37: Per Customer | C37: =C34/C$17 -> 612.4730725 | D37: 252.882627 | E37: 9521.3035 | F37: =F34/F$17 -> 159763.8242 | G37: 74.72542522 | H37: 534723.5111 | I37: 1476.442104 | J37: 45.15640466 | K37: 290.874629 | L37: 451.1650878 | M37: 9618439.907 | N37: 8721834.492 | O37: 9170137.199
A38: 37
A39: 38 | B39: GENERATION-ENERGY | C39: =+C40/$C40 -> 1 | D39: 0.2887545885 | E39: 0.2741506347 | F39: 0.0929996008 | G39: 0.00408833193 | H39: 0.2030804946 | I39: 0.01099810853 | J39: 0.0002760576875 | K39: 0.0009192058034 | L39: 0.06093964767 | M39: 0.02474306758 | N39: 0.03905026221 | O39: 0.06379332978
A40: 39 | B40: Revenue Requirement | C40: ='Generation Summary'!E$204 -> 651344422.3 | D40: ='Generation Summary'!F$204 -> 188078690.6 | E40: ='Generation Summary'!G$204 -> 178566486.8 | F40: ='Generation Summary'!$H$204 -> 60574771.25 | G40: ='Generation Summary'!I$204 -> 2662912.199 | H40: ='Generation Summary'!J$204 -> 132275347.4 | I40: ='Generation Summary'!K$204 -> 7163556.645 | J40: ='Generation Summary'!L$204 -> 179808.635 | K40: ='Generation Summary'!M$204 -> 598719.573 | L40: ='Generation Summary'!N$204 -> 39692699.61 | M40: ='Generation Summary'!O$204 -> 16116259.06 | N40: ='Generation Summary'!P$204 -> 25435170.48 | O40: =SUM(M40:N40) -> 41551429.53
A41: 40 | B41: Per NCP kW | C41: =C40/C$15 -> 6.706623623 | D41: 3.391731577 | E41: 10.49172957 | F41: 13.37244033 | G41: 10.81387423 | H41: 13.69967696 | I41: 11.87234847 | J41: 20.95671737 | K41: 11.68224186 | L41: 5.927397715 | M41: 13.74403808 | N41: 15.10407429 | O41: 14.54579458
A42: 41 | B42: Per KWH | C42: =C40/C$16 -> 0.02893336665 | D42: 0.02909152393 | E42: 0.02974863221 | F42: =F40/F$16 -> 0.02909893894 | G42: 0.03098068585 | H42: 0.02777244912 | I42: 0.02920789851 | J42: 0.02874500124 | K42: 0.03305784409 | L42: 0.02953903026 | M42: 0.02742609497 | N42: 0.02786360287 | O42: 0.02769226292
A43: 42 | B43: Per Customer | C43: =C40/C$17 -> 783.0804863 | D43: 261.0927583 | E43: 11908.40192 | F43: =F40/F$17 -> 224351.0046 | G43: 281.4025361 | H43: 870232.5488 | I43: 2415.224762 | J43: 77.77190095 | K43: 911.2931096 | L43: 492.4469264 | M43: 16116259.06 | N43: 25435170.48 | O43: 20775714.77
A44: 43
A45: 44 | B45: TRANSMISSION-TOTAL | C45: =+C46/$C46 -> 1 | D45: 0.3378565008 | E45: 0.2830304779 | F45: 0.08673193457 | G45: 0.002233521554 | H45: 0.170375733 | I45: 0.009097047723 | J45: 0.0002077378576 | K45: 0.0005482608711 | L45: 0.06828148729 | M45: 0.01970224183 | N45: 0.02193505652 | O45: 0.04163729835
A46: 45 | B46: Revenue Requirement | C46: =+C52+C58 -> 243694089.7 | D46: 82333632.41 | E46: 68972854.66 | F46: =+F52+F58 -> 21136059.84 | G46: 544296.0019 | H46: 41519559.17 | I46: 2216896.764 | J46: 50624.48811 | K46: 133607.9339 | L46: 16639794.89 | M46: 4801319.888 | N46: 5345443.63 | O46: =SUM(M46:N46) -> 10146763.52
A47: 46 | B47: Per NCP kW | C47: =C46/C$15 -> 2.509217064 | D47: 1.484769912 | E47: 4.052521568 | F47: 4.66598046 | G47: 2.210342688 | H47: 4.30015539 | I47: 3.674120579 | J47: 5.900289989 | K47: 2.606963708 | L47: 2.484856993 | M47: 4.094593117 | N47: 3.174265247 | O47: 3.55204958
A48: 47 | B48: Per KWH | C48: =C46/C$16 -> 0.01082513369 | D48: 0.01273515266 | E48: 0.01149066728 | F48: =F46/F$16 -> 0.01015335101 | G48: 0.006332414359 | H48: 0.008717420646 | I48: 0.009038931204 | J48: 0.008093053893 | K48: 0.007377060057 | L48: 0.01238321932 | M48: 0.008170720933 | N48: 0.005855801855 | O48: 0.006762386909
A49: 48 | B49: Per Customer | C49: =C46/C$17 -> 292.9818384 | D49: 114.296389 | E49: 4599.723552 | F49: =F46/F$17 -> 78281.70311 | G49: 57.51833477 | H49: 273154.9945 | I49: 747.4365353 | J49: 21.89640489 | K49: 203.36063 | L49: 206.4413842 | M49: 4801319.888 | N49: 5345443.63 | O49: 5073381.759
A50: 49
A51: 50 | B51: TRANSMISSION-DEMAND | C51: =+C52/$C52 -> 1 | D51: 0.353045525 | E51: 0.2825305699 | F51: 0.08480909943 | G51: 0.001484654136 | H51: 0.1622594551 | I51: 0.008615948668 | J51: 0.0001960561429 | K51: 0.0003480729313 | L51: 0.07036694052 | M51: 0.01877688687 | N51: 0.01756679126 | O51: 0.03634367813
A52: 51 | B52: Revenue Requirement | C52: ='Transmission Summary'!E$133 -> 186280469.2 | D52: ='Transmission Summary'!F$133 -> 65765486.04 | E52: ='Transmission Summary'!G$133 -> 52629927.13 | F52: ='Transmission Summary'!$H$133 -> 15798278.83 | G52: ='Transmission Summary'!I$133 -> 276562.0691 | H52: ='Transmission Summary'!J$133 -> 30225767.43 | I52: ='Transmission Summary'!K$133 -> 1604982.96 | J52: ='Transmission Summary'!L$133 -> 36521.43029 | K52: ='Transmission Summary'!M$133 -> 64839.18895 | L52: ='Transmission Summary'!N$133 -> 13107986.69 | M52: ='Transmission Summary'!O$133 -> 3497767.296 | N52: ='Transmission Summary'!P$133 -> 3272350.117 | O52: =SUM(M52:N52) -> 6770117.413
A53: 52 | B53: Per NCP kW | C53: =C52/C$15 -> 1.918052803 | D53: 1.185986966 | E53: 3.092287768 | F53: 3.487615993 | G53: 1.123096523 | H53: 3.130464276 | I53: 2.659979942 | J53: 4.256576957 | K53: 1.265145022 | L53: 1.957444345 | M53: 2.982915995 | N53: 1.943207706 | O53: 2.369996371
A54: 53 | B54: Per KWH | C54: =C52/C$16 -> 0.008274763598 | D54: 0.01017243476 | E54: 0.008767985381 | F54: =F52/F$16 -> 0.007589185094 | G54: 0.003217561054 | H54: 0.006346183204 | I54: 0.006543981118 | J54: 0.005838476884 | K54: 0.003580046312 | L54: 0.009754872294 | M54: 0.005952379997 | N54: 0.003584778966 | O54: 0.0045119957
A55: 54 | B55: Per Customer | C55: =C52/C$17 -> 223.9561673 | D55: 91.29631907 | E55: 3509.831752 | F55: =F52/F$17 -> 58512.14382 | G55: 29.22562285 | H55: 198853.7331 | I55: 541.1270938 | J55: 15.79646639 | K55: 98.68978531 | L55: 162.6240549 | M55: 3497767.296 | N55: 3272350.117 | O55: 3385058.706
A56: 55
A57: 56 | B57: TRANSMISSION-ENERGY | C57: =+C58/$C58 -> 1 | D57: 0.2885751888 | E57: 0.2846524465 | F57: 0.09297063941 | G57: 0.004663247684 | H57: 0.1967092763 | I57: 0.01065799018 | J57: 0.0002456395833 | K57: 0.001197777537 | L57: 0.06151516246 | M57: 0.02270458789 | N57: 0.03610804361 | O57: 0.0588126315
A58: 57 | B58: Revenue Requirement | C58: ='Transmission Summary'!E$204 -> 57413620.5 | D58: ='Transmission Summary'!F$204 -> 16568146.38 | E58: ='Transmission Summary'!G$204 -> 16342927.54 | F58: ='Transmission Summary'!$H$204 -> 5337781.009 | G58: ='Transmission Summary'!I$204 -> 267733.9329 | H58: ='Transmission Summary'!J$204 -> 11293791.74 | I58: ='Transmission Summary'!K$204 -> 611913.8034 | J58: ='Transmission Summary'!L$204 -> 14103.05782 | K58: ='Transmission Summary'!M$204 -> 68768.74493 | L58: ='Transmission Summary'!N$204 -> 3531808.193 | M58: ='Transmission Summary'!O$204 -> 1303552.593 | N58: ='Transmission Summary'!P$204 -> 2073093.513 | O58: =SUM(M58:N58) -> 3376646.106
A59: 58 | B59: Per NCP kW | C59: =C58/C$15 -> 0.5911642602 | D59: 0.2987829459 | E59: 0.9602338 | F59: 1.178364467 | G59: 1.087246165 | H59: 1.169691114 | I59: 1.014140638 | J59: 1.643713032 | K59: 1.341818686 | L59: 0.5274126482 | M59: 1.111677121 | N59: 1.231057541 | O59: 1.182053209
A60: 59 | B60: Per KWH | C60: =C58/C$16 -> 0.00255037009 | D60: 0.002562717898 | E60: 0.002722681895 | F60: =F58/F$16 -> 0.002564165913 | G60: 0.003114853306 | H60: 0.002371237442 | I60: 0.002494950086 | J60: 0.002254577008 | K60: 0.003797013745 | L60: 0.002628347029 | M60: 0.002218340936 | N60: 0.00227102289 | O60: 0.002250391209
A61: 60 | B61: Per Customer | C61: =C58/C$17 -> 69.0256711 | D61: 23.00006993 | E61: 1089.8918 | F61: =F58/F$17 -> 19769.55929 | G61: 28.29271192 | H61: 74301.26144 | I61: 206.3094415 | J61: 6.099938502 | K61: 104.6708446 | L61: 43.81732929 | M61: 1303552.593 | N61: 2073093.513 | O61: 1688323.053
A62: 61
A63: 62 | B63: DISTRIBUTION-TOTAL | C63: =+C64/$C64 -> 1 | D63: 0.564869959 | E63: 0.2388887062 | F63: 0.06641748462 | G63: 0.02019636977 | H63: 0.002653340591 | I63: 0.01258151731 | J63: 0.0004564924743 | K63: 0.0004222339234 | L63: 0.09284214798 | M63: 0.0003039363751 | N63: 0.0003678117856 | O63: 0.0006717481607
A64: 63 | B64: Revenue Requirement | C64: =+C70+C76+C82+C88+C94 -> 322371133.8 | D64: 182097769.1 | E64: 77010823.08 | F64: =+F70+F76+F82+F88+F94 -> 21411079.83 | G64: 6510726.622 | H64: 855360.4149 | I64: 4055918.001 | J64: 147159.9965 | K64: 136116.0286 | L64: 29929628.51 | M64: 97980.31387 | N64: 118571.9024 | O64: =SUM(M64:N64) -> 216552.2162
A65: 64 | B65: Per NCP kW | C65: =C64/C$15 -> 3.319321987 | D65: 3.283874168 | E65: 4.524794907 | F65: 4.726693662 | G65: 26.43954196 | H65: 0.08858915587 | I65: 6.721978235 | J65: 17.15151475 | K65: 2.65590176 | L65: 4.469456939 | M65: 0.08355817318 | N65: 0.07041111926 | O65: 0.07580783837
A66: 65 | B66: Per KWH | C66: =C64/C$16 -> 0.01432004619 | D66: 0.02816641051 | E66: 0.01282976831 | F66: =F64/F$16 -> 0.01028546525 | G66: 0.07574668674 | H66: 0.0001795909372 | I66: 0.01653715427 | J66: 0.02352564593 | K66: 0.007515542594 | L66: 0.02227342084 | M66: 0.0001667395258 | N66: 0.000129892599 | O66: 0.0001443228542
A67: 66 | B67: Per Customer | C67: =C64/C$17 -> 387.5715146 | D67: 252.789982 | E67: 5135.766794 | F67: =F64/F$17 -> 79300.29565 | G67: 688.0192985 | H67: 5627.371151 | I67: 1367.470668 | J67: 63.65051753 | K67: 207.1781258 | L67: 371.3215205 | M67: 97980.31387 | N67: 118571.9024 | O67: 108276.1081
A68: 67
A69: 68 | B69: DISTRIBUTION-SUBSTATION | C69: =+C70/$C70 -> 1 | D69: 0.4928007794 | E69: 0.3046826628 | F69: 0.08998531798 | G69: 0.00375750872 | H69: 0.0009296998342 | I69: 0.01568467084 | J69: 0.0002306929743 | K69: 0.0002205306607 | L69: 0.09131063558 | M69: 0.0001733564152 | N69: 0.0002241447422 | O69: 0.0003975011574
A70: 69 | B70: Revenue Requirement | C70: ='Distribution Summary'!E$133 -> 69473094.19 | D70: ='Distribution Summary'!F$133 -> 34236394.97 | E70: ='Distribution Summary'!G$133 -> 21167247.33 | F70: ='Distribution Summary'!$H$133 -> 6251558.472 | G70: ='Distribution Summary'!I$133 -> 261045.7573 | H70: ='Distribution Summary'!J$133 -> 64589.12415 | I70: ='Distribution Summary'!K$133 -> 1089662.615 | J70: ='Distribution Summary'!L$133 -> 16026.95473 | K70: ='Distribution Summary'!M$133 -> 15320.94736 | L70: ='Distribution Summary'!N$133 -> 6343632.387 | M70: ='Distribution Summary'!O$133 -> 12043.60656 | N70: ='Distribution Summary'!P$133 -> 15572.02879 | O70: =SUM(M70:N70) -> 27615.63535
A71: 70 | B71: Per NCP kW | C71: =C70/C$15 -> 0.7153356639 | D71: 0.6174046699 | E71: 1.243688213 | F71: 1.380089283 | G71: 1.060086017 | H71: 0.006689456149 | I71: 1.80592615 | J71: 1.867943442 | K71: 0.2989429789 | L71: 0.9473085098 | M71: 0.0102708567 | N71: 0.009247080922 | O71: 0.009667329466
A72: 71 | B72: Per KWH | C72: =C70/C$16 -> 0.003086063898 | D72: 0.005295596753 | E72: 0.003526398863 | F72: =F70/F$16 -> 0.003003126788 | G72: 0.003037042153 | H72: 1.356109207e-05 | I72: 0.004442870579 | J72: 0.002562139652 | K72: 0.0008459344108 | L72: 0.004720886987 | M72: 2.049539513e-05 | N72: 1.705877405e-05 | O72: 1.840464801e-05
A73: 72 | B73: Per Customer | C73: =C70/C$17 -> 83.52420398 | D73: 47.52731299 | E73: 1411.620362 | F73: =F70/F$17 -> 23153.92027 | G73: 27.58594074 | H73: 424.9284484 | I73: 367.3845632 | J73: 6.932073845 | K73: 23.31955459 | L73: 78.7021871 | M73: 12043.60656 | N73: 15572.02879 | O73: 13807.81767
A74: 73
A75: 74 | B75: DISTRIBUTION- P & C | C75: =+C76/$C76 -> 1 | D75: 0.5533275684 | E75: 0.2342391542 | F75: 0.06988737513 | G75: 0.03537914844 | H75: 0.0009824803505 | I75: 0.01192230862 | J75: 0.0002613635699 | K75: 0.0001571015939 | L75: 0.09339793033 | M75: 0.0001912863845 | N75: 0.000254283021 | O75: 0.0004455694055
A76: 75 | B76: Revenue Requirement | C76: ='Distribution Summary'!E$204 -> 155971362.2 | D76: ='Distribution Summary'!F$204 -> 86303254.6 | E76: ='Distribution Summary'!G$204 -> 36534599.96 | F76: ='Distribution Summary'!$H$204 -> 10900429.1 | G76: ='Distribution Summary'!I$204 -> 5518133.976 | H76: ='Distribution Summary'!J$204 -> 153238.7986 | I76: ='Distribution Summary'!K$204 -> 1859538.716 | J76: ='Distribution Summary'!L$204 -> 40765.23203 | K76: ='Distribution Summary'!M$204 -> 24503.34961 | L76: ='Distribution Summary'!N$204 -> 14567402.42 | M76: ='Distribution Summary'!O$204 -> 29835.19797 | N76: ='Distribution Summary'!P$204 -> 39660.86917 | O76: =SUM(M76:N76) -> 69496.06714
A77: 76 | B77: Per NCP kW | C77: =C76/C$15 -> 1.605972488 | D77: 1.5563564 | E77: 2.146601805 | F77: 2.40637042 | G77: 22.40870233 | H77: 0.0158708488 | I77: 3.081861807 | J77: 4.751192545 | K77: 0.4781104034 | L77: 2.17538209 | M77: 0.02544362781 | N77: 0.02355166893 | O77: 0.02432829697
A78: 77 | B78: Per KWH | C78: =C76/C$16 -> 0.006928402941 | D78: 0.01334916352 | E78: 0.006086552953 | F78: =F76/F$16 -> 0.005236353589 | G78: 0.06419872773 | H78: 3.217392221e-05 | I78: 0.007581878779 | J78: 0.006516909743 | K78: 0.00135293374 | L78: 0.0108409593 | M78: 5.077251303e-05 | N78: 4.344750546e-05 | O78: 4.631617696e-05
A79: 78 | B79: Per Customer | C79: =C76/C$17 -> 187.5169665 | D79: 119.807059 | E79: 2436.452148 | F79: =F76/F$17 -> 40371.95964 | G79: 583.1273356 | H79: 1008.149991 | I79: 626.9516913 | J79: 17.63202078 | K79: 37.29581372 | L79: 180.7302758 | M79: 29835.19797 | N79: 39660.86917 | O79: 34748.03357
A80: 79
A81: 80 | B81: DISTRIBUTION-TRANSFORMER | C81: =+C82/$C82 -> 1 | D81: 0.573575653 | E81: 0.257710485 | F81: 0.06187687743 | G81: 0.00911500077 | H81: 0.001245881286 | I81: 0.01601860637 | J81: 0.0001934798411 | K81: 0.0009962408205 | L81: 0.07878496673 | M81: 0.0002115892944 | N81: 0.0002712194735 | O81: 0.0004828087679
A82: 81 | B82: Revenue Requirement | C82: ='Distribution Summary'!E$275 -> 58634187.35 | D82: ='Distribution Summary'!F$275 -> 33631142.3 | E82: ='Distribution Summary'!G$275 -> 15110644.86 | F82: ='Distribution Summary'!$H$275 -> 3628100.424 | G82: ='Distribution Summary'!I$275 -> 534450.6628 | H82: ='Distribution Summary'!J$275 -> 73051.23675 | I82: ='Distribution Summary'!K$275 -> 939237.967 | J82: ='Distribution Summary'!L$275 -> 11344.53325 | K82: ='Distribution Summary'!M$275 -> 58413.77092 | L82: ='Distribution Summary'!N$275 -> 4619492.499 | M82: ='Distribution Summary'!O$275 -> 12406.36633 | N82: ='Distribution Summary'!P$275 -> 15902.73342 | O82: =SUM(M82:N82) -> 28309.09975
A83: 82 | B83: Per NCP kW | C83: =C82/C$15 -> 0.6037319313 | D83: 0.6064897992 | E83: 0.8878306472 | F83: 0.8009366841 | G83: 2.170361551 | H83: 0.007565871983 | I83: 1.556623475 | J83: 1.322206673 | K83: 1.139771991 | L83: 0.6898389265 | M83: 0.0105802203 | N83: 0.009443462045 | O83: 0.009910088641
A84: 83 | B84: Per KWH | C84: =C82/C$16 -> 0.002604588883 | D84: 0.00520197784 | E84: 0.002517387359 | F84: =F82/F$16 -> 0.001742868698 | G84: 0.006217872334 | H84: 1.533779193e-05 | I84: 0.003829545654 | J84: 0.001813587108 | K84: 0.003225271761 | L84: 0.003437794106 | M84: 2.111272721e-05 | N84: 1.742105283e-05 | O84: 1.886681258e-05
A85: 84 | B85: Per Customer | C85: =C82/C$17 -> 70.49310069 | D85: 46.68709505 | E85: 1007.712228 | F85: =F82/F$17 -> 13437.40898 | G85: 56.47793119 | H85: 480.6002418 | I85: 316.6682289 | J85: 4.906805039 | K85: 88.90984919 | L85: 57.31166953 | M85: 12406.36633 | N85: 15902.73342 | O85: 14154.54988
A86: =+A85+1 -> 85
A87: 86 | B87: DISTRIBUTION-METER | C87: =+C88/$C88 -> 1 | D87: 0.7320214569 | E87: 0.06834471937 | F87: -0.009254953171 | G87: 0.001432155925 | H87: 0.05856735806 | I87: 0.007449598984 | J87: 0.002692077494 | K87: 0.0009717142327 | L87: 0.1292932603 | M87: 0.004137116723 | N87: 0.004345495212 | O87: 0.008482611935
A88: 87 | B88: Revenue Requirement | C88: ='Distribution Summary'!E$346 -> 8942359.636 | D88: ='Distribution Summary'!F$346 -> 6545999.129 | E88: ='Distribution Summary'!G$346 -> 611163.0598 | F88: ='Distribution Summary'!$H$346 -> -82761.11967 | G88: ='Distribution Summary'!I$346 -> 12806.85333 | H88: ='Distribution Summary'!J$346 -> 523730.3788 | I88: ='Distribution Summary'!K$346 -> 66616.99326 | J88: ='Distribution Summary'!L$346 -> 24073.52512 | K88: ='Distribution Summary'!M$346 -> 8689.418133 | L88: ='Distribution Summary'!N$346 -> 1156186.832 | M88: ='Distribution Summary'!O$346 -> 36995.5856 | N88: ='Distribution Summary'!P$346 -> 38858.98098 | O88: =SUM(M88:N88) -> 75854.56658
A89: 88 | B89: Per NCP kW | C89: =C88/C$15 -> 0.0920757718 | D89: 0.1180477803 | E89: 0.03590907602 | F89: -0.01827028169 | G89: 0.05200761079 | H89: 0.05424243552 | I89: 0.110406073 | J89: 2.805772159 | K89: 0.1695482975 | L89: 0.1726559104 | M89: 0.03155004741 | N89: 0.0230754866 | O89: 0.02655419936
A90: 89 | B90: Per KWH | C90: =C88/C$16 -> 0.0003972285035 | D90: 0.001012518163 | E90: 0.0001018179022 | F90: =F88/F$16 -> -3.97568281e-05 | G90: 0.0001489966887 | H90: 0.0001099621024 | I90: 0.0002716168064 | J90: 0.003848499876 | K90: 0.0004797795877 | L90: 0.0008604261779 | M90: 6.295781425e-05 | N90: 4.256905669e-05 | O90: 5.055384676e-05
A91: 90 | B91: Per Customer | C91: =C88/C$17 -> 10.75097459 | D91: 9.087222815 | E91: 40.75778992 | F91: =F88/F$17 -> -306.5226655 | G91: 1.353360809 | H91: 3445.594597 | I91: 22.46021351 | J91: 10.41242436 | K91: 13.22590279 | L91: 14.34421587 | M91: 36995.5856 | N91: 38858.98098 | O91: 37927.28329
A92: 91
A93: 92 | B93: DISTRIBUTION-SERVICE | C93: =+C94/$C94 -> 1 | D93: 0.7284798342 | E93: 0.122219827 | F93: 0.02431856133 | G93: 0.006278996705 | H93: 0.001388439371 | I93: 0.003436499532 | J93: 0.001872214896 | K93: 0.0009944944769 | L93: 0.110490629 | M93: 0.0002282632928 | N93: 0.0002922402685 | O93: 0.0005205035613
A94: 93 | B94: Revenue Requirement | C94: ='Distribution Summary'!E$417 -> 29350130.44 | D94: ='Distribution Summary'!F$417 -> 21380978.16 | E94: ='Distribution Summary'!G$417 -> 3587167.864 | F94: ='Distribution Summary'!H$417 -> 713752.9472 | G94: ='Distribution Summary'!I$417 -> 184289.3723 | H94: ='Distribution Summary'!J$417 -> 40750.87665 | I94: ='Distribution Summary'!K$417 -> 100861.7095 | J94: ='Distribution Summary'!L$417 -> 54949.7514 | K94: ='Distribution Summary'!M$417 -> 29188.54262 | L94: ='Distribution Summary'!N$417 -> 3242914.373 | M94: ='Distribution Summary'!O$417 -> 6699.557418 | N94: ='Distribution Summary'!P$417 -> 8577.289999 | O94: =SUM(M94:N94) -> 15276.84742
A95: 94 | B95: Per NCP kW | C95: =C94/C$15 -> 0.3022061315 | D95: 0.385575519 | E95: 0.2107651656 | F95: 0.1575675566 | G95: 0.7483844546 | H95: 0.00422054341 | I95: 0.1671607306 | J95: 6.40439993 | K95: 0.5695280894 | L95: 0.4842715017 | M95: 0.00571342096 | N95: 0.00509342076 | O95: 0.005347923932
A96: 95 | B96: Per KWH | C96: =C94/C$16 -> 0.001303761967 | D96: 0.003307154232 | E96: 0.0005976112282 | F96: =F94/F$16 -> 0.0003428729981 | G96: 0.002144047841 | H96: 8.556028545e-06 | I96: 0.0004112424486 | J96: 0.008784509555 | K96: 0.001611623095 | L96: 0.002413354263 | M96: 1.140107623e-05 | N96: 9.396209962e-06 | O96: 1.018136993e-05
A97: 96 | B97: Per Customer | C97: =C94/C$17 -> 35.28626888 | D97: 29.68129214 | E97: 239.2242657 | F97: =F94/F$17 -> 2643.529434 | G97: 19.47473024 | H97: 268.0978727 | I97: 34.00597084 | J97: 23.76719351 | K97: 44.42700551 | L97: 40.23317213 | M97: 6699.557418 | N97: 8577.289999 | O97: 7638.423709
A98: 97
A99: 98 | B99: RETAIL-TOTAL | C99: =+C100/$C100 -> 1 | D99: 0.9557840987 | E99: 0.01748968864 | F99: -0.006729223907 | G99: 0.009603176002 | H99: -0.01148304707 | I99: -0.0006799292392 | J99: 0.002761678533 | K99: 0.0007518415919 | L99: 0.03102884367 | M99: 0.0007008513306 | N99: 0.0007720217117 | O99: 0.001472873042
A100: 99 | B100: Revenue Requirement | C100: ='Retail Summary'!E$62 -> 36755180.98 | D100: ='Retail Summary'!F$62 -> 35130017.53 | E100: ='Retail Summary'!G$62 -> 642836.6714 | F100: ='Retail Summary'!H$62 -> -247333.8426 | G100: ='Retail Summary'!I$62 -> 352966.472 | H100: ='Retail Summary'!J$62 -> -422061.4735 | I100: ='Retail Summary'!K$62 -> -24990.92224 | J100: ='Retail Summary'!L$62 -> 101505.9943 | K100: ='Retail Summary'!M$62 -> 27634.07378 | L100: ='Retail Summary'!N$62 -> 1140470.765 | M100: ='Retail Summary'!O$62 -> 25759.9175 | N100: ='Retail Summary'!P$62 -> 28375.79774 | O100: =SUM(M100:N100) -> 54135.71523
A101: 100 | B101: Per NCP kW | C101: =C100/C$15 -> 0.3784528686 | D101: 0.6335198813 | E101: 0.03777006894 | F101: -0.05460123055 | G101: 1.433368714 | H101: -0.04371264908 | I101: -0.04141810445 | J101: 11.83053546 | K101: 0.539197227 | L101: 0.1703089957 | M101: 0.02196820527 | N101: 0.01685029622 | O101: 0.01895114085
A102: 101 | B102: Per KWH | C102: =C100/C$16 -> 0.001632701673 | D102: 0.005433819972 | E102: 0.0001070946293 | F102: =F100/F$16 -> -0.0001188143551 | G102: 0.004106460359 | H102: -8.86157627e-05 | I102: -0.0001018952396 | J102: 0.01622719583 | K102: 0.001525794285 | L102: 0.0008487303906 | M102: 4.383734098e-05 | N102: 3.108498761e-05 | O102: 3.607915483e-05
A103: 102 | B103: Per Customer | C103: =C100/C$17 -> 44.18900971 | D103: 48.76784895 | E103: 42.87006812 | F103: =F100/F$17 -> -916.0512687 | G103: 37.29963774 | H103: -2776.72022 | I103: -8.425799811 | J103: 43.90397677 | K103: 42.0609951 | L103: 14.1492347 | M103: 25759.9175 | N103: 28375.79774 | O103: 27067.85762
A104: 103
A105: 104 | B105: MISC - Total | C105: =+C106/$C106 -> 1 | D105: 0.3995318241 | E105: 0.2638049611 | F105: 0.08158755414 | G105: 0.005340530915 | H105: 0.1316390243 | I105: 0.01034112576 | J105: 0.0002880606266 | K105: 0.0004577234369 | L105: 0.07372680371 | M105: 0.01584732415 | N105: 0.01743509467 | O105: 0.03328241882
A106: 105 | B106: Revenue Requirement | C106: ='Misc Summary'!E$62 -> 7327176.518 | D106: ='Misc Summary'!F$62 -> 2927440.199 | E106: ='Misc Summary'!G$62 -> 1932945.516 | F106: ='Misc Summary'!H$62 -> 597806.4108 | G106: ='Misc Summary'!I$62 -> 39131.01271 | H106: ='Misc Summary'!J$62 -> 964542.3677 | I106: ='Misc Summary'!K$62 -> 75771.25385 | J106: ='Misc Summary'!L$62 -> 2110.671059 | K106: ='Misc Summary'!M$62 -> 3353.820419 | L106: ='Misc Summary'!N$62 -> 540209.3049 | M106: ='Misc Summary'!O$62 -> 116116.1414 | N106: ='Misc Summary'!P$62 -> 127750.0162 | O106: =SUM(M106:N106) -> 243866.1576
A107: 106 | B107: Per NCP kW | C107: =C106/C$15 -> 0.0754449005 | D107: 0.05279221868 | E107: 0.1135708161 | F107: 0.1319712876 | G107: 0.1589079242 | H107: 0.09989706405 | I107: 0.1255776668 | J107: 0.2459989579 | K107: 0.06543988715 | L107: 0.08067063796 | M107: 0.09902451081 | N107: 0.07586132506 | O107: 0.08536955465
A108: 107 | B108: Per KWH | C108: =C106/C$16 -> 0.0003254804639 | D108: 0.0004528088553 | E108: 0.0003220228291 | F108: =F106/F$16 -> 0.0002871745429 | G108: 0.0004552555704 | H108: 0.0002025147116 | I108: 0.0003089413824 | J108: 0.0003374211823 | K108: 0.0001851786337 | L108: 0.0004020199977 | M108: 0.0001976024529 | N108: 0.0001399469967 | O108: 0.000162526436
A109: 108 | B109: Per Customer | C109: =C106/C$17 -> 8.809116582 | D109: 4.063902369 | E109: 128.9060031 | F109: =F106/F$17 -> 2214.097818 | G109: 4.135159327 | H109: 6345.673472 | I109: 25.54661289 | J109: 0.9129200082 | K109: 5.104749496 | L109: 6.702099238 | M109: 116116.1414 | N109: 127750.0162 | O109: 121933.0788

Sheet Unit Costs-target
B1: Unit Costs @ Target ROR
B2: =Inputs!$C$4 -> Rocky Mountain Power
B3: Cost Of Service By Rate Schedule
B4: =Inputs!$C$5 -> State of Utah
B5: =Inputs!$C$7 -> 2010 Protocol (Non Wgt)
B6: =Inputs!$C$6 -> 12 Months Ended June 2013
F7: =TargetROR -> 0.07780031876 | G7: = Target Return On Rate Base
C10: ='Hot Sheet'!$H$10 -> Utah | E10: ='Hot Sheet'!$J$10 -> General | F10: ='Hot Sheet'!$K$10 -> General | G10: ='Hot Sheet'!$L$10 -> Street & Area | H10: ='Hot Sheet'!$M$10 -> General | J10: ='Hot Sheet'!$O$10 -> Traffic | K10: ='Hot Sheet'!$P$10 -> Outdoor | L10: ='Hot Sheet'!$Q$10 -> General
C11: ='Hot Sheet'!$H$11 -> Jurisdiction | D11: ='Hot Sheet'!$I$11 -> Residential | E11: ='Hot Sheet'!$J$11 -> Large Dist. | F11: ='Hot Sheet'!$K$11 -> +1 MW | G11: ='Hot Sheet'!$L$11 -> Lighting | H11: ='Hot Sheet'!$M$11 -> Trans | I11: ='Hot Sheet'!$N$11 -> Irrigation | J11: ='Hot Sheet'!$O$11 -> Signals | K11: ='Hot Sheet'!$P$11 -> Lighting | L11: ='Hot Sheet'!$Q$11 -> Small Dist. | M11: ='Hot Sheet'!R$11 -> Industrial | N11: ='Hot Sheet'!S$11 -> Industrial | O11: Aggregated
B12: Description | C12: ='Hot Sheet'!$H$12 -> Normalized | D12: ='Hot Sheet'!$I$12 -> Sch 1 | E12: ='Hot Sheet'!$J$12 -> Sch 6 | F12: ='Hot Sheet'!$K$12 -> Sch 8 | G12: ='Hot Sheet'!$L$12 -> Sch. 7,11,12 | H12: ='Hot Sheet'!$M$12 -> Sch 9 | I12: ='Hot Sheet'!$N$12 -> Sch 10 | J12: ='Hot Sheet'!$O$12 -> Sch 15 | K12: ='Hot Sheet'!$P$12 -> Sch 15 | L12: ='Hot Sheet'!$Q$12 -> Sch 23 | M12: ='Hot Sheet'!R$12 -> Cust 1 | N12: ='Hot Sheet'!S$12 -> Cust 2 | O12: Industrial
A14: 14 | B14: UNITS
A15: =+A14+1 -> 15 | B15: NCP kW | C15: =SUM(D15:N15) -> 97119572.95 | D15: ='Dist. Factors'!P259 -> 55452115.34 | E15: ='Dist. Factors'!P264 -> 17019737.84 | F15: ='Dist. Factors'!P265 -> 4529821.765 | G15: ='Dist. Factors'!P260+'Dist. Factors'!P266+'Dist. Factors'!P277+'Dist. Factors'!P278 -> 246249.5996 | H15: ='Dist. Factors'!P267 -> 9655362.517 | I15: ='Dist. Factors'!P274 -> 603381.6027 | J15: ='Dist. Factors'!P279 -> 8580 | K15: ='Dist. Factors'!P280 -> 51250.4004 | L15: ='Dist. Factors'!P268 -> 6696479.891 | M15: ='Dist. Factors'!P269 -> 1172600 | N15: ='Dist. Factors'!P270 -> 1683994 | O15: =SUM(M15:N15) -> 2856594
A16: =+A15+1 -> 16 | B16: Annual KWH | C16: =SUM(D16:N16) -> 2.251187807e+10 | D16: ='Energy Factor'!C25*1000 -> 6465068351 | E16: ='Energy Factor'!D25*1000 -> 6002510821 | F16: ='Energy Factor'!E25*1000 -> 2081683163 | G16: ='Energy Factor'!F25*1000 -> 85953946 | H16: ='Energy Factor'!G25*1000 -> 4762826168 | I16: ='Energy Factor'!H25*1000 -> 245260940 | J16: ='Energy Factor'!I25*1000 -> 6255301 | K16: ='Energy Factor'!J25*1000 -> 18111271 | L16: ='Energy Factor'!K25*1000 -> 1343737396 | M16: ='Energy Factor'!L25*1000 -> 587625000 | N16: ='Energy Factor'!M25*1000 -> 912845714.8 | O16: =SUM(M16:N16) -> 1500470715
A17: =+A16+1 -> 17 | B17: Average Customers | C17: =SUM(D17:N17) -> 831772 | D17: ='Cust Factors'!D23 -> 720352 | E17: ='Cust Factors'!E23 -> 14995 | F17: ='Cust Factors'!F23 -> 270 | G17: ='Cust Factors'!G23 -> 9463 | H17: ='Cust Factors'!H23 -> 152 | I17: ='Cust Factors'!I23 -> 2966 | J17: ='Cust Factors'!J23 -> 2312 | K17: ='Cust Factors'!K23 -> 657 | L17: ='Cust Factors'!L23 -> 80603 | M17: ='Cust Factors'!M23 -> 1 | N17: ='Cust Factors'!N23 -> 1 | O17: =SUM(M17:N17) -> 2
A18: =+A17+1 -> 18 | B18: Load Factor | C18: =+C16/(C15*730) -> 0.3175280554 | D18: 0.1597100122 | E18: 0.4831224571 | F18: 0.6295216278 | G18: 0.4781535958 | H18: 0.6757301341 | I18: 0.5568182539 | J18: 0.9987069323 | K18: 0.4840930038 | L18: 0.2748811598 | M18: 0.6864794077 | N18: 0.7425641552 | O18: 0.7195419914
B19: CP Load Factor | D19: ='Demand Factors'!D29*1000/730/'Demand Factors'!D27 -> 0.6141766936 | E19: ='Demand Factors'!E29*1000/730/'Demand Factors'!E27 -> 0.7704074696 | G19: ='Demand Factors'!G29*1000/730/'Demand Factors'!G27 -> 2.40006236 | H19: ='Demand Factors'!H29*1000/730/'Demand Factors'!H27 -> 0.9536251597 | I19: ='Demand Factors'!I29*1000/730/'Demand Factors'!I27 -> 0.9681716862 | J19: ='Demand Factors'!J29*1000/730/'Demand Factors'!J27 -> 0.9915957283 | K19: ='Demand Factors'!K29*1000/730/'Demand Factors'!K27 -> 2.12978014 | L19: ='Demand Factors'!L29*1000/730/'Demand Factors'!L27 -> 0.6664602799 | M19: ='Demand Factors'!M29*1000/730/'Demand Factors'!M27 -> 0.9596762395 | N19: ='Demand Factors'!N29*1000/730/'Demand Factors'!N27 -> 1.704591647 | O19: =SUM('Demand Factors'!M29:N29)*1000/SUM('Demand Factors'!M27:N27)/730 -> 1.307215255
A20: =+A18+1 -> 19
A21: =+A20+1 -> 20 | B21: GTDRM TOTAL | C21: =+C22/$C22 -> 1 | D21: 0.3867000541 | E21: 0.2566834366 | F21: 0.082378212 | G21: 0.005612892403 | H21: 0.1476642501 | I21: 0.01025909698 | J21: 0.0003446428183 | K21: 0.0005072642807 | L21: 0.06895461399 | M21: 0.01817358034 | N21: 0.02272195662
A22: =+A21+1 -> 21 | B22: Revenue Requirement | C22: =C100+C106+C34+C40+C52+C58+C70+C76+C82+C88+C94 -> 1849822769 | D22: 715326564.7 | E22: 474818865.4 | F22: =F100+F106+F34+F40+F52+F58+F70+F76+F82+F88+F94 -> 152385092.2 | G22: 10382856.17 | H22: 273152691.9 | I22: 18977511.19 | J22: 637528.1323 | K22: 938349.0162 | L22: 127553815 | M22: 33617902.71 | N22: 42031592.71 | O22: =SUM(M22:N22) -> 75649495.42
A23: 22 | B23: Per NCP kW | C23: =C22/C$15 -> 19.04685855 | D23: 12.89989679 | E23: 27.89813039 | F23: 33.6404168 | G23: 42.16395146 | H23: 28.2902575 | I23: 31.45192214 | J23: 74.30397813 | K23: 18.30910605 | L23: 19.04789039 | M23: 28.66954009 | N23: 24.95946702 | O23: =O22/'Unit Costs-earned'!O$15 -> 26.48241067
A24: 23 | B24: Per KWH | C24: =C22/C$16 -> 0.08217096605 | D24: 0.1106448572 | E24: 0.07910337516 | F24: =F22/F$16 -> 0.07320282689 | G24: 0.1207955731 | H24: 0.05735096816 | I24: 0.07737681829 | J24: 0.1019180583 | K24: 0.05181022448 | L24: 0.09492465965 | M24: 0.05720978976 | N24: 0.0460445747 | O24: =O22/'Unit Costs-earned'!O$16 -> 0.05041717554
A25: 24 | B25: Per Customer | C25: =C22/C$17 -> 2223.954123 | D25: 993.0236394 | E25: 31665.14607 | F25: =F22/F$17 -> 564389.2304 | G25: 1097.205555 | H25: 1797057.183 | I25: 6398.351715 | J25: 275.7474621 | K25: 1428.232901 | L25: 1582.494634 | M25: 33617902.71 | N25: 42031592.71 | O25: =O22/'Unit Costs-earned'!O$17 -> 37824747.71
A26: 25
A27: 26 | B27: GENERATION-TOTAL | C27: =+C28/$C28 -> 1 | D27: 0.323460795 | E27: 0.2693728936 | F27: 0.08891881199 | G27: 0.002713524772 | H27: 0.1873179095 | I27: 0.01003287197 | J27: 0.0002539776198 | K27: 0.0005826611036 | L27: 0.06454651467 | M27: 0.02306198208 | N27: 0.02973805769 | O27: 0.05280003977
A28: 27 | B28: Revenue Requirement | C28: =+C34+C40 -> 1202836624 | D28: 389070490.7 | E28: 324011582 | F28: =+F34+F40 -> 106954803.6 | G28: 3263926.976 | H28: 225312841.9 | I28: 12067905.85 | J28: 305493.5828 | K28: 700846.1148 | L28: 77638911.81 | M28: 27739796.67 | N28: 35770024.91 | O28: =SUM(M28:N28) -> 63509821.59
A29: 28 | B29: Per NCP kW | C29: =C28/C$15 -> 12.38511031 | D29: 7.01633271 | E29: 19.03740146 | F29: 23.61126092 | G29: 13.25454734 | H29: 23.33551345 | I29: 20.00045378 | J29: 35.60531268 | K29: 13.67493931 | L29: 11.59398864 | M29: 23.65665758 | N29: 21.24118311 | O29: =O28/'Unit Costs-earned'!O$15 -> 22.23270846
A30: 29 | B30: Per KWH | C30: =C28/C$16 -> 0.05343119842 | D30: 0.06018041412 | E30: 0.05397934159 | F30: =F28/F$16 -> 0.05137900212 | G30: 0.03797297423 | H30: 0.0473065432 | I30: 0.04920435294 | J30: 0.04883755119 | K30: 0.03869668312 | L30: 0.05777833678 | M30: 0.04720663122 | N30: 0.03918518139 | O30: =O28/'Unit Costs-earned'!O$16 -> 0.04232659855
A31: 30 | B31: Per Customer | C31: =C28/C$17 -> 1446.113387 | D31: 540.111627 | E31: 21607.97479 | F31: =F28/F$17 -> 396128.9024 | G31: 344.9146123 | H31: 1482321.328 | I31: 4068.747759 | J31: 132.1339026 | K31: 1066.736857 | L31: 963.226081 | M31: 27739796.67 | N31: 35770024.91 | O31: =O28/'Unit Costs-earned'!O$17 -> 31754910.79
A32: 31
A33: 32 | B33: GENERATION-DEMAND | C33: =+C34/$C34 -> 1 | D33: 0.364350919 | E33: 0.2687556823 | F33: 0.08414556051 | G33: 0.001243009785 | H33: 0.1647557533 | I33: 0.008746528011 | J33: 0.0002183979734 | K33: 0.0002897727384 | L33: 0.06969914318 | M33: 0.02020456762 | N33: 0.01759066557 | O33: 0.03779523319
A34: 33 | B34: Revenue Requirement | C34: ='Generation Summary'!E$140 -> 538015278.8 | D34: ='Generation Summary'!F$140 -> 196026361.3 | E34: ='Generation Summary'!G$140 -> 144594663.4 | F34: ='Generation Summary'!H$140 -> 45271597.2 | G34: ='Generation Summary'!I$140 -> 668758.2562 | H34: ='Generation Summary'!J$140 -> 88641112.54 | I34: ='Generation Summary'!K$140 -> 4705765.707 | J34: ='Generation Summary'!L$140 -> 117501.4466 | K34: ='Generation Summary'!M$140 -> 155902.1606 | L34: ='Generation Summary'!N$140 -> 37499203.95 | M34: ='Generation Summary'!O$140 -> 10870366.08 | N34: ='Generation Summary'!P$140 -> 9464046.84 | O34: =SUM(M34:N34) -> 20334412.92
A35: 34 | B35: Per NCP kW | C35: =C34/C$15 -> 5.539720393 | D35: 3.535056509 | E35: 8.495704502 | F35: 9.994123289 | G35: 2.715773984 | H35: 9.180505899 | I35: 7.798987715 | J35: 13.69480729 | K35: 3.041969612 | L35: 5.599838208 | M35: 9.270310491 | N35: 5.620000333 | O35: =O34/'Unit Costs-earned'!O$15 -> 7.118411969
A36: 35 | B36: Per KWH | C36: =C34/C$16 -> 0.02389917345 | D36: 0.030320849 | E36: 0.02408903002 | F36: =F34/F$16 -> 0.02174759253 | G36: 0.007780425302 | H36: 0.01861103249 | I36: 0.01918677188 | J36: 0.01878429936 | K36: 0.008608018765 | L36: 0.02790664609 | M36: 0.01849881486 | N36: 0.01036763024 | O36: =O34/'Unit Costs-earned'!O$16 -> 0.01355202252
A37: 36 | B37: Per Customer | C37: =C34/C$17 -> 646.8302357 | D37: 272.1257958 | E37: 9642.858511 | F37: =F34/F$17 -> 167672.5822 | G37: 70.67085028 | H37: 583165.2141 | I37: 1586.569692 | J37: 50.82242498 | K37: 237.294004 | L37: 465.233353 | M37: 10870366.08 | N37: 9464046.84 | O37: =O34/'Unit Costs-earned'!O$17 -> 10167206.46
A38: 37
A39: 38 | B39: GENERATION-ENERGY | C39: =+C40/$C40 -> 1 | D39: 0.2903699329 | E39: 0.2698723798 | F39: 0.09278162754 | G39: 0.003903558059 | H39: 0.2055766264 | I39: 0.01107386247 | J39: 0.0002827709092 | K39: 0.0008196848042 | L39: 0.06037668336 | M39: 0.02537438172 | N39: 0.03956849199 | O39: 0.06494287371
A40: 39 | B40: Revenue Requirement | C40: ='Generation Summary'!E$211 -> 664821345.3 | D40: ='Generation Summary'!F$211 -> 193044129.4 | E40: ='Generation Summary'!G$211 -> 179416918.6 | F40: ='Generation Summary'!H$211 -> 61683206.44 | G40: ='Generation Summary'!I$211 -> 2595168.72 | H40: ='Generation Summary'!J$211 -> 136671729.3 | I40: ='Generation Summary'!K$211 -> 7362140.146 | J40: ='Generation Summary'!L$211 -> 187992.1362 | K40: ='Generation Summary'!M$211 -> 544943.9542 | L40: ='Generation Summary'!N$211 -> 40139707.86 | M40: ='Generation Summary'!O$211 -> 16869430.59 | N40: ='Generation Summary'!P$211 -> 26305978.07 | O40: =SUM(M40:N40) -> 43175408.67
A41: 40 | B41: Per NCP kW | C41: =C40/C$15 -> 6.845389915 | D41: 3.481276201 | E41: 10.54169696 | F41: 13.61713764 | G41: 10.53877336 | H41: 14.15500755 | I41: 12.20146606 | J41: 21.91050539 | K41: 10.63296969 | L41: 5.994150436 | M41: 14.38634708 | N41: 15.62118278 | O41: =O40/'Unit Costs-earned'!O$15 -> 15.11429649
A42: 41 | B42: Per KWH | C42: =C40/C$16 -> 0.02953202497 | D42: 0.02985956512 | E42: 0.02989031156 | F42: =F40/F$16 -> 0.02963140959 | G42: 0.03019254892 | H42: 0.02869551071 | I42: 0.03001758106 | J42: 0.03005325183 | K42: 0.03008866436 | L42: 0.02987169069 | M42: 0.02870781636 | N42: 0.02881755115 | O42: =O40/'Unit Costs-earned'!O$16 -> 0.02877457603
A43: 42 | B43: Per Customer | C43: =C40/C$17 -> 799.2831512 | D43: 267.9858312 | E43: 11965.11628 | F43: =F40/F$17 -> 228456.3201 | G43: 274.243762 | H43: 899156.1139 | I43: 2482.178067 | J43: 81.31147762 | K43: 829.4428527 | L43: 497.992728 | M43: 16869430.59 | N43: 26305978.07 | O43: =O40/'Unit Costs-earned'!O$17 -> 21587704.33
A44: 43
A45: 44 | B45: TRANSMISSION-TOTAL | C45: =+C46/$C46 -> 1 | D45: 0.3453830713 | E45: 0.2682736903 | F45: 0.0860396397 | G45: 0.001927933778 | H45: 0.1778334743 | I45: 0.009309233423 | J45: 0.0002250436728 | K45: 0.0003913451759 | L45: 0.06616798787 | M45: 0.02155425662 | N45: 0.02289432384 | O45: 0.04444858046
A46: 45 | B46: Revenue Requirement | C46: =+C52+C58 -> 261242143.2 | D46: 90228613.76 | E46: 70084393.83 | F46: =+F52+F58 -> 22477179.88 | G46: 503657.5521 | H46: 46457597.96 | I46: 2431964.091 | J46: 58790.89141 | K46: 102235.8525 | L46: 17285866.96 | M46: 5630880.194 | N46: 5980962.227 | O46: =SUM(M46:N46) -> 11611842.42
A47: 46 | B47: Per NCP kW | C47: =C46/C$15 -> 2.6899021 | D47: 1.627144667 | E47: 4.117830398 | F47: 4.962045096 | G47: 2.045313182 | H47: 4.811585053 | I47: 4.030557247 | J47: 6.852085246 | K47: 1.994830317 | L47: 2.58133635 | M47: 4.802046899 | N47: 3.551652932 | O47: =O46/'Unit Costs-earned'!O$15 -> 4.06492572
A48: 47 | B48: Per KWH | C48: =C46/C$16 -> 0.01160463567 | D48: 0.01395632789 | E48: 0.01167584631 | F48: =F46/F$16 -> 0.01079759892 | G48: 0.005859621059 | H48: 0.00975420818 | I48: 0.009915823087 | J48: 0.009398571133 | K48: 0.005644874536 | L48: 0.01286402166 | M48: 0.009582438109 | N48: 0.006551996827 | O48: =O46/'Unit Costs-earned'!O$16 -> 0.007738799769
A49: 48 | B49: Per Customer | C49: =C46/C$17 -> 314.0790303 | D49: 125.2562827 | E49: 4673.850872 | F49: =F46/F$17 -> 83248.81436 | G49: 53.22387743 | H49: 305642.0919 | I49: 819.9474346 | J49: 25.42858625 | K49: 155.6101256 | L49: 214.4568684 | M49: 5630880.194 | N49: 5980962.227 | O49: =O46/'Unit Costs-earned'!O$17 -> 5805921.21
A50: 49
A51: 50 | B51: TRANSMISSION-DEMAND | C51: =+C52/$C52 -> 1 | D51: 0.3621329678 | E51: 0.2681547428 | F51: 0.08408219017 | G51: 0.001321361546 | H51: 0.1684795305 | I51: 0.008777675092 | J51: 0.0002102459419 | K51: 0.0002724613059 | L51: 0.06831607181 | M51: 0.02036553525 | N51: 0.01788721778 | O51: 0.03825275303
A52: 51 | B52: Revenue Requirement | C52: ='Transmission Summary'!E$140 -> 199370708.5 | D52: ='Transmission Summary'!F$140 -> 72198706.38 | E52: ='Transmission Summary'!G$140 -> 53462201.08 | F52: ='Transmission Summary'!H$140 -> 16763525.83 | G52: ='Transmission Summary'!I$140 -> 263440.7877 | H52: ='Transmission Summary'!J$140 -> 33589883.37 | I52: ='Transmission Summary'!K$140 -> 1750011.302 | J52: ='Transmission Summary'!L$140 -> 41916.8824 | K52: ='Transmission Summary'!M$140 -> 54320.80361 | L52: ='Transmission Summary'!N$140 -> 13620223.64 | M52: ='Transmission Summary'!O$140 -> 4060291.193 | N52: ='Transmission Summary'!P$140 -> 3566187.283 | O52: =SUM(M52:N52) -> 7626478.476
A53: 52 | B53: Per NCP kW | C53: =C52/C$15 -> 2.052837574 | D53: 1.302000941 | E53: 3.141188283 | F53: 3.700703184 | G53: 1.069812045 | H53: 3.47888371 | I53: 2.900339179 | J53: 4.885417529 | K53: 1.059909838 | L53: 2.03393781 | M53: 3.462639598 | N53: 2.117695956 | O53: =O52/'Unit Costs-earned'!O$15 -> 2.669780331
A54: 53 | B54: Per KWH | C54: =C52/C$16 -> 0.008856245042 | D54: 0.01116750859 | E54: 0.008906639683 | F54: =F52/F$16 -> 0.00805287093 | G54: 0.003064906266 | H54: 0.007052510881 | I54: 0.00713530374 | J54: 0.006701017649 | K54: 0.002999281696 | L54: 0.01013607546 | M54: 0.006909663804 | N54: 0.003906670345 | O54: =O52/'Unit Costs-earned'!O$16 -> 0.005082723975
A55: 54 | B55: Per Customer | C55: =C52/C$17 -> 239.6939408 | D55: 100.2269812 | E55: 3565.335184 | F55: =F52/F$17 -> 62087.1327 | G55: 27.83903495 | H55: 220986.0748 | I55: 590.0240399 | J55: 18.13013945 | K55: 82.68006637 | L55: 168.9791154 | M55: 4060291.193 | N55: 3566187.283 | O55: =O52/'Unit Costs-earned'!O$17 -> 3813239.238
A56: 55
A57: 56 | B57: TRANSMISSION-ENERGY | C57: =+C58/$C58 -> 1 | D57: 0.2914092341 | E57: 0.2686569795 | F57: 0.09234720479 | G57: 0.003882514859 | H57: 0.207975048 | I57: 0.01102209432 | J57: 0.0002727269717 | K57: 0.0007744292524 | L57: 0.05924613419 | M57: 0.0253847193 | N57: 0.03902891467 | O57: 0.06441363397
A58: 57 | B58: Revenue Requirement | C58: ='Transmission Summary'!E$211 -> 61871434.65 | D58: ='Transmission Summary'!F$211 -> 18029907.39 | E58: ='Transmission Summary'!G$211 -> 16622192.75 | F58: ='Transmission Summary'!H$211 -> 5713654.047 | G58: ='Transmission Summary'!I$211 -> 240216.7644 | H58: ='Transmission Summary'!J$211 -> 12867714.59 | I58: ='Transmission Summary'!K$211 -> 681952.7887 | J58: ='Transmission Summary'!L$211 -> 16874.00901 | K58: ='Transmission Summary'!M$211 -> 47915.04888 | L58: ='Transmission Summary'!N$211 -> 3665643.32 | M58: ='Transmission Summary'!O$211 -> 1570589.001 | N58: ='Transmission Summary'!P$211 -> 2414774.944 | O58: =SUM(M58:N58) -> 3985363.945
A59: 58 | B59: Per NCP kW | C59: =C58/C$15 -> 0.6370645254 | D59: 0.3251437258 | E59: 0.9766421145 | F59: 1.261341912 | G59: 0.9755011369 | H59: 1.332701343 | I59: 1.130218067 | J59: 1.966667716 | K59: 0.9349204789 | L59: 0.5473985407 | M59: 1.339407301 | N59: 1.433956976 | O59: =O58/'Unit Costs-earned'!O$15 -> 1.395145388
A60: 59 | B60: Per KWH | C60: =C58/C$16 -> 0.002748390625 | D60: 0.002788819299 | E60: 0.002769206628 | F60: =F58/F$16 -> 0.002744727991 | G60: 0.002794714793 | H60: 0.002701697299 | I60: 0.002780519347 | J60: 0.002697553484 | K60: 0.00264559284 | L60: 0.002727946198 | M60: 0.002672774306 | N60: 0.002645326482 | O60: =O58/'Unit Costs-earned'!O$16 -> 0.002656075794
A61: 60 | B61: Per Customer | C61: =C58/C$17 -> 74.38508949 | D61: 25.02930149 | E61: 1108.515689 | F61: =F58/F$17 -> 21161.68165 | G61: 25.38484248 | H61: 84656.01706 | I61: 229.9233947 | J61: 7.298446803 | K61: 72.93005918 | L61: 45.47775294 | M61: 1570589.001 | N61: 2414774.944 | O61: =O58/'Unit Costs-earned'!O$17 -> 1992681.972
A62: 61
A63: 62 | B63: DISTRIBUTION-TOTAL | C63: =+C64/$C64 -> 1 | D63: 0.579102443 | E63: 0.2287954562 | F63: 0.06621326192 | G63: 0.01822876451 | H63: 0.002551066915 | I63: 0.0129615465 | J63: 0.0004929804142 | K63: 0.0003072119284 | L63: 0.09070253839 | M63: 0.000293225843 | N63: 0.0003515043839 | O63: 0.0006447302269
A64: 63 | B64: Revenue Requirement | C64: =+C70+C76+C82+C88+C94 -> 341529719.8 | D64: 197780695.1 | E64: 78140448.05 | F64: =+F70+F76+F82+F88+F94 -> 22613796.79 | G64: 6225664.836 | H64: 871265.1687 | I64: 4426753.346 | J64: 168367.4627 | K64: 104922.0038 | L64: 30977612.52 | M64: 100145.34 | N64: 120049.1938 | O64: =SUM(M64:N64) -> 220194.5338
A65: 64 | B65: Per NCP kW | C65: =C64/C$15 -> 3.516590008 | D65: 3.566693423 | E65: 4.591166374 | F65: 4.992204543 | G65: 25.28192877 | H65: 0.0902364015 | I65: 7.336573284 | J65: 19.62324741 | K65: 2.047242617 | L65: 4.625954685 | M65: 0.08540451987 | N65: 0.0712883738 | O65: =O64/'Unit Costs-earned'!O$15 -> 0.07708289444
A66: 65 | B66: Per KWH | C66: =C64/C$16 -> 0.01517108962 | D66: 0.03059220481 | E66: 0.01301796038 | F66: =F64/F$16 -> 0.01086322702 | G66: 0.07243023881 | H66: 0.0001829302893 | I66: 0.01804915755 | J66: 0.02691596499 | K66: 0.005793188331 | L66: 0.02305332323 | M66: 0.0001704238928 | N66: 0.0001315109353 | O66: =O64/'Unit Costs-earned'!O$16 -> 0.0001467503041
A67: 66 | B67: Per Customer | C67: =C64/C$17 -> 410.6049733 | D67: 274.56118 | E67: 5211.100237 | F67: =F64/F$17 -> 83754.80294 | G67: 657.8954703 | H67: 5732.007689 | I67: 1492.499442 | J67: 72.82329704 | K67: 159.698636 | L67: 384.3233195 | M67: 100145.34 | N67: 120049.1938 | O67: =O64/'Unit Costs-earned'!O$17 -> 110097.2669
A68: 67
A69: 68 | B69: DISTRIBUTION-SUBSTATION | C69: =+C70/$C70 -> 1 | D69: 0.505524207 | E69: 0.2928425942 | F69: 0.09060823856 | G69: 0.00358111145 | H69: 0.0008025284956 | I69: 0.01632003827 | J69: 0.0002411734376 | K69: 0.0001740368872 | L69: 0.08954072956 | M69: 0.0001579075356 | N69: 0.0002074346643 | O69: 0.0003653421999
A70: 69 | B70: Revenue Requirement | C70: ='Distribution Summary'!E$140 -> 73460588.52 | D70: ='Distribution Summary'!F$140 -> 37136105.75 | E70: ='Distribution Summary'!G$140 -> 21512389.31 | F70: ='Distribution Summary'!H$140 -> 6656134.529 | G70: ='Distribution Summary'!I$140 -> 263070.5547 | H70: ='Distribution Summary'!J$140 -> 58954.21559 | I70: ='Distribution Summary'!K$140 -> 1198879.616 | J70: ='Distribution Summary'!L$140 -> 17716.74266 | K70: ='Distribution Summary'!M$140 -> 12784.85215 | L70: ='Distribution Summary'!N$140 -> 6577714.69 | M70: ='Distribution Summary'!O$140 -> 11599.9805 | N70: ='Distribution Summary'!P$140 -> 15238.27252 | O70: =SUM(M70:N70) -> 26838.25302
A71: 70 | B71: Per NCP kW | C71: =C70/C$15 -> 0.7563932406 | D71: 0.6696968281 | E71: 1.263967137 | F71: 1.469403185 | G71: 1.068308558 | H71: 0.00610585211 | I71: 1.986934323 | J71: 2.064888422 | K71: 0.2494585809 | L71: 0.9822645325 | M71: 0.009892529846 | N71: 0.009048887655 | O71: =O70/'Unit Costs-earned'!O$15 -> 0.009395193372
A72: 71 | B72: Per KWH | C72: =C70/C$16 -> 0.003263192359 | D72: 0.005744116494 | E72: 0.003583898464 | F72: =F70/F$16 -> 0.003197477237 | G72: 0.003060598925 | H72: 1.237799019e-05 | I72: 0.004888179977 | J72: 0.002832276602 | K72: 0.0007059058503 | L72: 0.004895089404 | M72: 1.974044756e-05 | N72: 1.669315227e-05 | O72: =O70/'Unit Costs-earned'!O$16 -> 1.78865557e-05
A73: 72 | B73: Per Customer | C73: =C70/C$17 -> 88.31817916 | D73: 51.5527211 | E73: 1434.6375 | F73: =F70/F$17 -> 24652.35011 | G73: 27.79991067 | H73: 387.8566815 | I73: 404.2075577 | J73: 7.662950977 | K73: 19.45944011 | L73: 81.60632594 | M73: 11599.9805 | N73: 15238.27252 | O73: =O70/'Unit Costs-earned'!O$17 -> 13419.12651
A74: 73
A75: 74 | B75: DISTRIBUTION- P & C | C75: =+C76/$C76 -> 1 | D75: 0.5668594452 | E75: 0.2256447883 | F75: 0.06997085471 | G75: 0.03194496555 | H75: 0.0008424207577 | I75: 0.01227700048 | J75: 0.0002593545751 | K75: 0.0001357487453 | L75: 0.09165442133 | M75: 0.0001746815241 | N75: 0.0002363188028 | O75: 0.000411000327
A76: 75 | B76: Revenue Requirement | C76: ='Distribution Summary'!E$211 -> 164091552.3 | D76: ='Distribution Summary'!F$211 -> 93016846.33 | E76: ='Distribution Summary'!G$211 -> 37026403.6 | F76: ='Distribution Summary'!H$211 -> 11481626.17 | G76: ='Distribution Summary'!I$211 -> 5241898.986 | H76: ='Distribution Summary'!J$211 -> 138234.1299 | I76: ='Distribution Summary'!K$211 -> 2014552.068 | J76: ='Distribution Summary'!L$211 -> 42557.89484 | K76: ='Distribution Summary'!M$211 -> 22275.22234 | L76: ='Distribution Summary'!N$211 -> 15039716.28 | M76: ='Distribution Summary'!O$211 -> 28663.76246 | N76: ='Distribution Summary'!P$211 -> 38777.91921 | O76: =SUM(M76:N76) -> 67441.68167
A77: 76 | B77: Per NCP kW | C77: =C76/C$15 -> 1.689582721 | D77: 1.677426474 | E77: 2.175497881 | F77: 2.534675041 | G77: 21.28693405 | H77: 0.01431682442 | I77: 3.33876946 | J77: 4.960127603 | K77: 0.434635089 | L77: 2.245913752 | M77: 0.02444462089 | N77: 0.02302734998 | O77: =O76/'Unit Costs-earned'!O$15 -> 0.0236091239
A78: 77 | B78: Per KWH | C78: =C76/C$16 -> 0.007289109857 | D78: 0.01438760447 | E78: 0.006168485939 | F78: =F76/F$16 -> 0.005515549327 | G78: 0.06098497196 | H78: 2.902355135e-05 | I78: 0.008213913181 | J78: 0.006803492723 | K78: 0.001229909394 | L78: 0.01119245198 | M78: 4.87790044e-05 | N78: 4.248025551e-05 | O78: =O76/'Unit Costs-earned'!O$16 -> 4.49470163e-05
A79: 78 | B79: Per Customer | C79: =C76/C$17 -> 197.2794857 | D79: 129.1269356 | E79: 2469.24999 | F79: =F76/F$17 -> 42524.54136 | G79: 553.9362767 | H79: 909.4350649 | I79: 679.2151274 | J79: 18.40739396 | K79: 33.904448 | L79: 186.5900311 | M79: 28663.76246 | N79: 38777.91921 | O79: =O76/'Unit Costs-earned'!O$17 -> 33720.84083
A80: 79
A81: 80 | B81: DISTRIBUTION-TRANSFORMER | C81: =+C82/$C82 -> 1 | D81: 0.589087688 | E81: 0.245565413 | F81: 0.06150861152 | G81: 0.008294883229 | H81: 0.001076880629 | I81: 0.01670569681 | J81: 0.0001889084209 | K81: 0.0006707498089 | L81: 0.07646128866 | M81: 0.0001911116556 | N81: 0.0002487682597 | O81: 0.0004398799153
A82: 81 | B82: Revenue Requirement | C82: ='Distribution Summary'!E$282 -> 62571746.59 | D82: ='Distribution Summary'!F$282 -> 36860245.53 | E82: ='Distribution Summary'!G$282 -> 15365456.8 | F82: ='Distribution Summary'!H$282 -> 3848701.253 | G82: ='Distribution Summary'!I$282 -> 519025.3314 | H82: ='Distribution Summary'!J$282 -> 67382.30183 | I82: ='Distribution Summary'!K$282 -> 1045304.627 | J82: ='Distribution Summary'!L$282 -> 11820.32984 | K82: ='Distribution Summary'!M$282 -> 41969.98707 | L82: ='Distribution Summary'!N$282 -> 4784316.378 | M82: ='Distribution Summary'!O$282 -> 11958.19008 | N82: ='Distribution Summary'!P$282 -> 15565.86451 | O82: =SUM(M82:N82) -> 27524.05459
A83: 82 | B83: Per NCP kW | C83: =C82/C$15 -> 0.6442753472 | D83: 0.6647220815 | E83: 0.9028022019 | F83: 0.849636355 | G83: 2.107720509 | H83: 0.006978743855 | I83: 1.732410505 | J83: 1.377660821 | K83: 0.818920179 | L83: 0.7144524371 | M83: 0.01019801303 | N83: 0.009243420407 | O83: =O82/'Unit Costs-earned'!O$15 -> 0.009635270041
A84: 83 | B84: Per KWH | C84: =C82/C$16 -> 0.002779499178 | D84: 0.005701447151 | E84: 0.00255983825 | F84: =F82/F$16 -> 0.001848841035 | G84: 0.006038411912 | H84: 1.41475459e-05 | I84: 0.004262010197 | J84: 0.001889650049 | K84: 0.002317340791 | L84: 0.003560454887 | M84: 2.03500363e-05 | N84: 1.705202123e-05 | O84: =O82/'Unit Costs-earned'!O$16 -> 1.834361332e-05
A85: 84 | B85: Per Customer | C85: =C82/C$17 -> 75.22704129 | D85: 51.16976913 | E85: 1024.705355 | F85: =F82/F$17 -> 14254.44908 | G85: 54.8478634 | H85: 443.3046173 | I85: 352.4290719 | J85: 5.112599413 | K85: 63.88125885 | L85: 59.35655469 | M85: 11958.19008 | N85: 15565.86451 | O85: =O82/'Unit Costs-earned'!O$17 -> 13762.02729
A86: =+A85+1 -> 85
A87: 86 | B87: DISTRIBUTION-METER | C87: =+C88/$C88 -> 1 | D87: 0.7383234778 | E87: 0.06501603684 | F87: -0.008345952262 | G87: 0.001393119848 | H87: 0.05921631158 | I87: 0.007682054684 | J87: 0.002823845427 | K87: 0.000724009804 | L87: 0.1244733102 | M87: 0.004315347077 | N87: 0.004378438984 | O87: 0.008693786061
A88: 87 | B88: Revenue Requirement | C88: ='Distribution Summary'!E$353 -> 9608605.874 | D88: ='Distribution Summary'!F$353 -> 7094259.306 | E88: ='Distribution Summary'!G$353 -> 624713.4735 | F88: ='Distribution Summary'!H$353 -> -80192.96593 | G88: ='Distribution Summary'!I$353 -> 13385.93955 | H88: ='Distribution Summary'!J$353 -> 568986.1993 | I88: ='Distribution Summary'!K$353 -> 73813.83576 | J88: ='Distribution Summary'!L$353 -> 27133.21776 | K88: ='Distribution Summary'!M$353 -> 6956.724855 | L88: ='Distribution Summary'!N$353 -> 1196014.98 | M88: ='Distribution Summary'!O$353 -> 41464.46927 | N88: ='Distribution Summary'!P$353 -> 42070.69454 | O88: =SUM(M88:N88) -> 83535.16381
A89: 88 | B89: Per NCP kW | C89: =C88/C$15 -> 0.09893583324 | D89: 0.1279348725 | E89: 0.03670523479 | F89: -0.01770333803 | G89: 0.05435923377 | H89: 0.05892955322 | I89: 0.122333587 | J89: 3.162379693 | K89: 0.1357399123 | L89: 0.1786035349 | M89: 0.03536113702 | N89: 0.02498268672 | O89: =O88/'Unit Costs-earned'!O$15 -> 0.0292429249
A90: 89 | B90: Per KWH | C90: =C88/C$16 -> 0.0004268238236 | D90: 0.001097321625 | E90: 0.0001040753598 | F90: =F88/F$16 -> -3.852313712e-05 | G90: 0.0001557338572 | H90: 0.0001194639861 | I90: 0.000300960421 | J90: 0.004337635833 | K90: 0.0003841102513 | L90: 0.000890066008 | M90: 7.056280668e-05 | N90: 4.60874098e-05 | O90: =O88/'Unit Costs-earned'!O$16 -> 5.567263859e-05
A91: 90 | B91: Per Customer | C91: =C88/C$17 -> 11.55197082 | D91: 9.848323189 | E91: 41.66145205 | F91: =F88/F$17 -> -297.0109849 | G91: 1.41455559 | H91: 3743.330259 | I91: 24.88666074 | J91: 11.73582083 | K91: 10.58862231 | L91: 14.83834324 | M91: 41464.46927 | N91: 42070.69454 | O91: =O88/'Unit Costs-earned'!O$17 -> 41767.58191
A92: 91
A93: 92 | B93: DISTRIBUTION-SERVICE | C93: =+C94/$C94 -> 1 | D93: 0.7445063863 | E93: 0.1135786127 | F93: 0.02225124284 | G93: 0.005921397697 | H93: 0.001185899722 | I93: 0.002962623146 | J93: 0.002174380764 | K93: 0.0006583975936 | L93: 0.1062938681 | M93: 0.0002031289643 | N93: 0.0002640621182 | O93: 0.0004671910825
A94: 93 | B94: Revenue Requirement | C94: ='Distribution Summary'!E$424 -> 31797226.49 | D94: ='Distribution Summary'!F$424 -> 23673238.19 | E94: ='Distribution Summary'!G$424 -> 3611484.872 | F94: ='Distribution Summary'!H$424 -> 707527.8084 | G94: ='Distribution Summary'!I$424 -> 188284.0237 | H94: ='Distribution Summary'!J$424 -> 37708.32207 | I94: ='Distribution Summary'!K$424 -> 94203.19918 | J94: ='Distribution Summary'!L$424 -> 69139.27765 | K94: ='Distribution Summary'!M$424 -> 20935.21741 | L94: ='Distribution Summary'!N$424 -> 3379850.2 | M94: ='Distribution Summary'!O$424 -> 6458.937685 | N94: ='Distribution Summary'!P$424 -> 8396.44298 | O94: =SUM(M94:N94) -> 14855.38066
A95: 94 | B95: Per NCP kW | C95: =C94/C$15 -> 0.3274028656 | D95: 0.4269131673 | E95: 0.212193919 | F95: 0.1561932997 | G95: 0.7646064157 | H95: 0.003905427891 | I95: 0.1561254085 | J95: 8.058190868 | K95: 0.4084888556 | L95: 0.5047204284 | M95: 0.005508219073 | N95: 0.004986029036 | O95: =O94/'Unit Costs-earned'!O$15 -> 0.005200382226
A96: 95 | B96: Per KWH | C96: =C94/C$16 -> 0.001412464406 | D96: 0.003661715067 | E96: 0.0006016623676 | F96: =F94/F$16 -> 0.0003398825628 | G96: 0.002190522163 | H96: 7.917215692e-06 | I96: 0.0003840937704 | J96: 0.01105290979 | K96: 0.001155922045 | L96: 0.00251526095 | M96: 1.099159785e-05 | N96: 9.198096506e-06 | O96: =O94/'Unit Costs-earned'!O$16 -> 9.900480242e-06
A97: 96 | B97: Per Customer | C97: =C94/C$17 -> 38.22829633 | D97: 32.86343092 | E97: 240.8459401 | F97: =F94/F$17 -> 2620.473364 | G97: 19.89686397 | H97: 248.0810663 | I97: 31.76102467 | J97: 29.90453185 | K97: 31.86486667 | L97: 41.93206456 | M97: 6458.937685 | N97: 8396.44298 | O97: =O94/'Unit Costs-earned'!O$17 -> 7427.690332
A98: 97
A99: 98 | B99: RETAIL-TOTAL | C99: =+C100/$C100 -> 1 | D99: 0.9593107381 | E99: 0.01743112958 | F99: -0.007329887064 | G99: 0.009558388508 | H99: -0.01330074886 | I99: -0.0007303977618 | J99: 0.002794495015 | K99: 0.0007431397425 | L99: 0.03008732708 | M99: 0.0006799067712 | N99: 0.000755908884 | O99: 0.001435815655
A100: 99 | B100: Revenue Requirement | C100: ='Retail Summary'!E$69 -> 36743727.23 | D100: ='Retail Summary'!F$69 -> 35248652.09 | E100: ='Retail Summary'!G$69 -> 640484.6708 | F100: ='Retail Summary'!H$69 -> -269327.3709 | G100: ='Retail Summary'!I$69 -> 351210.8201 | H100: ='Retail Summary'!J$69 -> -488719.0879 | I100: ='Retail Summary'!K$69 -> -26837.53613 | J100: ='Retail Summary'!L$69 -> 102680.1626 | K100: ='Retail Summary'!M$69 -> 27305.72399 | L100: ='Retail Summary'!N$69 -> 1105520.539 | M100: ='Retail Summary'!O$69 -> 24982.30895 | N100: ='Retail Summary'!P$69 -> 27774.90985 | O100: =SUM(M100:N100) -> 52757.21879
A101: 100 | B101: Per NCP kW | C101: =C100/C$15 -> 0.3783349341 | D101: 0.6356592868 | E101: 0.03763187641 | F101: -0.05945650511 | G101: 1.426239152 | H101: -0.05061633751 | I101: -0.0444785456 | J101: 11.96738491 | K101: 0.532790452 | L101: 0.165089802 | M101: 0.02130505624 | N101: 0.01649347316 | O101: =O100/'Unit Costs-earned'!O$15 -> 0.01846857439
A102: 101 | B102: Per KWH | C102: =C100/C$16 -> 0.001632192886 | D102: 0.005452170058 | E102: 0.0001067027932 | F102: =F100/F$16 -> -0.0001293796173 | G102: 0.004086034864 | H102: -0.0001026111537 | I102: -0.0001094244201 | J102: 0.01641490355 | K102: 0.001507664702 | L102: 0.0008227206764 | M102: 4.251403352e-05 | N102: 3.042672973e-05 | O102: =O100/'Unit Costs-earned'!O$16 -> 3.51604455e-05
A103: 102 | B103: Per Customer | C103: =C100/C$17 -> 44.17523941 | D103: 48.93253866 | E103: 42.71321579 | F103: =F100/F$17 -> -997.5087811 | G103: 37.1141097 | H103: -3215.257157 | I103: -9.04839384 | J103: 44.41183502 | K103: 41.56122373 | L103: 13.71562522 | M103: 24982.30895 | N103: 27774.90985 | O103: =O100/'Unit Costs-earned'!O$17 -> 26378.6094
A104: 103
A105: 104 | B105: MISC - Total | C105: =+C106/$C106 -> 1 | D105: 0.4013240309 | E105: 0.2599481596 | F105: 0.08147176898 | G105: 0.005139642894 | H105: 0.1338195165 | I105: 0.01040423904 | J105: 0.0002939584792 | K105: 0.0004068400937 | L105: 0.07307397996 | M105: 0.01634392679 | N105: 0.0177739773 | O105: 0.0341179041
A106: 105 | B106: Revenue Requirement | C106: ='Misc Summary'!E$69 -> 7470554.341 | D106: ='Misc Summary'!F$69 -> 2998112.981 | E106: ='Misc Summary'!G$69 -> 1941956.852 | F106: ='Misc Summary'!H$69 -> 608639.2774 | G106: ='Misc Summary'!I$69 -> 38395.98153 | H106: ='Misc Summary'!J$69 -> 999705.9702 | I106: ='Misc Summary'!K$69 -> 77725.43312 | J106: ='Misc Summary'!L$69 -> 2196.032793 | K106: ='Misc Summary'!M$69 -> 3039.321028 | L106: ='Misc Summary'!N$69 -> 545903.1382 | M106: ='Misc Summary'!O$69 -> 122098.1932 | N106: ='Misc Summary'!P$69 -> 132781.4633 | O106: =SUM(M106:N106) -> 254879.6565
A107: 106 | B107: Per NCP kW | C107: =C106/C$15 -> 0.07692120253 | D107: 0.05406670174 | E107: 0.1141002799 | F107: 0.134362743 | G107: 0.1559230212 | H107: 0.1035389369 | I107: 0.1288163788 | J107: 0.2559478779 | K107: 0.05930336163 | L107: 0.08152091055 | M107: 0.1041260389 | N107: 0.07884913088 | O107: =O106/'Unit Costs-earned'!O$15 -> 0.08922501991
A108: 107 | B108: Per KWH | C108: =C106/C$16 -> 0.0003318494493 | D108: 0.0004637403378 | E108: 0.0003235240901 | F108: =F106/F$16 -> 0.0002923784408 | G108: 0.0004467041168 | H108: 0.0002098976395 | I108: 0.0003169091381 | J108: 0.0003510674854 | K108: 0.00016781379 | L108: 0.0004062573088 | M108: 0.0002077825029 | N108: 0.0001454588231 | O108: =O106/'Unit Costs-earned'!O$16 -> 0.0001698664653
A109: 108 | B109: Per Customer | C109: =C106/C$17 -> 8.981492934 | D109: 4.162011046 | E109: 129.5069591 | F109: =F106/F$17 -> 2254.219546 | G109: 4.057485103 | H109: 6577.012962 | I109: 26.20547307 | J109: 0.9498411733 | K109: 4.626059404 | L109: 6.772739702 | M109: 122098.1932 | N109: 132781.4633 | O109: =O106/'Unit Costs-earned'!O$17 -> 127439.8283

Sheet Function Summary
C1: Function Summary
C2: =Inputs!$C$4 -> Rocky Mountain Power
C3: Cost Of Service - Function Summary
C4: =Inputs!$C$5 -> State of Utah
C5: =Inputs!$C$7 -> 2010 Protocol (Non Wgt)
C6: =Inputs!$C$6 -> 12 Months Ended June 2013
C9: A | D9: B | E9: C | F9: D | G9: E | H9: F | I9: G | J9: H | L9: I | M9: J | N9: K | O9: L | P9: M
E10: ='Hot Sheet'!$H$10 -> Utah | L10: Distribution | M10: Distribution | N10: Distribution | O10: Distribution | P10: Distribution | Q10: Chk Total
E11: ='Hot Sheet'!$H$11 -> Jurisdiction | F11: Generation | G11: Transmission | H11: Distribution | I11: Retail | J11: MISC. | L11: Substations | M11: Poles & Wires | N11: Transformers | O11: Meters | P11: Services
C12: DESCRIPTION | E12: ='Hot Sheet'!$H$12 -> Normalized | F12: Function | G12: Function | H12: Function | I12: Function | J12: Function | L12: Function | M12: Function | N12: Function | O12: Function | P12: Function | Q12: =SUM(Q14:Q68) -> 0
A14: 14 | C14: Operating Expenses
A15: =A14+1 -> 15 | C15: Operation & Maintenance Expenses | E15: ='Class Summary'!E17 -> 1217632107 | F15: =Generation!$H17 -> 961886212.6 | G15: =Transmission!$H17 -> 104093223.8 | H15: =Distribution!$H17 -> 104371123.8 | I15: =Retail!$H17 -> 40941008.63 | J15: =Misc!$H17 -> 6340537.934 | L15: ='Distribution Summary'!E86 -> 18852437.73 | M15: ='Distribution Summary'!E157 -> 70261110.78 | N15: ='Distribution Summary'!E228 -> 5812375.76 | O15: ='Distribution Summary'!E299 -> 6583267.119 | P15: ='Distribution Summary'!E370 -> 2861932.45 | Q15: =ROUND(SUM(-E15,F15:J15),0) -> 0
A16: =A15+1 -> 16 | C16: Depreciation Expense | E16: ='Class Summary'!E18 -> 238134487.4 | F16: =Generation!$H18 -> 127057593.4 | G16: =Transmission!$H18 -> 43151912.05 | H16: =Distribution!$H18 -> 67119647.93 | I16: =Retail!$H18 -> 805333.9993 | J16: =Misc!$H18 -> 0 | L16: ='Distribution Summary'!E87 -> 11461457.4 | M16: ='Distribution Summary'!E158 -> 38115967.57 | N16: ='Distribution Summary'!E229 -> 10195535.97 | O16: ='Distribution Summary'!E300 -> 2557099.438 | P16: ='Distribution Summary'!E371 -> 4789587.548 | Q16: =ROUND(SUM(-E16,F16:J16),0) -> 0
A17: 17 | C17: Amortization Expense | E17: ='Class Summary'!E19 -> 21931213.29 | F17: =Generation!$H19 -> 11195775.91 | G17: =Transmission!$H19 -> 4032293.675 | H17: =Distribution!$H19 -> 3647688.067 | I17: =Retail!$H19 -> 3055455.636 | J17: =Misc!$H19 -> 0 | L17: ='Distribution Summary'!E88 -> 670825.1019 | M17: ='Distribution Summary'!E159 -> 1846131.962 | N17: ='Distribution Summary'!E230 -> 663509.8572 | O17: ='Distribution Summary'!E301 -> 111600.5977 | P17: ='Distribution Summary'!E372 -> 355620.5478 | Q17: 0
A18: 18 | C18: Taxes Other Than Income | E18: ='Class Summary'!E20 -> 57002645.82 | F18: =Generation!$H20 -> 29296660.6 | G18: =Transmission!$H20 -> 12820655.02 | H18: =Distribution!$H20 -> 14563027.96 | I18: =Retail!$H20 -> 324809.9688 | J18: =Misc!$H20 -> -2507.73 | L18: ='Distribution Summary'!E89 -> 2678201.792 | M18: ='Distribution Summary'!E160 -> 7370496.298 | N18: ='Distribution Summary'!E231 -> 2648996.413 | O18: ='Distribution Summary'!E302 -> 445554.169 | P18: ='Distribution Summary'!E373 -> 1419779.292 | Q18: 0
A19: 19 | C19: Income Taxes - Federal | E19: ='Class Summary'!E21 -> -1825512.508 | F19: =Generation!$H21 -> -47816833.88 | G19: =Transmission!$H21 -> 10571629.42 | H19: =Distribution!$H21 -> 34963125.1 | I19: =Retail!$H21 -> 253430.3381 | J19: =Misc!$H21 -> 203136.6212 | L19: ='Distribution Summary'!E90 -> 12984806.69 | M19: ='Distribution Summary'!E161 -> -1700970.931 | N19: ='Distribution Summary'!E232 -> 17557665.32 | O19: ='Distribution Summary'!E303 -> -2858115.337 | P19: ='Distribution Summary'!E374 -> 8979739.355 | Q19: 0
A20: 20 | C20: Income Taxes - State | E20: ='Class Summary'!E22 -> 3743910.849 | F20: =Generation!$H22 -> -2505545.888 | G20: =Transmission!$H22 -> 1436508.861 | H20: =Distribution!$H22 -> 4750908.022 | I20: =Retail!$H22 -> 34436.97391 | J20: =Misc!$H22 -> 27602.87866 | L20: ='Distribution Summary'!E91 -> 1764419.573 | M20: ='Distribution Summary'!E162 -> -231133.6993 | N20: ='Distribution Summary'!E233 -> 2385795.114 | O20: ='Distribution Summary'!E304 -> -388370.4058 | P20: ='Distribution Summary'!E375 -> 1220197.44 | Q20: 0
A21: 21 | C21: Income Taxes Deferred | E21: ='Class Summary'!E23 -> 110977073.7 | F21: =Generation!$H23 -> 82352036.72 | G21: =Transmission!$H23 -> 21660443.82 | H21: =Distribution!$H23 -> 7609774.394 | I21: =Retail!$H23 -> -645181.1948 | J21: =Misc!$H23 -> 0 | L21: ='Distribution Summary'!E92 -> 1633306.423 | M21: ='Distribution Summary'!E163 -> 3004708.384 | N21: ='Distribution Summary'!E234 -> 1894543.754 | O21: ='Distribution Summary'!E305 -> 49402.5698 | P21: ='Distribution Summary'!E376 -> 1027813.262 | Q21: 0
A22: 22 | C22: Investment Tax Credit Adj | E22: ='Class Summary'!E24 -> -1515707.943 | F22: =Generation!$H24 -> -767863.7647 | G22: =Transmission!$H24 -> -336632.6961 | H22: =Distribution!$H24 -> -411211.4826 | I22: =Retail!$H24 -> 0 | J22: =Misc!$H24 -> 0 | L22: ='Distribution Summary'!E93 -> -75623.51266 | M22: ='Distribution Summary'!E164 -> -208118.306 | N22: ='Distribution Summary'!E235 -> -74798.84987 | O22: ='Distribution Summary'!E306 -> -12580.96811 | P22: ='Distribution Summary'!E377 -> -40089.84596 | Q22: 0
A23: 23 | C23: Misc Revenues & Expense | E23: ='Class Summary'!E25 -> -142380.9754 | F23: =Generation!$H25 -> -1020822.298 | G23: =Transmission!$H25 -> 675.6518015 | H23: =Distribution!$H25 -> -53483.39884 | I23: =Retail!$H25 -> 931249.07 | J23: =Misc!$H25 -> 0 | L23: ='Distribution Summary'!E94 -> -9835.820885 | M23: ='Distribution Summary'!E165 -> -27068.49112 | N23: ='Distribution Summary'!E236 -> -9728.56277 | O23: ='Distribution Summary'!E307 -> -1636.318448 | P23: ='Distribution Summary'!E378 -> -5214.205613 | Q23: 0
A24: 24
A25: 25 | C25: Total Operating Expenses | E25: =SUM(E15:E23) -> 1645937836 | F25: 1159677213 | G25: =SUM(G15:G23) -> 197430709.6 | H25: 236560600.4 | I25: =SUM(I15:I23) -> 45700543.42 | J25: 6568769.704 | L25: =SUM(L15:L23) -> 49959995.37 | M25: =SUM(M15:M23) -> 118431123.6 | N25: =SUM(N15:N23) -> 41073894.78 | O25: =SUM(O15:O23) -> 6486220.865 | P25: =SUM(P15:P23) -> 20609365.84 | Q25: =ROUND(SUM(-E25,F25:J25),0) -> 0
A26: 26
A27: 27
A28: 28 | C28: Rate Base :
A29: 29 | C29: Electric Plant In Service | E29: ='Class Summary'!E33 -> 1.019122432e+10 | F29: =Generation!$H33 -> 5168568203 | G29: =Transmission!$H33 -> 2232974460 | H29: =Distribution!$H33 -> 2717546304 | I29: =Retail!$H33 -> 72135352.36 | J29: =Misc!$H33 -> 0 | L29: ='Distribution Summary'!E100 -> 507044505.7 | M29: ='Distribution Summary'!E171 -> 1395402566 | N29: ='Distribution Summary'!E242 -> 478297998.3 | O29: ='Distribution Summary'!E313 -> 80448454.42 | P29: ='Distribution Summary'!E384 -> 256352779.6 | Q29: =ROUND(SUM(-E29,F29:J29),0) -> 0
A30: 30 | C30: Plant Held For Future Use | E30: ='Class Summary'!E34 -> 16257903.22 | F30: =Generation!$H34 -> 11684486.3 | G30: =Transmission!$H34 -> 433300.8809 | H30: =Distribution!$H34 -> 4140116.032 | I30: =Retail!$H34 -> 0 | J30: =Misc!$H34 -> 0 | L30: ='Distribution Summary'!E101 -> 761384.6656 | M30: ='Distribution Summary'!E172 -> 2095354.755 | N30: ='Distribution Summary'!E243 -> 753081.8828 | O30: ='Distribution Summary'!E314 -> 126666.3748 | P30: ='Distribution Summary'!E385 -> 403628.3543 | Q30: 0
A31: =A30+1 -> 31 | C31: Electric Plant Acquisition Adj | E31: ='Class Summary'!E35 -> 20001840.46 | F31: =Generation!$H35 -> 20001840.46 | G31: =Transmission!$H35 -> 0 | H31: =Distribution!$H35 -> 0 | I31: =Retail!$H35 -> 0 | J31: =Misc!$H35 -> 0 | L31: ='Distribution Summary'!E102 -> 0 | M31: ='Distribution Summary'!E173 -> 0 | N31: ='Distribution Summary'!E244 -> 0 | O31: ='Distribution Summary'!E315 -> 0 | P31: ='Distribution Summary'!E386 -> 0 | Q31: 0
A32: 32 | C32: Nuclear Fuel | E32: ='Class Summary'!E36 -> 0 | F32: =Generation!$H36 -> 0 | G32: =Transmission!$H36 -> 0 | H32: =Distribution!$H36 -> 0 | I32: =Retail!$H36 -> 0 | J32: =Misc!$H36 -> 0 | L32: ='Distribution Summary'!E103 -> 0 | M32: ='Distribution Summary'!E174 -> 0 | N32: ='Distribution Summary'!E245 -> 0 | O32: ='Distribution Summary'!E316 -> 0 | P32: ='Distribution Summary'!E387 -> 0 | Q32: 0
A33: 33 | C33: Prepayments | E33: ='Class Summary'!E37 -> 13825020.43 | F33: =Generation!$H37 -> 6694425.607 | G33: =Transmission!$H37 -> 2289816.777 | H33: =Distribution!$H37 -> 2197201.298 | I33: =Retail!$H37 -> 11004.1794 | J33: =Misc!$H37 -> 2632572.566 | L33: ='Distribution Summary'!E104 -> 404074.5144 | M33: ='Distribution Summary'!E175 -> 1112025.883 | N33: ='Distribution Summary'!E246 -> 399668.1439 | O33: ='Distribution Summary'!E317 -> 67223.1215 | P33: ='Distribution Summary'!E388 -> 214209.6349 | Q33: 0
A34: 34 | C34: Fuel Stock | E34: ='Class Summary'!E38 -> 112033056.6 | F34: =Generation!$H38 -> 112033056.6 | G34: =Transmission!$H38 -> 0 | H34: =Distribution!$H38 -> 0 | I34: =Retail!$H38 -> 0 | J34: =Misc!$H38 -> 0 | L34: ='Distribution Summary'!E105 -> 0 | M34: ='Distribution Summary'!E176 -> 0 | N34: ='Distribution Summary'!E247 -> 0 | O34: ='Distribution Summary'!E318 -> 0 | P34: ='Distribution Summary'!E389 -> 0 | Q34: 0
A35: 35 | C35: Materials & Supplies | E35: ='Class Summary'!E39 -> 87497359.43 | F35: =Generation!$H39 -> 76183470.79 | G35: =Transmission!$H39 -> 583210.3439 | H35: =Distribution!$H39 -> 10730678.3 | I35: =Retail!$H39 -> 0 | J35: =Misc!$H39 -> 0 | L35: ='Distribution Summary'!E106 -> 1973416.649 | M35: ='Distribution Summary'!E177 -> 5430905.225 | N35: ='Distribution Summary'!E248 -> 1951896.844 | O35: ='Distribution Summary'!E319 -> 328303.8708 | P35: ='Distribution Summary'!E390 -> 1046155.709 | Q35: 0
A36: 36 | C36: Misc Deferred Debits | E36: ='Class Summary'!E40 -> 37831775.38 | F36: =Generation!$H40 -> 26648812.57 | G36: =Transmission!$H40 -> 7048192.634 | H36: =Distribution!$H40 -> 1216253.59 | I36: =Retail!$H40 -> -13010.44192 | J36: =Misc!$H40 -> 2931527.03 | L36: ='Distribution Summary'!E107 -> 223674.1255 | M36: ='Distribution Summary'!E178 -> 615558.2896 | N36: ='Distribution Summary'!E249 -> 221234.9936 | O36: ='Distribution Summary'!E320 -> 37211.13899 | P36: ='Distribution Summary'!E391 -> 118575.0426 | Q36: 0
A37: 37 | C37: Cash Working Capital | E37: ='Class Summary'!E41 -> 25430010.53 | F37: =Generation!$H41 -> 14587717.33 | G37: =Transmission!$H41 -> 4598108.861 | H37: =Distribution!$H41 -> 5379092.469 | I37: =Retail!$H41 -> 757375.3669 | J37: =Misc!$H41 -> 107716.5098 | L37: ='Distribution Summary'!E108 -> 1105727.714 | M37: ='Distribution Summary'!E179 -> 2647080.364 | N37: ='Distribution Summary'!E250 -> 971020.5318 | O37: ='Distribution Summary'!E321 -> 147002.1674 | P37: ='Distribution Summary'!E392 -> 508261.6914 | Q37: 0
A38: 38 | C38: Weatherization Loans | E38: ='Class Summary'!E42 -> 4640709.633 | F38: =Generation!$H42 -> 0 | G38: =Transmission!$H42 -> 0 | H38: =Distribution!$H42 -> 0 | I38: =Retail!$H42 -> 0 | J38: =Misc!$H42 -> 4640709.633 | L38: ='Distribution Summary'!E109 -> 0 | M38: ='Distribution Summary'!E180 -> 0 | N38: ='Distribution Summary'!E251 -> 0 | O38: ='Distribution Summary'!E322 -> 0 | P38: ='Distribution Summary'!E393 -> 0 | Q38: 0
A39: 39 | C39: Miscellaneous Rate Base | E39: ='Class Summary'!E43 -> 0 | F39: =Generation!$H43 -> 0 | G39: =Transmission!$H43 -> 0 | H39: =Distribution!$H43 -> 0 | I39: =Retail!$H43 -> 0 | J39: =Misc!$H43 -> 0 | L39: ='Distribution Summary'!E110 -> 0 | M39: ='Distribution Summary'!E181 -> 0 | N39: ='Distribution Summary'!E252 -> 0 | O39: ='Distribution Summary'!E323 -> 0 | P39: ='Distribution Summary'!E394 -> 0 | Q39: 0
A40: 40
A41: 41 | C41: Total Rate Base Additions | E41: =SUM(E29:E39) -> 1.050874199e+10 | F41: 5436402013 | G41: 2247927089 | H41: 2741209645 | I41: 72890721.46 | J41: 10312525.74 | L41: =SUM(L29:L39) -> 511512783.3 | M41: 1407303490 | N41: 482594900.7 | O41: 81154861.09 | P41: 258643610 | Q41: =ROUND(SUM(-E41,F41:J41),0) -> 0
A42: 42
A43: 43 | C43: Rate Base Deductions :
A44: 44 | C44: Accum Provision For Depreciation | E44: ='Class Summary'!E48 -> -2972320862 | F44: =Generation!$H48 -> -1534117165 | G44: =Transmission!$H48 -> -596810758.8 | H44: =Distribution!$H48 -> -837214472.5 | I44: =Retail!$H48 -> -4178464.867 | J44: =Misc!$H48 -> 0 | L44: ='Distribution Summary'!E115 -> -99498075.81 | M44: ='Distribution Summary'!E186 -> -543566761.8 | N44: ='Distribution Summary'!E257 -> -102067211.9 | O44: ='Distribution Summary'!E328 -> -26524477.6 | P44: ='Distribution Summary'!E399 -> -65557945.38 | Q44: =ROUND(SUM(-E44,F44:J44),0) -> 0
A45: 45 | C45: Accum Provision For Amortization | E45: ='Class Summary'!E49 -> -212996878.6 | F45: =Generation!$H49 -> -93222463.61 | G45: =Transmission!$H49 -> -32562371.88 | H45: =Distribution!$H49 -> -33598670 | I45: =Retail!$H49 -> -53613373.11 | J45: =Misc!$H49 -> 0 | L45: ='Distribution Summary'!E116 -> -6178936.031 | M45: ='Distribution Summary'!E187 -> -17004627.98 | N45: ='Distribution Summary'!E258 -> -6111555.683 | O45: ='Distribution Summary'!E329 -> -1027947.452 | P45: ='Distribution Summary'!E400 -> -3275602.851 | Q45: 0
A46: 46 | C46: Accum Deferred Income Taxes | E46: ='Class Summary'!E50 -> -1557231579 | F46: =Generation!$H50 -> -794635317 | G46: =Transmission!$H50 -> -361049413.4 | H46: =Distribution!$H50 -> -399807832.3 | I46: =Retail!$H50 -> -1739016.037 | J46: =Misc!$H50 -> 0 | L46: ='Distribution Summary'!E117 -> -74634187 | M46: ='Distribution Summary'!E188 -> -198335494.7 | N46: ='Distribution Summary'!E259 -> -75142363.9 | O46: ='Distribution Summary'!E330 -> -11363094.41 | P46: ='Distribution Summary'!E401 -> -40332692.28 | Q46: 0
A47: =A46+1 -> 47 | C47: Unamortized ITC | E47: ='Class Summary'!E51 -> -108792.5175 | F47: =Generation!$H51 -> -55114.7287 | G47: =Transmission!$H51 -> -24162.38475 | H47: =Distribution!$H51 -> -29515.40409 | I47: =Retail!$H51 -> 0 | J47: =Misc!$H51 -> 0 | L47: ='Distribution Summary'!E118 -> -5428.00634 | M47: ='Distribution Summary'!E189 -> -14938.04565 | N47: ='Distribution Summary'!E260 -> -5368.814765 | O47: ='Distribution Summary'!E331 -> -903.0204003 | P47: ='Distribution Summary'!E402 -> -2877.516931 | Q47: 0
A48: 48 | C48: Customer Advance For Construction | E48: ='Class Summary'!E52 -> -10012242.76 | F48: =Generation!$H52 -> 0 | G48: =Transmission!$H52 -> -6407458.467 | H48: =Distribution!$H52 -> -3604784.289 | I48: =Retail!$H52 -> 0 | J48: =Misc!$H52 -> 0 | L48: ='Distribution Summary'!E119 -> -662934.9176 | M48: ='Distribution Summary'!E190 -> -1824417.925 | N48: ='Distribution Summary'!E261 -> -655705.7142 | O48: ='Distribution Summary'!E332 -> -110287.9616 | P48: ='Distribution Summary'!E403 -> -351437.771 | Q48: 0
A49: 49 | C49: Customer Service Deposits | E49: ='Class Summary'!E53 -> -15625767.56 | F49: =Generation!$H53 -> 0 | G49: =Transmission!$H53 -> 0 | H49: =Distribution!$H53 -> 0 | I49: =Retail!$H53 -> -15625767.56 | J49: =Misc!$H53 -> 0 | L49: ='Distribution Summary'!E120 -> 0 | M49: ='Distribution Summary'!E191 -> 0 | N49: ='Distribution Summary'!E262 -> 0 | O49: ='Distribution Summary'!E333 -> 0 | P49: ='Distribution Summary'!E404 -> 0 | Q49: 0
A50: 50 | C50: Misc Rate Base Deductions | E50: ='Class Summary'!E54 -> -31531548.98 | F50: =Generation!$H54 -> -19133028.73 | G50: =Transmission!$H54 -> -4098071.797 | H50: =Distribution!$H54 -> -7087147.809 | I50: =Retail!$H54 -> -1213300.646 | J50: =Misc!$H54 -> 0 | L50: ='Distribution Summary'!E121 -> -1303356.143 | M50: ='Distribution Summary'!E192 -> -3586877.456 | N50: ='Distribution Summary'!E263 -> -1289143.245 | O50: ='Distribution Summary'!E334 -> -216830.4737 | P50: ='Distribution Summary'!E405 -> -690940.4916 | Q50: 0
A51: 51
A52: 52 | C52: Total Rate Base Deductions | E52: =SUM(E44:E50) -> -4799827671 | F52: -2441163089 | G52: -1000952237 | H52: -1281342422 | I52: -76369922.22 | J52: 0 | L52: =SUM(L44:L50) -> -182282917.9 | M52: -764333118 | N52: -185271349.3 | O52: -39243540.92 | P52: -110211496.3 | Q52: =ROUND(SUM(-E52,F52:J52),0) -> 0
A53: 53
A54: 54 | C54: Total Rate Base | E54: =E41+E52 -> 5708914324 | F54: 2995238924 | G54: =G41+G52 -> 1246974853 | H54: 1459867223 | I54: =I41+I52 -> -3479200.757 | J54: 10312525.74 | L54: 329229865.4 | M54: 642970372.3 | N54: 297323551.5 | O54: 41911320.17 | P54: 148432113.7 | Q54: =ROUND(SUM(-E54,F54:J54),0) -> 0
A55: 55
A56: 56
A57: 57 | C57: Return On Rate Base | D57: =ActualROR -> 0.06924334573 | E57: =$D$57*E54 -> 395304328.3 | F57: 207400364.3 | G57: =$D$57*G54 -> 86344710.83 | H57: 101086090.8 | I57: =$D$57*I54 -> -240911.5009 | J57: 714073.7851 | L57: =$D$57*L54 -> 22796977.4 | M57: =$D$57*M54 -> 44521419.78 | N57: =$D$57*N54 -> 20587677.47 | O57: =$D$57*O54 -> 2902080.033 | P57: =$D$57*P54 -> 10277936.17 | Q57: =ROUND(SUM(-E57,F57:J57),0) -> 0
A58: 58 | C58: Total Operating Expenses | E58: =E25 -> 1645937836 | F58: 1159677213 | G58: =G25 -> 197430709.6 | H58: 236560600.4 | I58: =I25 -> 45700543.42 | J58: 6568769.704 | L58: =L25 -> 49959995.37 | M58: =M25 -> 118431123.6 | N58: =N25 -> 41073894.78 | O58: =O25 -> 6486220.865 | P58: =P25 -> 20609365.84 | Q58: =ROUND(SUM(-E58,F58:J58),0) -> 0
A59: 59 | C59: Revenue Credits | E59: ='Class Summary'!E64 -> -270312209.1 | F59: =Generation!$H99 -> -206295203 | G59: =Transmission!$H99 -> -40081330.76 | H59: =Distribution!$H99 -> -15275557.42 | I59: =Retail!$H99 -> -8704450.937 | J59: =Misc!$H99 -> 44333.02862 | L59: ='Distribution Summary'!E131 -> -3283878.574 | M59: ='Distribution Summary'!E202 -> -6981181.112 | N59: ='Distribution Summary'!E273 -> -3027384.899 | O59: ='Distribution Summary'!E344 -> -445941.2608 | P59: ='Distribution Summary'!E415 -> -1537171.574 | Q59: =ROUND(SUM(-E59,F59:J59),0) -> 0
A60: 60
A61: 61 | C61: Total Revenue Requirements | E61: =E57+E58+E59 -> 1770929956 | F61: 1160782375 | G61: =G57+G58+G59 -> 243694089.7 | H61: 322371133.8 | I61: =I57+I58+I59 -> 36755180.98 | J61: 7327176.518 | L61: 69473094.19 | M61: 155971362.2 | N61: 58634187.35 | O61: 8942359.636 | P61: 29350130.44 | Q61: =ROUND(SUM(-E61,F61:J61),0) -> 0
A62: 62
A63: 63
A64: 64 | C64: Return On Rate Base @ Target ROR | D64: =TargetROR -> 0.07780031876 | E64: =$D64*E54 -> 444155354.2 | F64: =$D64*F54 -> 233030543 | G64: =$D64*G54 -> 97015041.02 | H64: 113578135.3 | I64: =$D64*I54 -> -270682.9279 | J64: 802317.7898 | L64: 25614188.48 | M64: 50023299.92 | N64: 23131867.08 | O64: 3260714.069 | P64: 11548065.76 | Q64: =ROUND(SUM(-E64,F64:J64),0) -> 0
A65: 65 | C65: Total Operating Expenses Adjusted for Taxes | E65: =E58+((E64-E57)*(1/NetToGross))-(E64-E57) -> 1675979624 | F65: 1175438937 | G65: =G58+((G64-G57)*(1/NetToGross))-(G64-G57) -> 203992614.5 | H65: 244242800.2 | I65: =I58+((I64-I57)*(1/NetToGross))-(I64-I57) -> 45682234.96 | J65: 6623036.888 | L65: =L58+((L64-L57)*(1/NetToGross))-(L64-L57) -> 51692488.27 | M65: =M58+((M64-M57)*(1/NetToGross))-(M64-M57) -> 121814600.3 | N65: =N58+((N64-N57)*(1/NetToGross))-(N64-N57) -> 42638488.38 | O65: =O58+((O64-O57)*(1/NetToGross))-(O64-O57) -> 6706769.096 | P65: =P58+((P64-P57)*(1/NetToGross))-(P64-P57) -> 21390454.1 | Q65: =ROUND(SUM(-E65,F65:J65),0) -> 0
A66: 66 | C66: Revenue Credits | E66: =E59 -> -270312209.1 | F66: =F59 -> -206295203 | G66: =G59 -> -40081330.76 | H66: -15275557.42 | I66: =I59 -> -8704450.937 | J66: 44333.02862 | L66: -3283878.574 | M66: -6981181.112 | N66: -3027384.899 | O66: -445941.2608 | P66: -1537171.574 | Q66: =ROUND(SUM(-E66,F66:J66),0) -> 0
A67: 67
A68: 68 | C68: Total Target Revenue Requirements | E68: =SUM(E64:E66) -> 1849822769 | F68: =SUM(F64:F66) -> 1202174277 | G68: =SUM(G64:G66) -> 260926324.8 | H68: 342545378.1 | I68: =SUM(I64:I66) -> 36707101.1 | J68: 7469687.706 | L68: 74022798.17 | M68: 164856719.1 | N68: 62742970.57 | O68: 9521541.904 | P68: 31401348.29 | Q68: =ROUND(SUM(-E68,F68:J68),0) -> 0

Sheet Class Summary
C1: Class Summary
C2: =Inputs!$C$4 -> Rocky Mountain Power
C3: Cost Of Service By Rate Schedule - All Functions
C4: =Inputs!$C$5 -> State of Utah
C5: =Inputs!$C$7 -> 2010 Protocol (Non Wgt)
C6: =Inputs!$C$6 -> 12 Months Ended June 2013
C9: A | D9: B | E9: C | F9: D | G9: E | H9: F | I9: G | J9: H | K9: I | L9: J | M9: K | N9: L | O9: M | P9: N
E10: ='Hot Sheet'!$H$10 -> Utah | G10: ='Hot Sheet'!$K$10 -> General | H10: ='Hot Sheet'!$J$10 -> General | I10: ='Hot Sheet'!$L$10 -> Street & Area | J10: ='Hot Sheet'!$M$10 -> General | L10: ='Hot Sheet'!$O$10 -> Traffic | M10: ='Hot Sheet'!$P$10 -> Outdoor | N10: ='Hot Sheet'!$Q$10 -> General | Q10: Chk Total
E11: ='Hot Sheet'!$H$11 -> Jurisdiction | F11: ='Hot Sheet'!$I$11 -> Residential | G11: ='Hot Sheet'!$J$11 -> Large Dist. | H11: ='Hot Sheet'!$K$11 -> +1 MW | I11: ='Hot Sheet'!$L$11 -> Lighting | J11: ='Hot Sheet'!$M$11 -> Trans | K11: ='Hot Sheet'!$N$11 -> Irrigation | L11: ='Hot Sheet'!$O$11 -> Signals | M11: ='Hot Sheet'!$P$11 -> Lighting | N11: ='Hot Sheet'!$Q$11 -> Small Dist. | O11: ='Hot Sheet'!R$11 -> Industrial | P11: ='Hot Sheet'!S$11 -> Industrial
C12: DESCRIPTION | E12: ='Hot Sheet'!$H$12 -> Normalized | F12: ='Hot Sheet'!$I$12 -> Sch 1 | G12: ='Hot Sheet'!$J$12 -> Sch 6 | H12: ='Hot Sheet'!$K$12 -> Sch 8 | I12: ='Hot Sheet'!$L$12 -> Sch. 7,11,12 | J12: ='Hot Sheet'!$M$12 -> Sch 9 | K12: ='Hot Sheet'!$N$12 -> Sch 10 | L12: ='Hot Sheet'!$O$12 -> Sch 15 | M12: ='Hot Sheet'!$P$12 -> Sch 15 | N12: ='Hot Sheet'!$Q$12 -> Sch 23 | O12: Cust 1 | P12: Cust2 | Q12: =ROUND(SUM(Q14:Q68),0) -> 0
A14: 14 | C14: Operating Revenues | E14: ='G+T+D+R+M'!H$14 -> 2041242165 | F14: ='G+T+D+R+M'!I$14 -> 752315257.1 | G14: ='G+T+D+R+M'!J$14 -> 567600485 | H14: ='G+T+D+R+M'!K$14 -> 170330565.4 | I14: ='G+T+D+R+M'!L$14 -> 12836423.91 | J14: ='G+T+D+R+M'!M$14 -> 289980703.1 | K14: ='G+T+D+R+M'!N$14 -> 20241067.07 | L14: ='G+T+D+R+M'!O$14 -> 621615.5758 | M14: ='G+T+D+R+M'!P$14 -> 1514688.262 | N14: ='G+T+D+R+M'!Q$14 -> 147866058.2 | O14: ='G+T+D+R+M'!R$14 -> 33561825.79 | P14: ='G+T+D+R+M'!S$14 -> 44373475.41 | Q14: =ROUND(SUM(F14:P14)-E14,0) -> 0
A15: =A14+1 -> 15
A16: =A15+1 -> 16 | C16: Operating Expenses
A17: =A16+1 -> 17 | C17: Operation & Maintenance Expenses | E17: ='G+T+D+R+M'!$H17 -> 1217632107 | F17: ='G+T+D+R+M'!$I17 -> 439020086.3 | G17: ='G+T+D+R+M'!$J17 -> 313964390.4 | H17: ='G+T+D+R+M'!$K17 -> 102793241.8 | I17: ='G+T+D+R+M'!$L17 -> 6222107.63 | J17: ='G+T+D+R+M'!$M17 -> 202595106.9 | K17: ='G+T+D+R+M'!$N17 -> 12285244.06 | L17: ='G+T+D+R+M'!$O17 -> 428302.4012 | M17: ='G+T+D+R+M'!$P17 -> 696337.676 | N17: ='G+T+D+R+M'!$Q17 -> 82219406.19 | O17: ='G+T+D+R+M'!R17 -> 24879697.26 | P17: ='G+T+D+R+M'!S17 -> 32528186.25 | Q17: =ROUND(SUM(F17:P17)-E17,0) -> 0
A18: 18 | C18: Depreciation Expense | E18: ='G+T+D+R+M'!$H18 -> 238134487.4 | F18: ='G+T+D+R+M'!$I18 -> 97496584.9 | G18: ='G+T+D+R+M'!$J18 -> 61500064.05 | H18: ='G+T+D+R+M'!$K18 -> 19199668.01 | I18: ='G+T+D+R+M'!$L18 -> 1972578.286 | J18: ='G+T+D+R+M'!$M18 -> 30069682.27 | K18: ='G+T+D+R+M'!$N18 -> 2507708.626 | L18: ='G+T+D+R+M'!$O18 -> 70769.62956 | M18: ='G+T+D+R+M'!$P18 -> 92769.89182 | N18: ='G+T+D+R+M'!$Q18 -> 17621444.19 | O18: ='G+T+D+R+M'!R18 -> 3669379.252 | P18: ='G+T+D+R+M'!S18 -> 3933838.283 | Q18: 0
A19: 19 | C19: Amortization Expense | E19: ='G+T+D+R+M'!$H19 -> 21931213.29 | F19: ='G+T+D+R+M'!$I19 -> 10023818.32 | G19: ='G+T+D+R+M'!$J19 -> 5003650.859 | H19: ='G+T+D+R+M'!$K19 -> 1556176.527 | I19: ='G+T+D+R+M'!$L19 -> 115008.8941 | J19: ='G+T+D+R+M'!$M19 -> 2688392.714 | K19: ='G+T+D+R+M'!$N19 -> 201992.53 | L19: ='G+T+D+R+M'!$O19 -> 13008.59964 | M19: ='G+T+D+R+M'!$P19 -> 9846.742567 | N19: ='G+T+D+R+M'!$Q19 -> 1639325.336 | O19: ='G+T+D+R+M'!R19 -> 328040.0289 | P19: ='G+T+D+R+M'!S19 -> 351952.7386 | Q19: 0
A20: 20 | C20: Taxes Other Than Income | E20: ='G+T+D+R+M'!$H20 -> 57002645.82 | F20: ='G+T+D+R+M'!$I20 -> 22286169.61 | G20: ='G+T+D+R+M'!$J20 -> 14811793.28 | H20: ='G+T+D+R+M'!$K20 -> 4777433.267 | I20: ='G+T+D+R+M'!$L20 -> 240270.4046 | J20: ='G+T+D+R+M'!$M20 -> 7779051.728 | K20: ='G+T+D+R+M'!$N20 -> 604767.7483 | L20: ='G+T+D+R+M'!$O20 -> 13174.50786 | M20: ='G+T+D+R+M'!$P20 -> 22646.01097 | N20: ='G+T+D+R+M'!$Q20 -> 4535815.222 | O20: ='G+T+D+R+M'!R20 -> 918769.5072 | P20: ='G+T+D+R+M'!S20 -> 1012754.537 | Q20: 0
A21: 21 | C21: Income Taxes - Federal | E21: ='G+T+D+R+M'!$H21 -> -1825512.508 | F21: ='G+T+D+R+M'!$I21 -> -1466226.49 | G21: ='G+T+D+R+M'!$J21 -> 12285759.9 | H21: ='G+T+D+R+M'!$K21 -> -379734.6961 | I21: ='G+T+D+R+M'!$L21 -> 839112.5557 | J21: ='G+T+D+R+M'!$M21 -> -11797227.99 | K21: ='G+T+D+R+M'!$N21 -> -109508.4641 | L21: ='G+T+D+R+M'!$O21 -> -12219.41431 | M21: ='G+T+D+R+M'!$P21 -> 159667.7187 | N21: ='G+T+D+R+M'!$Q21 -> 2230469.698 | O21: ='G+T+D+R+M'!R21 -> -2103054.814 | P21: ='G+T+D+R+M'!S21 -> -1472550.509 | Q21: 0
A22: 22 | C22: Income Taxes - State | E22: ='G+T+D+R+M'!$H22 -> 3743910.849 | F22: ='G+T+D+R+M'!$I22 -> 1180150.095 | G22: ='G+T+D+R+M'!$J22 -> 2744218.5 | H22: ='G+T+D+R+M'!$K22 -> 292988.7776 | I22: ='G+T+D+R+M'!$L22 -> 121594.1725 | J22: ='G+T+D+R+M'!$M22 -> -904293.0849 | K22: ='G+T+D+R+M'!$N22 -> 22352.97006 | L22: ='G+T+D+R+M'!$O22 -> -726.5702547 | M22: ='G+T+D+R+M'!$P22 -> 23390.83928 | N22: ='G+T+D+R+M'!$Q22 -> 572038.2406 | O22: ='G+T+D+R+M'!R22 -> -199943.8298 | P22: ='G+T+D+R+M'!S22 -> -107859.2611 | Q22: 0
A23: 23 | C23: Income Taxes Deferred | E23: ='G+T+D+R+M'!$H23 -> 110977073.7 | F23: ='G+T+D+R+M'!$I23 -> 41163217.28 | G23: ='G+T+D+R+M'!$J23 -> 29664472.33 | H23: ='G+T+D+R+M'!$K23 -> 9197384.74 | I23: ='G+T+D+R+M'!$L23 -> 315779.8113 | J23: ='G+T+D+R+M'!$M23 -> 17929805.08 | K23: ='G+T+D+R+M'!$N23 -> 1065492.777 | L23: ='G+T+D+R+M'!$O23 -> 35282.3498 | M23: ='G+T+D+R+M'!$P23 -> 49415.00101 | N23: ='G+T+D+R+M'!$Q23 -> 6795976.569 | O23: ='G+T+D+R+M'!R23 -> 2258562.654 | P23: ='G+T+D+R+M'!S23 -> 2501685.145 | Q23: 0
A24: 24 | C24: Investment Tax Credit Adj | E24: ='G+T+D+R+M'!$H24 -> -1515707.943 | F24: ='G+T+D+R+M'!$I24 -> -617310.882 | G24: ='G+T+D+R+M'!$J24 -> -393553.7939 | H24: ='G+T+D+R+M'!$K24 -> -122907.8635 | I24: ='G+T+D+R+M'!$L24 -> -6883.356176 | J24: ='G+T+D+R+M'!$M24 -> -196651.5254 | K24: ='G+T+D+R+M'!$N24 -> -16017.79115 | L24: ='G+T+D+R+M'!$O24 -> -455.8446114 | M24: ='G+T+D+R+M'!$P24 -> -615.8587511 | N24: ='G+T+D+R+M'!$Q24 -> -110781.8699 | O24: ='G+T+D+R+M'!R24 -> -24034.72001 | P24: ='G+T+D+R+M'!S24 -> -26494.43792 | Q24: 0
A25: 25 | C25: Misc Revenues & Expense | E25: ='G+T+D+R+M'!$H25 -> -142380.9754 | F25: ='G+T+D+R+M'!$I25 -> 495225.7324 | G25: ='G+T+D+R+M'!$J25 -> -237576.0218 | H25: ='G+T+D+R+M'!$K25 -> -82513.64375 | I25: ='G+T+D+R+M'!$L25 -> -3705.197479 | J25: ='G+T+D+R+M'!$M25 -> -187371.7413 | K25: ='G+T+D+R+M'!$N25 -> -7545.936527 | L25: ='G+T+D+R+M'!$O25 -> -291.5156656 | M25: ='G+T+D+R+M'!$P25 -> -786.3758931 | N25: ='G+T+D+R+M'!$Q25 -> -53020.58787 | O25: ='G+T+D+R+M'!R25 -> -26295.26548 | P25: ='G+T+D+R+M'!S25 -> -38500.42203 | Q25: 0
A26: 26
A27: 27 | C27: Total Operating Expenses | E27: =SUM(E17:E25) -> 1645937836 | F27: =SUM(F17:F25) -> 609581714.8 | G27: 439343219.5 | H27: =SUM(H17:H25) -> 137231736.9 | I27: 9815863.2 | J27: 247976494.4 | K27: 16554486.52 | L27: 546844.1432 | M27: 1052671.646 | N27: 115450673 | O27: =SUM(O17:O25) -> 29701120.07 | P27: =SUM(P17:P25) -> 38683012.32 | Q27: =ROUND(SUM(F27:P27)-E27,0) -> 0
A28: 28
A29: 29 | C29: Operating Revenue For Return | E29: =E14-E27 -> 395304328.3 | F29: =F14-F27 -> 142733542.3 | G29: 128257265.5 | H29: =H14-H27 -> 33098828.47 | I29: 3020560.711 | J29: 42004208.68 | K29: 3686580.55 | L29: 74771.43264 | M29: 462016.6166 | N29: 32415385.22 | O29: =O14-O27 -> 3860705.715 | P29: =P14-P27 -> 5690463.091 | Q29: =ROUND(SUM(F29:P29)-E29,0) -> 0
A30: 30
A31: 31
A32: 32 | C32: Rate Base :
A33: =A32+1 -> 33 | C33: Electric Plant In Service | E33: ='G+T+D+R+M'!H33 -> 1.019122432e+10 | F33: ='G+T+D+R+M'!I33 -> 4177225742 | G33: ='G+T+D+R+M'!J33 -> 2624217197 | H33: ='G+T+D+R+M'!K33 -> 819744336.2 | I33: ='G+T+D+R+M'!L33 -> 55814490.16 | J33: ='G+T+D+R+M'!M33 -> 1313965858 | K33: ='G+T+D+R+M'!N33 -> 106479649.3 | L33: ='G+T+D+R+M'!O33 -> 3210327.097 | M33: ='G+T+D+R+M'!P33 -> 4156856.604 | N33: ='G+T+D+R+M'!Q33 -> 751815322.2 | O33: ='G+T+D+R+M'!R33 -> 160284833.4 | P33: ='G+T+D+R+M'!S33 -> 174309707.3 | Q33: =ROUND(SUM(F33:P33)-E33,0) -> 0
A34: 34 | C34: Plant Held For Future Use | E34: ='G+T+D+R+M'!H34 -> 16257903.22 | F34: ='G+T+D+R+M'!I34 -> 5579165.637 | G34: ='G+T+D+R+M'!J34 -> 4540876.979 | H34: ='G+T+D+R+M'!K34 -> 1511979.625 | I34: ='G+T+D+R+M'!L34 -> 49096.80321 | J34: ='G+T+D+R+M'!M34 -> 2471796.873 | K34: ='G+T+D+R+M'!N34 -> 205085 | L34: ='G+T+D+R+M'!O34 -> 4297.924353 | M34: ='G+T+D+R+M'!P34 -> 10389.63975 | N34: ='G+T+D+R+M'!Q34 -> 1111074.623 | O34: ='G+T+D+R+M'!R34 -> 304922.0989 | P34: ='G+T+D+R+M'!S34 -> 469218.0127 | Q34: 0
A35: 35 | C35: Electric Plant Acquisition Adj | E35: ='G+T+D+R+M'!H35 -> 20001840.46 | F35: ='G+T+D+R+M'!I35 -> 6912148.465 | G35: ='G+T+D+R+M'!J35 -> 5385237.136 | H35: ='G+T+D+R+M'!K35 -> 1726485.2 | I35: ='G+T+D+R+M'!L35 -> 37917.66367 | J35: ='G+T+D+R+M'!M35 -> 3500734.374 | K35: ='G+T+D+R+M'!N35 -> 186536.2662 | L35: ='G+T+D+R+M'!O35 -> 4678.432968 | M35: ='G+T+D+R+M'!P35 -> 8486.00348 | N35: ='G+T+D+R+M'!Q35 -> 1347691.119 | O35: ='G+T+D+R+M'!R35 -> 429985.7495 | P35: ='G+T+D+R+M'!S35 -> 461940.0542 | Q35: 0
A36: 36 | C36: Nuclear Fuel | E36: ='G+T+D+R+M'!H36 -> 0 | F36: ='G+T+D+R+M'!I36 -> 0 | G36: ='G+T+D+R+M'!J36 -> 0 | H36: ='G+T+D+R+M'!K36 -> 0 | I36: ='G+T+D+R+M'!L36 -> 0 | J36: ='G+T+D+R+M'!M36 -> 0 | K36: ='G+T+D+R+M'!N36 -> 0 | L36: ='G+T+D+R+M'!O36 -> 0 | M36: ='G+T+D+R+M'!P36 -> 0 | N36: ='G+T+D+R+M'!Q36 -> 0 | O36: ='G+T+D+R+M'!R36 -> 0 | P36: ='G+T+D+R+M'!S36 -> 0 | Q36: 0
A37: 37 | C37: Prepayments | E37: ='G+T+D+R+M'!H37 -> 13825020.43 | F37: ='G+T+D+R+M'!I37 -> 5369254.17 | G37: ='G+T+D+R+M'!J37 -> 3613592.075 | H37: ='G+T+D+R+M'!K37 -> 1143661.889 | I37: ='G+T+D+R+M'!L37 -> 67218.41063 | J37: ='G+T+D+R+M'!M37 -> 1969790.826 | K37: ='G+T+D+R+M'!N37 -> 143829.213 | L37: ='G+T+D+R+M'!O37 -> 4003.407832 | M37: ='G+T+D+R+M'!P37 -> 6163.822806 | N37: ='G+T+D+R+M'!Q37 -> 990506.7791 | O37: ='G+T+D+R+M'!R37 -> 240703.5677 | P37: ='G+T+D+R+M'!S37 -> 276296.2665 | Q37: 0
A38: 38 | C38: Fuel Stock | E38: ='G+T+D+R+M'!H38 -> 112033056.6 | F38: ='G+T+D+R+M'!I38 -> 32613968.6 | G38: ='G+T+D+R+M'!J38 -> 30252333.25 | H38: ='G+T+D+R+M'!K38 -> 10384037.36 | I38: ='G+T+D+R+M'!L38 -> 433607.0624 | J38: ='G+T+D+R+M'!M38 -> 22972918.75 | K38: ='G+T+D+R+M'!N38 -> 1237254.142 | L38: ='G+T+D+R+M'!O38 -> 31555.76698 | M38: ='G+T+D+R+M'!P38 -> 91364.91551 | N38: ='G+T+D+R+M'!Q38 -> 6778676.861 | O38: ='G+T+D+R+M'!R38 -> 2834338.46 | P38: ='G+T+D+R+M'!S38 -> 4403001.433 | Q38: 0
A39: 39 | C39: Materials & Supplies | E39: ='G+T+D+R+M'!H39 -> 87497359.43 | F39: ='G+T+D+R+M'!I39 -> 32734480.02 | G39: ='G+T+D+R+M'!J39 -> 23166657.54 | H39: ='G+T+D+R+M'!K39 -> 7338599.394 | I39: ='G+T+D+R+M'!L39 -> 306019.7092 | J39: ='G+T+D+R+M'!M39 -> 13451511.66 | K39: ='G+T+D+R+M'!N39 -> 861796.4232 | L39: ='G+T+D+R+M'!O39 -> 23046.7656 | M39: ='G+T+D+R+M'!P39 -> 36073.60165 | N39: ='G+T+D+R+M'!Q39 -> 6154105.312 | O39: ='G+T+D+R+M'!R39 -> 1651265.74 | P39: ='G+T+D+R+M'!S39 -> 1773803.274 | Q39: 0
A40: 40 | C40: Misc Deferred Debits | E40: ='G+T+D+R+M'!H40 -> 37831775.38 | F40: ='G+T+D+R+M'!I40 -> 13180544.83 | G40: ='G+T+D+R+M'!J40 -> 10107446.63 | H40: ='G+T+D+R+M'!K40 -> 3262861.858 | I40: ='G+T+D+R+M'!L40 -> 110470.8772 | J40: ='G+T+D+R+M'!M40 -> 6494396.024 | K40: ='G+T+D+R+M'!N40 -> 371994.0011 | L40: ='G+T+D+R+M'!O40 -> 9627.751784 | M40: ='G+T+D+R+M'!P40 -> 18334.5507 | N40: ='G+T+D+R+M'!Q40 -> 2551055.343 | O40: ='G+T+D+R+M'!R40 -> 795013.4762 | P40: ='G+T+D+R+M'!S40 -> 930030.0404 | Q40: 0
A41: 41 | C41: Cash Working Capital | E41: ='G+T+D+R+M'!H41 -> 25430010.53 | F41: ='G+T+D+R+M'!I41 -> 9761561.016 | G41: ='G+T+D+R+M'!J41 -> 6721957.615 | H41: ='G+T+D+R+M'!K41 -> 2090363.603 | I41: ='G+T+D+R+M'!L41 -> 201386.808 | J41: ='G+T+D+R+M'!M41 -> 3542199.729 | K41: ='G+T+D+R+M'!N41 -> 260970.1715 | L41: ='G+T+D+R+M'!O41 -> 9124.762365 | M41: ='G+T+D+R+M'!P41 -> 16151.41281 | N41: ='G+T+D+R+M'!Q41 -> 1845727.841 | O41: ='G+T+D+R+M'!R41 -> 421290.5462 | P41: ='G+T+D+R+M'!S41 -> 559277.0302 | Q41: 0
A42: 42 | C42: Weatherization Loans | E42: ='G+T+D+R+M'!H42 -> 4640709.633 | F42: ='G+T+D+R+M'!I42 -> 1519463.425 | G42: ='G+T+D+R+M'!J42 -> 1250678.332 | H42: ='G+T+D+R+M'!K42 -> 410424.2 | I42: ='G+T+D+R+M'!L42 -> 11852.01162 | J42: ='G+T+D+R+M'!M42 -> 858679.8621 | K42: ='G+T+D+R+M'!N42 -> 45936.16126 | L42: ='G+T+D+R+M'!O42 -> 1159.349869 | M42: ='G+T+D+R+M'!P42 -> 2574.108417 | N42: ='G+T+D+R+M'!Q42 -> 302052.5803 | O42: ='G+T+D+R+M'!R42 -> 105643.8132 | P42: ='G+T+D+R+M'!S42 -> 132245.789 | Q42: 0
A43: 43 | C43: Miscellaneous Rate Base | E43: ='G+T+D+R+M'!H43 -> 0 | F43: ='G+T+D+R+M'!I43 -> 0 | G43: ='G+T+D+R+M'!J43 -> 0 | H43: ='G+T+D+R+M'!K43 -> 0 | I43: ='G+T+D+R+M'!L43 -> 0 | J43: ='G+T+D+R+M'!M43 -> 0 | K43: ='G+T+D+R+M'!N43 -> 0 | L43: ='G+T+D+R+M'!O43 -> 0 | M43: ='G+T+D+R+M'!P43 -> 0 | N43: ='G+T+D+R+M'!Q43 -> 0 | O43: ='G+T+D+R+M'!R43 -> 0 | P43: ='G+T+D+R+M'!S43 -> 0 | Q43: 0
A44: 44
A45: 45 | C45: Total Rate Base Additions | E45: =SUM(E33:E43) -> 1.050874199e+10 | F45: 4284896328 | G45: 2709255977 | H45: =SUM(H33:H43) -> 847612749.3 | I45: 57032059.51 | J45: 1369227886 | K45: 109793050.7 | L45: 3297821.258 | M45: 4346394.659 | N45: 772896212.7 | O45: =SUM(O33:O43) -> 167067996.8 | P45: =SUM(P33:P43) -> 183315519.2 | Q45: =ROUND(SUM(F45:P45)-E45,0) -> 0
A46: 46
A47: 47 | C47: Rate Base Deductions :
A48: 48 | C48: Accum Provision For Depreciation | E48: ='G+T+D+R+M'!H48 -> -2972320862 | F48: ='G+T+D+R+M'!I48 -> -1211677931 | G48: ='G+T+D+R+M'!J48 -> -767755876.7 | H48: ='G+T+D+R+M'!K48 -> -240648547 | I48: ='G+T+D+R+M'!L48 -> -23938083.27 | J48: ='G+T+D+R+M'!M48 -> -378537905.4 | K48: ='G+T+D+R+M'!N48 -> -31231706.37 | L48: ='G+T+D+R+M'!O48 -> -878454.4524 | M48: ='G+T+D+R+M'!P48 -> -1167721.127 | N48: ='G+T+D+R+M'!Q48 -> -219936731.5 | O48: ='G+T+D+R+M'!R48 -> -46190753.88 | P48: ='G+T+D+R+M'!S48 -> -50357151 | Q48: =ROUND(SUM(F48:P48)-E48,0) -> 0
A49: =A48+1 -> 49 | C49: Accum Provision For Amortization | E49: ='G+T+D+R+M'!H49 -> -212996878.6 | F49: ='G+T+D+R+M'!I49 -> -109365190.4 | G49: ='G+T+D+R+M'!J49 -> -42691751.74 | H49: ='G+T+D+R+M'!K49 -> -13110241.38 | I49: ='G+T+D+R+M'!L49 -> -1301679.057 | J49: ='G+T+D+R+M'!M49 -> -22298889.53 | K49: ='G+T+D+R+M'!N49 -> -1817857.709 | L49: ='G+T+D+R+M'!O49 -> -181307.6181 | M49: ='G+T+D+R+M'!P49 -> -103916.0204 | N49: ='G+T+D+R+M'!Q49 -> -16459377.96 | O49: ='G+T+D+R+M'!R49 -> -2719286.83 | P49: ='G+T+D+R+M'!S49 -> -2947380.322 | Q49: 0
A50: 50 | C50: Accum Deferred Income Taxes | E50: ='G+T+D+R+M'!H50 -> -1557231579 | F50: ='G+T+D+R+M'!I50 -> -631769423.2 | G50: ='G+T+D+R+M'!J50 -> -403539151 | H50: ='G+T+D+R+M'!K50 -> -126026735.1 | I50: ='G+T+D+R+M'!L50 -> -6405825.327 | J50: ='G+T+D+R+M'!M50 -> -205219305.7 | K50: ='G+T+D+R+M'!N50 -> -16361301.57 | L50: ='G+T+D+R+M'!O50 -> -465021.7057 | M50: ='G+T+D+R+M'!P50 -> -648003.6689 | N50: ='G+T+D+R+M'!Q50 -> -114362460.6 | O50: ='G+T+D+R+M'!R50 -> -25082947.12 | P50: ='G+T+D+R+M'!S50 -> -27351403.8 | Q50: 0
A51: 51 | C51: Unamortized ITC | E51: ='G+T+D+R+M'!H51 -> -108792.5175 | F51: ='G+T+D+R+M'!I51 -> -44434.19842 | G51: ='G+T+D+R+M'!J51 -> -28166.05745 | H51: ='G+T+D+R+M'!K51 -> -8786.62889 | I51: ='G+T+D+R+M'!L51 -> -479.7840483 | J51: ='G+T+D+R+M'!M51 -> -14082.19956 | K51: ='G+T+D+R+M'!N51 -> -1149.651181 | L51: ='G+T+D+R+M'!O51 -> -33.14395438 | M51: ='G+T+D+R+M'!P51 -> -44.72033034 | N51: ='G+T+D+R+M'!Q51 -> -8019.078773 | O51: ='G+T+D+R+M'!R51 -> -1720.803855 | P51: ='G+T+D+R+M'!S51 -> -1876.25107 | Q51: 0
A52: 52 | C52: Customer Advance For Construction | E52: ='G+T+D+R+M'!H52 -> -10012242.76 | F52: ='G+T+D+R+M'!I52 -> -3908503.89 | G52: ='G+T+D+R+M'!J52 -> -552723.6888 | H52: ='G+T+D+R+M'!K52 -> -177088.2561 | I52: ='G+T+D+R+M'!L52 -> -9584.516209 | J52: ='G+T+D+R+M'!M52 -> -1726507.005 | K52: ='G+T+D+R+M'!N52 -> -37750.66965 | L52: ='G+T+D+R+M'!O52 -> -28831.28146 | M52: ='G+T+D+R+M'!P52 -> -74217.78389 | N52: ='G+T+D+R+M'!Q52 -> -3497035.666 | O52: ='G+T+D+R+M'!R52 -> 0 | P52: ='G+T+D+R+M'!S52 -> 0 | Q52: 0
A53: 53 | C53: Customer Service Deposits | E53: ='G+T+D+R+M'!H53 -> -15625767.56 | F53: ='G+T+D+R+M'!I53 -> -4811270.488 | G53: ='G+T+D+R+M'!J53 -> -673766.1072 | H53: ='G+T+D+R+M'!K53 -> -1696159.849 | I53: ='G+T+D+R+M'!L53 -> -25532.15656 | J53: ='G+T+D+R+M'!M53 -> -2859842.748 | K53: ='G+T+D+R+M'!N53 -> -131724.7381 | L53: ='G+T+D+R+M'!O53 -> 0 | M53: ='G+T+D+R+M'!P53 -> 0 | N53: ='G+T+D+R+M'!Q53 -> -5427471.476 | O53: ='G+T+D+R+M'!R53 -> 0 | P53: ='G+T+D+R+M'!S53 -> 0 | Q53: 0
A54: 54 | C54: Misc Rate Base Deductions | E54: ='G+T+D+R+M'!H54 -> -31531548.98 | F54: ='G+T+D+R+M'!I54 -> -11844203.1 | G54: ='G+T+D+R+M'!J54 -> -8330434.651 | H54: ='G+T+D+R+M'!K54 -> -2639867.074 | I54: ='G+T+D+R+M'!L54 -> -116792.1118 | J54: ='G+T+D+R+M'!M54 -> -4813215.662 | K54: ='G+T+D+R+M'!N54 -> -313310.9173 | L54: ='G+T+D+R+M'!O54 -> -8430.135475 | M54: ='G+T+D+R+M'!P54 -> -13230.93025 | N54: ='G+T+D+R+M'!Q54 -> -2221314.384 | O54: ='G+T+D+R+M'!R54 -> -589516.576 | P54: ='G+T+D+R+M'!S54 -> -641233.4383 | Q54: 0
A55: 55
A56: 56 | C56: Total Rate Base Deductions | E56: =SUM(E48:E54) -> -4799827671 | F56: -1973420956 | G56: -1223571870 | H56: =SUM(H48:H54) -> -384307425.2 | I56: -31797976.23 | J56: -615469748.3 | K56: -49894801.63 | L56: -1562078.337 | M56: -2007134.251 | N56: -361912410.6 | O56: =SUM(O48:O54) -> -74584225.21 | P56: =SUM(P48:P54) -> -81299044.81 | Q56: =ROUND(SUM(F56:P56)-E56,0) -> 0
A57: 57
A58: 58 | C58: Total Rate Base | E58: =E45+E56 -> 5708914324 | F58: =F45+F56 -> 2311475372 | G58: 1485684107 | H58: =H45+H56 -> 463305324.1 | I58: 25234083.28 | J58: 753758137.7 | K58: 59898249.06 | L58: 1735742.921 | M58: 2339260.408 | N58: 410983802 | O58: =O45+O56 -> 92483771.61 | P58: =P45+P56 -> 102016474.4 | Q58: =ROUND(SUM(F58:P58)-E58,0) -> 0
A59: 59
A60: 60 | C60: Calculated Return On Rate Base | E60: ='G+T+D+R+M'!H61 -> 0.06924334573 | F60: ='G+T+D+R+M'!I61 -> 0.06174997321 | G60: ='G+T+D+R+M'!J61 -> 0.0863287592 | H60: ='G+T+D+R+M'!K61 -> 0.07144063913 | I60: ='G+T+D+R+M'!L61 -> 0.1197016225 | J60: ='G+T+D+R+M'!M61 -> 0.05572637504 | K60: ='G+T+D+R+M'!N61 -> 0.06154738424 | L60: ='G+T+D+R+M'!O61 -> 0.04307748096 | M60: ='G+T+D+R+M'!P61 -> 0.1975054231 | N60: ='G+T+D+R+M'!Q61 -> 0.07887265888 | O60: ='G+T+D+R+M'!R61 -> 0.04174468285 | P60: ='G+T+D+R+M'!S61 -> 0.05577984465
A61: 61
A62: 62 | C62: Return On RB @ Jurisdictional Ave. | D62: =ActualROR -> 0.06924334573 | E62: =$D$62*E58 -> 395304328.3 | F62: =$D$62*F58 -> 160054288.3 | G62: =$D$62*G58 -> 102873738.2 | H62: =$D$62*H58 -> 32080810.73 | I62: 1747292.353 | J62: 52192735.33 | K62: 4147555.168 | L62: 120188.6472 | M62: 161978.2172 | N62: 28457893.49 | O62: =$D$62*O58 -> 6403885.772 | P62: =$D$62*P58 -> 7063962.004 | Q62: =ROUND(SUM(F62:P62)-E62,0) -> 0
A63: 63 | C63: Total Operating Expenses | E63: =E27 -> 1645937836 | F63: 609581714.8 | G63: 439343219.5 | H63: =H27 -> 137231736.9 | I63: 9815863.2 | J63: 247976494.4 | K63: 16554486.52 | L63: 546844.1432 | M63: 1052671.646 | N63: 115450673 | O63: =O27 -> 29701120.07 | P63: =P27 -> 38683012.32 | Q63: =ROUND(SUM(F63:P63)-E63,0) -> 0
A64: 64 | C64: Revenue Credits | E64: ='G+T+D+R+M'!H$99 -> -270312209.1 | F64: ='G+T+D+R+M'!I$99 -> -96903744.15 | G64: ='G+T+D+R+M'!J$99 -> -72319067.96 | H64: ='G+T+D+R+M'!K$99 -> -22703955.36 | I64: ='G+T+D+R+M'!L$99 -> -746003.9114 | J64: ='G+T+D+R+M'!M$99 -> -43698620.07 | K64: ='G+T+D+R+M'!N$99 -> -2835769.066 | L64: ='G+T+D+R+M'!O$99 -> -81421.57584 | M64: ='G+T+D+R+M'!P$99 -> -124115.2623 | N64: ='G+T+D+R+M'!Q$99 -> -19600478.21 | O64: ='G+T+D+R+M'!R$99 -> -5329144.789 | P64: ='G+T+D+R+M'!S$99 -> -5969888.415 | Q64: =ROUND(SUM(F64:P64)-E64,0) -> 0
A65: =A64+1 -> 65
A66: 66 | C66: Total Revenue Requirements | E66: ='G+T+D+R+M'!H$101 -> 1770929956 | F66: ='G+T+D+R+M'!I$101 -> 672732259 | G66: ='G+T+D+R+M'!J$101 -> 469897889.7 | H66: ='G+T+D+R+M'!K$101 -> 146608592.3 | I66: ='G+T+D+R+M'!L$101 -> 10817151.64 | J66: ='G+T+D+R+M'!M$101 -> 256470609.6 | K66: ='G+T+D+R+M'!N$101 -> 17866272.62 | L66: ='G+T+D+R+M'!O$101 -> 585611.2146 | M66: ='G+T+D+R+M'!P$101 -> 1090534.601 | N66: ='G+T+D+R+M'!Q$101 -> 124308088.3 | O66: ='G+T+D+R+M'!R$101 -> 30775861.06 | P66: ='G+T+D+R+M'!S$101 -> 39777085.91 | Q66: =ROUND(SUM(F66:P66)-E66,0) -> 0
A67: 67 | C67: Class Revenue | E67: ='G+T+D+R+M'!H$102 -> 1770929956 | F67: ='G+T+D+R+M'!I$102 -> 655411513 | G67: ='G+T+D+R+M'!J$102 -> 495281417 | H67: ='G+T+D+R+M'!K$102 -> 147626610 | I67: ='G+T+D+R+M'!L$102 -> 12090420 | J67: ='G+T+D+R+M'!M$102 -> 246282083 | K67: ='G+T+D+R+M'!N$102 -> 17405298 | L67: ='G+T+D+R+M'!O$102 -> 540194 | M67: ='G+T+D+R+M'!P$102 -> 1390573 | N67: ='G+T+D+R+M'!Q$102 -> 128265580 | O67: ='G+T+D+R+M'!R$102 -> 28232681 | P67: ='G+T+D+R+M'!S$102 -> 38403587 | Q67: =ROUND(SUM(F67:P67)-E67,0) -> 0
A68: 68 | Q68: =ROUND(SUM(-J68,K68:N68),0) -> 0
A69: 69 | C69: Increase / (Decrease) Required to
A70: 70 | C70: Earn Equal Rates of Return | E70: ='G+T+D+R+M'!H$105 -> -0.1966454983 | F70: ='G+T+D+R+M'!I$105 -> 17320746.03 | G70: ='G+T+D+R+M'!J$105 -> -25383527.26 | H70: ='G+T+D+R+M'!K$105 -> -1018017.733 | I70: ='G+T+D+R+M'!L$105 -> -1273268.358 | J70: ='G+T+D+R+M'!M$105 -> 10188526.65 | K70: ='G+T+D+R+M'!N$105 -> 460974.6177 | L70: ='G+T+D+R+M'!O$105 -> 45417.21455 | M70: ='G+T+D+R+M'!P$105 -> -300038.3994 | N70: ='G+T+D+R+M'!Q$105 -> -3957491.732 | O70: ='G+T+D+R+M'!R$105 -> 2543180.057 | P70: ='G+T+D+R+M'!S$105 -> 1373498.913 | Q70: =ROUND(SUM(F70:P70)-E70,0) -> 0
A71: 71
A72: 72 | C72: Percent % | E72: ='G+T+D+R+M'!H$111 -> -1.110408109e-10 | F72: ='G+T+D+R+M'!I$111 -> 0.02642728375 | G72: ='G+T+D+R+M'!J$111 -> -0.05125071603 | H72: ='G+T+D+R+M'!K$111 -> -0.006895895892 | I72: ='G+T+D+R+M'!L$111 -> -0.1053121693 | J72: ='G+T+D+R+M'!M$111 -> 0.04136933765 | K72: ='G+T+D+R+M'!N$111 -> 0.02648472998 | L72: ='G+T+D+R+M'!O$111 -> 0.08407574789 | M72: ='G+T+D+R+M'!P$111 -> -0.2157660183 | N72: ='G+T+D+R+M'!Q$111 -> -0.03085388716 | O72: ='G+T+D+R+M'!R$111 -> 0.09007929699 | P72: ='G+T+D+R+M'!S$111 -> 0.03576486
A73: 73
A74: 74
A75: 75 | C75: Return On Rate Base @ Target ROR | D75: =TargetROR -> 0.07780031876 | E75: =$D75*E58 -> 444155354.2 | F75: =$D75*F58 -> 179833520.8 | G75: 115586697.1 | H75: =$D75*H58 -> 36045301.9 | I75: 1963219.723 | J75: 58642623.39 | K75: 4660102.87 | L75: 135041.3526 | M75: 181995.2054 | N75: 31974670.8 | O75: =$D75*O58 -> 7195266.912 | P75: =$D75*P58 -> 7936914.224 | Q75: =ROUND(SUM(F75:P75)-E75,0) -> 0
A76: 76 | C76: Total Operating Expenses Adjusted for Taxes | E76: =E63+((E75-(E60*E58))*(1/NetToGross))-(E75-(E60*E58)) -> 1675979624 | F76: 632396991.1 | G76: 431551233.3 | H76: 139043721.9 | I76: 9165632.991 | J76: 258208576.6 | K76: 17153170.98 | L76: 583908.1775 | M76: 880467.6142 | N76: 115179648 | O76: 31751766.41 | P76: 40064506.47 | Q76: =ROUND(SUM(F76:P76)-E76,0) -> 0
A77: 77 | C77: Revenue Credits | E77: =E64 -> -270312209.1 | F77: =F64 -> -96903744.15 | G77: -72319067.96 | H77: =H64 -> -22703955.36 | I77: -746003.9114 | J77: -43698620.07 | K77: -2835769.066 | L77: -81421.57584 | M77: -124115.2623 | N77: -19600478.21 | O77: =O64 -> -5329144.789 | P77: =P64 -> -5969888.415 | Q77: =ROUND(SUM(F77:P77)-E77,0) -> 0
A78: 78
A79: 79 | C79: Total Target Revenue Requirements | E79: =SUM(E75:E77) -> 1849822769 | F79: =SUM(F75:F77) -> 715326767.7 | G79: =SUM(G75:G77) -> 474818862.4 | H79: =SUM(H75:H77) -> 152385068.5 | I79: 10382848.8 | J79: 273152579.9 | K79: 18977504.78 | L79: 637527.9542 | M79: 938347.5574 | N79: 127553840.6 | O79: =SUM(O75:O77) -> 33617888.53 | P79: =SUM(P75:P77) -> 42031532.28 | Q79: =ROUND(SUM(F79:P79)-E79,0) -> 0
A80: 80 | C80: Class Revenue | E80: =E67 -> 1770929956 | F80: =F67 -> 655411513 | G80: 495281417 | H80: =H67 -> 147626610 | I80: 12090420 | J80: 246282083 | K80: 17405298 | L80: 540194 | M80: 1390573 | N80: 128265580 | O80: =O67 -> 28232681 | P80: =P67 -> 38403587 | Q80: =ROUND(SUM(F80:P80)-E80,0) -> 0
A81: 81
A82: 82 | C82: Increase / (Decrease) Required to
A83: 83 | C83: Earn Target Rate of Return | E83: =E79-E80 -> 78892812.7 | F83: =F79-F80 -> 59915254.73 | G83: -20462554.58 | H83: =H79-H80 -> 4758458.457 | I83: -1707571.197 | J83: 26870496.89 | K83: 1572206.783 | L83: 97333.95423 | M83: -452225.4426 | N83: -711739.4078 | O83: =O79-O80 -> 5385207.534 | P83: =P79-P80 -> 3627945.284 | Q83: =ROUND(SUM(F83:P83)-E83,0) -> 0
A84: 84
A85: 85 | C85: Percent % | E85: =E83/E80 -> 0.04454880467 | F85: =F83/F80 -> 0.09141623781 | G85: -0.04131500574 | H85: =H83/H80 -> 0.03223306731 | I85: -0.141233406 | J85: 0.1091045543 | K85: 0.09032920797 | L85: 0.1801833309 | M85: -0.3252079845 | N85: -0.005548950917 | O85: =O83/O80 -> 0.1907437531 | P85: =P83/P80 -> 0.09446891728

Sheet Generation Summary
C1: Generation Summary
C2: =Inputs!$C$4 -> Rocky Mountain Power
C3: Cost Of Service By Rate Schedule - Generation Function
C4: =Inputs!$C$5 -> State of Utah
C5: =Inputs!$C$7 -> 2010 Protocol (Non Wgt)
C6: =Inputs!$C$6 -> 12 Months Ended June 2013
C9: A | D9: B | E9: C | F9: D | G9: E | H9: F | I9: G | J9: H | K9: I | L9: J | M9: K | N9: L | O9: M | P9: N
E10: ='Hot Sheet'!$H$10 -> Utah | G10: ='Hot Sheet'!$J$10 -> General | H10: ='Hot Sheet'!$K$10 -> General | I10: ='Hot Sheet'!$L$10 -> Street & Area | J10: ='Hot Sheet'!$M$10 -> General | L10: ='Hot Sheet'!$O$10 -> Traffic | M10: ='Hot Sheet'!$P$10 -> Outdoor | N10: ='Hot Sheet'!$Q$10 -> General | Q10: Chk Total
E11: ='Hot Sheet'!$H$11 -> Jurisdiction | F11: ='Hot Sheet'!$I$11 -> Residential | G11: ='Hot Sheet'!$J$11 -> Large Dist. | H11: ='Hot Sheet'!$K$11 -> +1 MW | I11: ='Hot Sheet'!$L$11 -> Lighting | J11: ='Hot Sheet'!$M$11 -> Trans | K11: ='Hot Sheet'!$N$11 -> Irrigation | L11: ='Hot Sheet'!$O$11 -> Signals | M11: ='Hot Sheet'!$P$11 -> Lighting | N11: ='Hot Sheet'!$Q$11 -> Small Dist. | O11: ='Hot Sheet'!R$11 -> Industrial | P11: ='Hot Sheet'!S$11 -> Industrial
C12: DESCRIPTION | E12: ='Hot Sheet'!$H$12 -> Normalized | F12: ='Hot Sheet'!$I$12 -> Sch 1 | G12: ='Hot Sheet'!$J$12 -> Sch 6 | H12: ='Hot Sheet'!$K$12 -> Sch 8 | I12: ='Hot Sheet'!$L$12 -> Sch. 7,11,12 | J12: ='Hot Sheet'!$M$12 -> Sch 9 | K12: ='Hot Sheet'!$N$12 -> Sch 10 | L12: ='Hot Sheet'!$O$12 -> Sch 15 | M12: ='Hot Sheet'!$P$12 -> Sch 15 | N12: ='Hot Sheet'!$Q$12 -> Sch 23 | O12: ='Hot Sheet'!R$12 -> Cust 1 | P12: ='Hot Sheet'!S$12 -> Cust 2 | Q12: =ROUND(SUM(Q15:Q69),0) -> 0
A14: 14 | C14: Operating Expenses
A15: =A14+1 -> 15 | C15: Operation & Maintenance Expenses | E15: ='Function Summary'!$F15 -> 961886212.6 | F15: =Generation!$I$17 -> 306854261.8 | G15: =Generation!J17 -> 259307308.4 | H15: =Generation!K17 -> 86020265 | I15: =Generation!L17 -> 2770098.128 | J15: =Generation!M17 -> 182405339.2 | K15: =Generation!N17 -> 9787057.443 | L15: =Generation!O17 -> 247900.1034 | M15: =Generation!P17 -> 593197.6902 | N15: =Generation!Q17 -> 61579976.56 | O15: =Generation!R17 -> 22457382.59 | P15: =Generation!S17 -> 29863425.76 | Q15: =ROUND(SUM(F15:P15)-E15,0) -> 0
A16: =A15+1 -> 16 | C16: Depreciation Expense | E16: ='Function Summary'!$F16 -> 127057593.4 | F16: =Generation!$I$18 -> 43907480.28 | G16: =Generation!J18 -> 34208623.21 | H16: =Generation!K18 -> 10967205.1 | I16: =Generation!L18 -> 240883.2823 | J16: =Generation!M18 -> 22237988.25 | K16: =Generation!N18 -> 1184950.02 | L16: =Generation!O18 -> 29719.24871 | M16: =Generation!P18 -> 53909.38148 | N16: =Generation!Q18 -> 8560865.258 | O16: =Generation!R18 -> 2731433.135 | P16: =Generation!S18 -> 2934536.244 | Q16: 0
A17: 17 | C17: Amortization Expense | E17: ='Function Summary'!$F17 -> 11195775.91 | F17: =Generation!$I$19 -> 3867712.611 | G17: =Generation!J19 -> 3014336.588 | H17: =Generation!K19 -> 966527.2365 | I17: =Generation!L19 -> 21270.14168 | J17: =Generation!M19 -> 1960194.43 | K17: =Generation!N19 -> 104451.5017 | L17: =Generation!O19 -> 2619.811184 | M17: =Generation!P19 -> 4759.088884 | N17: =Generation!Q19 -> 754192.142 | O17: =Generation!R19 -> 240768.028 | P17: =Generation!S19 -> 258944.3318 | Q17: 0
A18: 18 | C18: Taxes Other Than Income | E18: ='Function Summary'!$F18 -> 29296660.6 | F18: =Generation!$I$20 -> 9993329.607 | G18: =Generation!J20 -> 7893786.464 | H18: =Generation!K20 -> 2544749.288 | I18: =Generation!L20 -> 60303.93939 | J18: =Generation!M20 -> 5197098.425 | K18: =Generation!N20 -> 276910.1158 | L18: =Generation!O20 -> 6959.922866 | M18: =Generation!P20 -> 13377.36597 | N18: =Generation!Q20 -> 1958009.688 | O18: =Generation!R20 -> 638203.8921 | P18: =Generation!S20 -> 713931.8916 | Q18: 0
A19: 19 | C19: Income Taxes - Federal | E19: ='Function Summary'!$F19 -> -47816833.88 | F19: =Generation!$I$21 -> -20718166.73 | G19: =Generation!J21 -> -5264769.939 | H19: =Generation!K21 -> -3735508.705 | I19: =Generation!L21 -> 87958.8463 | J19: =Generation!M21 -> -12001834.37 | K19: =Generation!N21 -> -551123.5669 | L19: =Generation!O21 -> -20879.57129 | M19: =Generation!P21 -> 76492.65736 | N19: =Generation!Q21 -> -2175159.81 | O19: =Generation!R21 -> -1966859.889 | P19: =Generation!S21 -> -1546982.802 | Q19: 0
A20: 20 | C20: Income Taxes - State | E20: ='Function Summary'!$F20 -> -2505545.888 | F20: =Generation!$I$22 -> -1435868.841 | G20: =Generation!J22 -> 359392.9794 | H20: =Generation!K22 -> -163005.1764 | I20: =Generation!L22 -> 19524.85877 | J20: =Generation!M22 -> -932095.6939 | K20: =Generation!N22 -> -37655.18794 | L20: =Generation!O22 -> -1903.341757 | M20: =Generation!P22 -> 12088.72984 | N20: =Generation!Q22 -> -26613.6395 | O20: =Generation!R22 -> -181437.2015 | P20: =Generation!S22 -> -117973.3734 | Q20: 0
A21: 21 | C21: Income Taxes Deferred | E21: ='Function Summary'!$F21 -> 82352036.72 | F21: =Generation!$I$23 -> 28090950.64 | G21: =Generation!J23 -> 22189197.66 | H21: =Generation!K23 -> 7153214.138 | I21: =Generation!L23 -> 169512.57 | J21: =Generation!M23 -> 14608888.23 | K21: =Generation!N23 -> 778386.0535 | L21: =Generation!O23 -> 19564.13501 | M21: =Generation!P23 -> 37603.37565 | N21: =Generation!Q23 -> 5503906.67 | O21: =Generation!R23 -> 1793972.053 | P21: =Generation!S23 -> 2006841.194 | Q21: 0
A22: 22 | C22: Investment Tax Credit Adj | E22: ='Function Summary'!$F22 -> -767863.7647 | F22: =Generation!$I$24 -> -261924.5858 | G22: =Generation!J24 -> -206895.6826 | H22: =Generation!K24 -> -66697.73033 | I22: =Generation!L24 -> -1580.562732 | J22: =Generation!M24 -> -136215.6464 | K22: =Generation!N24 -> -7257.797976 | L22: =Generation!O24 -> -182.4191722 | M22: =Generation!P24 -> -350.6199815 | N22: =Generation!Q24 -> -51319.31965 | O22: =Generation!R24 -> -16727.28677 | P22: =Generation!S24 -> -18712.11322 | Q22: 0
A23: 23 | C23: Misc Revenues & Expense | E23: ='Function Summary'!$F23 -> -1020822.298 | F23: =Generation!$I$25 -> -306711.1828 | G23: =Generation!J25 -> -275514.1235 | H23: =Generation!K25 -> -93501.38184 | I23: =Generation!L25 -> -3605.089372 | J23: =Generation!M25 -> -204064.1788 | K23: =Generation!N25 -> -10972.75965 | L23: =Generation!O25 -> -279.163927 | M23: =Generation!P25 -> -763.9716185 | N23: =Generation!Q25 -> -62969.57221 | O23: =Generation!R25 -> -25160.04102 | P23: =Generation!S25 -> -37280.83358 | Q23: 0
A24: 24
A25: 25 | C25: Total Operating Expenses | E25: =SUM(E15:E23) -> 1159677213 | F25: =SUM(F15:F23) -> 369991063.6 | G25: 321225465.6 | H25: 103593247.8 | I25: 3364366.115 | J25: 213135298.6 | K25: 11524745.82 | L25: 283518.725 | M25: 790313.6977 | N25: 76040887.98 | O25: =SUM(O15:O23) -> 25671575.28 | P25: =SUM(P15:P23) -> 34056730.3 | Q25: =ROUND(SUM(F25:P25)-E25,0) -> 0
A26: 26
A27: 27
A28: 28 | C28: Rate Base :
A29: 29 | C29: Electric Plant In Service | E29: ='Function Summary'!$F29 -> 5168568203 | F29: =Generation!$I$33 -> 1774746821 | G29: =Generation!J33 -> 1391736038 | H29: =Generation!K33 -> 447463425.5 | I29: =Generation!L33 -> 10210839.08 | J29: =Generation!M33 -> 910883722.2 | K29: =Generation!N33 -> 48560867.97 | L29: =Generation!O33 -> 1218912.51 | M29: =Generation!P33 -> 2274602.962 | N29: =Generation!Q33 -> 346813175.9 | O29: =Generation!R33 -> 111904964.4 | P29: =Generation!S33 -> 122754833.3 | Q29: =ROUND(SUM(F29:P29)-E29,0) -> 0
A30: 30 | C30: Plant Held For Future Use | E30: ='Function Summary'!$F30 -> 11684486.3 | F30: =Generation!$I$34 -> 3401473.466 | G30: =Generation!J34 -> 3155166.736 | H30: =Generation!K34 -> 1083003.052 | I30: =Generation!L34 -> 45223.0434 | J30: =Generation!M34 -> 2395960.288 | K30: =Generation!N34 -> 129039.406 | L30: =Generation!O34 -> 3291.108341 | M30: =Generation!P34 -> 9528.902774 | N30: =Generation!Q34 -> 706982.0224 | O30: =Generation!R34 -> 295607.2959 | P30: =Generation!S34 -> 459210.982 | Q30: 0
A31: =A30+1 -> 31 | C31: Electric Plant Acquisition Adj | E31: ='Function Summary'!$F31 -> 20001840.46 | F31: =Generation!$I$35 -> 6912148.465 | G31: =Generation!J35 -> 5385237.136 | H31: =Generation!K35 -> 1726485.2 | I31: =Generation!L35 -> 37917.66367 | J31: =Generation!M35 -> 3500734.374 | K31: =Generation!N35 -> 186536.2662 | L31: =Generation!O35 -> 4678.432968 | M31: =Generation!P35 -> 8486.00348 | N31: =Generation!Q35 -> 1347691.119 | O31: =Generation!R35 -> 429985.7495 | P31: =Generation!S35 -> 461940.0542 | Q31: 0
A32: 32 | C32: Nuclear Fuel | E32: ='Function Summary'!$F32 -> 0 | F32: =Generation!$I$36 -> 0 | G32: =Generation!J36 -> 0 | H32: =Generation!K36 -> 0 | I32: =Generation!L36 -> 0 | J32: =Generation!M36 -> 0 | K32: =Generation!N36 -> 0 | L32: =Generation!O36 -> 0 | M32: =Generation!P36 -> 0 | N32: =Generation!Q36 -> 0 | O32: =Generation!R36 -> 0 | P32: =Generation!S36 -> 0 | Q32: 0
A33: 33 | C33: Prepayments | E33: ='Function Summary'!$F33 -> 6694425.607 | F33: =Generation!$I$37 -> 2231462.503 | G33: =Generation!J37 -> 1803581.544 | H33: =Generation!K37 -> 587426.1284 | I33: =Generation!L37 -> 15662.41989 | J33: =Generation!M37 -> 1216862.511 | K33: =Generation!N37 -> 65016.96433 | L33: =Generation!O37 -> 1637.710493 | M33: =Generation!P37 -> 3429.006509 | N33: =Generation!Q37 -> 440716.8889 | O33: =Generation!R37 -> 149633.6888 | P33: =Generation!S37 -> 178996.241 | Q33: 0
A34: 34 | C34: Fuel Stock | E34: ='Function Summary'!$F34 -> 112033056.6 | F34: =Generation!$I$38 -> 32613968.6 | G34: =Generation!J38 -> 30252333.25 | H34: =Generation!K38 -> 10384037.36 | I34: =Generation!L38 -> 433607.0624 | J34: =Generation!M38 -> 22972918.75 | K34: =Generation!N38 -> 1237254.142 | L34: =Generation!O38 -> 31555.76698 | M34: =Generation!P38 -> 91364.91551 | N34: =Generation!Q38 -> 6778676.861 | O34: =Generation!R38 -> 2834338.46 | P34: =Generation!S38 -> 4403001.433 | Q34: 0
A35: 35 | C35: Materials & Supplies | E35: ='Function Summary'!$F35 -> 76183470.79 | F35: =Generation!$I$39 -> 26327150.32 | G35: =Generation!J39 -> 20511415.28 | H35: =Generation!K39 -> 6575876.607 | I35: =Generation!L39 -> 144421.671 | J35: =Generation!M39 -> 13333677.74 | K35: =Generation!N39 -> 710483.6283 | L35: =Generation!O39 -> 17819.32328 | M35: =Generation!P39 -> 32321.68556 | N35: =Generation!Q39 -> 5133116.983 | O35: =Generation!R39 -> 1637739.629 | P35: =Generation!S39 -> 1759447.921 | Q35: 0
A36: 36 | C36: Misc Deferred Debits | E36: ='Function Summary'!$F36 -> 26648812.57 | F36: =Generation!$I$40 -> 8861694.6 | G36: =Generation!J40 -> 7179909.946 | H36: =Generation!K40 -> 2340873.538 | I36: =Generation!L40 -> 63116.45465 | J36: =Generation!M40 -> 4855707.663 | K36: =Generation!N40 -> 259484.418 | L36: =Generation!O40 -> 6537.895755 | M36: =Generation!P40 -> 13802.24334 | N36: =Generation!Q40 -> 1751708.294 | O36: =Generation!R40 -> 597133.0904 | P36: =Generation!S40 -> 718844.4285 | Q36: 0
A37: 37 | C37: Cash Working Capital | E37: ='Function Summary'!$F37 -> 14587717.33 | F37: =Generation!$I$41 -> 4564248.776 | G37: =Generation!J41 -> 4074540.314 | H37: =Generation!K41 -> 1313195.404 | I37: =Generation!L41 -> 45754.95404 | J37: =Generation!M41 -> 2704824.159 | K37: =Generation!N41 -> 146822.0163 | L37: =Generation!O41 -> 3588.978152 | M37: =Generation!P41 -> 10880.86076 | N37: =Generation!Q41 -> 951981.8603 | O37: =Generation!R41 -> 323869.7134 | P37: =Generation!S41 -> 448010.2913 | Q37: 0
A38: 38 | C38: Weatherization Loans | E38: ='Function Summary'!$F38 -> 0 | F38: =Generation!$I$42 -> 0 | G38: =Generation!J42 -> 0 | H38: =Generation!K42 -> 0 | I38: =Generation!L42 -> 0 | J38: =Generation!M42 -> 0 | K38: =Generation!N42 -> 0 | L38: =Generation!O42 -> 0 | M38: =Generation!P42 -> 0 | N38: =Generation!Q42 -> 0 | O38: =Generation!R42 -> 0 | P38: =Generation!S42 -> 0 | Q38: 0
A39: 39 | C39: Miscellaneous Rate Base | E39: ='Function Summary'!$F39 -> 0 | F39: =Generation!$I$43 -> 0 | G39: =Generation!J43 -> 0 | H39: =Generation!K43 -> 0 | I39: =Generation!L43 -> 0 | J39: =Generation!M43 -> 0 | K39: =Generation!N43 -> 0 | L39: =Generation!O43 -> 0 | M39: =Generation!P43 -> 0 | N39: =Generation!Q43 -> 0 | O39: =Generation!R43 -> 0 | P39: =Generation!S43 -> 0 | Q39: 0
A40: 40
A41: 41 | C41: Total Rate Base Additions | E41: =SUM(E29:E39) -> 5436402013 | F41: 1859658968 | G41: 1464098222 | H41: 471474322.8 | I41: 10996542.35 | J41: 961864407.7 | K41: 51295504.81 | L41: 1288021.726 | M41: 2444416.58 | N41: 363924049.9 | O41: =SUM(O29:O39) -> 118173272 | P41: =SUM(P29:P39) -> 131184284.7 | Q41: =ROUND(SUM(F41:P41)-E41,0) -> 0
A42: 42
A43: 43 | C43: Rate Base Deductions :
A44: 44 | C44: Accum Provision For Depreciation | E44: ='Function Summary'!$F44 -> -1534117165 | F44: =Generation!$I$48 -> -526346780.8 | G44: =Generation!J48 -> -413096675.4 | H44: =Generation!K48 -> -132864623.7 | I44: =Generation!L48 -> -3046251.536 | J44: =Generation!M48 -> -270601287.3 | K44: =Generation!N48 -> -14427161.68 | L44: =Generation!O48 -> -362168.5789 | M44: =Generation!P48 -> -678212.1022 | N44: =Generation!Q48 -> -102885969.9 | O44: =Generation!R48 -> -33245108.95 | P44: =Generation!S48 -> -36562925.5 | Q44: =ROUND(SUM(F44:P44)-E44,0) -> 0
A45: 45 | C45: Accum Provision For Amortization | E45: ='Function Summary'!$F45 -> -93222463.61 | F45: =Generation!$I$49 -> -32071105.29 | G45: =Generation!J49 -> -25101045.91 | H45: =Generation!K49 -> -8063499.476 | I45: =Generation!L49 -> -181954.4312 | J45: =Generation!M49 -> -16395428.08 | K45: =Generation!N49 -> -873939.5343 | L45: =Generation!O49 -> -21931.29786 | M45: =Generation!P49 -> -40587.29818 | N45: =Generation!Q49 -> -6262968.166 | O45: =Generation!R49 -> -2014105.008 | P45: =Generation!S49 -> -2195899.121 | Q45: 0
A46: 46 | C46: Accum Deferred Income Taxes | E46: ='Function Summary'!$F46 -> -794635317 | F46: =Generation!$I$50 -> -272948320.7 | G46: =Generation!J50 -> -213686988.8 | H46: =Generation!K50 -> -68714760.01 | I46: =Generation!L50 -> -1565193.743 | J46: =Generation!M50 -> -140145900.6 | K46: =Generation!N50 -> -7503434.002 | L46: =Generation!O50 -> -187829.619 | M46: =Generation!P50 -> -349520.8244 | N46: =Generation!Q50 -> -53303659.64 | O46: =Generation!R50 -> -17250026.64 | P46: =Generation!S50 -> -18979682.36 | Q46: 0
A47: =A46+1 -> 47 | C47: Unamortized ITC | E47: ='Function Summary'!$F47 -> -55114.7287 | F47: =Generation!$I$51 -> -18933.20765 | G47: =Generation!J51 -> -14821.41879 | H47: =Generation!K51 -> -4765.836071 | I47: =Generation!L51 -> -108.4920748 | J47: =Generation!M51 -> -9719.019065 | K47: =Generation!N51 -> -520.3046036 | L47: =Generation!O51 -> -13.02512052 | M47: =Generation!P51 -> -24.22775018 | N47: =Generation!Q51 -> -3697.348175 | O47: =Generation!R51 -> -1196.223077 | P47: =Generation!S51 -> -1315.626323 | Q47: 0
A48: 48 | C48: Customer Advance For Construction | E48: ='Function Summary'!$F48 -> 0 | F48: =Generation!$I$52 -> 0 | G48: =Generation!J52 -> 0 | H48: =Generation!K52 -> 0 | I48: =Generation!L52 -> 0 | J48: =Generation!M52 -> 0 | K48: =Generation!N52 -> 0 | L48: =Generation!O52 -> 0 | M48: =Generation!P52 -> 0 | N48: =Generation!Q52 -> 0 | O48: =Generation!R52 -> 0 | P48: =Generation!S52 -> 0 | Q48: 0
A49: 49 | C49: Customer Service Deposits | E49: ='Function Summary'!$F49 -> 0 | F49: =Generation!$I$53 -> 0 | G49: =Generation!J53 -> 0 | H49: =Generation!K53 -> 0 | I49: =Generation!L53 -> 0 | J49: =Generation!M53 -> 0 | K49: =Generation!N53 -> 0 | L49: =Generation!O53 -> 0 | M49: =Generation!P53 -> 0 | N49: =Generation!Q53 -> 0 | O49: =Generation!R53 -> 0 | P49: =Generation!S53 -> 0 | Q49: 0
A50: 50 | C50: Misc Rate Base Deductions | E50: ='Function Summary'!$F50 -> -19133028.73 | F50: =Generation!$I$54 -> -6573429.219 | G50: =Generation!J54 -> -5151881.285 | H50: =Generation!K54 -> -1655993.562 | I50: =Generation!L54 -> -37665.70746 | J50: =Generation!M54 -> -3369893.191 | K50: =Generation!N54 -> -179647.2977 | L50: =Generation!O54 -> -4508.962907 | M50: =Generation!P54 -> -8393.81793 | N50: =Generation!Q54 -> -1284296.813 | O50: =Generation!R54 -> -413994.5693 | P50: =Generation!S54 -> -453324.3065 | Q50: 0
A51: 51
A52: 52 | C52: Total Rate Base Deductions | E52: =SUM(E44:E50) -> -2441163089 | F52: -837958569.3 | G52: -657051412.8 | H52: -211303642.5 | I52: -4831173.91 | J52: -430522228.2 | K52: -22984702.82 | L52: -576451.4838 | M52: -1076738.27 | N52: -163740591.8 | O52: =SUM(O44:O50) -> -52924431.39 | P52: =SUM(P44:P50) -> -58193146.91 | Q52: =ROUND(SUM(F52:P52)-E52,0) -> 0
A53: 53
A54: 54 | C54: Total Rate Base | E54: =E41+E52 -> 2995238924 | F54: =F41+F52 -> 1021700399 | G54: 807046809.7 | H54: 260170680.3 | I54: 6165368.435 | J54: 531342179.4 | K54: 28310801.99 | L54: 711570.242 | M54: 1367678.31 | N54: 200183458.1 | O54: =O41+O52 -> 65248840.64 | P54: =P41+P52 -> 72991137.78 | Q54: =ROUND(SUM(F54:P54)-E54,0) -> 0
A55: 55
A56: 56 | C56: Calculated Return On Rate Base | F56: ='Class Summary'!F60 -> 0.06174997321 | G56: ='Class Summary'!G60 -> 0.0863287592 | H56: ='Class Summary'!H60 -> 0.07144063913 | I56: ='Class Summary'!I60 -> 0.1197016225 | J56: ='Class Summary'!J60 -> 0.05572637504 | K56: ='Class Summary'!K60 -> 0.06154738424 | L56: ='Class Summary'!L60 -> 0.04307748096 | M56: ='Class Summary'!M60 -> 0.1975054231 | N56: ='Class Summary'!N60 -> 0.07887265888 | O56: ='Class Summary'!O60 -> 0.04174468285 | P56: ='Class Summary'!P60 -> 0.05577984465
A57: 57
A58: 58 | C58: Return On Rate Base | D58: =ActualROR -> 0.06924334573 | E58: =$D$58*E54 -> 207400364.3 | F58: =$D$58*F54 -> 70745953.94 | G58: 55882621.26 | H58: =$D$58*H54 -> 18015088.36 | I58: 426910.7381 | J58: 36791910.23 | K58: 1960334.65 | L58: 49271.50428 | M58: 94702.62205 | N58: 13861372.4 | O58: =$D$58*O54 -> 4518048.031 | P58: =$D$58*P54 -> 5054150.588 | Q58: =ROUND(SUM(F58:P58)-E58,0) -> 0
A59: 59 | C59: Total Operating Expenses | E59: =E25 -> 1159677213 | F59: 369991063.6 | G59: 321225465.6 | H59: =H25 -> 103593247.8 | I59: 3364366.115 | J59: 213135298.6 | K59: 11524745.82 | L59: 283518.725 | M59: 790313.6977 | N59: 76040887.98 | O59: =O25 -> 25671575.28 | P59: =P25 -> 34056730.3 | Q59: =ROUND(SUM(F59:P59)-E59,0) -> 0
A60: 60 | C60: Revenue Credits | E60: ='Function Summary'!$F$59 -> -206295203 | F60: =Generation!I$99 -> -70493617.76 | G60: =Generation!J99 -> -55769657.02 | H60: =Generation!K99 -> -17897356.1 | I60: =Generation!L99 -> -421245.3195 | J60: =Generation!M99 -> -36373999.68 | K60: =Generation!N99 -> -1942402.95 | L60: =Generation!O99 -> -48580.16473 | M60: =Generation!P99 -> -95193.57592 | N60: =Generation!Q99 -> -13844275.58 | O60: =Generation!R99 -> -4454938.517 | P60: =Generation!S99 -> -4953936.321 | Q60: =ROUND(SUM(F60:P60)-E60,0) -> 0
A61: 61
A62: 62 | C62: Total Revenue Requirements | E62: =E58+E59+E60 -> 1160782375 | F62: =F58+F59+F60 -> 370243399.7 | G62: 321338429.8 | H62: 103710980 | I62: 3370031.533 | J62: 213553209.2 | K62: 11542677.52 | L62: 284210.0646 | M62: 789822.7439 | N62: 76057984.8 | O62: =O58+O59+O60 -> 25734684.8 | P62: =P58+P59+P60 -> 34156944.57 | Q62: =ROUND(SUM(F62:P62)-E62,0) -> 0
A63: 63 | Q63: =ROUND(SUM(F63:P63)-E63,0) -> 0
A64: 64
A65: 65 | C65: Return On Rate Base @ Target ROR | D65: =TargetROR -> 0.07780031876 | E65: =$D65*E54 -> 233030543 | F65: =$D65*F54 -> 79488616.7 | G65: 62788499.05 | H65: =$D65*H54 -> 20241361.86 | I65: 479667.6295 | J65: 41338590.93 | K65: 2202589.419 | L65: 55360.39165 | M65: 106405.8085 | N65: 15574336.85 | O65: =$D65*O54 -> 5076380.601 | P65: =$D65*P54 -> 5678733.786 | Q65: =ROUND(SUM(F65:P65)-E65,0) -> 0
A66: 66 | C66: Total Op. exp. Adjusted for Taxes | E66: =SUM(F66:P66) -> 1176101284 | F66: =F59+((F65-(F56*F54))*(1/NetToGross))-(F65-(F56*F54)) -> 380075694.9 | G66: 316992737 | H66: 104610774.1 | I66: 3205497.304 | J66: 220348138.6 | K66: 11807712.98 | L66: 298713.1778 | M66: 689632.4235 | N66: 75908876.16 | O66: 27118340.41 | P66: 35045167.02 | Q66: =ROUND(SUM(F66:P66)-E66,0) -> 0
A67: 67 | C67: Revenue Credits | E67: =E60 -> -206295203 | F67: =F60 -> -70493617.76 | G67: -55769657.02 | H67: =H60 -> -17897356.1 | I67: -421245.3195 | J67: -36373999.68 | K67: -1942402.95 | L67: -48580.16473 | M67: -95193.57592 | N67: -13844275.58 | O67: =O60 -> -4454938.517 | P67: =P60 -> -4953936.321 | Q67: =ROUND(SUM(F67:P67)-E67,0) -> 0
A68: 68
A69: 69 | C69: Total Target Revenue Requirements | E69: =SUM(E65:E67) -> 1202836624 | F69: =SUM(F65:F67) -> 389070693.8 | G69: 324011579 | H69: =SUM(H65:H67) -> 106954779.9 | I69: 3263919.614 | J69: 225312729.9 | K69: 12067899.45 | L69: 305493.4047 | M69: 700844.656 | N69: 77638937.43 | O69: =SUM(O65:O67) -> 27739782.5 | P69: =SUM(P65:P67) -> 35769964.49 | Q69: =ROUND(SUM(F69:P69)-E69,0) -> 0
C70: Generation Demand Summary
C71: =Inputs!$C$4 -> Rocky Mountain Power
C72: ="Cost Of Service By Rate Schedule - "&C70 -> Cost Of Service By Rate Schedule - Generation Demand Summary
C73: =Inputs!$C$5 -> State of Utah
C74: =Inputs!$C$7 -> 2010 Protocol (Non Wgt)
C75: =Inputs!$C$6 -> 12 Months Ended June 2013
C78: A | D78: B | E78: C | F78: D | G78: E | H78: F | I78: G | J78: H | K78: I | L78: J | M78: K | N78: L | O78: M | P78: N | Q78: Q
E79: ='Hot Sheet'!$H$10 -> Utah | G79: ='Hot Sheet'!$J$10 -> General | H79: ='Hot Sheet'!$K$10 -> General | I79: ='Hot Sheet'!$L$10 -> Street & Area | J79: ='Hot Sheet'!$M$10 -> General | L79: ='Hot Sheet'!$O$10 -> Traffic | M79: ='Hot Sheet'!$P$10 -> Outdoor | N79: ='Hot Sheet'!$Q$10 -> General | Q79: Chk Total
E80: ='Hot Sheet'!$H$11 -> Jurisdiction | F80: ='Hot Sheet'!$I$11 -> Residential | G80: ='Hot Sheet'!$J$11 -> Large Dist. | H80: ='Hot Sheet'!$K$11 -> +1 MW | I80: ='Hot Sheet'!$L$11 -> Lighting | J80: ='Hot Sheet'!$M$11 -> Trans | K80: ='Hot Sheet'!$N$11 -> Irrigation | L80: ='Hot Sheet'!$O$11 -> Signals | M80: ='Hot Sheet'!$P$11 -> Lighting | N80: ='Hot Sheet'!$Q$11 -> Small Dist. | O80: ='Hot Sheet'!R$11 -> Industrial | P80: ='Hot Sheet'!S$11 -> Industrial
C81: DESCRIPTION | E81: ='Hot Sheet'!$H$12 -> Normalized | F81: ='Hot Sheet'!$I$12 -> Sch 1 | G81: ='Hot Sheet'!$J$12 -> Sch 6 | H81: ='Hot Sheet'!$K$12 -> Sch 8 | I81: ='Hot Sheet'!$L$12 -> Sch. 7,11,12 | J81: ='Hot Sheet'!$M$12 -> Sch 9 | K81: ='Hot Sheet'!$N$12 -> Sch 10 | L81: ='Hot Sheet'!$O$12 -> Sch 15 | M81: ='Hot Sheet'!$P$12 -> Sch 15 | N81: ='Hot Sheet'!$Q$12 -> Sch 23 | O81: ='Hot Sheet'!R$12 -> Cust 1 | P81: ='Hot Sheet'!S$12 -> Cust 2 | Q81: =ROUND(SUM(Q86:Q140),0) -> 0
C83: Operating Revenues | E83: =SUM(F83:P83) -> 655054133.6 | F83: 228957013.8 | G83: 191596393.7 | H83: 55898484.12 | I83: 1027237.596 | J83: 101205300.2 | K83: 5542167.059 | L83: 125241.2911 | M83: 309600.0288 | N83: 47859849.68 | O83: 11486920.54 | P83: 11045925.73
A84: 13
A85: =A84+1 -> 14 | C85: Operating Expenses
A86: =A85+1 -> 15 | C86: Operation & Maintenance Expenses | E86: =SUM(F86:P86) -> 366969839.7 | F86: 133139476.7 | G86: 98679561.81 | H86: 30939638.22 | I86: 481645.8397 | J86: 60714793.22 | K86: 3230985.733 | L86: 80669.62848 | M86: 111438.534 | N86: 25518869.87 | O86: 7444423.383 | P86: 6628336.813 | Q86: =ROUND(SUM(F86:P86)-E86,0) -> 0
A87: 16 | C87: Depreciation Expense | E87: =SUM(F87:P87) -> 95285943.31 | F87: 34100143.69 | G87: 25637443.13 | H87: 8087681.65 | I87: 138156.4721 | J87: 16030916.51 | K87: 851681.7979 | L87: 21259.89374 | M87: 32009.52371 | N87: 6568045.475 | O87: 1966607.747 | P87: 1851997.415 | Q87: 0
A88: 17 | C88: Amortization Expense | E88: 8379280.162 | F88: 2930908.056 | G88: 2255499.727 | H88: 719147.303 | I88: 14607.30029 | J88: 1447117.927 | K88: 77033.63005 | L88: 1929.016208 | M88: 3301.903221 | N88: 569027.7464 | O88: 177672.6205 | P88: 183034.932 | Q88: 0
A89: 18 | C89: Taxes Other Than Income | E89: 21972495.45 | F89: 7494997.206 | G89: 5920339.848 | H89: 1908561.966 | I89: 45227.95454 | J89: 3897823.819 | K89: 207682.5869 | L89: 5219.94215 | M89: 10033.02448 | N89: 1468507.266 | O89: 478652.9191 | P89: 535448.9187 | Q89: 0
A90: 19 | C90: Income Taxes - Federal | E90: -37043822.69 | F90: -14821636.33 | G90: -4832221.255 | H90: -3077117.488 | I90: -42412.66373 | J90: -9376683.392 | K90: -446261.6971 | L90: -15609.97704 | M90: 15239.3686 | N90: -1613944.045 | O90: -1461002.157 | P90: -1372173.055 | Q90: 0
A91: 20 | C91: Income Taxes - State | E91: -2039664.509 | F91: -979474.7729 | G91: 149472.2179 | H91: -159687.8488 | I91: -83.64229737 | J91: -750069.8418 | K91: -32714.53931 | L91: -1420.75272 | M91: 3341.763181 | N91: -17592.35117 | O91: -134156.1349 | P91: -117278.6062 | Q91: 0
A92: 21 | C92: Income Taxes Deferred | E92: 61764027.54 | F92: 21068212.98 | G92: 16641898.24 | H92: 5364910.603 | I92: 127134.4275 | J92: 10956666.18 | K92: 583789.5401 | L92: 14673.10126 | M92: 28202.53173 | N92: 4127930.002 | O92: 1345479.04 | P92: 1505130.896 | Q92: 0
A93: 22 | C93: Investment Tax Credit Adj | E93: -575897.8235 | F93: -196443.4394 | G93: -155171.7619 | H93: -50023.29775 | I93: -1185.422049 | J93: -102161.7348 | K93: -5443.348482 | L93: -136.8143791 | M93: -262.9649861 | N93: -38489.48974 | O93: -12545.46508 | P93: -14034.08491 | Q93: 0
A94: 23 | C94: Misc Revenues & Expense | E94: -765616.7238 | F94: -230033.3871 | G94: -206635.5927 | H94: -70126.03638 | I94: -2703.817029 | J94: -153048.1341 | K94: -8229.569741 | L94: -209.3729453 | M94: -572.9787139 | N94: -47227.17916 | O94: -18870.03076 | P94: -27960.62519 | Q94: 0
A95: 24
A96: 25 | C96: Total Operating Expenses | E96: =SUM(E86:E94) -> 513946584.4 | F96: =SUM(F86:F94) -> 182506150.7 | G96: 144090186.4 | H96: 43662985.07 | I96: 760386.4491 | J96: 82665354.55 | K96: 4458524.133 | L96: 106374.6647 | M96: 202730.7052 | N96: 36535127.3 | O96: =SUM(O86:O94) -> 9786261.921 | P96: =SUM(P86:P94) -> 9172502.603 | Q96: =ROUND(SUM(F96:P96)-E96,0) -> 0
A97: 26
A98: 27
A99: 28 | C99: Rate Base :
A100: 29 | C100: Electric Plant In Service | E100: =SUM(F100:P100) -> 3719661221 | F100: 1349118774 | G100: 1000542959 | H100: 313616956.8 | I100: 4742151.677 | J100: 615893889.8 | K100: 32680633.09 | L100: 814170.8569 | M100: 1120553.113 | N100: 258661480.2 | O100: 75516673.98 | P100: 66952978.29 | Q100: 0
A101: 30 | C101: Plant Held For Future Use | E101: 0 | F101: 0 | G101: 0 | H101: 0 | I101: 0 | J101: 0 | K101: 0 | L101: 0 | M101: 0 | N101: 0 | O101: 0 | P101: 0 | Q101: 0
A102: 31 | C102: Electric Plant Acquisition Adj | E102: 15001380.35 | F102: 5456463.383 | G102: 4034960.794 | H102: 1263006.239 | I102: 18564.13635 | J102: 2475365.903 | K102: 131312.9225 | L102: 3269.979437 | M102: 4408.040869 | N102: 1045133.067 | O102: 303478.477 | P102: 265417.4052 | Q102: 0
A103: 32 | C103: Nuclear Fuel | E103: 0 | F103: 0 | G103: 0 | H103: 0 | I103: 0 | J103: 0 | K103: 0 | L103: 0 | M103: 0 | N103: 0 | O103: 0 | P103: 0 | Q103: 0
A104: 33 | C104: Prepayments | E104: 5020819.205 | F104: 1673596.877 | G104: 1352686.158 | H104: 440569.5963 | I104: 11746.81492 | J104: 912646.8836 | K104: 48762.72325 | L104: 1228.28287 | M104: 2571.754882 | N104: 330537.6667 | O104: 112225.2666 | P104: 134247.1807 | Q104: 0
A105: 34 | C105: Fuel Stock | E105: 0 | F105: 0 | G105: 0 | H105: 0 | I105: 0 | J105: 0 | K105: 0 | L105: 0 | M105: 0 | N105: 0 | O105: 0 | P105: 0 | Q105: 0
A106: 35 | C106: Materials & Supplies | E106: 57137603.09 | F106: 19745362.74 | G106: 15383561.46 | H106: 4931907.456 | I106: 108316.2532 | J106: 10000258.3 | K106: 532862.7212 | L106: 13364.49246 | M106: 24241.26417 | N106: 3849837.737 | O106: 1228304.722 | P106: 1319585.941 | Q106: 0
A107: 36 | C107: Misc Deferred Debits | E107: 19986609.43 | F107: 6646270.95 | G107: 5384932.46 | H107: 1755655.153 | I107: 47337.34099 | J107: 3641780.747 | K107: 194613.3135 | L107: 4903.421816 | M107: 10351.6825 | N107: 1313781.22 | O107: 447849.8178 | P107: 539133.3214 | Q107: 0
A108: 37 | C108: Cash Working Capital | E108: 5106501.709 | F108: 1845888.632 | G108: 1468475.909 | H108: 429183.8303 | I108: 6126.971572 | J108: 773895.4056 | K108: 42117.78088 | L108: 966.6512679 | M108: 1907.742071 | N108: 375422.3196 | O108: 89044.63791 | P108: 73471.82875 | Q108: 0
A109: 38 | C109: Weatherization Loans | E109: 0 | F109: 0 | G109: 0 | H109: 0 | I109: 0 | J109: 0 | K109: 0 | L109: 0 | M109: 0 | N109: 0 | O109: 0 | P109: 0 | Q109: 0
A110: 39 | C110: Miscellaneous Rate Base | E110: 0 | F110: 0 | G110: 0 | H110: 0 | I110: 0 | J110: 0 | K110: 0 | L110: 0 | M110: 0 | N110: 0 | O110: 0 | P110: 0 | Q110: 0
A111: 40
A112: 41 | C112: Total Rate Base Additions | E112: =SUM(E100:E110) -> 3821914135 | F112: 1384486357 | G112: 1028167576 | H112: 322437279 | I112: 4934243.194 | J112: 633697837.1 | K112: 33630302.55 | L112: 837903.6848 | M112: 1164033.598 | N112: 265576192.2 | O112: =SUM(O100:O110) -> 77697576.91 | P112: =SUM(P100:P110) -> 69284833.97 | Q112: =ROUND(SUM(F112:P112)-E112,0) -> 0
A113: 42
A114: 43 | C114: Rate Base Deductions :
A115: 44 | C115: Accum Provision For Depreciation | E115: =SUM(F115:P115) -> -1098168628 | F115: -398984080 | G115: -295383916.5 | H115: -92510808.33 | I115: -1375424.495 | J115: -181458080.7 | K115: -9627003.624 | L115: -239775.042 | M115: -325947.0857 | N115: -76451212.18 | O115: -22247655.77 | P115: -19564724.15 | Q115: =ROUND(SUM(F115:P115)-E115,0) -> 0
A116: 45 | C116: Accum Provision For Amortization | E116: -69294241.75 | F116: -23878871.61 | G116: -18657562.99 | H116: -5989122.77 | I116: -133809.9641 | J116: -12165158.67 | K116: -648364.6805 | L116: -16267.15293 | M116: -29883.95395 | N116: -4660411.399 | O116: -1494353.438 | P116: -1620435.129 | Q116: 0
A117: 46 | C117: Accum Deferred Income Taxes | E117: -595976487.7 | F117: -204711240.6 | G117: -160265241.6 | H117: -51536070 | I117: -1173895.307 | J117: -105109425.5 | K117: -5627575.502 | L117: -140872.2142 | M117: -262140.6183 | N117: -39977744.73 | O117: -12937519.98 | P117: -14234761.77 | Q117: 0
A118: 47 | C118: Unamortized ITC | E118: -41336.04652 | F118: -14199.90573 | G118: -11116.06409 | H118: -3574.377053 | I118: -81.36905607 | J118: -7289.264299 | K118: -390.2284527 | L118: -9.76884039 | M118: -18.17081263 | N118: -2773.011131 | O118: -897.167308 | P118: -986.7197422 | Q118: 0
A119: 48 | C119: Customer Advance For Construction | E119: 0 | F119: 0 | G119: 0 | H119: 0 | I119: 0 | J119: 0 | K119: 0 | L119: 0 | M119: 0 | N119: 0 | O119: 0 | P119: 0 | Q119: 0
A120: 49 | C120: Customer Service Deposits | E120: 0 | F120: 0 | G120: 0 | H120: 0 | I120: 0 | J120: 0 | K120: 0 | L120: 0 | M120: 0 | N120: 0 | O120: 0 | P120: 0 | Q120: 0
A121: 50 | C121: Misc Rate Base Deductions | E121: -13211277.15 | F121: -4656940.586 | G121: -3555633.708 | H121: -1129652.216 | I121: -21729.3893 | J121: -2261819.557 | K121: -120323.831 | L121: -3009.924368 | M121: -4948.127322 | N121: -901692.474 | O121: -277623.808 | P121: -277903.5273 | Q121: 0
A122: 51
A123: 52 | C123: Total Rate Base Deductions | E123: =SUM(E115:E121) -> -1776691971 | F123: -632245332.7 | G123: -477873470.8 | H123: -151169227.7 | I123: -2704940.525 | J123: -301001773.7 | K123: -16023657.87 | L123: -399934.1023 | M123: -622937.9561 | N123: -121993833.8 | O123: =SUM(O115:O121) -> -36958050.16 | P123: =SUM(P115:P121) -> -35698811.29 | Q123: =ROUND(SUM(F123:P123)-E123,0) -> 0
A124: 53
A125: 54 | C125: Total Rate Base | E125: =E112+E123 -> 2045222164 | F125: =F112+F123 -> 752241024.2 | G125: 550294105.1 | H125: 171268051.3 | I125: 2229302.669 | J125: 332696063.4 | K125: 17606644.69 | L125: 437969.5824 | M125: 541095.6414 | N125: 143582358.5 | O125: =O112+O123 -> 40739526.74 | P125: =P112+P123 -> 33586022.68 | Q125: =ROUND(SUM(F125:P125)-E125,0) -> 0
A126: 55
C127: Calculated Return On Rate Base | F127: ='Class Summary'!F60 -> 0.06174997321 | G127: ='Class Summary'!G60 -> 0.0863287592 | H127: ='Class Summary'!H60 -> 0.07144063913 | I127: ='Class Summary'!I60 -> 0.1197016225 | J127: ='Class Summary'!J60 -> 0.05572637504 | K127: ='Class Summary'!K60 -> 0.06154738424 | L127: ='Class Summary'!L60 -> 0.04307748096 | M127: ='Class Summary'!M60 -> 0.1975054231 | N127: ='Class Summary'!N60 -> 0.07887265888 | O127: ='Class Summary'!O60 -> 0.04174468285 | P127: ='Class Summary'!P60 -> 0.05577984465
A128: =A126+1 -> 56
A129: 57 | C129: Return On Rate Base | D129: =ActualROR -> 0.06924334573 | E129: =$D$58*E125 -> 141618025.4 | F129: =$D$58*F125 -> 52087685.31 | G129: 38104204.97 | H129: =$D$58*H125 -> 11859172.89 | I129: 154364.3755 | J129: 23036988.54 | K129: 1219142.985 | L129: 30326.47922 | M129: 37467.27257 | N129: 9942122.887 | O129: =$D$58*O125 -> 2820941.135 | P129: =$D$58*P125 -> 2325608.58 | Q129: =ROUND(SUM(F129:P129)-E129,0) -> 0
A130: 58 | C130: Total Operating Expenses | E130: =E96 -> 513946584.4 | F130: 182506150.7 | G130: 144090186.4 | H130: =H96 -> 43662985.07 | I130: 760386.4491 | J130: 82665354.55 | K130: 4458524.133 | L130: 106374.6647 | M130: 202730.7052 | N130: 36535127.3 | O130: =O96 -> 9786261.921 | P130: =P96 -> 9172502.603 | Q130: =ROUND(SUM(F130:P130)-E130,0) -> 0
A131: 59 | C131: Revenue Credits | E131: =SUM(F131:P131) -> -146126657.4 | F131: -52429329.9 | G131: -39422445.36 | H131: -12385925.43 | I131: -207624.1256 | J131: -24424369.4 | K131: -1298539.839 | L131: -32299.5364 | M131: -49093.34652 | N131: -10111990.61 | O131: -2988763.149 | P131: -2776276.691 | Q131: =ROUND(SUM(F131:P131)-E131,0) -> 0
A132: 60
A133: 61 | C133: Total Revenue Requirements | E133: =E129+E130+E131 -> 509437952.5 | F133: =F129+F130+F131 -> 182164506.1 | G133: 142771946 | H133: 43136232.53 | I133: 707126.6989 | J133: 81277973.69 | K133: 4379127.279 | L133: 104401.6076 | M133: 191104.6312 | N133: 36365259.57 | O133: =O129+O130+O131 -> 9618439.907 | P133: =P129+P130+P131 -> 8721834.492 | Q133: =ROUND(SUM(F133:P133)-E133,0) -> 0
A134: 62 | Q134: =ROUND(SUM(F134:P134)-E134,0) -> 0
A135: 63
A136: 64 | C136: Return On Rate Base @ Target ROR | D136: =TargetROR -> 0.07780031876 | E136: =$D136*E125 -> 159118936.3 | F136: =$D136*F125 -> 58524591.47 | G136: 42813056.79 | H136: =$D136*H125 -> 13324708.99 | I136: 173440.4583 | J136: 25883859.78 | K136: 1369802.569 | L136: 34074.17312 | M136: 42097.41338 | N136: 11170753.26 | O136: =$D136*O125 -> 3169548.167 | P136: =$D136*P125 -> 2613003.271 | Q136: =ROUND(SUM(F136:P136)-E136,0) -> 0
A137: 65 | C137: Total Operating Expenses Adjusted for Taxes | E137: =SUM(F137:P137) -> 525022999.9 | F137: =F130+((F136-(F127*F125))*(1/NetToGross))-(F136-(F127*F125)) -> 189931099.7 | G137: 141204051.9 | H137: 44332813.64 | I137: 702941.9236 | J137: 87181622.16 | K137: 4634502.977 | L137: 115726.8098 | M137: 162898.0938 | N137: 36440441.31 | O137: 10689581.06 | P137: 9627320.26 | Q137: =ROUND(SUM(F137:P137)-E137,0) -> 0
A138: 66 | C138: Revenue Credits | E138: =E131 -> -146126657.4 | F138: =F131 -> -52429329.9 | G138: -39422445.36 | H138: =H131 -> -12385925.43 | I138: -207624.1256 | J138: -24424369.4 | K138: -1298539.839 | L138: -32299.5364 | M138: -49093.34652 | N138: -10111990.61 | O138: =O131 -> -2988763.149 | P138: =P131 -> -2776276.691 | Q138: =ROUND(SUM(F138:P138)-E138,0) -> 0
A139: 67
A140: 68 | C140: Total Target Revenue Requirements | E140: =SUM(E136:E138) -> 538015278.8 | F140: =SUM(F136:F138) -> 196026361.3 | G140: 144594663.4 | H140: =SUM(H136:H138) -> 45271597.2 | I140: 668758.2562 | J140: 88641112.54 | K140: 4705765.707 | L140: 117501.4466 | M140: 155902.1606 | N140: 37499203.95 | O140: =SUM(O136:O138) -> 10870366.08 | P140: =SUM(P136:P138) -> 9464046.84 | Q140: =ROUND(SUM(F140:P140)-E140,0) -> 0
C141: Generation Energy Summary
C142: =Inputs!$C$4 -> Rocky Mountain Power
C143: ="Cost Of Service By Rate Schedule - "&C141 -> Cost Of Service By Rate Schedule - Generation Energy Summary
C144: =Inputs!$C$5 -> State of Utah
C145: =Inputs!$C$7 -> 2010 Protocol (Non Wgt)
C146: =Inputs!$C$6 -> 12 Months Ended June 2013
C149: A | D149: B | E149: C | F149: D | G149: E | H149: F | I149: G | J149: H | K149: I | L149: J | M149: K | N149: L | O149: M | P149: N
E150: ='Hot Sheet'!$H$10 -> Utah | G150: ='Hot Sheet'!$J$10 -> General | H150: ='Hot Sheet'!$K$10 -> General | I150: ='Hot Sheet'!$L$10 -> Street & Area | J150: ='Hot Sheet'!$M$10 -> General | L150: ='Hot Sheet'!$O$10 -> Traffic | M150: ='Hot Sheet'!$P$10 -> Outdoor | N150: ='Hot Sheet'!$Q$10 -> General | Q150: Chk Total
E151: ='Hot Sheet'!$H$11 -> Jurisdiction | F151: ='Hot Sheet'!$I$11 -> Residential | G151: ='Hot Sheet'!$J$11 -> Large Dist. | H151: ='Hot Sheet'!$K$11 -> +1 MW | I151: ='Hot Sheet'!$L$11 -> Lighting | J151: ='Hot Sheet'!$M$11 -> Trans | K151: ='Hot Sheet'!$N$11 -> Irrigation | L151: ='Hot Sheet'!$O$11 -> Signals | M151: ='Hot Sheet'!$P$11 -> Lighting | N151: ='Hot Sheet'!$Q$11 -> Small Dist. | O151: ='Hot Sheet'!R$11 -> Industrial | P151: ='Hot Sheet'!S$11 -> Industrial
C152: DESCRIPTION | E152: ='Hot Sheet'!$H$12 -> Normalized | F152: ='Hot Sheet'!$I$12 -> Sch 1 | G152: ='Hot Sheet'!$J$12 -> Sch 6 | H152: ='Hot Sheet'!$K$12 -> Sch 8 | I152: ='Hot Sheet'!$L$12 -> Sch. 7,11,12 | J152: ='Hot Sheet'!$M$12 -> Sch 9 | K152: ='Hot Sheet'!$N$12 -> Sch 10 | L152: ='Hot Sheet'!$O$12 -> Sch 15 | M152: ='Hot Sheet'!$P$12 -> Sch 15 | N152: ='Hot Sheet'!$Q$12 -> Sch 23 | O152: ='Hot Sheet'!R$12 -> Cust 1 | P152: ='Hot Sheet'!S$12 -> Cust 2 | Q152: =ROUND(SUM(Q157:Q211),0) -> 0
C154: Operating Revenues | E154: =SUM(F154:P154) -> 710946400 | F154: 204123819.1 | G154: 199300424.6 | H154: 66281547.08 | I154: 3075140.494 | J154: 141539883.9 | K154: 7725040.973 | L154: 188930.2654 | M154: 750839.0156 | N154: 43970014.28 | O154: 16908461.06 | P154: 27082299.28
A155: 13
A156: =A155+1 -> 14 | C156: Operating Expenses
A157: =A156+1 -> 15 | C157: Operation & Maintenance Expenses | E157: =SUM(F157:P157) -> 594916372.9 | F157: 173714582.4 | G157: 160627749.6 | H157: 55080650.5 | I157: 2288459.638 | J157: 121690657.7 | K157: 6556078.103 | L157: 167230.6527 | M157: 481760.6124 | N157: 36061081.11 | O157: 15012973.36 | P157: 23235149.26 | Q157: =ROUND(SUM(F157:P157)-E157,0) -> 0
A158: 16 | C158: Depreciation Expense | E158: 31771650.09 | F158: 9807336.587 | G158: 8571180.073 | H158: 2879523.448 | I158: 102726.8103 | J158: 6207071.741 | K158: 333268.2224 | L158: 8459.354973 | M158: 21899.85777 | N158: 1992819.782 | O158: 764825.3881 | P158: 1082538.829 | Q158: 0
A159: 17 | C159: Amortization Expense | E159: 2816495.749 | F159: 936804.5546 | G159: 758836.8618 | H159: 247379.9335 | I159: 6662.841382 | J159: 513076.5025 | K159: 27417.87168 | L159: 690.794976 | M159: 1457.185663 | N159: 185164.3956 | O159: 63095.40754 | P159: 75909.39983 | Q159: 0
A160: 18 | C160: Taxes Other Than Income | E160: 7324165.15 | F160: 2498332.402 | G160: 1973446.616 | H160: 636187.322 | I160: 15075.98485 | J160: 1299274.606 | K160: 69227.52895 | L160: 1739.980717 | M160: 3344.341493 | N160: 489502.4219 | O160: 159550.973 | P160: 178482.9729 | Q160: 0
A161: 19 | C161: Income Taxes - Federal | E161: -10773011.19 | F161: -5896530.46 | G161: -432548.6824 | H161: -658391.2072 | I161: 130371.5162 | J161: -2625150.95 | K161: -104861.8677 | L161: -5269.594215 | M161: 61253.29098 | N161: -561215.7767 | O161: -505857.7301 | P161: -174809.7312 | Q161: 0
A162: 20 | C162: Income Taxes - State | E162: -465881.3798 | F162: -456394.0774 | G162: 209920.7618 | H162: -3317.326279 | I162: 19608.5019 | J162: -182025.8481 | K162: -4940.64835 | L162: -482.5890332 | M162: 8746.966959 | N162: -9021.289978 | O162: -47281.06627 | P162: -694.7650333 | Q162: 0
A163: 21 | C163: Income Taxes Deferred | E163: 20588009.18 | F163: 7022737.659 | G163: 5547299.414 | H163: 1788303.534 | I163: 42378.1425 | J163: 3652222.059 | K163: 194596.5134 | L163: 4891.033753 | M163: 9400.843912 | N163: 1375976.667 | O163: 448493.0132 | P163: 501710.2986 | Q163: 0
A164: 22 | C164: Investment Tax Credit Adj | E164: -191965.9412 | F164: -65481.14646 | G164: -51723.92064 | H164: -16674.43258 | I164: -395.1406831 | J164: -34053.91161 | K164: -1814.449494 | L164: -45.60479304 | M164: -87.65499537 | N164: -12829.82991 | O164: -4181.821692 | P164: -4678.028304 | Q164: 0
A165: 23 | C165: Misc Revenues & Expense | E165: -255205.5746 | F165: -76677.79569 | G165: -68878.53089 | H165: -23375.34546 | I165: -901.272343 | J165: -51016.04471 | K165: -2743.189914 | L165: -69.79098175 | M165: -190.9929046 | N165: -15742.39305 | O165: -6290.010254 | P165: -9320.208396 | Q165: 0
A166: 24
A167: 25 | C167: Total Operating Expenses | E167: =SUM(E157:E165) -> 645730629 | F167: =SUM(F157:F165) -> 187484710.1 | G167: 177135282.2 | H167: 59930286.42 | I167: 2603987.022 | J167: 130470055.9 | K167: 7066228.084 | L167: 177144.2381 | M167: 587584.4512 | N167: 39505735.09 | O167: =SUM(O157:O165) -> 15885327.51 | P167: =SUM(P157:P165) -> 24884288.03 | Q167: =ROUND(SUM(F167:P167)-E167,0) -> 0
A168: 26
A169: 27
A170: 28 | C170: Rate Base :
A171: 29 | C171: Electric Plant In Service | E171: =SUM(F171:P171) -> 1448906982 | F171: 425628047 | G171: 391193079.1 | H171: 133846468.8 | I171: 5468687.399 | J171: 294989832.3 | K171: 15880234.88 | L171: 404741.6529 | M171: 1154049.849 | N171: 88151695.64 | O171: 36388290.41 | P171: 55801855.04 | Q171: =ROUND(SUM(F171:P171)-E171,0) -> 0
A172: 30 | C172: Plant Held For Future Use | E172: 11684486.3 | F172: 3401473.466 | G172: 3155166.736 | H172: 1083003.052 | I172: 45223.0434 | J172: 2395960.288 | K172: 129039.406 | L172: 3291.108341 | M172: 9528.902774 | N172: 706982.0224 | O172: 295607.2959 | P172: 459210.982 | Q172: 0
A173: 31 | C173: Electric Plant Acquisition Adj | E173: 5000460.116 | F173: 1455685.082 | G173: 1350276.342 | H173: 463478.9608 | I173: 19353.52732 | J173: 1025368.471 | K173: 55223.3437 | L173: 1408.453531 | M173: 4077.962611 | N173: 302558.0513 | O173: 126507.2725 | P173: 196522.649 | Q173: 0
A174: 32 | C174: Nuclear Fuel | E174: 0 | F174: 0 | G174: 0 | H174: 0 | I174: 0 | J174: 0 | K174: 0 | L174: 0 | M174: 0 | N174: 0 | O174: 0 | P174: 0 | Q174: 0
A175: 33 | C175: Prepayments | E175: 1673606.402 | F175: 557865.6258 | G175: 450895.386 | H175: 146856.5321 | I175: 3915.604972 | J175: 304215.6279 | K175: 16254.24108 | L175: 409.4276233 | M175: 857.2516273 | N175: 110179.2222 | O175: 37408.4222 | P175: 44749.06024 | Q175: 0
A176: 34 | C176: Fuel Stock | E176: 112033056.6 | F176: 32613968.6 | G176: 30252333.25 | H176: 10384037.36 | I176: 433607.0624 | J176: 22972918.75 | K176: 1237254.142 | L176: 31555.76698 | M176: 91364.91551 | N176: 6778676.861 | O176: 2834338.46 | P176: 4403001.433 | Q176: 0
A177: 35 | C177: Materials & Supplies | E177: 19045867.7 | F177: 6581787.581 | G177: 5127853.819 | H177: 1643969.152 | I177: 36105.41774 | J177: 3333419.435 | K177: 177620.9071 | L177: 4454.830819 | M177: 8080.421391 | N177: 1283279.246 | O177: 409434.9073 | P177: 439861.9803 | Q177: 0
A178: 36 | C178: Misc Deferred Debits | E178: 6662203.143 | F178: 2215423.65 | G178: 1794977.487 | H178: 585218.3844 | I178: 15779.11366 | J178: 1213926.916 | K178: 64871.10449 | L178: 1634.473939 | M178: 3450.560835 | N178: 437927.0734 | O178: 149283.2726 | P178: 179711.1071 | Q178: 0
A179: 37 | C179: Cash Working Capital | E179: 9481215.618 | F179: 2718356.819 | G179: 2606064.454 | H179: 884011.9624 | I179: 39628.10309 | J179: 1930930.587 | K179: 104704.3403 | L179: 2622.3298 | M179: 8973.142606 | N179: 576559.121 | O179: 234825.3075 | P179: 374539.4519 | Q179: 0
A180: 38 | C180: Weatherization Loans | E180: 0 | F180: 0 | G180: 0 | H180: 0 | I180: 0 | J180: 0 | K180: 0 | L180: 0 | M180: 0 | N180: 0 | O180: 0 | P180: 0 | Q180: 0
A181: 39 | C181: Miscellaneous Rate Base | E181: 0 | F181: 0 | G181: 0 | H181: 0 | I181: 0 | J181: 0 | K181: 0 | L181: 0 | M181: 0 | N181: 0 | O181: 0 | P181: 0 | Q181: 0
A182: 40
A183: 41 | C183: Total Rate Base Additions | E183: =SUM(E171:E181) -> 1614487878 | F183: =SUM(F171:F181) -> 475172607.8 | G183: 435930646.6 | H183: 149037044.2 | I183: 6062299.272 | J183: 328166572.4 | K183: 17665202.36 | L183: 450118.044 | M183: 1280383.007 | N183: 98347857.24 | O183: =SUM(O171:O181) -> 40475695.35 | P183: =SUM(P171:P181) -> 61899451.71 | Q183: =ROUND(SUM(F183:P183)-E183,0) -> 0
A184: 42
A185: 43 | C185: Rate Base Deductions :
A186: 44 | C186: Accum Provision For Depreciation | E186: =SUM(F186:P186) -> -435948537.6 | F186: -127362700.8 | G186: -117712759 | H186: -40353815.33 | I186: -1670827.042 | J186: -89143206.62 | K186: -4800158.055 | L186: -122393.537 | M186: -352265.0165 | N186: -26434757.7 | O186: -10997453.18 | P186: -16998201.35 | Q186: =ROUND(SUM(F186:P186)-E186,0) -> 0
A187: 45 | C187: Accum Provision For Amortization | E187: -23928221.85 | F187: -8192233.678 | G187: -6443482.92 | H187: -2074376.707 | I187: -48144.46713 | J187: -4230269.411 | K187: -225574.8539 | L187: -5664.144936 | M187: -10703.34422 | N187: -1602556.768 | O187: -519751.5696 | P187: -575463.9917 | Q187: 0
A188: 46 | C188: Accum Deferred Income Taxes | E188: -198658829.2 | F188: -68237080.19 | G188: -53421747.19 | H188: -17178690 | I188: -391298.4358 | J188: -35036475.16 | K188: -1875858.501 | L188: -46957.40474 | M188: -87380.20611 | N188: -13325914.91 | O188: -4312506.659 | P188: -4744920.589 | Q188: 0
A189: 47 | C189: Unamortized ITC | E189: -13778.68217 | F189: -4733.301912 | G189: -3705.354698 | H189: -1191.459018 | I189: -27.12301869 | J189: -2429.754766 | K189: -130.0761509 | L189: -3.25628013 | M189: -6.056937544 | N189: -924.3370437 | O189: -299.0557693 | P189: -328.9065807 | Q189: 0
A190: 48 | C190: Customer Advance For Construction | E190: 0 | F190: 0 | G190: 0 | H190: 0 | I190: 0 | J190: 0 | K190: 0 | L190: 0 | M190: 0 | N190: 0 | O190: 0 | P190: 0 | Q190: 0
A191: 49 | C191: Customer Service Deposits | E191: 0 | F191: 0 | G191: 0 | H191: 0 | I191: 0 | J191: 0 | K191: 0 | L191: 0 | M191: 0 | N191: 0 | O191: 0 | P191: 0 | Q191: 0
A192: 50 | C192: Misc Rate Base Deductions | E192: -5921751.584 | F192: -1916488.634 | G192: -1596247.577 | H192: -526341.3451 | I192: -15936.31816 | J192: -1108073.635 | K192: -59323.46678 | L192: -1499.038539 | M192: -3445.690608 | N192: -382604.3394 | O192: -136370.7613 | P192: -175420.7791 | Q192: 0
A193: 51
A194: 52 | C194: Total Rate Base Deductions | E194: =SUM(E186:E192) -> -664471118.9 | F194: =SUM(F186:F192) -> -205713236.6 | G194: -179177942 | H194: =SUM(H186:H192) -> -60134414.84 | I194: -2126233.386 | J194: -129520454.6 | K194: -6961044.952 | L194: -176517.3815 | M194: -453800.3144 | N194: -41746758.05 | O194: =SUM(O186:O192) -> -15966381.22 | P194: =SUM(P186:P192) -> -22494335.62 | Q194: =ROUND(SUM(F194:P194)-E194,0) -> 0
A195: 53
A196: 54 | C196: Total Rate Base | E196: =E183+E194 -> 950016759 | F196: =F183+F194 -> 269459371.2 | G196: 256752704.6 | H196: =H183+H194 -> 88902629.32 | I196: 3936065.886 | J196: 198646117.8 | K196: 10704157.41 | L196: 273600.6625 | M196: 826582.6924 | N196: 56601099.19 | O196: =O183+O194 -> 24509314.13 | P196: =P183+P194 -> 39405116.09 | Q196: =ROUND(SUM(F196:P196)-E196,0) -> 0
A197: 55
C198: Calculated Return On Rate Base | F198: ='Class Summary'!F60 -> 0.06174997321 | G198: ='Class Summary'!G60 -> 0.0863287592 | H198: ='Class Summary'!H60 -> 0.07144063913 | I198: ='Class Summary'!I60 -> 0.1197016225 | J198: ='Class Summary'!J60 -> 0.05572637504 | K198: ='Class Summary'!K60 -> 0.06154738424 | L198: ='Class Summary'!L60 -> 0.04307748096 | M198: ='Class Summary'!M60 -> 0.1975054231 | N198: ='Class Summary'!N60 -> 0.07887265888 | O198: ='Class Summary'!O60 -> 0.04174468285 | P198: ='Class Summary'!P60 -> 0.05577984465
A199: =A197+1 -> 56
A200: 57 | C200: Return On Rate Base | D200: =ActualROR -> 0.06924334573 | E200: =$D$58*E196 -> 65782338.89 | F200: =$D$58*F196 -> 18658268.4 | G200: 17778416.29 | H200: =$D$58*H196 -> 6155915.498 | I200: 272546.371 | J200: 13754921.82 | K200: 741191.6721 | L200: 18945.02526 | M200: 57235.35114 | N200: 3919249.48 | O200: =$D$58*O196 -> 1697106.912 | P200: =$D$58*P196 -> 2728542.077 | Q200: =ROUND(SUM(F200:P200)-E200,0) -> 0
A201: 58 | C201: Total Operating Expenses | E201: =E167 -> 645730629 | F201: =F167 -> 187484710.1 | G201: 177135282.2 | H201: =H167 -> 59930286.42 | I201: 2603987.022 | J201: 130470055.9 | K201: 7066228.084 | L201: 177144.2381 | M201: 587584.4512 | N201: 39505735.09 | O201: =O167 -> 15885327.51 | P201: =P167 -> 24884288.03 | Q201: =ROUND(SUM(F201:P201)-E201,0) -> 0
A202: 59 | C202: Revenue Credits | E202: =SUM(F202:P202) -> -60168545.6 | F202: -18064287.86 | G202: -16347211.66 | H202: -5511430.666 | I202: -213621.1938 | J202: -11949630.28 | K202: -643863.1113 | L202: -16280.62834 | M202: -46100.2294 | N202: -3732284.962 | O202: -1466175.368 | P202: -2177659.63 | Q202: =ROUND(SUM(F202:P202)-E202,0) -> 0
A203: 60
A204: 61 | C204: Total Revenue Requirements | E204: =E200+E201+E202 -> 651344422.3 | F204: =F200+F201+F202 -> 188078690.6 | G204: 178566486.8 | H204: 60574771.25 | I204: 2662912.199 | J204: 132275347.4 | K204: 7163556.645 | L204: 179808.635 | M204: 598719.573 | N204: 39692699.61 | O204: =O200+O201+O202 -> 16116259.06 | P204: =P200+P201+P202 -> 25435170.48 | Q204: =ROUND(SUM(F204:P204)-E204,0) -> 0
A205: 62 | Q205: =ROUND(SUM(F205:P205)-E205,0) -> 0
A206: 63
A207: 64 | C207: Return On Rate Base @ Target ROR | D207: =TargetROR -> 0.07780031876 | E207: =$D207*E196 -> 73911606.68 | F207: =$D207*F196 -> 20964024.97 | G207: 19975442.26 | H207: =$D207*H196 -> 6916652.9 | I207: 306227.1806 | J207: 15454731.29 | K207: 832786.8584 | L207: 21286.21875 | M207: 64308.39695 | N207: 4403583.559 | O207: =$D207*O196 -> 1906832.452 | P207: =$D207*P196 -> 3065730.593 | Q207: =ROUND(SUM(F207:P207)-E207,0) -> 0
A208: 65 | C208: Total Operating Expenses Adjusted for Taxes | E208: =SUM(F208:P208) -> 651078284.2 | F208: =F201+((F207-(F198*F196))*(1/NetToGross))-(F207-(F198*F196)) -> 190144392.3 | G208: 175788688 | H208: 60277984.2 | I208: 2502562.733 | J208: 133166628.3 | K208: 7173216.399 | L208: 182986.5458 | M208: 526735.7867 | N208: 39468409.26 | O208: 16428773.51 | P208: 25417907.11 | Q208: =ROUND(SUM(F208:P208)-E208,0) -> 0
A209: 66 | C209: Revenue Credits | E209: =E202 -> -60168545.6 | F209: =F202 -> -18064287.86 | G209: -16347211.66 | H209: =H202 -> -5511430.666 | I209: -213621.1938 | J209: -11949630.28 | K209: -643863.1113 | L209: -16280.62834 | M209: -46100.2294 | N209: -3732284.962 | O209: =O202 -> -1466175.368 | P209: =P202 -> -2177659.63 | Q209: =ROUND(SUM(F209:P209)-E209,0) -> 0
... 2 more rows

Sheet Transmission Summary
C1: Transmission Summary
C2: =Inputs!$C$4 -> Rocky Mountain Power
C3: Cost Of Service By Rate Schedule - Transmission Function
C4: =Inputs!$C$5 -> State of Utah
C5: =Inputs!$C$7 -> 2010 Protocol (Non Wgt)
C6: =Inputs!$C$6 -> 12 Months Ended June 2013
C9: A | D9: B | E9: C | F9: D | G9: E | H9: F | I9: G | J9: H | K9: I | L9: J | M9: K | N9: L | O9: M | P9: N
E10: ='Hot Sheet'!$H$10 -> Utah | G10: ='Hot Sheet'!$J$10 -> General | H10: ='Hot Sheet'!$K$10 -> General | I10: ='Hot Sheet'!$L$10 -> Street & Area | J10: ='Hot Sheet'!$M$10 -> General | L10: ='Hot Sheet'!$O$10 -> Traffic | M10: ='Hot Sheet'!$P$10 -> Outdoor | N10: ='Hot Sheet'!$Q$10 -> General | Q10: Chk Total
E11: ='Hot Sheet'!$H$11 -> Jurisdiction | F11: ='Hot Sheet'!$I$11 -> Residential | G11: ='Hot Sheet'!$J$11 -> Large Dist. | H11: ='Hot Sheet'!$K$11 -> +1 MW | I11: ='Hot Sheet'!$L$11 -> Lighting | J11: ='Hot Sheet'!$M$11 -> Trans | K11: ='Hot Sheet'!$N$11 -> Irrigation | L11: ='Hot Sheet'!$O$11 -> Signals | M11: ='Hot Sheet'!$P$11 -> Lighting | N11: ='Hot Sheet'!$Q$11 -> Small Dist. | O11: ='Hot Sheet'!R$11 -> Industrial | P11: ='Hot Sheet'!S$11 -> Industrial
C12: DESCRIPTION | E12: ='Hot Sheet'!$H$12 -> Normalized | F12: ='Hot Sheet'!$I$12 -> Sch 1 | G12: ='Hot Sheet'!$J$12 -> Sch 6 | H12: ='Hot Sheet'!$K$12 -> Sch 8 | I12: ='Hot Sheet'!$L$12 -> Sch. 7,11,12 | J12: ='Hot Sheet'!$M$12 -> Sch 9 | K12: ='Hot Sheet'!$N$12 -> Sch 10 | L12: ='Hot Sheet'!$O$12 -> Sch 15 | M12: ='Hot Sheet'!$P$12 -> Sch 15 | N12: ='Hot Sheet'!$Q$12 -> Sch 23 | O12: ='Hot Sheet'!R$12 -> Cust 1 | P12: ='Hot Sheet'!S$12 -> Cust 2 | Q12: =ROUND(SUM(Q15:Q69),0) -> 0
A14: 14 | C14: Operating Expenses
A15: =A14+1 -> 15 | C15: Operation & Maintenance Expenses | E15: ='Function Summary'!$G15 -> 104093223.8 | F15: =Transmission!$I$17 -> 35932972.26 | G15: =Transmission!J17 -> 27919767.42 | H15: =Transmission!K17 -> 8969415.796 | I15: =Transmission!L17 -> 220359.658 | J15: =Transmission!M17 -> 18323832.27 | K15: =Transmission!N17 -> 980831.5396 | L15: =Transmission!O17 -> 24901.43127 | M15: =Transmission!P17 -> 45753.72153 | N15: =Transmission!Q17 -> 6995723.816 | O15: =Transmission!R17 -> 2233253.75 | P15: =Transmission!S17 -> 2446412.15 | Q15: =ROUND(SUM(F15:P15)-E15,0) -> 0
A16: =A15+1 -> 16 | C16: Depreciation Expense | E16: ='Function Summary'!$G16 -> 43151912.05 | F16: =Transmission!$I$18 -> 14837888.07 | G16: =Transmission!J18 -> 11560160.53 | H16: =Transmission!K18 -> 3706140.613 | I16: =Transmission!L18 -> 81395.53889 | J16: =Transmission!M18 -> 7722754.311 | K16: =Transmission!N18 -> 400426.04 | L16: =Transmission!O18 -> 10042.90707 | M16: =Transmission!P18 -> 18216.38676 | N16: =Transmission!Q18 -> 2893006.432 | O16: =Transmission!R18 -> 930262.6543 | P16: =Transmission!S18 -> 991618.576 | Q16: 0
A17: 17 | C17: Amortization Expense | E17: ='Function Summary'!$G17 -> 4032293.675 | F17: =Transmission!$I$19 -> 1386537.737 | G17: =Transmission!J19 -> 1080247.993 | H17: =Transmission!K19 -> 346323.1284 | I17: =Transmission!L19 -> 7606.068148 | J17: =Transmission!M19 -> 721591.4219 | K17: =Transmission!N19 -> 37418.11589 | L17: =Transmission!O19 -> 938.4670911 | M17: =Transmission!P19 -> 1702.244115 | N17: =Transmission!Q19 -> 270339.1866 | O17: =Transmission!R19 -> 86926.76099 | P17: =Transmission!S19 -> 92662.55195 | Q17: 0
A18: 18 | C18: Taxes Other Than Income | E18: ='Function Summary'!$G18 -> 12820655.02 | F18: =Transmission!$I$20 -> 4404932.773 | G18: =Transmission!J20 -> 3450267.854 | H18: =Transmission!K20 -> 1105921.938 | I18: =Transmission!L20 -> 24276.41293 | J18: =Transmission!M20 -> 2293990.889 | K18: =Transmission!N20 -> 119189.0288 | L18: =Transmission!O20 -> 2807.1223 | M18: =Transmission!P20 -> 4957.88836 | N18: =Transmission!Q20 -> 841090.6742 | O18: =Transmission!R20 -> 277547.7699 | P18: =Transmission!S20 -> 295672.6708 | Q18: 0
A19: 19 | C19: Income Taxes - Federal | E19: ='Function Summary'!$G19 -> 10571629.42 | F19: =Transmission!$I$21 -> 1988344.579 | G19: =Transmission!J21 -> 6047306.847 | H19: =Transmission!K21 -> 1074369.827 | I19: =Transmission!L21 -> 84997.17618 | J19: =Transmission!M21 -> 314185.7326 | K19: =Transmission!N21 -> 53308.92154 | L19: =Transmission!O21 -> -1890.934102 | M19: =Transmission!P21 -> 36478.55299 | N19: =Transmission!Q21 -> 1093118.773 | O19: =Transmission!R21 -> -162626.4559 | P19: =Transmission!S21 -> 44036.40038 | Q19: 0
A20: 20 | C20: Income Taxes - State | E20: ='Function Summary'!$G20 -> 1436508.861 | F20: =Transmission!$I$22 -> 270183.0052 | G20: =Transmission!J22 -> 821728.565 | H20: =Transmission!K22 -> 145989.016 | I20: =Transmission!L22 -> 11549.70458 | J20: =Transmission!M22 -> 42692.62297 | K20: =Transmission!N22 -> 7243.797067 | L20: =Transmission!O22 -> -256.9465392 | M20: =Transmission!P22 -> 4956.829505 | N20: =Transmission!Q22 -> 148536.6864 | O20: =Transmission!R22 -> -22098.23441 | P20: =Transmission!S22 -> 5983.815442 | Q20: 0
A21: 21 | C21: Income Taxes Deferred | E21: ='Function Summary'!$G21 -> 21660443.82 | F21: =Transmission!$I$23 -> 7442115.765 | G21: =Transmission!J23 -> 5829213.32 | H21: =Transmission!K23 -> 1868450.556 | I21: =Transmission!L23 -> 41014.8996 | J21: =Transmission!M23 -> 3875688.153 | K21: =Transmission!N23 -> 201369.373 | L21: =Transmission!O23 -> 4742.621557 | M21: =Transmission!P23 -> 8376.331951 | N21: =Transmission!Q23 -> 1421019.228 | O21: =Transmission!R23 -> 468915.8133 | P21: =Transmission!S23 -> 499537.7588 | Q21: 0
A22: 22 | C22: Investment Tax Credit Adj | E22: ='Function Summary'!$G22 -> -336632.6961 | F22: =Transmission!$I$24 -> -115660.58 | G22: =Transmission!J24 -> -90593.88683 | H22: =Transmission!K24 -> -29038.25764 | I22: =Transmission!L24 -> -637.4272081 | J22: =Transmission!M24 -> -60233.45426 | K22: =Transmission!N24 -> -3129.553369 | L22: =Transmission!O24 -> -73.70677602 | M22: =Transmission!P24 -> -130.1795675 | N22: =Transmission!Q24 -> -22084.56751 | O22: =Transmission!R24 -> -7287.588186 | P22: =Transmission!S24 -> -7763.494781 | Q22: 0
A23: 23 | C23: Misc Revenues & Expense | E23: ='Function Summary'!$G23 -> 675.6518015 | F23: =Transmission!$I$25 -> 233.4887917 | G23: =Transmission!J25 -> 181.9105186 | H23: =Transmission!K25 -> 58.31977502 | I23: =Transmission!L25 -> 1.280839021 | J23: =Transmission!M25 -> 118.2529923 | K23: =Transmission!N25 -> 6.301098367 | L23: =Transmission!O25 -> 0.1580350403 | M23: =Transmission!P25 -> 0.2866527982 | N23: =Transmission!Q25 -> 45.52430732 | O23: =Transmission!R25 -> 14.52469571 | P23: =Transmission!S25 -> 15.60409555 | Q23: 0
A24: 24
A25: 25 | C25: Total Operating Expenses | E25: =SUM(E15:E23) -> 197430709.6 | F25: =SUM(F15:F23) -> 66147547.09 | G25: 56618280.55 | H25: 17187630.94 | I25: 470563.312 | J25: 33234620.2 | K25: 1796663.564 | L25: 41211.11991 | M25: 120312.0623 | N25: 13640795.75 | O25: =SUM(O15:O23) -> 3804908.994 | P25: =SUM(P15:P23) -> 4368176.033 | Q25: =ROUND(SUM(F25:P25)-E25,0) -> 0
A26: 26
A27: 27
A28: 28 | C28: Rate Base :
A29: 29 | C29: Electric Plant In Service | E29: ='Function Summary'!$G29 -> 2232974460 | F29: =Transmission!$I$33 -> 767813905.4 | G29: =Transmission!J33 -> 598201843.9 | H29: =Transmission!K33 -> 191781086.7 | I29: =Transmission!L33 -> 4211962.398 | J29: =Transmission!M33 -> 399627327.7 | K29: =Transmission!N33 -> 20720784.54 | L29: =Transmission!O33 -> 519688.7634 | M29: =Transmission!P33 -> 942640.5561 | N29: =Transmission!Q33 -> 149703957.7 | O29: =Transmission!R33 -> 48138128.56 | P29: =Transmission!S33 -> 51313133.52 | Q29: =ROUND(SUM(F29:P29)-E29,0) -> 0
A30: 30 | C30: Plant Held For Future Use | E30: ='Function Summary'!$G30 -> 433300.8809 | F30: =Transmission!$I$34 -> 149738.2215 | G30: =Transmission!J34 -> 116660.6643 | H30: =Transmission!K34 -> 37400.93615 | I30: =Transmission!L34 -> 821.4122644 | J30: =Transmission!M34 -> 75836.58568 | K30: =Transmission!N34 -> 4040.944562 | L30: =Transmission!O34 -> 101.3491298 | M30: =Transmission!P34 -> 183.8327223 | N30: =Transmission!Q34 -> 29195.10082 | O30: =Transmission!R34 -> 9314.803025 | P30: =Transmission!S34 -> 10007.03074 | Q30: 0
A31: =A30+1 -> 31 | C31: Electric Plant Acquisition Adj | E31: ='Function Summary'!$G31 -> 0 | F31: =Transmission!$I$35 -> 0 | G31: =Transmission!J35 -> 0 | H31: =Transmission!K35 -> 0 | I31: =Transmission!L35 -> 0 | J31: =Transmission!M35 -> 0 | K31: =Transmission!N35 -> 0 | L31: =Transmission!O35 -> 0 | M31: =Transmission!P35 -> 0 | N31: =Transmission!Q35 -> 0 | O31: =Transmission!R35 -> 0 | P31: =Transmission!S35 -> 0 | Q31: 0
A32: 32 | C32: Nuclear Fuel | E32: ='Function Summary'!$G32 -> 0 | F32: =Transmission!$I$36 -> 0 | G32: =Transmission!J36 -> 0 | H32: =Transmission!K36 -> 0 | I32: =Transmission!L36 -> 0 | J32: =Transmission!M36 -> 0 | K32: =Transmission!N36 -> 0 | L32: =Transmission!O36 -> 0 | M32: =Transmission!P36 -> 0 | N32: =Transmission!Q36 -> 0 | O32: =Transmission!R36 -> 0 | P32: =Transmission!S36 -> 0 | Q32: 0
A33: 33 | C33: Prepayments | E33: ='Function Summary'!$G33 -> 2289816.777 | F33: =Transmission!$I$37 -> 787358.97 | G33: =Transmission!J37 -> 613429.3536 | H33: =Transmission!K37 -> 196662.9646 | I33: =Transmission!L37 -> 4319.179885 | J33: =Transmission!M37 -> 409800.8998 | K33: =Transmission!N37 -> 21248.24187 | L33: =Transmission!O37 -> 532.9176857 | M33: =Transmission!P37 -> 966.6359155 | N33: =Transmission!Q37 -> 153514.7424 | O33: =Transmission!R37 -> 49363.53759 | P33: =Transmission!S37 -> 52619.3335 | Q33: 0
A34: 34 | C34: Fuel Stock | E34: ='Function Summary'!$G34 -> 0 | F34: =Transmission!$I$38 -> 0 | G34: =Transmission!J38 -> 0 | H34: =Transmission!K38 -> 0 | I34: =Transmission!L38 -> 0 | J34: =Transmission!M38 -> 0 | K34: =Transmission!N38 -> 0 | L34: =Transmission!O38 -> 0 | M34: =Transmission!P38 -> 0 | N34: =Transmission!Q38 -> 0 | O34: =Transmission!R38 -> 0 | P34: =Transmission!S38 -> 0 | Q34: 0
A35: 35 | C35: Materials & Supplies | E35: ='Function Summary'!$G35 -> 583210.3439 | F35: =Transmission!$I$39 -> 200538.2703 | G35: =Transmission!J39 -> 156238.8519 | H35: =Transmission!K39 -> 50089.5427 | I35: =Transmission!L39 -> 1100.08382 | J35: =Transmission!M39 -> 104375.2173 | K35: =Transmission!N39 -> 5411.871628 | L35: =Transmission!O39 -> 135.7327407 | M35: =Transmission!P39 -> 246.1996394 | N35: =Transmission!Q39 -> 39099.80337 | O35: =Transmission!R39 -> 12572.76391 | P35: =Transmission!S39 -> 13402.00661 | Q35: 0
A36: 36 | C36: Misc Deferred Debits | E36: ='Function Summary'!$G36 -> 7048192.634 | F36: =Transmission!$I$40 -> 2423537.878 | G36: =Transmission!J40 -> 1888172.143 | H36: =Transmission!K40 -> 605340.3367 | I36: =Transmission!L40 -> 13294.69334 | J36: =Transmission!M40 -> 1261391.615 | K36: =Transmission!N40 -> 65403.35599 | L36: =Transmission!O40 -> 1640.352427 | M36: =Transmission!P40 -> 2975.363011 | N36: =Transmission!Q40 -> 472527.5348 | O36: =Transmission!R40 -> 151943.9134 | P36: =Transmission!S40 -> 161965.4474 | Q36: 0
A37: 37 | C37: Cash Working Capital | E37: ='Function Summary'!$G37 -> 4598108.861 | F37: =Transmission!$I$41 -> 1555988.116 | G37: =Transmission!J41 -> 1293313.222 | H37: =Transmission!K41 -> 399270.0012 | I37: =Transmission!L41 -> 10853.32566 | J37: =Transmission!M41 -> 781216.4372 | K37: =Transmission!N41 -> 42437.29911 | L37: =Transmission!O41 -> 1013.381814 | M37: =Transmission!P41 -> 2602.887639 | N37: =Transmission!Q41 -> 315812.4616 | O37: =Transmission!R41 -> 91436.50067 | P37: =Transmission!S41 -> 104165.2276 | Q37: 0
A38: 38 | C38: Weatherization Loans | E38: ='Function Summary'!$G38 -> 0 | F38: =Transmission!$I$42 -> 0 | G38: =Transmission!J42 -> 0 | H38: =Transmission!K42 -> 0 | I38: =Transmission!L42 -> 0 | J38: =Transmission!M42 -> 0 | K38: =Transmission!N42 -> 0 | L38: =Transmission!O42 -> 0 | M38: =Transmission!P42 -> 0 | N38: =Transmission!Q42 -> 0 | O38: =Transmission!R42 -> 0 | P38: =Transmission!S42 -> 0 | Q38: 0
A39: 39 | C39: Miscellaneous Rate Base | E39: ='Function Summary'!$G39 -> 0 | F39: =Transmission!$I$43 -> 0 | G39: =Transmission!J43 -> 0 | H39: =Transmission!K43 -> 0 | I39: =Transmission!L43 -> 0 | J39: =Transmission!M43 -> 0 | K39: =Transmission!N43 -> 0 | L39: =Transmission!O43 -> 0 | M39: =Transmission!P43 -> 0 | N39: =Transmission!Q43 -> 0 | O39: =Transmission!R43 -> 0 | P39: =Transmission!S43 -> 0 | Q39: 0
A40: 40
A41: 41 | C41: Total Rate Base Additions | E41: =SUM(E29:E39) -> 2247927089 | F41: 772931066.8 | G41: 602269658.1 | H41: 193069850.5 | I41: 4242351.093 | J41: 402259948.5 | K41: 20859326.25 | L41: 523112.4972 | M41: 949615.475 | N41: 150714107.3 | O41: =SUM(O29:O39) -> 48452760.08 | P41: =SUM(P29:P39) -> 51655292.57 | Q41: =ROUND(SUM(F41:P41)-E41,0) -> 0
A42: 42
A43: 43 | C43: Rate Base Deductions :
A44: 44 | C44: Accum Provision For Depreciation | E44: ='Function Summary'!$G44 -> -596810758.8 | F44: =Transmission!$I$48 -> -205214805.4 | G44: =Transmission!J48 -> -159882328.4 | H44: =Transmission!K48 -> -51257626.52 | I44: =Transmission!L48 -> -1125737.679 | J44: =Transmission!M48 -> -106809238.4 | K44: =Transmission!N48 -> -5538076.007 | L44: =Transmission!O48 -> -138898.0165 | M44: =Transmission!P48 -> -251940.9937 | N44: =Transmission!Q48 -> -40011607.41 | O44: =Transmission!R48 -> -12865959.68 | P44: =Transmission!S48 -> -13714540.25 | Q44: =ROUND(SUM(F44:P44)-E44,0) -> 0
A45: 45 | C45: Accum Provision For Amortization | E45: ='Function Summary'!$G45 -> -32562371.88 | F45: =Transmission!$I$49 -> -11196652.19 | G45: =Transmission!J49 -> -8723283 | H45: =Transmission!K49 -> -2796649.176 | I45: =Transmission!L49 -> -61420.97414 | J45: =Transmission!M49 -> -5827573.04 | K45: =Transmission!N49 -> -302161.0003 | L45: =Transmission!O49 -> -7578.365399 | M45: =Transmission!P49 -> -13746.06318 | N45: =Transmission!Q49 -> -2183059.117 | O45: =Transmission!R49 -> -701974.7859 | P45: =Transmission!S49 -> -748274.1651 | Q45: 0
A46: 46 | C46: Accum Deferred Income Taxes | E46: ='Function Summary'!$G46 -> -361049413.4 | F46: =Transmission!$I$50 -> -124163023.3 | G46: =Transmission!J50 -> -96621925.25 | H46: =Transmission!K50 -> -30982701.64 | I46: =Transmission!L50 -> -680081.6488 | J46: =Transmission!M50 -> -64662554.76 | K46: =Transmission!N50 -> -3363971.202 | L46: =Transmission!O50 -> -84196.05201 | M46: =Transmission!P50 -> -152471.4581 | N46: =Transmission!Q50 -> -24197932.55 | O46: =Transmission!R50 -> -7800877.301 | P46: =Transmission!S50 -> -8339678.254 | Q46: 0
A47: =A46+1 -> 47 | C47: Unamortized ITC | E47: ='Function Summary'!$G47 -> -24162.38475 | F47: =Transmission!$I$51 -> -8309.310528 | G47: =Transmission!J51 -> -6466.251403 | H47: =Transmission!K51 -> -2073.459125 | I47: =Transmission!L51 -> -45.51339194 | J47: =Transmission!M51 -> -4327.363979 | K47: =Transmission!N51 -> -225.1183664 | L47: =Transmission!O51 -> -5.634530803 | M47: =Transmission!P51 -> -10.20376365 | N47: =Transmission!Q51 -> -1619.394083 | O47: =Transmission!R51 -> -522.0458036 | P47: =Transmission!S51 -> -558.0897727 | Q47: 0
A48: 48 | C48: Customer Advance For Construction | E48: ='Function Summary'!$G48 -> -6407458.467 | F48: =Transmission!$I$52 -> -2501295.359 | G48: =Transmission!J52 -> -353722.3543 | H48: =Transmission!K52 -> -113329.8177 | I48: =Transmission!L52 -> -6133.729578 | J48: =Transmission!M52 -> -1104899.491 | K48: =Transmission!N52 -> -24159.0075 | L48: =Transmission!O52 -> -18450.93482 | M48: =Transmission!P52 -> -47496.58786 | N48: =Transmission!Q52 -> -2237971.185 | O48: =Transmission!R52 -> 0 | P48: =Transmission!S52 -> 0 | Q48: 0
A49: 49 | C49: Customer Service Deposits | E49: ='Function Summary'!$G49 -> 0 | F49: =Transmission!$I$53 -> 0 | G49: =Transmission!J53 -> 0 | H49: =Transmission!K53 -> 0 | I49: =Transmission!L53 -> 0 | J49: =Transmission!M53 -> 0 | K49: =Transmission!N53 -> 0 | L49: =Transmission!O53 -> 0 | M49: =Transmission!P53 -> 0 | N49: =Transmission!Q53 -> 0 | O49: =Transmission!R53 -> 0 | P49: =Transmission!S53 -> 0 | Q49: 0
A50: 50 | C50: Misc Rate Base Deductions | E50: ='Function Summary'!$G50 -> -4098071.797 | F50: =Transmission!$I$54 -> -1410182.546 | G50: =Transmission!J54 -> -1098669.604 | H50: =Transmission!K54 -> -352229.0222 | I50: =Transmission!L54 -> -7735.775318 | J50: =Transmission!M54 -> -731012.1213 | K50: =Transmission!N54 -> -38056.21192 | L50: =Transmission!O54 -> -954.4708925 | M50: =Transmission!P54 -> -1731.272708 | N50: =Transmission!Q54 -> -274949.3161 | O50: =Transmission!R54 -> -88308.71821 | P50: =Transmission!S54 -> -94242.73872 | Q50: 0
A51: 51
A52: 52 | C52: Total Rate Base Deductions | E52: =SUM(E44:E50) -> -1000952237 | F52: -344494268.1 | G52: -266686394.9 | H52: -85504609.63 | I52: -1881155.32 | J52: -179139605.1 | K52: -9266648.547 | L52: -250083.4741 | M52: -467396.5794 | N52: -68907138.97 | O52: =SUM(O44:O50) -> -21457642.53 | P52: =SUM(P44:P50) -> -22897293.5 | Q52: =ROUND(SUM(F52:P52)-E52,0) -> 0
A53: 53
A54: 54 | C54: Total Rate Base | E54: =E41+E52 -> 1246974853 | F54: =F41+F52 -> 428436798.7 | G54: 335583263.2 | H54: 107565240.9 | I54: 2361195.772 | J54: 223120343.4 | K54: 11592677.7 | L54: 273029.0231 | M54: 482218.8957 | N54: 81806968.34 | O54: =O41+O52 -> 26995117.55 | P54: =P41+P52 -> 28757999.07 | Q54: =ROUND(SUM(F54:P54)-E54,0) -> 0
A55: 55
A56: 56 | C56: Calculated Return On Rate Base | F56: ='Class Summary'!F60 -> 0.06174997321 | G56: ='Class Summary'!G60 -> 0.0863287592 | H56: ='Class Summary'!H60 -> 0.07144063913 | I56: ='Class Summary'!I60 -> 0.1197016225 | J56: ='Class Summary'!J60 -> 0.05572637504 | K56: ='Class Summary'!K60 -> 0.06154738424 | L56: ='Class Summary'!L60 -> 0.04307748096 | M56: ='Class Summary'!M60 -> 0.1975054231 | N56: ='Class Summary'!N60 -> 0.07887265888 | O56: ='Class Summary'!O60 -> 0.04174468285 | P56: ='Class Summary'!P60 -> 0.05577984465
A57: 57
A58: 58 | C58: Return On Rate Base | D58: =ActualROR -> 0.06924334573 | E58: =$D$58*E54 -> 86344710.83 | F58: =$D$58*F54 -> 29666397.37 | G58: 23236907.92 | H58: =$D$58*H54 -> 7448177.162 | I58: 163497.0952 | J58: 15449599.07 | K58: 802715.7902 | L58: 18905.44304 | M58: 33390.44971 | N58: 5664588.192 | O58: =$D$58*O54 -> 1869232.258 | P58: =$D$58*P54 -> 1991300.072 | Q58: =ROUND(SUM(F58:P58)-E58,0) -> 0
A59: 59 | C59: Total Operating Expenses | E59: =E25 -> 197430709.6 | F59: 66147547.09 | G59: 56618280.55 | H59: =H25 -> 17187630.94 | I59: 470563.312 | J59: 33234620.2 | K59: 1796663.564 | L59: 41211.11991 | M59: 120312.0623 | N59: 13640795.75 | O59: =O25 -> 3804908.994 | P59: =P25 -> 4368176.033 | Q59: =ROUND(SUM(F59:P59)-E59,0) -> 0
A60: 60 | C60: Revenue Credits | E60: ='Function Summary'!$G$59 -> -40081330.76 | F60: =Transmission!$I$99 -> -13480312.05 | G60: =Transmission!J99 -> -10882333.8 | H60: =Transmission!K99 -> -3499748.259 | I60: =Transmission!L99 -> -89764.40527 | J60: =Transmission!M99 -> -7164660.101 | K60: =Transmission!N99 -> -382482.5902 | L60: =Transmission!O99 -> -9492.074841 | M60: =Transmission!P99 -> -20094.57812 | N60: =Transmission!Q99 -> -2665589.057 | O60: =Transmission!R99 -> -872821.3635 | P60: =Transmission!S99 -> -1014032.475 | Q60: =ROUND(SUM(F60:P60)-E60,0) -> 0
A61: 61
A62: 62 | C62: Total Revenue Requirements | E62: =E58+E59+E60 -> 243694089.7 | F62: =F58+F59+F60 -> 82333632.41 | G62: 68972854.66 | H62: 21136059.84 | I62: 544296.0019 | J62: 41519559.17 | K62: 2216896.764 | L62: 50624.48811 | M62: 133607.9339 | N62: 16639794.89 | O62: =O58+O59+O60 -> 4801319.888 | P62: =P58+P59+P60 -> 5345443.63 | Q62: =ROUND(SUM(F62:P62)-E62,0) -> 0
A63: 63 | Q63: =ROUND(SUM(F63:P63)-E63,0) -> 0
A64: 64
A65: 65 | C65: Return On Rate Base @ Target ROR | D65: =TargetROR -> 0.07780031876 | E65: =$D65*E54 -> 97015041.02 | F65: =$D65*F54 -> 33332519.51 | G65: 26108484.85 | H65: =$D65*H54 -> 8368610.028 | I65: 183701.7837 | J65: 17358833.84 | K65: 901914.0207 | L65: 21241.74503 | M65: 37516.7838 | N65: 6364608.214 | O65: =$D65*O54 -> 2100228.751 | P65: =$D65*P54 -> 2237381.494 | Q65: =ROUND(SUM(F65:P65)-E65,0) -> 0
A66: 66 | C66: Total Operating Expenses Adjusted for Taxes | E66: =SUM(F66:P66) -> 204308432.9 | F66: =F59+((F65-(F56*F54))*(1/NetToGross))-(F65-(F56*F54)) -> 70376406.31 | G66: 54858242.78 | H66: 17608318.11 | I66: 409720.1736 | J66: 36263424.23 | K66: 1912532.661 | L66: 47041.22122 | M66: 84813.64681 | N66: 13586847.8 | O66: 4403472.807 | P66: 4757613.207 | Q66: =ROUND(SUM(F66:P66)-E66,0) -> 0
A67: 67 | C67: Revenue Credits | E67: =E60 -> -40081330.76 | F67: =F60 -> -13480312.05 | G67: -10882333.8 | H67: -3499748.259 | I67: -89764.40527 | J67: -7164660.101 | K67: -382482.5902 | L67: -9492.074841 | M67: -20094.57812 | N67: -2665589.057 | O67: =O60 -> -872821.3635 | P67: =P60 -> -1014032.475 | Q67: =ROUND(SUM(F67:P67)-E67,0) -> 0
A68: 68
A69: 69 | C69: Total Target Revenue Requirements | E69: =SUM(E65:E67) -> 261242143.2 | F69: =SUM(F65:F67) -> 90228613.76 | G69: 70084393.83 | H69: 22477179.88 | I69: 503657.5521 | J69: 46457597.96 | K69: 2431964.091 | L69: 58790.89141 | M69: 102235.8525 | N69: 17285866.96 | O69: =SUM(O65:O67) -> 5630880.194 | P69: =SUM(P65:P67) -> 5980962.227 | Q69: =ROUND(SUM(F69:P69)-E69,0) -> 0
C70: Transmission Demand Summary
C71: =Inputs!$C$4 -> Rocky Mountain Power
C72: ="Cost Of Service By Rate Schedule - "&C70 -> Cost Of Service By Rate Schedule - Transmission Demand Summary
C73: =Inputs!$C$5 -> State of Utah
C74: =Inputs!$C$7 -> 2010 Protocol (Non Wgt)
C75: =Inputs!$C$6 -> 12 Months Ended June 2013
C78: A | D78: B | E78: C | F78: D | G78: E | H78: F | I78: G | J78: H | K78: I | L78: J | M78: K | N78: L | O78: M | P78: N
E79: ='Hot Sheet'!$H$10 -> Utah | G79: ='Hot Sheet'!$J$10 -> General | H79: ='Hot Sheet'!$K$10 -> General | I79: ='Hot Sheet'!$L$10 -> Street & Area | J79: ='Hot Sheet'!$M$10 -> General | L79: ='Hot Sheet'!$O$10 -> Traffic | M79: ='Hot Sheet'!$P$10 -> Outdoor | N79: ='Hot Sheet'!$Q$10 -> General | Q79: Chk Total
E80: ='Hot Sheet'!$H$11 -> Jurisdiction | F80: ='Hot Sheet'!$I$11 -> Residential | G80: ='Hot Sheet'!$J$11 -> Large Dist. | H80: ='Hot Sheet'!$K$11 -> +1 MW | I80: ='Hot Sheet'!$L$11 -> Lighting | J80: ='Hot Sheet'!$M$11 -> Trans | K80: ='Hot Sheet'!$N$11 -> Irrigation | L80: ='Hot Sheet'!$O$11 -> Signals | M80: ='Hot Sheet'!$P$11 -> Lighting | N80: ='Hot Sheet'!$Q$11 -> Small Dist. | O80: ='Hot Sheet'!R$11 -> Industrial | P80: ='Hot Sheet'!S$11 -> Industrial
C81: DESCRIPTION | E81: ='Hot Sheet'!$H$12 -> Normalized | F81: ='Hot Sheet'!$I$12 -> Sch 1 | G81: ='Hot Sheet'!$J$12 -> Sch 6 | H81: ='Hot Sheet'!$K$12 -> Sch 8 | I81: ='Hot Sheet'!$L$12 -> Sch. 7,11,12 | J81: ='Hot Sheet'!$M$12 -> Sch 9 | K81: ='Hot Sheet'!$N$12 -> Sch 10 | L81: ='Hot Sheet'!$O$12 -> Sch 15 | M81: ='Hot Sheet'!$P$12 -> Sch 15 | N81: ='Hot Sheet'!$Q$12 -> Sch 23 | O81: ='Hot Sheet'!R$12 -> Cust 1 | P81: ='Hot Sheet'!S$12 -> Cust 2 | Q81: =ROUND(SUM(Q86:Q140),0) -> 0
C83: Operating Revenues | E83: =SUM(F83:P83) -> 209967926.4 | F83: 71765335.59 | G83: 63411245.02 | H83: 17995335.42 | I83: 348414.3087 | J83: 32151670.87 | K83: 1756132.758 | L83: 37005.97965 | M83: 93535.86311 | N83: 15395148.88 | O83: 3478596.742 | P83: 3535504.947
A84: 13
A85: =A84+1 -> 14 | C85: Operating Expenses
A86: =A85+1 -> 15 | C86: Operation & Maintenance Expenses | E86: =SUM(F86:P86) -> 75411514.52 | F86: 26929346.59 | G86: 20211000.29 | H86: 6392522.366 | I86: 127662.4735 | J86: 12782245.1 | K86: 682501.5526 | L86: 17266.49086 | M86: 26734.45005 | N86: 5181018.957 | O86: 1555088.491 | P86: 1506127.755 | Q86: =ROUND(SUM(F86:P86)-E86,0) -> 0
A87: 16 | C87: Depreciation Expense | E87: =SUM(F87:P87) -> 32363934.04 | F87: 11128416.05 | G87: 8670120.395 | H87: 2779605.46 | I87: 61046.65417 | J87: 5792065.733 | K87: 300319.53 | L87: 7532.180304 | M87: 13662.29007 | N87: 2169754.824 | O87: 697696.9907 | P87: 743713.932 | Q87: 0
A88: 17 | C88: Amortization Expense | E88: 3024220.256 | F88: 1040092.318 | G88: 810183.2415 | H88: 259720.2367 | I88: 5697.698365 | J88: 541089.3364 | K88: 28057.62586 | L88: 703.6845569 | M88: 1275.32528 | N88: 202778.2394 | O88: 65181.877 | P88: 69440.67292 | Q88: 0
A89: 18 | C89: Taxes Other Than Income | E89: 9615491.266 | F89: 3303699.579 | G89: 2587700.891 | H89: 829441.4535 | I89: 18207.3097 | J89: 1720493.167 | K89: 89391.7716 | L89: 2105.341725 | M89: 3718.41627 | N89: 630818.0056 | O89: 208160.8274 | P89: 221754.5031 | Q89: 0
A90: 19 | C90: Income Taxes - Federal | E90: 7989198.994 | F90: 2034665.135 | G90: 4521813.259 | H90: 725110.6611 | I90: 12552.40265 | J90: -14566.63807 | K90: 22922.51816 | L90: -1649.949865 | M90: 8828.671164 | N90: 920714.5516 | O90: -139023.8548 | P90: -102167.762 | Q90: 0
A91: 20 | C91: Income Taxes - State | E91: 1085599.456 | F91: 276477.1995 | G91: 614439.3223 | H91: 98530.49599 | I91: 1705.663046 | J91: -1979.364186 | K91: 3114.789514 | L91: -224.2007838 | M91: 1199.669782 | N91: 125109.8161 | O91: -18891.03292 | P91: -13882.90202 | Q91: 0
A92: 21 | C92: Income Taxes Deferred | E92: 16245332.87 | F92: 5581586.824 | G92: 4371909.99 | H92: 1401337.917 | I92: 30761.1747 | J92: 2906766.114 | K92: 151027.0297 | L92: 3556.966168 | M92: 6282.248963 | N92: 1065764.421 | O92: 351686.86 | P92: 374653.3191 | Q92: 0
A93: 22 | C93: Investment Tax Credit Adj | E93: -252474.5221 | F93: -86745.43498 | G93: -67945.41512 | H93: -21778.69323 | I93: -478.0704061 | J93: -45175.09069 | K93: -2347.165027 | L93: -55.28008202 | M93: -97.63467561 | N93: -16563.42563 | O93: -5465.691139 | P93: -5822.621086 | Q93: 0
A94: 23 | C94: Misc Revenues & Expense | E94: 506.7388511 | F94: 175.1165938 | G94: 136.432889 | H94: 43.73983126 | I94: 0.960629266 | J94: 88.68974423 | K94: 4.725823775 | L94: 0.1185262802 | M94: 0.2149895987 | N94: 34.14323049 | O94: 10.89352178 | P94: 11.70307166 | Q94: 0
A95: 24
A96: 25 | C96: Total Operating Expenses | E96: =SUM(E86:E94) -> 145483323.6 | F96: =SUM(F86:F94) -> 50207713.38 | G96: 41719358.41 | H96: 12464533.64 | I96: 257156.2663 | J96: 23681027.05 | K96: 1274992.378 | L96: 29235.35141 | M96: 61603.65189 | N96: 10279429.53 | O96: =SUM(O86:O94) -> 2714445.361 | P96: =SUM(P86:P94) -> 2793828.6 | Q96: =ROUND(SUM(F96:P96)-E96,0) -> 0
A97: 26
A98: 27
A99: 28 | C99: Rate Base :
A100: 29 | C100: Electric Plant In Service | E100: =SUM(F100:P100) -> 1674730845 | F100: 603636887.7 | G100: 448246793.3 | H100: 140586737.1 | I100: 2151937.472 | J100: 284403540.1 | K100: 14664590.9 | L100: 365407.3776 | M100: 507446.0943 | N100: 115782735.4 | O100: 34164731.98 | P100: 30220037.51 | Q100: =ROUND(SUM(F100:P100)-E100,0) -> 0
A101: 30 | C101: Plant Held For Future Use | E101: 324975.6607 | F101: 118203.642 | G101: 87409.55962 | H101: 27360.568 | I101: 402.155824 | J101: 53623.97667 | K101: 2844.638477 | L101: 70.83772981 | M101: 95.49161213 | N101: 22640.77046 | O101: 6574.269586 | P101: 5749.750665 | Q101: 0
A102: 31 | C102: Electric Plant Acquisition Adj | E102: 0 | F102: 0 | G102: 0 | H102: 0 | I102: 0 | J102: 0 | K102: 0 | L102: 0 | M102: 0 | N102: 0 | O102: 0 | P102: 0 | Q102: 0
A103: 32 | C103: Nuclear Fuel | E103: 0 | F103: 0 | G103: 0 | H103: 0 | I103: 0 | J103: 0 | K103: 0 | L103: 0 | M103: 0 | N103: 0 | O103: 0 | P103: 0 | Q103: 0
A104: 33 | C104: Prepayments | E104: 1717362.583 | F104: 590519.2275 | G104: 460072.0152 | H104: 147497.2235 | I104: 3239.384914 | J104: 307350.6748 | K104: 15936.1814 | L104: 399.6882643 | M104: 724.9769366 | N104: 115136.0568 | O104: 37022.65319 | P104: 39464.50013 | Q104: 0
A105: 34 | C105: Fuel Stock | E105: 0 | F105: 0 | G105: 0 | H105: 0 | I105: 0 | J105: 0 | K105: 0 | L105: 0 | M105: 0 | N105: 0 | O105: 0 | P105: 0 | Q105: 0
A106: 35 | C106: Materials & Supplies | E106: 437407.7579 | F106: 150403.7027 | G106: 117179.1389 | H106: 37567.15703 | I106: 825.0628646 | J106: 78281.41298 | K106: 4058.903721 | L106: 101.7995555 | M106: 184.6497295 | N106: 29324.85253 | O106: 9429.572933 | P106: 10051.50496 | Q106: 0
A107: 36 | C107: Misc Deferred Debits | E107: 5286144.475 | F107: 1817653.409 | G107: 1416129.108 | H107: 454005.2525 | I107: 9971.020003 | J107: 946043.7115 | K107: 49052.517 | L107: 1230.26432 | M107: 2231.522258 | N107: 354395.6511 | O107: 113957.935 | P107: 121474.0856 | Q107: 0
A108: 37 | C108: Cash Working Capital | E108: 3406114.884 | F108: 1176778.629 | G108: 957778.8706 | H108: 292464.0885 | I108: 6569.705558 | J108: 565499.1961 | K108: 30639.11011 | L108: 732.6049475 | M108: 1482.698822 | N108: 237659.7276 | O108: 66294.35491 | P108: 70215.89737 | Q108: 0
A109: 38 | C109: Weatherization Loans | E109: 0 | F109: 0 | G109: 0 | H109: 0 | I109: 0 | J109: 0 | K109: 0 | L109: 0 | M109: 0 | N109: 0 | O109: 0 | P109: 0 | Q109: 0
A110: 39 | C110: Miscellaneous Rate Base | E110: 0 | F110: 0 | G110: 0 | H110: 0 | I110: 0 | J110: 0 | K110: 0 | L110: 0 | M110: 0 | N110: 0 | O110: 0 | P110: 0 | Q110: 0
A111: 40
A112: 41 | C112: Total Rate Base Additions | E112: =SUM(E100:E110) -> 1685902850 | F112: =SUM(F100:F110) -> 607490446.3 | G112: 451285362 | H112: 141545631.3 | I112: 2172944.801 | J112: 286354339 | K112: 14767122.25 | L112: 367942.5724 | M112: 512165.4336 | N112: 116541892.4 | O112: =SUM(O100:O110) -> 34398010.76 | P112: =SUM(P100:P110) -> 30466993.25 | Q112: =ROUND(SUM(F112:P112)-E112,0) -> 0
A113: 42
A114: 43 | C114: Rate Base Deductions :
A115: 44 | C115: Accum Provision For Depreciation | E115: =SUM(F115:P115) -> -447608069.1 | F115: -153911104.1 | G115: -119911746.3 | H115: -38443219.89 | I115: -844303.2595 | J115: -80106928.77 | K115: -4153557.005 | L115: -104173.5123 | M115: -188955.7453 | N115: -30008705.56 | O115: -9649469.76 | P115: -10285905.19 | Q115: =ROUND(SUM(F115:P115)-E115,0) -> 0
A116: 45 | C116: Accum Provision For Amortization | E116: -24421778.91 | F116: -8397489.146 | G116: -6542462.25 | H116: -2097486.882 | I116: -46065.7306 | J116: -4370679.78 | K116: -226620.7502 | L116: -5683.774049 | M116: -10309.54738 | N116: -1637294.338 | O116: -526481.0894 | P116: -561205.6238 | Q116: 0
A117: 46 | C117: Accum Deferred Income Taxes | E117: -270787060.1 | F117: -93122267.47 | G117: -72466443.93 | H117: -23237026.23 | I117: -510061.2366 | J117: -48496916.07 | K117: -2522978.401 | L117: -63147.03901 | M117: -114353.5936 | N117: -18148449.41 | O117: -5850657.976 | P117: -6254758.691 | Q117: 0
A118: 47 | C118: Unamortized ITC | E118: -18121.78856 | F118: -6231.982896 | G118: -4849.688553 | H118: -1555.094344 | I118: -34.13504395 | J118: -3245.522984 | K118: -168.8387748 | L118: -4.225898102 | M118: -7.652822735 | N118: -1214.545562 | O118: -391.5343527 | P118: -418.5673295 | Q118: 0
A119: 48 | C119: Customer Advance For Construction | E119: -4805593.85 | F119: -1875971.519 | G119: -265291.7658 | H119: -84997.36325 | I119: -4600.297183 | J119: -828674.6183 | K119: -18119.25563 | L119: -13838.20111 | M119: -35622.4409 | N119: -1678478.389 | O119: 0 | P119: 0 | Q119: 0
A120: 49 | C120: Customer Service Deposits | E120: 0 | F120: 0 | G120: 0 | H120: 0 | I120: 0 | J120: 0 | K120: 0 | L120: 0 | M120: 0 | N120: 0 | O120: 0 | P120: 0 | Q120: 0
A121: 50 | C121: Misc Rate Base Deductions | E121: -3073553.848 | F121: -1065939.678 | G121: -823881.2654 | H121: -263200.5722 | I121: -5500.814953 | J121: -543680.6403 | K121: -28280.31113 | L121: -708.5718679 | M121: -1238.810953 | N121: -207259.6106 | O121: -65651.98516 | P121: -68211.58685 | Q121: 0
A122: 51
A123: 52 | C123: Total Rate Base Deductions | E123: =SUM(E115:E121) -> -750714177.5 | F123: =SUM(F115:F121) -> -258379003.9 | G123: -200014675.2 | H123: -64127486.03 | I123: -1410565.474 | J123: -134350125.4 | K123: -6949724.562 | L123: -187555.3243 | M123: -350487.7909 | N123: -51681401.85 | O123: =SUM(O115:O121) -> -16092652.34 | P123: =SUM(P115:P121) -> -17170499.66 | Q123: =ROUND(SUM(F123:P123)-E123,0) -> 0
A124: 53
A125: 54 | C125: Total Rate Base | E125: =E112+E123 -> 935188672.6 | F125: =F112+F123 -> 349111442.4 | G125: 251270686.7 | H125: 77418145.32 | I125: 762379.3272 | J125: 152004213.6 | K125: 7817397.689 | L125: 180387.2481 | M125: 161677.6427 | N125: 64860490.59 | O125: =O112+O123 -> 18305358.42 | P125: =P112+P123 -> 13296493.59 | Q125: =ROUND(SUM(F125:P125)-E125,0) -> 0
A126: 55
C127: Calculated Return On Rate Base | F127: ='Class Summary'!F60 -> 0.06174997321 | G127: ='Class Summary'!G60 -> 0.0863287592 | H127: ='Class Summary'!H60 -> 0.07144063913 | I127: ='Class Summary'!I60 -> 0.1197016225 | J127: ='Class Summary'!J60 -> 0.05572637504 | K127: ='Class Summary'!K60 -> 0.06154738424 | L127: ='Class Summary'!L60 -> 0.04307748096 | M127: ='Class Summary'!M60 -> 0.1975054231 | N127: ='Class Summary'!N60 -> 0.07887265888 | O127: ='Class Summary'!O60 -> 0.04174468285 | P127: ='Class Summary'!P60 -> 0.05577984465
A128: =A126+1 -> 56
A129: 57 | C129: Return On Rate Base | D129: =ActualROR -> 0.06924334573 | E129: =$D$58*E125 -> 64755592.58 | F129: =$D$58*F125 -> 24173644.31 | G129: 17398823.03 | H129: =$D$58*H125 -> 5360691.402 | I129: 52789.69533 | J129: 10525280.32 | K129: 541302.7708 | L129: 12490.61658 | M129: 11195.10091 | N129: 4491157.374 | O129: =$D$58*O125 -> 1267524.261 | P129: =$D$58*P125 -> 920693.7027 | Q129: =ROUND(SUM(F129:P129)-E129,0) -> 0
A130: 58 | C130: Total Operating Expenses | E130: =E96 -> 145483323.6 | F130: =F96 -> 50207713.38 | G130: 41719358.41 | H130: =H96 -> 12464533.64 | I130: 257156.2663 | J130: 23681027.05 | K130: 1274992.378 | L130: 29235.35141 | M130: 61603.65189 | N130: 10279429.53 | O130: =O96 -> 2714445.361 | P130: =P96 -> 2793828.6 | Q130: =ROUND(SUM(F130:P130)-E130,0) -> 0
A131: 59 | C131: Revenue Credits | E131: =SUM(F131:P131) -> -23958447.01 | F131: -8615871.644 | G131: -6488254.318 | H131: -2026946.207 | I131: -33383.89259 | J131: -3980539.938 | K131: -211312.1889 | L131: -5204.537698 | M131: -7959.563846 | N131: -1662600.211 | O131: -484202.3264 | P131: -442172.186 | Q131: =ROUND(SUM(F131:P131)-E131,0) -> 0
A132: 60
A133: 61 | C133: Total Revenue Requirements | E133: =E129+E130+E131 -> 186280469.2 | F133: =F129+F130+F131 -> 65765486.04 | G133: 52629927.13 | H133: 15798278.83 | I133: 276562.0691 | J133: 30225767.43 | K133: 1604982.96 | L133: 36521.43029 | M133: 64839.18895 | N133: 13107986.69 | O133: =O129+O130+O131 -> 3497767.296 | P133: =P129+P130+P131 -> 3272350.117 | Q133: =ROUND(SUM(F133:P133)-E133,0) -> 0
A134: 62 | Q134: =ROUND(SUM(F134:P134)-E134,0) -> 0
A135: 63
A136: 64 | C136: Return On Rate Base @ Target ROR | D136: =TargetROR -> 0.07780031876 | E136: =$D136*E125 -> 72757976.83 | F136: =$D136*F125 -> 27160981.51 | G136: 19548939.52 | H136: =$D136*H125 -> 6023156.384 | I136: 59313.35467 | J136: 11825976.27 | K136: 608196.0321 | L136: 14034.1854 | M136: 12578.57214 | N136: 5046166.843 | O136: =$D136*O125 -> 1424162.72 | P136: =$D136*P125 -> 1034471.44 | Q136: =ROUND(SUM(F136:P136)-E136,0) -> 0
A137: 65 | C137: Total Operating Expenses Adjusted for Taxes | E137: =SUM(F137:P137) -> 150571178.7 | F137: =F130+((F136-(F127*F125))*(1/NetToGross))-(F136-(F127*F125)) -> 53653596.51 | G137: 40401515.87 | H137: 12767315.65 | I137: 237511.3256 | J137: 25744447.03 | K137: 1353127.459 | L137: 33087.2347 | M137: 49701.79531 | N137: 10236657.01 | O137: 3120330.799 | P137: 2973888.029 | Q137: =ROUND(SUM(F137:P137)-E137,0) -> 0
A138: 66 | C138: Revenue Credits | E138: =E131 -> -23958447.01 | F138: =F131 -> -8615871.644 | G138: -6488254.318 | H138: =H131 -> -2026946.207 | I138: -33383.89259 | J138: -3980539.938 | K138: -211312.1889 | L138: -5204.537698 | M138: -7959.563846 | N138: -1662600.211 | O138: =O131 -> -484202.3264 | P138: =P131 -> -442172.186 | Q138: =ROUND(SUM(F138:P138)-E138,0) -> 0
A139: 67
A140: 68 | C140: Total Target Revenue Requirements | E140: =SUM(E136:E138) -> 199370708.5 | F140: =SUM(F136:F138) -> 72198706.38 | G140: 53462201.08 | H140: =SUM(H136:H138) -> 16763525.83 | I140: 263440.7877 | J140: 33589883.37 | K140: 1750011.302 | L140: 41916.8824 | M140: 54320.80361 | N140: 13620223.64 | O140: =SUM(O136:O138) -> 4060291.193 | P140: =SUM(P136:P138) -> 3566187.283 | Q140: =ROUND(SUM(F140:P140)-E140,0) -> 0
C141: Transmission Energy Summary
C142: =Inputs!$C$4 -> Rocky Mountain Power
C143: ="Cost Of Service By Rate Schedule - "&C141 -> Cost Of Service By Rate Schedule - Transmission Energy Summary
C144: =Inputs!$C$5 -> State of Utah
C145: =Inputs!$C$7 -> 2010 Protocol (Non Wgt)
C146: =Inputs!$C$6 -> 12 Months Ended June 2013
C149: A | D149: B | E149: C | F149: D | G149: E | H149: F | I149: G | J149: H | K149: I | L149: J | M149: K | N149: L | O149: M | P149: N | Q149: Q
E150: ='Hot Sheet'!$H$10 -> Utah | G150: ='Hot Sheet'!$J$10 -> General | H150: ='Hot Sheet'!$K$10 -> General | I150: ='Hot Sheet'!$L$10 -> Street & Area | J150: ='Hot Sheet'!$M$10 -> General | L150: ='Hot Sheet'!$O$10 -> Traffic | M150: ='Hot Sheet'!$P$10 -> Outdoor | N150: ='Hot Sheet'!$Q$10 -> General | Q150: Chk Total
E151: ='Hot Sheet'!$H$11 -> Jurisdiction | F151: ='Hot Sheet'!$I$11 -> Residential | G151: ='Hot Sheet'!$J$11 -> Large Dist. | H151: ='Hot Sheet'!$K$11 -> +1 MW | I151: ='Hot Sheet'!$L$11 -> Lighting | J151: ='Hot Sheet'!$M$11 -> Trans | K151: ='Hot Sheet'!$N$11 -> Irrigation | L151: ='Hot Sheet'!$O$11 -> Signals | M151: ='Hot Sheet'!$P$11 -> Lighting | N151: ='Hot Sheet'!$Q$11 -> Small Dist. | O151: ='Hot Sheet'!R$11 -> Industrial | P151: ='Hot Sheet'!S$11 -> Industrial
C152: DESCRIPTION | E152: ='Hot Sheet'!$H$12 -> Normalized | F152: ='Hot Sheet'!$I$12 -> Sch 1 | G152: ='Hot Sheet'!$J$12 -> Sch 6 | H152: ='Hot Sheet'!$K$12 -> Sch 8 | I152: ='Hot Sheet'!$L$12 -> Sch. 7,11,12 | J152: ='Hot Sheet'!$M$12 -> Sch 9 | K152: ='Hot Sheet'!$N$12 -> Sch 10 | L152: ='Hot Sheet'!$O$12 -> Sch 15 | M152: ='Hot Sheet'!$P$12 -> Sch 15 | N152: ='Hot Sheet'!$Q$12 -> Sch 23 | O152: ='Hot Sheet'!R$12 -> Cust 1 | P152: ='Hot Sheet'!S$12 -> Cust 2 | Q152: =ROUND(SUM(Q157:Q211),0) -> 0
C154: Operating Revenues | E154: =SUM(F154:P154) -> 73293940.95 | F154: 20838172.34 | G154: 22177522.26 | H154: 6876825.075 | I154: 404787.9682 | J154: 13516637.26 | K154: 754029.7951 | L154: 15966.5428 | M154: 122017.0462 | N154: 4697979.979 | O154: 1453214.873 | P154: 2436787.806
A155: 13
A156: =A155+1 -> 14 | C156: Operating Expenses
A157: =A156+1 -> 15 | C157: Operation & Maintenance Expenses | E157: =SUM(F157:P157) -> 28681709.29 | F157: 9003625.671 | G157: 7708767.129 | H157: 2576893.431 | I157: 92697.18454 | J157: 5541587.165 | K157: 298329.987 | L157: 7634.940414 | M157: 19019.27148 | N157: 1814704.859 | O157: 678165.2587 | P157: 940284.3952 | Q157: =ROUND(SUM(F157:P157)-E157,0) -> 0
A158: 16 | C158: Depreciation Expense | E158: 10787978.01 | F158: 3709472.017 | G158: 2890040.132 | H158: 926535.1533 | I158: 20348.88472 | J158: 1930688.578 | K158: 100106.51 | L158: 2510.726768 | M158: 4554.096689 | N158: 723251.608 | O158: 232565.6636 | P158: 247904.644 | Q158: 0
A159: 17 | C159: Amortization Expense | E159: 1008073.419 | F159: 346445.4188 | G159: 270064.7514 | H159: 86602.89167 | I159: 1908.369783 | J159: 180502.0855 | K159: 9360.49003 | L159: 234.7825341 | M159: 426.9188356 | N159: 67560.94713 | O159: 21744.88398 | P159: 23221.87903 | Q159: 0
A160: 18 | C160: Taxes Other Than Income | E160: 3205163.755 | F160: 1101233.193 | G160: 862566.9636 | H160: 276480.4845 | I160: 6069.103233 | J160: 573497.7222 | K160: 29797.2572 | L160: 701.780575 | M160: 1239.47209 | N160: 210272.6685 | O160: 69386.94247 | P160: 73918.16771 | Q160: 0
A161: 19 | C161: Income Taxes - Federal | E161: 2582430.425 | F161: -46320.5562 | G161: 1525493.588 | H161: 349259.1659 | I161: 72444.77354 | J161: 328752.3706 | K161: 30386.40338 | L161: -240.984237 | M161: 27649.88183 | N161: 172404.2213 | O161: -23602.60111 | P161: 146204.1623 | Q161: 0
A162: 20 | C162: Income Taxes - State | E162: 350909.405 | F162: -6294.194282 | G162: 207289.2427 | H162: 47458.52004 | I162: 9844.041539 | J162: 44671.98715 | K162: 4129.007553 | L162: -32.74575548 | M162: 3757.159723 | N162: 23426.87034 | O162: -3207.201492 | P162: 19866.71746 | Q162: 0
A163: 21 | C163: Income Taxes Deferred | E163: 5415110.955 | F163: 1860528.941 | G163: 1457303.33 | H163: 467112.6391 | I163: 10253.7249 | J163: 968922.0381 | K163: 50342.34324 | L163: 1185.655389 | M163: 2094.082988 | N163: 355254.8069 | O163: 117228.9533 | P163: 124884.4397 | Q163: 0
A164: 22 | C164: Investment Tax Credit Adj | E164: -84158.17402 | F164: -28915.14499 | G164: -22648.47171 | H164: -7259.564411 | I164: -159.356802 | J164: -15058.36356 | K164: -782.3883422 | L164: -18.42669401 | M164: -32.54489187 | N164: -5521.141877 | O164: -1821.897046 | P164: -1940.873695 | Q164: 0
A165: 23 | C165: Misc Revenues & Expense | E165: 168.9129504 | F165: 58.37219793 | G165: 45.47762966 | H165: 14.57994375 | I165: 0.3202097553 | J165: 29.56324808 | K165: 1.575274592 | L165: 0.03950876006 | M165: 0.07166319955 | N165: 11.38107683 | O165: 3.631173926 | P165: 3.901023888 | Q165: 0
A166: 24
A167: 25 | C167: Total Operating Expenses | E167: =SUM(E157:E165) -> 51947386 | F167: =SUM(F157:F165) -> 15939833.72 | G167: 14898922.14 | H167: 4723097.301 | I167: 213407.0457 | J167: 9553593.146 | K167: 521671.1854 | L167: 11975.7685 | M167: 58708.4104 | N167: 3361366.221 | O167: =SUM(O157:O165) -> 1090463.634 | P167: =SUM(P157:P165) -> 1574347.433 | Q167: =ROUND(SUM(F167:P167)-E167,0) -> 0
A168: 26
A169: 27
A170: 28 | C170: Rate Base :
A171: 29 | C171: Electric Plant In Service | E171: =SUM(F171:P171) -> 558243614.9 | F171: 164177017.7 | G171: 149955050.6 | H171: 51194349.66 | I171: 2060024.926 | J171: 115223787.7 | K171: 6056193.638 | L171: 154281.3859 | M171: 435194.4618 | N171: 33921222.28 | O171: 13973396.59 | P171: 21093096.01 | Q171: =ROUND(SUM(F171:P171)-E171,0) -> 0
A172: 30 | C172: Plant Held For Future Use | E172: 108325.2202 | F172: 31534.57951 | G172: 29251.10464 | H172: 10040.36815 | I172: 419.2564405 | J172: 22212.60902 | K172: 1196.306086 | L172: 30.51140004 | M172: 88.34111015 | N172: 6554.330357 | O172: 2740.533438 | P172: 4257.280078 | Q172: 0
A173: 31 | C173: Electric Plant Acquisition Adj | E173: 0 | F173: 0 | G173: 0 | H173: 0 | I173: 0 | J173: 0 | K173: 0 | L173: 0 | M173: 0 | N173: 0 | O173: 0 | P173: 0 | Q173: 0
A174: 32 | C174: Nuclear Fuel | E174: 0 | F174: 0 | G174: 0 | H174: 0 | I174: 0 | J174: 0 | K174: 0 | L174: 0 | M174: 0 | N174: 0 | O174: 0 | P174: 0 | Q174: 0
A175: 33 | C175: Prepayments | E175: 572454.1942 | F175: 196839.7425 | G175: 153357.3384 | H175: 49165.74116 | I175: 1079.794971 | J175: 102450.2249 | K175: 5312.060467 | L175: 133.2294214 | M175: 241.6589789 | N175: 38378.68561 | O175: 12340.8844 | P175: 13154.83338 | Q175: 0
A176: 34 | C176: Fuel Stock | E176: 0 | F176: 0 | G176: 0 | H176: 0 | I176: 0 | J176: 0 | K176: 0 | L176: 0 | M176: 0 | N176: 0 | O176: 0 | P176: 0 | Q176: 0
A177: 35 | C177: Materials & Supplies | E177: 145802.586 | F177: 50134.56757 | G177: 39059.71297 | H177: 12522.38568 | I177: 275.0209549 | J177: 26093.80433 | K177: 1352.967907 | L177: 33.93318517 | M177: 61.54990984 | N177: 9774.950842 | O177: 3143.190978 | P177: 3350.501654 | Q177: 0
A178: 36 | C178: Misc Deferred Debits | E178: 1762048.158 | F178: 605884.4695 | G178: 472043.0358 | H178: 151335.0842 | I178: 3323.673334 | J178: 315347.9038 | K178: 16350.839 | L178: 410.0881067 | M178: 743.8407527 | N178: 118131.8837 | O178: 37985.97835 | P178: 40491.36186 | Q178: 0
A179: 37 | C179: Cash Working Capital | E179: 1191993.977 | F179: 379209.4865 | G179: 335534.3514 | H179: 106805.9127 | I179: 4283.620098 | J179: 215717.2411 | K179: 11798.189 | L179: 280.776866 | M179: 1120.188817 | N179: 78152.73402 | O179: 25142.14576 | P179: 33949.33027 | Q179: 0
A180: 38 | C180: Weatherization Loans | E180: 0 | F180: 0 | G180: 0 | H180: 0 | I180: 0 | J180: 0 | K180: 0 | L180: 0 | M180: 0 | N180: 0 | O180: 0 | P180: 0 | Q180: 0
A181: 39 | C181: Miscellaneous Rate Base | E181: 0 | F181: 0 | G181: 0 | H181: 0 | I181: 0 | J181: 0 | K181: 0 | L181: 0 | M181: 0 | N181: 0 | O181: 0 | P181: 0 | Q181: 0
A182: 40
A183: 41 | C183: Total Rate Base Additions | E183: =SUM(E171:E181) -> 562024239.1 | F183: =SUM(F171:F181) -> 165440620.5 | G183: 150984296.2 | H183: 51524219.16 | I183: 2069406.292 | J183: 115905609.4 | K183: 6092204 | L183: 155169.9248 | M183: 437450.0414 | N183: 34172214.86 | O183: =SUM(O171:O181) -> 14054749.32 | P183: =SUM(P171:P181) -> 21188299.32 | Q183: =ROUND(SUM(F183:P183)-E183,0) -> 0
A184: 42
A185: 43 | C185: Rate Base Deductions :
A186: 44 | C186: Accum Provision For Depreciation | E186: =SUM(F186:P186) -> -149202689.7 | F186: -51303701.36 | G186: -39970582.11 | H186: -12814406.63 | I186: -281434.4198 | J186: -26702309.59 | K186: -1384519.002 | L186: -34724.50412 | M186: -62985.24843 | N186: -10002901.85 | O186: -3216489.92 | P186: -3428635.063 | Q186: =ROUND(SUM(F186:P186)-E186,0) -> 0
A187: 45 | C187: Accum Provision For Amortization | E187: -8140592.97 | F187: -2799163.049 | G187: -2180820.75 | H187: -699162.2939 | I187: -15355.24353 | J187: -1456893.26 | K187: -75540.25006 | L187: -1894.59135 | M187: -3436.515794 | N187: -545764.7792 | O187: -175493.6965 | P187: -187068.5413 | Q187: 0
A188: 46 | C188: Accum Deferred Income Taxes | E188: -90262353.35 | F188: -31040755.82 | G188: -24155481.31 | H188: -7745675.41 | I188: -170020.4122 | J188: -16165638.69 | K188: -840992.8004 | L188: -21049.013 | M188: -38117.86453 | N188: -6049483.137 | O188: -1950219.325 | P188: -2084919.564 | Q188: 0
A189: 47 | C189: Unamortized ITC | E189: -6040.596187 | F189: -2077.327632 | G189: -1616.562851 | H189: -518.3647813 | I189: -11.37834798 | J189: -1081.840995 | K189: -56.2795916 | L189: -1.408632701 | M189: -2.550940912 | N189: -404.8485207 | O189: -130.5114509 | P189: -139.5224432 | Q189: 0
A190: 48 | C190: Customer Advance For Construction | E190: -1601864.617 | F190: -625323.8398 | G190: -88430.58858 | H190: -28332.45442 | I190: -1533.432394 | J190: -276224.8728 | K190: -6039.751876 | L190: -4612.733705 | M190: -11874.14697 | N190: -559492.7962 | O190: 0 | P190: 0 | Q190: 0
A191: 49 | C191: Customer Service Deposits | E191: 0 | F191: 0 | G191: 0 | H191: 0 | I191: 0 | J191: 0 | K191: 0 | L191: 0 | M191: 0 | N191: 0 | O191: 0 | P191: 0 | Q191: 0
A192: 50 | C192: Misc Rate Base Deductions | E192: -1024517.949 | F192: -344242.8675 | G192: -274788.3384 | H192: -89028.45006 | I192: -2234.960365 | J192: -187331.481 | K192: -9775.900789 | L192: -245.8990245 | M192: -492.4617552 | N192: -67689.70549 | O192: -22656.73304 | P192: -26031.15187 | Q192: 0
A193: 51
A194: 52 | C194: Total Rate Base Deductions | E194: =SUM(E186:E192) -> -250238059.2 | F194: =SUM(F186:F192) -> -86115264.26 | G194: -66671719.66 | H194: -21377123.6 | I194: -470589.8467 | J194: -44789479.73 | K194: -2316923.985 | L194: -62528.14983 | M194: -116908.7884 | N194: -17225737.12 | O194: =SUM(O186:O192) -> -5364990.186 | P194: =SUM(P186:P192) -> -5726793.842 | Q194: =ROUND(SUM(F194:P194)-E194,0) -> 0
A195: 53
A196: 54 | C196: Total Rate Base | E196: =E183+E194 -> 311786179.9 | F196: =F183+F194 -> 79325356.27 | G196: 84312576.51 | H196: 30147095.55 | I196: 1598816.445 | J196: 71116129.71 | K196: 3775280.016 | L196: 92641.77502 | M196: 320541.253 | N196: 16946477.75 | O196: =O183+O194 -> 8689759.136 | P196: =P183+P194 -> 15461505.47 | Q196: =ROUND(SUM(F196:P196)-E196,0) -> 0
A197: 55
C198: Calculated Return On Rate Base | F198: ='Class Summary'!F60 -> 0.06174997321 | G198: ='Class Summary'!G60 -> 0.0863287592 | H198: ='Class Summary'!H60 -> 0.07144063913 | I198: ='Class Summary'!I60 -> 0.1197016225 | J198: ='Class Summary'!J60 -> 0.05572637504 | K198: ='Class Summary'!K60 -> 0.06154738424 | L198: ='Class Summary'!L60 -> 0.04307748096 | M198: ='Class Summary'!M60 -> 0.1975054231 | N198: ='Class Summary'!N60 -> 0.07887265888 | O198: ='Class Summary'!O60 -> 0.04174468285 | P198: ='Class Summary'!P60 -> 0.05577984465
A199: =A197+1 -> 56
A200: 57 | C200: Return On Rate Base | D200: =ActualROR -> 0.06924334573 | E200: =$D$58*E196 -> 21589118.25 | F200: =$D$58*F196 -> 5492753.069 | G200: 5838084.885 | H200: =$D$58*H196 -> 2087485.76 | I200: 110707.3999 | J200: 4924318.756 | K200: 261413.0193 | L200: 6414.826456 | M200: 22195.3488 | N200: 1173430.817 | O200: =$D$58*O196 -> 601707.9961 | P200: =$D$58*P196 -> 1070606.369 | Q200: =ROUND(SUM(F200:P200)-E200,0) -> 0
A201: 58 | C201: Total Operating Expenses | E201: =E167 -> 51947386 | F201: =F167 -> 15939833.72 | G201: 14898922.14 | H201: =H167 -> 4723097.301 | I201: 213407.0457 | J201: 9553593.146 | K201: 521671.1854 | L201: 11975.7685 | M201: 58708.4104 | N201: 3361366.221 | O201: =O167 -> 1090463.634 | P201: =P167 -> 1574347.433 | Q201: =ROUND(SUM(F201:P201)-E201,0) -> 0
A202: 59 | C202: Revenue Credits | E202: =SUM(F202:P202) -> -16122883.75 | F202: -4864440.411 | G202: -4394079.487 | H202: -1472802.052 | I202: -56380.51268 | J202: -3184120.163 | K202: -171170.4013 | L202: -4287.537142 | M202: -12135.01427 | N202: -1002988.846 | O202: -388619.0371 | P202: -571860.2888 | Q202: =ROUND(SUM(F202:P202)-E202,0) -> 0
A203: 60
A204: 61 | C204: Total Revenue Requirements | E204: =E200+E201+E202 -> 57413620.5 | F204: =F200+F201+F202 -> 16568146.38 | G204: 16342927.54 | H204: 5337781.009 | I204: 267733.9329 | J204: 11293791.74 | K204: 611913.8034 | L204: 14103.05782 | M204: 68768.74493 | N204: 3531808.193 | O204: =O200+O201+O202 -> 1303552.593 | P204: =P200+P201+P202 -> 2073093.513 | Q204: =ROUND(SUM(F204:P204)-E204,0) -> 0
A205: 62 | Q205: =ROUND(SUM(F205:P205)-E205,0) -> 0
A206: 63
A207: 64 | C207: Return On Rate Base @ Target ROR | D207: =TargetROR -> 0.07780031876 | E207: =$D207*E196 -> 24257064.18 | F207: =$D207*F196 -> 6171538.003 | G207: 6559545.329 | H207: =$D207*H196 -> 2345453.644 | I207: 124388.4291 | J207: 5532857.561 | K207: 293717.9886 | L207: 7207.559627 | M207: 24938.21166 | N207: 1318441.371 | O207: =$D207*O196 -> 676066.0307 | P207: =$D207*P196 -> 1202910.054 | Q207: =ROUND(SUM(F207:P207)-E207,0) -> 0
A208: 65 | C208: Total Operating Expenses Adjusted for Taxes | E208: =SUM(F208:P208) -> 53737254.22 | F208: =F201+((F207-(F198*F196))*(1/NetToGross))-(F207-(F198*F196)) -> 16722809.79 | G208: 14456726.91 | H208: 4841002.455 | I208: 172208.848 | J208: 10518977.2 | K208: 559405.2014 | L208: 13953.98652 | M208: 35111.8515 | N208: 3350190.795 | O208: 1283142.008 | P208: 1783725.178 | Q208: =ROUND(SUM(F208:P208)-E208,0) -> 0
A209: 66 | C209: Revenue Credits | E209: =E202 -> -16122883.75 | F209: =F202 -> -4864440.411 | G209: -4394079.487 | H209: =H202 -> -1472802.052 | I209: -56380.51268 | J209: -3184120.163 | K209: -171170.4013 | L209: -4287.537142 | M209: -12135.01427 | N209: -1002988.846 | O209: =O202 -> -388619.0371 | P209: =P202 -> -571860.2888 | Q209: =ROUND(SUM(F209:P209)-E209,0) -> 0
... 2 more rows

Sheet Distribution Summary
C1: Distribution Summary
C2: =Inputs!$C$4 -> Rocky Mountain Power
C3: Cost Of Service By Rate Schedule - Distribution Function
C4: =Inputs!$C$5 -> State of Utah
C5: =Inputs!$C$7 -> 2010 Protocol (Non Wgt)
C6: =Inputs!$C$6 -> 12 Months Ended June 2013
C9: A | D9: B | E9: C | F9: D | G9: E | H9: F | I9: G | J9: H | K9: I | L9: J | M9: K | N9: L | O9: M | P9: N
E10: ='Hot Sheet'!$H$10 -> Utah | G10: ='Hot Sheet'!$J$10 -> General | H10: ='Hot Sheet'!$K$10 -> General | I10: ='Hot Sheet'!$L$10 -> Street & Area | J10: ='Hot Sheet'!$M$10 -> General | L10: ='Hot Sheet'!$O$10 -> Traffic | M10: ='Hot Sheet'!$P$10 -> Outdoor | N10: ='Hot Sheet'!$Q$10 -> General | Q10: Chk Total
E11: ='Hot Sheet'!$H$11 -> Jurisdiction | F11: ='Hot Sheet'!$I$11 -> Residential | G11: ='Hot Sheet'!$J$11 -> Large Dist. | H11: ='Hot Sheet'!$K$11 -> +1 MW | I11: ='Hot Sheet'!$L$11 -> Lighting | J11: ='Hot Sheet'!$M$11 -> Trans | K11: ='Hot Sheet'!$N$11 -> Irrigation | L11: ='Hot Sheet'!$O$11 -> Signals | M11: ='Hot Sheet'!$P$11 -> Lighting | N11: ='Hot Sheet'!$Q$11 -> Small Dist. | O11: ='Hot Sheet'!R$11 -> Industrial | P11: ='Hot Sheet'!S$11 -> Industrial
C12: DESCRIPTION | E12: ='Hot Sheet'!$H$12 -> Normalized | F12: ='Hot Sheet'!$I$12 -> Sch 1 | G12: ='Hot Sheet'!$J$12 -> Sch 6 | H12: ='Hot Sheet'!$K$12 -> Sch 8 | I12: ='Hot Sheet'!$L$12 -> Sch. 7,11,12 | J12: ='Hot Sheet'!$M$12 -> Sch 9 | K12: ='Hot Sheet'!$N$12 -> Sch 10 | L12: ='Hot Sheet'!$O$12 -> Sch 15 | M12: ='Hot Sheet'!$P$12 -> Sch 15 | N12: ='Hot Sheet'!$Q$12 -> Sch 23 | O12: ='Hot Sheet'!R$12 -> Cust 1 | P12: ='Hot Sheet'!S$12 -> Cust 2 | Q12: =ROUND(SUM(Q15:Q69),0) -> 0
A14: =ROW() -> 14 | C14: Operating Expenses
A15: =ROW() -> 15 | C15: Operation & Maintenance Expenses | E15: ='Function Summary'!$H15 -> 104371123.8 | F15: =Distribution!$I$17 -> 58109982.49 | G15: =Distribution!J17 -> 24153753.75 | H15: =Distribution!K17 -> 7086309.063 | I15: =Distribution!L17 -> 2863536.218 | J15: =Distribution!M17 -> 845533.0645 | K15: =Distribution!N17 -> 1352447.796 | L15: =Distribution!O17 -> 57965.6613 | M15: =Distribution!P17 -> 27642.70176 | N15: =Distribution!Q17 -> 9677150.603 | O15: =Distribution!R17 -> 87903.01613 | P15: =Distribution!S17 -> 108899.4718 | Q15: =ROUND(SUM(F15:P15)-E15,0) -> 0
A16: =ROW() -> 16 | C16: Depreciation Expense | E16: ='Function Summary'!$H16 -> 67119647.93 | F16: =Distribution!$I$18 -> 38050172.29 | G16: =Distribution!J18 -> 15715580.87 | H16: =Distribution!K18 -> 4526039.614 | I16: =Distribution!L18 -> 1641975.974 | J16: =Distribution!M18 -> 108421.7989 | K16: =Distribution!N18 -> 919557.5851 | L16: =Distribution!O18 -> 28972.80366 | M16: =Distribution!P18 -> 20065.93229 | N16: =Distribution!Q18 -> 6093500.953 | O16: =Distribution!R18 -> 7680.055497 | P16: =Distribution!S18 -> 7680.055497 | Q16: 0
A17: =ROW() -> 17 | C17: Amortization Expense | E17: ='Function Summary'!$H17 -> 3647688.067 | F17: =Distribution!$I$19 -> 2109789.953 | G17: =Distribution!J19 -> 849502.223 | H17: =Distribution!K19 -> 242253.6513 | I17: =Distribution!L19 -> 54553.17061 | J17: =Distribution!M19 -> 4641.91399 | K17: =Distribution!N19 -> 49594.5738 | L17: =Distribution!O19 -> 1730.736303 | M17: =Distribution!P19 -> 1191.738554 | N17: =Distribution!Q19 -> 333764.8666 | O17: =Distribution!R19 -> 332.3126054 | P17: =Distribution!S19 -> 332.9275536 | Q17: 0
A18: =ROW() -> 18 | C18: Taxes Other Than Income | E18: ='Function Summary'!$H18 -> 14563027.96 | F18: =Distribution!$I$20 -> 8489870.677 | G18: =Distribution!J20 -> 3402108.276 | H18: =Distribution!K20 -> 962290.2089 | I18: =Distribution!L20 -> 165223.6424 | J18: =Distribution!M20 -> 7168.857478 | K18: =Distribution!N20 -> 199401.6604 | L18: =Distribution!O20 -> 7073.023495 | M18: =Distribution!P20 -> 4783.112877 | N18: =Distribution!Q20 -> 1323738.834 | O18: =Distribution!R20 -> 702.8112855 | P18: =Distribution!S20 -> 666.8603443 | Q18: 0
A19: =ROW() -> 19 | C19: Income Taxes - Federal | E19: ='Function Summary'!$H19 -> 34963125.1 | F19: =Distribution!$I$21 -> 16652140.74 | G19: =Distribution!J21 -> 11088873.5 | H19: =Distribution!K21 -> 2345009.8 | I19: =Distribution!L21 -> 645549.0498 | J19: =Distribution!M21 -> 1339.806693 | K19: =Distribution!N21 -> 383780.2273 | L19: =Distribution!O21 -> 7371.887739 | M19: =Distribution!P21 -> 44989.69544 | N19: =Distribution!Q21 -> 3793897.249 | O19: =Distribution!R21 -> -139.0385425 | P19: =Distribution!S21 -> 312.1742749 | Q19: 0
A20: =ROW() -> 20 | C20: Income Taxes - State | E20: ='Function Summary'!$H20 -> 4750908.022 | F20: =Distribution!$I$22 -> 2262749.363 | G20: =Distribution!J22 -> 1506793.741 | H20: =Distribution!K22 -> 318647.8852 | I20: =Distribution!L22 -> 87719.39439 | J20: =Distribution!M22 -> 182.0574776 | K20: =Distribution!N22 -> 52149.35895 | L20: =Distribution!O22 -> 1001.717109 | M20: =Distribution!P22 -> 6113.352408 | N20: =Distribution!Q22 -> 515527.6259 | O20: =Distribution!R22 -> -18.89302873 | P20: =Distribution!S22 -> 42.41929927 | Q20: 0
A21: =ROW() -> 21 | C21: Income Taxes Deferred | E21: ='Function Summary'!$H21 -> 7609774.394 | F21: =Distribution!$I$23 -> 4436302.714 | G21: =Distribution!J23 -> 1777739.939 | H21: =Distribution!K23 -> 502835.7708 | I21: =Distribution!L23 -> 86336.07284 | J21: =Distribution!M23 -> 3746.019592 | K21: =Distribution!N23 -> 104195.4773 | L21: =Distribution!O23 -> 3695.942438 | M21: =Distribution!P23 -> 2499.371009 | N21: =Distribution!Q23 -> 691707.3775 | O21: =Distribution!R23 -> 367.2474802 | P21: =Distribution!S23 -> 348.4616513 | Q21: 0
A22: =ROW() -> 22 | C22: Investment Tax Credit Adj | E22: ='Function Summary'!$H22 -> -411211.4826 | F22: =Distribution!$I$24 -> -239725.7162 | G22: =Distribution!J24 -> -96064.22453 | H22: =Distribution!K24 -> -27171.87555 | I22: =Distribution!L24 -> -4665.366235 | J22: =Distribution!M24 -> -202.4246962 | K22: =Distribution!N24 -> -5630.43981 | L22: =Distribution!O24 -> -199.7186633 | M22: =Distribution!P24 -> -135.0592022 | N22: =Distribution!Q24 -> -37377.98278 | O22: =Distribution!R24 -> -19.84505361 | P22: =Distribution!S24 -> -18.82991858 | Q22: 0
A23: =ROW() -> 23 | C23: Misc Revenues & Expense | E23: ='Function Summary'!$H23 -> -53483.39884 | F23: =Distribution!$I$25 -> -18482.55883 | G23: =Distribution!J25 -> -14399.71417 | H23: =Distribution!K25 -> -4616.490003 | I23: =Distribution!L25 -> -101.3889463 | J23: =Distribution!M25 -> -9360.697236 | K23: =Distribution!N25 -> -498.7837764 | L23: =Distribution!O25 -> -12.50977363 | M23: =Distribution!P25 -> -22.69092734 | N23: =Distribution!Q25 -> -3603.623464 | O23: =Distribution!R25 -> -1149.749163 | P23: =Distribution!S25 -> -1235.192542 | Q23: 0
A24: =ROW() -> 24
A25: =ROW() -> 25 | C25: Total Operating Expenses | E25: =SUM(E15:E23) -> 236560600.4 | F25: =SUM(F15:F23) -> 129852800 | G25: 58383888.36 | H25: 15951597.63 | I25: 5540126.767 | J25: 961470.3967 | K25: 3054997.455 | L25: 107599.5436 | M25: 107128.1542 | N25: 22388305.9 | O25: 95657.91721 | P25: 117028.3479 | Q25: =ROUND(SUM(F25:P25)-E25,0) -> 0
A26: =ROW() -> 26
A27: =ROW() -> 27
A28: =ROW() -> 28 | C28: Rate Base :
A29: =ROW() -> 29 | C29: Electric Plant In Service | E29: ='Function Summary'!$H29 -> 2717546304 | F29: =Distribution!$I$33 -> 1571871099 | G29: =Distribution!J33 -> 632873084.6 | H29: =Distribution!K33 -> 180474503.4 | I29: =Distribution!L33 -> 40646137.25 | J29: =Distribution!M33 -> 3408418.119 | K29: =Distribution!N33 -> 36949436.36 | L29: =Distribution!O33 -> 1289476.413 | M29: =Distribution!P33 -> 887823.3523 | N29: =Distribution!Q33 -> 248663454.4 | O29: =Distribution!R33 -> 241435.2148 | P29: =Distribution!S33 -> 241435.2148 | Q29: =ROUND(SUM(F29:P29)-E29,0) -> 0
A30: =ROW() -> 30 | C30: Plant Held For Future Use | E30: ='Function Summary'!$H30 -> 4140116.032 | F30: =Distribution!$I$34 -> 2027953.949 | G30: =Distribution!J34 -> 1269049.579 | H30: =Distribution!K34 -> 391575.636 | I30: =Distribution!L34 -> 3052.347541 | J30: =Distribution!M34 -> 0 | K30: =Distribution!N34 -> 72004.64948 | L30: =Distribution!O34 -> 905.4668823 | M30: =Distribution!P34 -> 676.9042508 | N30: =Distribution!Q34 -> 374897.4998 | O30: =Distribution!R34 -> 0 | P30: =Distribution!S34 -> 0 | Q30: 0
A31: =ROW() -> 31 | C31: Electric Plant Acquisition Adj | E31: ='Function Summary'!$H31 -> 0 | F31: =Distribution!$I$35 -> 0 | G31: =Distribution!J35 -> 0 | H31: =Distribution!K35 -> 0 | I31: =Distribution!L35 -> 0 | J31: =Distribution!M35 -> 0 | K31: =Distribution!N35 -> 0 | L31: =Distribution!O35 -> 0 | M31: =Distribution!P35 -> 0 | N31: =Distribution!Q35 -> 0 | O31: =Distribution!R35 -> 0 | P31: =Distribution!S35 -> 0 | Q31: 0
A32: =ROW() -> 32 | C32: Nuclear Fuel | E32: ='Function Summary'!$H32 -> 0 | F32: =Distribution!$I$36 -> 0 | G32: =Distribution!J36 -> 0 | H32: =Distribution!K36 -> 0 | I32: =Distribution!L36 -> 0 | J32: =Distribution!M36 -> 0 | K32: =Distribution!N36 -> 0 | L32: =Distribution!O36 -> 0 | M32: =Distribution!P36 -> 0 | N32: =Distribution!Q36 -> 0 | O32: =Distribution!R36 -> 0 | P32: =Distribution!S36 -> 0 | Q32: 0
A33: =ROW() -> 33 | C33: Prepayments | E33: ='Function Summary'!$H33 -> 2197201.298 | F33: =Distribution!$I$37 -> 1270895.445 | G33: =Distribution!J37 -> 511693.0522 | H33: =Distribution!K37 -> 145917.9601 | I33: =Distribution!L37 -> 32863.37583 | J33: =Distribution!M37 -> 2755.787713 | K33: =Distribution!N37 -> 29874.50459 | L33: =Distribution!O37 -> 1042.572575 | M33: =Distribution!P37 -> 717.8264521 | N33: =Distribution!Q37 -> 201050.3608 | O33: =Distribution!R37 -> 195.2061558 | P33: =Distribution!S37 -> 195.2061558 | Q33: 0
A34: =ROW() -> 34 | C34: Fuel Stock | E34: ='Function Summary'!$H34 -> 0 | F34: =Distribution!$I$38 -> 0 | G34: =Distribution!J38 -> 0 | H34: =Distribution!K38 -> 0 | I34: =Distribution!L38 -> 0 | J34: =Distribution!M38 -> 0 | K34: =Distribution!N38 -> 0 | L34: =Distribution!O38 -> 0 | M34: =Distribution!P38 -> 0 | N34: =Distribution!Q38 -> 0 | O34: =Distribution!R38 -> 0 | P34: =Distribution!S38 -> 0 | Q34: 0
A35: =ROW() -> 35 | C35: Materials & Supplies | E35: ='Function Summary'!$H35 -> 10730678.3 | F35: =Distribution!$I$39 -> 6206791.424 | G35: =Distribution!J39 -> 2499003.407 | H35: =Distribution!K39 -> 712633.2434 | I35: =Distribution!L39 -> 160497.9544 | J35: =Distribution!M39 -> 13458.69922 | K35: =Distribution!N39 -> 145900.9233 | L35: =Distribution!O39 -> 5091.709584 | M35: =Distribution!P39 -> 3505.716449 | N35: =Distribution!Q39 -> 981888.5256 | O35: =Distribution!R39 -> 953.3466331 | P35: =Distribution!S39 -> 953.3466331 | Q35: 0
A36: =ROW() -> 36 | C36: Misc Deferred Debits | E36: ='Function Summary'!$H36 -> 1216253.59 | F36: =Distribution!$I$40 -> 703500.016 | G36: =Distribution!J40 -> 283246.0151 | H36: =Distribution!K40 -> 80772.40943 | I36: =Distribution!L40 -> 18191.41418 | J36: =Distribution!M40 -> 1525.457273 | K36: =Distribution!N40 -> 16536.93428 | L36: =Distribution!O40 -> 577.1126382 | M36: =Distribution!P40 -> 397.3504842 | N36: =Distribution!Q40 -> 111290.7695 | O36: =Distribution!R40 -> 108.0557289 | P36: =Distribution!S40 -> 108.0557289 | Q36: 0
A37: =ROW() -> 37 | C37: Cash Working Capital | E37: ='Function Summary'!$H37 -> 5379092.469 | F37: =Distribution!$I$41 -> 2948723.557 | G37: =Distribution!J41 -> 1301198.198 | H37: =Distribution!K41 -> 364244.1767 | I37: =Distribution!L41 -> 137895.5159 | J37: =Distribution!M41 -> 36509.21482 | K37: =Distribution!N41 -> 68587.63767 | L37: =Distribution!O41 -> 2746.423467 | M37: =Distribution!P41 -> 2105.360021 | N37: =Distribution!Q41 -> 508592.1496 | O37: =Distribution!R41 -> 3789.677584 | P37: =Distribution!S41 -> 4700.558204 | Q37: 0
A38: =ROW() -> 38 | C38: Weatherization Loans | E38: ='Function Summary'!$H38 -> 0 | F38: =Distribution!$I$42 -> 0 | G38: =Distribution!J42 -> 0 | H38: =Distribution!K42 -> 0 | I38: =Distribution!L42 -> 0 | J38: =Distribution!M42 -> 0 | K38: =Distribution!N42 -> 0 | L38: =Distribution!O42 -> 0 | M38: =Distribution!P42 -> 0 | N38: =Distribution!Q42 -> 0 | O38: =Distribution!R42 -> 0 | P38: =Distribution!S42 -> 0 | Q38: 0
A39: =ROW() -> 39 | C39: Miscellaneous Rate Base | E39: ='Function Summary'!$H39 -> 0 | F39: =Distribution!$I$43 -> 0 | G39: =Distribution!J43 -> 0 | H39: =Distribution!K43 -> 0 | I39: =Distribution!L43 -> 0 | J39: =Distribution!M43 -> 0 | K39: =Distribution!N43 -> 0 | L39: =Distribution!O43 -> 0 | M39: =Distribution!P43 -> 0 | N39: =Distribution!Q43 -> 0 | O39: =Distribution!R43 -> 0 | P39: =Distribution!S43 -> 0 | Q39: 0
A40: =ROW() -> 40
A41: =ROW() -> 41 | C41: Total Rate Base Additions | E41: =SUM(E29:E39) -> 2741209645 | F41: 1585028964 | G41: 638737274.8 | H41: 182169646.8 | I41: 40998637.86 | J41: 3462667.278 | K41: 37282341.01 | L41: 1299839.698 | M41: 895226.5099 | N41: 250841173.7 | O41: 246481.5009 | P41: 247392.3815 | Q41: =ROUND(SUM(F41:P41)-E41,0) -> 0
A42: =ROW() -> 42
A43: =ROW() -> 43 | C43: Rate Base Deductions :
A44: =ROW() -> 44 | C44: Accum Provision For Depreciation | E44: ='Function Summary'!$H44 -> -837214472.5 | F44: =Distribution!$I$48 -> -476478985.7 | G44: =Distribution!J48 -> -194695416.4 | H44: =Distribution!K48 -> -56524830.07 | I44: =Distribution!L48 -> -19722907.74 | J44: =Distribution!M48 -> -1124692.605 | K44: =Distribution!N48 -> -11252070.74 | L44: =Distribution!O48 -> -366830.9978 | M44: =Distribution!P48 -> -234568.0932 | N44: =Distribution!Q48 -> -76654834.98 | O44: =Distribution!R48 -> -79667.57338 | P44: =Distribution!S48 -> -79667.57338 | Q44: =ROUND(SUM(F44:P44)-E44,0) -> 0
A45: =ROW() -> 45 | C45: Accum Provision For Amortization | E45: ='Function Summary'!$H45 -> -33598670 | F45: =Distribution!$I$49 -> -19433993.92 | G45: =Distribution!J49 -> -7824593.05 | H45: =Distribution!K49 -> -2231315.534 | I45: =Distribution!L49 -> -502532.7997 | J45: =Distribution!M49 -> -42140.33646 | K45: =Distribution!N49 -> -456828.2488 | L45: =Distribution!O49 -> -15942.57747 | M45: =Distribution!P49 -> -10976.69754 | N45: =Distribution!Q49 -> -3074376.814 | O45: =Distribution!R49 -> -2985.009711 | P45: =Distribution!S49 -> -2985.009711 | Q45: 0
A46: =ROW() -> 46 | C46: Accum Deferred Income Taxes | E46: ='Function Summary'!$H46 -> -399807832.3 | F46: =Distribution!$I$50 -> -233185243 | G46: =Distribution!J50 -> -93214644.43 | H46: =Distribution!K50 -> -26356328.85 | I46: =Distribution!L50 -> -4137526.044 | J46: =Distribution!M50 -> -455592.8915 | K46: =Distribution!N50 -> -5486182.59 | L46: =Distribution!O50 -> -194954.8484 | M46: =Distribution!P50 -> -140877.1551 | N46: =Distribution!Q50 -> -36571997.18 | O46: =Distribution!R50 -> -32242.64577 | P46: =Distribution!S50 -> -32242.64577 | Q46: 0
A47: =ROW() -> 47 | C47: Unamortized ITC | E47: ='Function Summary'!$H47 -> -29515.40409 | F47: =Distribution!$I$51 -> -17191.68025 | G47: =Distribution!J51 -> -6878.387251 | H47: =Distribution!K51 -> -1947.333694 | I47: =Distribution!L51 -> -325.7785816 | J47: =Distribution!M51 -> -35.81652077 | K47: =Distribution!N51 -> -404.2282106 | L47: =Distribution!O51 -> -14.48430306 | M47: =Distribution!P51 -> -10.28881652 | N47: =Distribution!Q51 -> -2702.336516 | O47: =Distribution!R51 -> -2.534974436 | P47: =Distribution!S51 -> -2.534974436 | Q47: 0
A48: =ROW() -> 48 | C48: Customer Advance For Construction | E48: ='Function Summary'!$H48 -> -3604784.289 | F48: =Distribution!$I$52 -> -1407208.53 | G48: =Distribution!J52 -> -199001.3345 | H48: =Distribution!K52 -> -63758.43844 | I48: =Distribution!L52 -> -3450.786631 | J48: =Distribution!M52 -> -621607.5137 | K48: =Distribution!N52 -> -13591.66215 | L48: =Distribution!O52 -> -10380.34664 | M48: =Distribution!P52 -> -26721.19603 | N48: =Distribution!Q52 -> -1259064.481 | O48: =Distribution!R52 -> 0 | P48: =Distribution!S52 -> 0 | Q48: 0
A49: =ROW() -> 49 | C49: Customer Service Deposits | E49: ='Function Summary'!$H49 -> 0 | F49: =Distribution!$I$53 -> 0 | G49: =Distribution!J53 -> 0 | H49: =Distribution!K53 -> 0 | I49: =Distribution!L53 -> 0 | J49: =Distribution!M53 -> 0 | K49: =Distribution!N53 -> 0 | L49: =Distribution!O53 -> 0 | M49: =Distribution!P53 -> 0 | N49: =Distribution!Q53 -> 0 | O49: =Distribution!R53 -> 0 | P49: =Distribution!S53 -> 0 | Q49: 0
A50: =ROW() -> 50 | C50: Misc Rate Base Deductions | E50: ='Function Summary'!$H50 -> -7087147.809 | F50: =Distribution!$I$54 -> -3441304.213 | G50: =Distribution!J54 -> -1753218.238 | H50: =Distribution!K54 -> -526916.8473 | I50: =Distribution!L54 -> -69090.56443 | J50: =Distribution!M54 -> -499957.7272 | K50: =Distribution!N54 -> -84292.22033 | L50: =Distribution!O54 -> -2682.910504 | M50: =Distribution!P54 -> -2591.083302 | N50: =Distribution!Q54 -> -580318.0521 | O50: =Distribution!R54 -> -61130.58935 | P50: =Distribution!S54 -> -65645.3634 | Q50: 0
A51: =ROW() -> 51
A52: =ROW() -> 52 | C52: Total Rate Base Deductions | E52: =SUM(E44:E50) -> -1281342422 | F52: -733963927.1 | G52: -297693751.9 | H52: -85705097.08 | I52: -24435833.71 | J52: -2744026.89 | K52: -17293369.69 | L52: -590806.1652 | M52: -415744.5141 | N52: -118143293.8 | O52: -176028.3532 | P52: -180543.1272 | Q52: =ROUND(SUM(F52:P52)-E52,0) -> 0
A53: =ROW() -> 53
A54: =ROW() -> 54 | C54: Total Rate Base | E54: =E41+E52 -> 1459867223 | F54: =F41+F52 -> 851065036.8 | G54: 341043523 | H54: =H41+H52 -> 96464549.72 | I54: 16562804.15 | J54: 718640.3875 | K54: 19988971.31 | L54: 709033.533 | M54: 479481.9959 | N54: 132697879.9 | O54: =O41+O52 -> 70453.14768 | P54: =P41+P52 -> 66849.25425 | Q54: =ROUND(SUM(F54:P54)-E54,0) -> 0
A55: =ROW() -> 55
A56: =ROW() -> 56 | C56: Calculated Return On Rate Base | F56: ='Class Summary'!F60 -> 0.06174997321 | G56: ='Class Summary'!G60 -> 0.0863287592 | H56: ='Class Summary'!H60 -> 0.07144063913 | I56: ='Class Summary'!I60 -> 0.1197016225 | J56: ='Class Summary'!J60 -> 0.05572637504 | K56: ='Class Summary'!K60 -> 0.06154738424 | L56: ='Class Summary'!L60 -> 0.04307748096 | M56: ='Class Summary'!M60 -> 0.1975054231 | N56: ='Class Summary'!N60 -> 0.07887265888 | O56: ='Class Summary'!O60 -> 0.04174468285 | P56: ='Class Summary'!P60 -> 0.05577984465
A57: =ROW() -> 57
A58: =ROW() -> 58 | C58: Return On Rate Base | D58: =ActualROR -> 0.06924334573 | E58: =$D$58*E54 -> 101086090.8 | F58: =$D$58*F54 -> 58930590.58 | G58: 23614994.57 | H58: =$D$58*H54 -> 6679528.167 | I58: 1146863.974 | J58: 49761.0648 | K58: 1384103.251 | L58: 49095.85406 | M58: 33200.93761 | N58: 9188445.174 | O58: =$D$58*O54 -> 4878.411662 | P58: =$D$58*P54 -> 4628.866023 | Q58: =ROUND(SUM(F58:P58)-E58,0) -> 0
A59: =ROW() -> 59 | C59: Total Operating Expenses | E59: =E25 -> 236560600.4 | F59: 129852800 | G59: 58383888.36 | H59: =H25 -> 15951597.63 | I59: 5540126.767 | J59: 961470.3967 | K59: 3054997.455 | L59: 107599.5436 | M59: 107128.1542 | N59: 22388305.9 | O59: =O25 -> 95657.91721 | P59: =P25 -> 117028.3479 | Q59: =ROUND(SUM(F59:P59)-E59,0) -> 0
A60: =ROW() -> 60 | C60: Revenue Credits | E60: ='Function Summary'!$H$59 -> -15275557.42 | F60: =Distribution!$I$99 -> -6685621.382 | G60: =Distribution!$J$99 -> -4988059.846 | H60: =Distribution!$K$99 -> -1220045.969 | I60: =Distribution!$L$99 -> -176264.1187 | J60: =Distribution!$M$99 -> -155871.0465 | K60: =Distribution!$N$99 -> -383182.7056 | L60: =Distribution!$O$99 -> -9535.401121 | M60: =Distribution!$P$99 -> -4213.063181 | N60: =Distribution!$Q$99 -> -1647122.562 | O60: =Distribution!$R$99 -> -2556.015001 | P60: =Distribution!$S$99 -> -3085.311586 | Q60: =ROUND(SUM(F60:P60)-E60,0) -> 0
A61: =ROW() -> 61
A62: =ROW() -> 62 | C62: Total Revenue Requirements | E62: =E58+E59+E60 -> 322371133.8 | F62: =F58+F59+F60 -> 182097769.1 | G62: 77010823.08 | H62: 21411079.83 | I62: 6510726.622 | J62: 855360.4149 | K62: 4055918.001 | L62: 147159.9965 | M62: 136116.0286 | N62: 29929628.51 | O62: =O58+O59+O60 -> 97980.31387 | P62: =P58+P59+P60 -> 118571.9024 | Q62: =ROUND(SUM(F62:P62)-E62,0) -> 0
A63: =ROW() -> 63 | Q63: =ROUND(SUM(F63:P63)-E63,0) -> 0
A64: =ROW() -> 64
A65: =ROW() -> 65 | C65: Return On Rate Base @ Target ROR | D65: =TargetROR -> 0.07780031876 | E65: =$D65*E54 -> 113578135.3 | F65: =$D65*F54 -> 66213131.15 | G65: 26533294.8 | H65: =$D65*H54 -> 7504972.718 | I65: 1288591.442 | J65: 55910.45122 | K65: 1555148.34 | L65: 55163.03488 | M65: 37303.85212 | N65: 10323937.35 | O65: =$D65*O54 -> 5481.277347 | P65: =$D65*P54 -> 5200.893289 | Q65: =ROUND(SUM(F65:P65)-E65,0) -> 0
A66: =ROW() -> 66 | C66: Total Operating Expenses Adjusted for Taxes | E66: =SUM(F66:P66) -> 243227141.9 | F66: =F59+((F65-(F56*F54))*(1/NetToGross))-(F65-(F56*F54)) -> 138253185.3 | G66: 56595213.1 | H66: 16328870.04 | I66: 5113337.512 | J66: 971225.764 | K66: 3254787.712 | L66: 122739.829 | M66: 71831.21488 | N66: 22300797.73 | O66: 97220.07765 | P66: 117933.612 | Q66: =ROUND(SUM(F66:P66)-E66,0) -> 0
A67: =ROW() -> 67 | C67: Revenue Credits | E67: =E60 -> -15275557.42 | F67: =F60 -> -6685621.382 | G67: -4988059.846 | H67: =H60 -> -1220045.969 | I67: -176264.1187 | J67: -155871.0465 | K67: -383182.7056 | L67: -9535.401121 | M67: -4213.063181 | N67: -1647122.562 | O67: =O60 -> -2556.015001 | P67: =P60 -> -3085.311586 | Q67: =ROUND(SUM(F67:P67)-E67,0) -> 0
A68: =ROW() -> 68
A69: =ROW() -> 69 | C69: Total Target Revenue Requirements | E69: =SUM(E65:E67) -> 341529719.8 | F69: =SUM(F65:F67) -> 197780695.1 | G69: 78140448.05 | H69: 22613796.79 | I69: 6225664.836 | J69: 871265.1687 | K69: 4426753.346 | L69: 168367.4627 | M69: 104922.0038 | N69: 30977612.52 | O69: =SUM(O65:O67) -> 100145.34 | P69: =SUM(P65:P67) -> 120049.1938 | Q69: =ROUND(SUM(F69:P69)-E69,0) -> 0
C71: =Inputs!$C$4 -> Rocky Mountain Power
C72: Cost Of Service By Rate Schedule - Distribution Substations
C73: =Inputs!$C$5 -> State of Utah
C74: =Inputs!$C$7 -> 2010 Protocol (Non Wgt)
C75: =Inputs!$C$6 -> 12 Months Ended June 2013
C78: A | D78: B | E78: C | F78: D | G78: E | H78: F | I78: G | J78: H | K78: I | L78: J | M78: K | N78: L | O78: M | P78: N
E79: ='Hot Sheet'!$H$10 -> Utah | G79: ='Hot Sheet'!$J$10 -> General | H79: ='Hot Sheet'!$K$10 -> General | I79: ='Hot Sheet'!$L$10 -> Street & Area | J79: ='Hot Sheet'!$M$10 -> General | L79: ='Hot Sheet'!$O$10 -> Traffic | M79: ='Hot Sheet'!$P$10 -> Outdoor | N79: ='Hot Sheet'!$Q$10 -> General
E80: ='Hot Sheet'!$H$11 -> Jurisdiction | F80: ='Hot Sheet'!$I$11 -> Residential | G80: ='Hot Sheet'!$J$11 -> Large Dist. | H80: ='Hot Sheet'!$K$11 -> +1 MW | I80: ='Hot Sheet'!$L$11 -> Lighting | J80: ='Hot Sheet'!$M$11 -> Trans | K80: ='Hot Sheet'!$N$11 -> Irrigation | L80: ='Hot Sheet'!$O$11 -> Signals | M80: ='Hot Sheet'!$P$11 -> Lighting | N80: ='Hot Sheet'!$Q$11 -> Small Dist. | O80: ='Hot Sheet'!R$11 -> Industrial | P80: ='Hot Sheet'!S$11 -> Industrial
C81: DESCRIPTION | E81: ='Hot Sheet'!$H$12 -> Normalized | F81: ='Hot Sheet'!$I$12 -> Sch 1 | G81: ='Hot Sheet'!$J$12 -> Sch 6 | H81: ='Hot Sheet'!$K$12 -> Sch 8 | I81: ='Hot Sheet'!$L$12 -> Sch. 7,11,12 | J81: ='Hot Sheet'!$M$12 -> Sch 9 | K81: ='Hot Sheet'!$N$12 -> Sch 10 | L81: ='Hot Sheet'!$O$12 -> Sch 15 | M81: ='Hot Sheet'!$P$12 -> Sch 15 | N81: ='Hot Sheet'!$Q$12 -> Sch 23 | O81: ='Hot Sheet'!R$12 -> Cust 1 | P81: ='Hot Sheet'!S$12 -> Cust 2
C83: Operating Revenues | E83: =SUM(F83:P83) -> 73671183.31 | F83: 34484645.01 | G83: 24024341.01 | H83: 6583269.038 | I83: 294485.9451 | J83: 103148.9614 | K83: 1128025.606 | L83: 16659.05267 | M83: 21241.75904 | N83: 6985882.221 | O83: 13015.2971 | P83: 16469.40471
A84: 14
A85: =A84+1 -> 15 | C85: Operating Expenses
A86: =A85+1 -> 16 | C86: Operation & Maintenance Expenses | E86: =SUM(F86:P86) -> 18852437.73 | F86: 9632799.841 | G86: 5303603.067 | H86: 1612402.563 | I86: 145211.7811 | J86: 113198.2383 | K86: 299149.0869 | L86: 6011.964144 | M86: 4063.765617 | N86: 1705797.093 | O86: 13169.49589 | P86: 17030.83196 | Q86: =ROUND(SUM(F86:P86)-E86,0) -> 0
A87: 17 | C87: Depreciation Expense | E87: =SUM(F87:P87) -> 11461457.4 | F87: 5694989.344 | G87: 3446037.936 | H87: 1058333.225 | I87: 21423.44705 | J87: 1144.297536 | K87: 195874.3036 | L87: 2740.060835 | M87: 2022.832644 | N87: 1038729.841 | O87: 81.05628821 | P87: 81.05628821 | Q87: 0
A88: 18 | C88: Amortization Expense | E88: 670825.1019 | F88: 387999.2022 | G88: 156227.0142 | H88: 44551.46036 | I88: 10032.55639 | J88: 853.6674102 | K88: 9120.649685 | L88: 318.2896496 | M88: 219.1657077 | N88: 61380.75585 | O88: 61.11367893 | P88: 61.22677049 | Q88: 0
A89: 19 | C89: Taxes Other Than Income | E89: 2678201.792 | F89: 1561322.749 | G89: 625661.9505 | H89: 176969.1968 | I89: 30385.31933 | J89: 1318.382893 | K89: 36670.79988 | L89: 1300.758623 | M89: 879.6344765 | N89: 243441.1117 | O89: 129.2499368 | P89: 122.6384083 | Q89: 0
A90: 20 | C90: Income Taxes - Federal | E90: 12984806.69 | F90: 5798093.114 | G90: 4521584.08 | H90: 1118723.479 | I90: 73829.16006 | J90: 1564.790667 | K90: 179279.0795 | L90: 2729.220031 | M90: 5149.936288 | N90: 1283426.666 | O90: 275.8098515 | P90: 151.3504178 | Q90: 0
A91: 21 | C91: Income Taxes - State | E91: 1764419.573 | F91: 787864.5577 | G91: 614408.1807 | H91: 152015.9407 | I91: 10032.15668 | J91: 212.6290631 | K91: 24361.04939 | L91: 370.8556746 | M91: 699.7908098 | N91: 174396.3684 | O91: 37.47797809 | P91: 20.56600811 | Q91: 0
A92: 22 | C92: Income Taxes Deferred | E92: 1633306.423 | F92: 952175.6288 | G92: 381561.1227 | H92: 107924.9991 | I92: 18530.54441 | J92: 804.0182986 | K92: 22363.7566 | L92: 793.2701039 | M92: 536.4467475 | N92: 148463.0219 | O92: 78.82331819 | P92: 74.791265 | Q92: 0
A93: 23 | C93: Investment Tax Credit Adj | E93: -75623.51266 | F93: -44086.56251 | G93: -17666.61294 | H93: -4997.021634 | I93: -857.9803762 | J93: -37.22674883 | K93: -1035.461446 | L93: -36.72909804 | M93: -24.83795253 | N93: -6873.967468 | O93: -3.649588415 | P93: -3.462900834 | Q93: 0
A94: 24 | C94: Misc Revenues & Expense | E94: -9835.820885 | F94: -3399.019923 | G94: -2648.167702 | H94: -848.9918326 | I94: -18.64585156 | J94: -1721.471398 | K94: -91.72842399 | L94: -2.300599726 | M94: -4.172956504 | N94: -662.7214369 | O94: -211.4436831 | P94: -227.1570779 | Q94: 0
A95: 25
A96: 26 | C96: Total Operating Expenses | E96: =SUM(E86:E94) -> 49959995.37 | F96: 24767758.85 | G96: 15028768.57 | H96: 4265074.851 | I96: 308568.3388 | J96: 117337.326 | K96: 765691.5357 | L96: 14225.38936 | M96: 13542.56138 | N96: 4648098.168 | O96: =SUM(O86:O94) -> 13617.93367 | P96: =SUM(P86:P94) -> 17311.84114 | Q96: =ROUND(SUM(F96:P96)-E96,0) -> 0
A97: 27
A98: 28
A99: 29 | C99: Rate Base :
A100: 30 | C100: Electric Plant In Service | E100: =SUM(F100:P100) -> 507044505.7 | F100: 252437004.9 | G100: 152074748 | H100: 46710118.16 | I100: 930790.0754 | J100: 49223.37004 | K100: 8643605.895 | L100: 120606.3484 | M100: 89062.437 | N100: 45982373 | O100: 3486.736223 | P100: 3486.736223 | Q100: =ROUND(SUM(F100:P100)-E100,0) -> 0
A101: 31 | C101: Plant Held For Future Use | E101: 761384.6656 | F101: 372949.2186 | G101: 233383.5289 | H101: 72012.39828 | I101: 561.3394876 | J101: 0 | K101: 13241.95639 | L101: 166.5191492 | M101: 124.4855247 | N101: 68945.21923 | O101: 0 | P101: 0 | Q101: 0
A102: 32 | C102: Electric Plant Acquisition Adj | E102: 0 | F102: 0 | G102: 0 | H102: 0 | I102: 0 | J102: 0 | K102: 0 | L102: 0 | M102: 0 | N102: 0 | O102: 0 | P102: 0 | Q102: 0
A103: 33 | C103: Nuclear Fuel | E103: 0 | F103: 0 | G103: 0 | H103: 0 | I103: 0 | J103: 0 | K103: 0 | L103: 0 | M103: 0 | N103: 0 | O103: 0 | P103: 0 | Q103: 0
A104: 34 | C104: Prepayments | E104: 404074.5144 | F104: 233722.9913 | G104: 94102.49385 | H104: 26834.92355 | I104: 6043.712355 | J104: 506.800894 | K104: 5494.046424 | L104: 191.73346 | M104: 132.0112888 | N104: 36974.00278 | O104: 35.89922903 | P104: 35.89922903 | Q104: 0
A105: 35 | C105: Fuel Stock | E105: 0 | F105: 0 | G105: 0 | H105: 0 | I105: 0 | J105: 0 | K105: 0 | L105: 0 | M105: 0 | N105: 0 | O105: 0 | P105: 0 | Q105: 0
A106: 36 | C106: Materials & Supplies | E106: 1973416.649 | F106: 1141454.92 | G106: 459577.1855 | H106: 131056.236 | I106: 29516.24554 | J106: 2475.111115 | K106: 26831.79042 | L106: 936.3867023 | M106: 644.7159271 | N106: 180573.4093 | O106: 175.3244358 | P106: 175.3244358 | Q106: 0
A107: 37 | C107: Misc Deferred Debits | E107: 223674.1255 | F107: 129376.5972 | G107: 52090.12761 | H107: 14854.38414 | I107: 3345.477202 | J107: 280.5379769 | K107: 3041.211424 | L107: 106.1334295 | M107: 73.07441704 | N107: 20466.83828 | O107: 19.87190079 | P107: 19.87190079 | Q107: 0
A108: 38 | C108: Cash Working Capital | E108: 1105727.714 | F108: 575957.4685 | G108: 299661.5125 | H108: 84861.50098 | I108: 18269.04003 | J108: 6045.126533 | K108: 15465.1999 | L108: 454.4404147 | M108: 312.2742304 | N108: 103230.6643 | O108: 653.4181036 | P108: 817.068986 | Q108: 0
A109: 39 | C109: Weatherization Loans | E109: 0 | F109: 0 | G109: 0 | H109: 0 | I109: 0 | J109: 0 | K109: 0 | L109: 0 | M109: 0 | N109: 0 | O109: 0 | P109: 0 | Q109: 0
A110: 40 | C110: Miscellaneous Rate Base | E110: 0 | F110: 0 | G110: 0 | H110: 0 | I110: 0 | J110: 0 | K110: 0 | L110: 0 | M110: 0 | N110: 0 | O110: 0 | P110: 0 | Q110: 0
A111: 41
A112: 42 | C112: Total Rate Base Additions | E112: =SUM(E100:E110) -> 511512783.3 | F112: 254890466.1 | G112: 153213562.9 | H112: 47039737.6 | I112: 988525.89 | J112: 58530.94656 | K112: 8707680.1 | L112: 122461.5616 | M112: 90348.99839 | N112: 46392563.14 | O112: =SUM(O100:O110) -> 4371.249892 | P112: =SUM(P100:P110) -> 4534.900775 | Q112: =ROUND(SUM(F112:P112)-E112,0) -> 0
A113: 43
A114: 44 | C114: Rate Base Deductions :
A115: 45 | C115: Accum Provision For Depreciation | E115: =SUM(F115:P115) -> -99498075.81 | F115: -49558894.85 | G115: -29815554.48 | H115: -9149302.175 | I115: -205259.7301 | J115: -11634.38342 | K115: -1695258.601 | L115: -24133.5813 | M115: -17781.70248 | N115: -9018608.067 | O115: -824.1212673 | P115: -824.1212673 | Q115: =ROUND(SUM(F115:P115)-E115,0) -> 0
A116: 46 | C116: Accum Provision For Amortization | E116: -6178936.031 | F116: -3573992.818 | G116: -1438975.409 | H116: -410348.2653 | I116: -92417.88507 | J116: -7749.784242 | K116: -84012.62687 | L116: -2931.90672 | M116: -2018.660618 | N116: -565390.763 | O116: -548.9557788 | P116: -548.9557788 | Q116: 0
A117: 47 | C117: Accum Deferred Income Taxes | E117: -74634187 | F117: -43504206.45 | G117: -17397406.11 | H117: -4921864.994 | I117: -795093.5096 | J117: -87487.35697 | K117: -1023258.221 | L117: -36495.99855 | M117: -26173.88339 | N117: -6829816.915 | O117: -6191.782733 | P117: -6191.782733 | Q117: 0
A118: 48 | C118: Unamortized ITC | E118: -5428.00634 | F118: -3161.621948 | G118: -1264.964203 | H118: -358.1228164 | I118: -59.91204461 | J118: -6.58680807 | K118: -74.33925972 | L118: -2.663723952 | M118: -1.892156418 | N118: -496.9709951 | O118: -0.4661924082 | P118: -0.4661924082 | Q118: 0
A119: 49 | C119: Customer Advance For Construction | E119: -662934.9176 | F119: -258791.5382 | G119: -36597.17828 | H119: -11725.44367 | I119: -634.6141037 | J119: -114316.2233 | K119: -2499.563552 | L119: -1908.989191 | M119: -4914.139783 | N119: -231547.2275 | O119: 0 | P119: 0 | Q119: 0
A120: 50 | C120: Customer Service Deposits | E120: 0 | F120: 0 | G120: 0 | H120: 0 | I120: 0 | J120: 0 | K120: 0 | L120: 0 | M120: 0 | N120: 0 | O120: 0 | P120: 0 | Q120: 0
A121: 51 | C121: Misc Rate Base Deductions | E121: -1303356.143 | F121: -632870.2474 | G121: -322424.1716 | H121: -96902.21347 | I121: -12706.04396 | J121: -91944.31846 | K121: -15501.6921 | L121: -493.3984702 | M121: -476.5110635 | N121: -106722.9185 | O121: -11242.17123 | P121: -12072.45707 | Q121: 0
A122: 52
A123: 53 | C123: Total Rate Base Deductions | E123: =SUM(E115:E121) -> -182282917.9 | F123: -97531917.52 | G123: -49012222.31 | H123: -14590501.21 | I123: -1106171.695 | J123: -313138.6532 | K123: -2820605.044 | L123: -65966.53796 | M123: -51366.78948 | N123: -16752582.86 | O123: =SUM(O115:O121) -> -18807.4972 | P123: =SUM(P115:P121) -> -19637.78304 | Q123: =ROUND(SUM(F123:P123)-E123,0) -> 0
A124: 54
A125: 55 | C125: Total Rate Base | E125: =E112+E123 -> 329229865.4 | F125: 157358548.6 | G125: 104201340.6 | H125: 32449236.39 | I125: -117645.805 | J125: -254607.7067 | K125: 5887075.056 | L125: 56495.02364 | M125: 38982.20891 | N125: 29639980.27 | O125: =O112+O123 -> -14436.24731 | P125: =P112+P123 -> -15102.88227 | Q125: =ROUND(SUM(F125:P125)-E125,0) -> 0
A126: 56
A127: 57 | C127: Calculated Return On Rate Base | F127: ='Class Summary'!F60 -> 0.06174997321 | G127: ='Class Summary'!G60 -> 0.0863287592 | H127: ='Class Summary'!H60 -> 0.07144063913 | I127: ='Class Summary'!I60 -> 0.1197016225 | J127: ='Class Summary'!J60 -> 0.05572637504 | K127: ='Class Summary'!K60 -> 0.06154738424 | L127: ='Class Summary'!L60 -> 0.04307748096 | M127: ='Class Summary'!M60 -> 0.1975054231 | N127: ='Class Summary'!N60 -> 0.07887265888 | O127: ='Class Summary'!O60 -> 0.04174468285 | P127: ='Class Summary'!P60 -> 0.05577984465
A128: 58
A129: 59 | C129: Return On Rate Base | D129: =ActualROR -> 0.06924334573 | E129: =$D$129*E125 -> 22796977.4 | F129: 10896032.38 | G129: 7215249.45 | H129: =$D$129*H125 -> 2246893.694 | I129: -8146.189146 | J129: -17629.88946 | K129: 407640.7734 | L129: 3911.904454 | M129: 2699.258569 | N129: 2052371.401 | O129: =$D$129*O125 -> -999.6140632 | P129: =$D$129*P125 -> -1045.774098 | Q129: =ROUND(SUM(F129:P129)-E129,0) -> 0
A130: 60 | C130: Total Operating Expenses | E130: =E96 -> 49959995.37 | F130: 24767758.85 | G130: 15028768.57 | H130: =H96 -> 4265074.851 | I130: 308568.3388 | J130: 117337.326 | K130: 765691.5357 | L130: 14225.38936 | M130: 13542.56138 | N130: 4648098.168 | O130: =O96 -> 13617.93367 | P130: =P96 -> 17311.84114 | Q130: =ROUND(SUM(F130:P130)-E130,0) -> 0
A131: 61 | C131: Revenue Credits | E131: =SUM(F131:P131) -> -3283878.574 | F131: -1427396.268 | G131: -1076770.688 | H131: -260410.073 | I131: -39376.39239 | J131: -35118.31237 | K131: -83669.69454 | L131: -2110.339088 | M131: -920.8725867 | N131: -356837.1829 | O131: -574.7130465 | P131: -694.0382474 | Q131: =ROUND(SUM(F131:P131)-E131,0) -> 0
A132: 62
A133: 63 | C133: Total Revenue Requirements | E133: =E129+E130+E131 -> 69473094.19 | F133: 34236394.97 | G133: 21167247.33 | H133: 6251558.472 | I133: 261045.7573 | J133: 64589.12415 | K133: 1089662.615 | L133: 16026.95473 | M133: 15320.94736 | N133: 6343632.387 | O133: =O129+O130+O131 -> 12043.60656 | P133: =P129+P130+P131 -> 15572.02879 | Q133: =ROUND(SUM(F133:P133)-E133,0) -> 0
A134: 64
A135: 65
A136: 66 | C136: Return On Rate Base @ Target ROR | D136: =TargetROR -> 0.07780031876 | E136: =$D136*E125 -> 25614188.48 | F136: 12242545.24 | G136: 8106897.511 | H136: =$D136*H125 -> 2524560.935 | I136: -9152.881126 | J136: -19808.56074 | K136: 458016.316 | L136: 4395.330848 | M136: 3032.828279 | N136: 2305999.913 | O136: =$D136*O125 -> -1123.144642 | P136: =$D136*P125 -> -1175.009055 | Q136: =ROUND(SUM(F136:P136)-E136,0) -> 0
A137: 67 | C137: Total Operating Expenses Adjusted for Taxes | E137: =SUM(F137:P137) -> 51130278.61 | F137: =F130+((F136-(F127*F125))*(1/NetToGross))-(F136-(F127*F125)) -> 26320956.78 | G137: 14482262.49 | H137: 4391983.668 | I137: 311599.8282 | J137: 113881.0887 | K137: 824532.9947 | L137: 15431.7509 | M137: 10672.89646 | N137: 4628551.959 | O137: 13297.83819 | P137: 17107.31982 | Q137: =ROUND(SUM(F137:P137)-E137,0) -> 0
A138: 68 | C138: Revenue Credits | E138: =E131 -> -3283878.574 | F138: -1427396.268 | G138: -1076770.688 | H138: =H131 -> -260410.073 | I138: -39376.39239 | J138: -35118.31237 | K138: -83669.69454 | L138: -2110.339088 | M138: -920.8725867 | N138: -356837.1829 | O138: =O131 -> -574.7130465 | P138: =P131 -> -694.0382474 | Q138: =ROUND(SUM(F138:P138)-E138,0) -> 0
A139: 69
A140: 70 | C140: Total Target Revenue Requirements | E140: =SUM(E136:E138) -> 73460588.52 | F140: 37136105.75 | G140: 21512389.31 | H140: =SUM(H136:H138) -> 6656134.529 | I140: 263070.5547 | J140: 58954.21559 | K140: 1198879.616 | L140: 17716.74266 | M140: 12784.85215 | N140: 6577714.69 | O140: =SUM(O136:O138) -> 11599.9805 | P140: =SUM(P136:P138) -> 15238.27252 | Q140: =ROUND(SUM(F140:P140)-E140,0) -> 0
C142: =Inputs!$C$4 -> Rocky Mountain Power
C143: Cost Of Service By Rate Schedule - Distribution Poles & Wires
C144: =Inputs!$C$5 -> State of Utah
C145: =Inputs!$C$7 -> 2010 Protocol (Non Wgt)
C146: =Inputs!$C$6 -> 12 Months Ended June 2013
C149: A | D149: B | E149: C | F149: D | G149: E | H149: F | I149: G | J149: H | K149: I | L149: J | M149: K | N149: L | O149: M | P149: N
E150: ='Hot Sheet'!$H$10 -> Utah | G150: ='Hot Sheet'!$J$10 -> General | H150: ='Hot Sheet'!$K$10 -> General | I150: ='Hot Sheet'!$L$10 -> Street & Area | J150: ='Hot Sheet'!$M$10 -> General | L150: ='Hot Sheet'!$O$10 -> Traffic | M150: ='Hot Sheet'!$P$10 -> Outdoor | N150: ='Hot Sheet'!$Q$10 -> General | Q150: Chk Total
E151: ='Hot Sheet'!$H$11 -> Jurisdiction | F151: ='Hot Sheet'!$I$11 -> Residential | G151: ='Hot Sheet'!$J$11 -> Large Dist. | H151: ='Hot Sheet'!$K$11 -> +1 MW | I151: ='Hot Sheet'!$L$11 -> Lighting | J151: ='Hot Sheet'!$M$11 -> Trans | K151: ='Hot Sheet'!$N$11 -> Irrigation | L151: ='Hot Sheet'!$O$11 -> Signals | M151: ='Hot Sheet'!$P$11 -> Lighting | N151: ='Hot Sheet'!$Q$11 -> Small Dist. | O151: ='Hot Sheet'!R$11 -> Industrial | P151: ='Hot Sheet'!S$11 -> Industrial
C152: DESCRIPTION | E152: ='Hot Sheet'!$H$12 -> Normalized | F152: ='Hot Sheet'!$I$12 -> Sch 1 | G152: ='Hot Sheet'!$J$12 -> Sch 6 | H152: ='Hot Sheet'!$K$12 -> Sch 8 | I152: ='Hot Sheet'!$L$12 -> Sch. 7,11,12 | J152: ='Hot Sheet'!$M$12 -> Sch 9 | K152: ='Hot Sheet'!$N$12 -> Sch 10 | L152: ='Hot Sheet'!$O$12 -> Sch 15 | M152: ='Hot Sheet'!$P$12 -> Sch 15 | N152: ='Hot Sheet'!$Q$12 -> Sch 23 | O152: ='Hot Sheet'!R$12 -> Cust 1 | P152: ='Hot Sheet'!S$12 -> Cust 2 | Q152: =ROUND(SUM(Q157:Q211),0) -> 0
C154: Operating Revenues | E154: =SUM(F154:P154) -> 164196783 | F154: 86644226.78 | G154: 41344020.72 | H154: 11563392.99 | I154: 6406197.688 | J154: 231095.0911 | K154: 1968309.549 | L154: 43459.30866 | M154: 30797.60497 | N154: 15891711.32 | O154: 32011.72925 | P154: 41560.21862
A155: 14
A156: =A155+1 -> 15 | C156: Operating Expenses
A157: =A156+1 -> 16 | C157: Operation & Maintenance Expenses | E157: =SUM(F157:P157) -> 70261110.78 | F157: 39353316.21 | G157: 15933224.29 | H157: 4740894.739 | I157: 2442706.929 | J157: 313018.6007 | K157: 870637.3509 | L157: 35448.26873 | M157: 16801.42163 | N157: 6471739.13 | O157: 36348.65954 | P157: 46975.17889 | Q157: =ROUND(SUM(F157:P157)-E157,0) -> 0
A158: 17 | C158: Depreciation Expense | E158: 38115967.57 | F158: 20893914.37 | G158: 8933217.573 | H158: 2742739.841 | I158: 1562027.879 | J158: 3149.143122 | K158: 507823.8044 | L158: 7148.032397 | M158: 5273.325516 | N158: 3460227.462 | O158: 223.0694767 | P158: 223.0694767 | Q158: 0
A159: 18 | C159: Amortization Expense | E159: 1846131.962 | F159: 1067786.114 | G159: 429941.6993 | H159: 122607.0323 | I159: 27609.91348 | J159: 2349.319796 | K159: 25100.31729 | L159: 875.9432134 | M159: 603.1509807 | N159: 168921.7874 | O159: 168.1867832 | P159: 168.4980148 | Q159: 0
A160: 19 | C160: Taxes Other Than Income | E160: 7370496.298 | F160: 4296809.74 | G160: 1721841.537 | H160: 487024.844 | I160: 83621.36278 | J160: 3628.231548 | K160: 100919.2047 | L160: 3579.728997 | M160: 2420.781986 | N160: 669957.6625 | O160: 355.6999266 | P160: 337.5047903 | Q160: 0
A161: 20 | C161: Income Taxes - Federal | E161: -1700970.931 | F161: -2716588.651 | G161: 758608.7711 | H161: -37459.81051 | I161: 296993.4768 | J161: -43938.01187 | K161: -77892.46395 | L161: -6626.047047 | M161: -1736.413512 | N161: 133358.875 | O161: -2681.289931 | P161: -3009.365903 | Q161: 0
A162: 21 | C162: Income Taxes - State | E162: -231133.6993 | F162: -369139.2797 | G162: 103082.3328 | H162: -5090.166105 | I162: 40356.48094 | J162: -5970.446077 | K162: -10584.29219 | L162: -900.3697463 | M162: -235.9497574 | N162: 18121.25625 | O162: -364.34277 | P162: -408.9228458 | Q162: 0
A163: 22 | C163: Income Taxes Deferred | E163: 3004708.384 | F163: 1751667.693 | G163: 701938.037 | H163: 198543.9749 | I163: 34089.67316 | J163: 1479.110404 | K163: 41141.4331 | L163: 1459.337512 | M163: 986.8730185 | N163: 273119.655 | O163: 145.007135 | P163: 137.5895777 | Q163: 0
A164: 23 | C164: Investment Tax Credit Adj | E164: -208118.306 | F164: -121327.6187 | G164: -48619.07929 | H164: -13751.96207 | I164: -2361.189215 | J164: -102.4491938 | K164: -2849.622749 | L164: -101.079643 | M164: -68.35483335 | N164: -18917.37655 | O164: -10.0437831 | P164: -9.530012957 | Q164: 0
A165: 24 | C165: Misc Revenues & Expense | E165: -27068.49112 | F165: -9354.210662 | G165: -7287.841529 | H165: -2336.452458 | I165: -51.31397503 | J165: -4737.543902 | K165: -252.4395329 | L165: -6.331323434 | M165: -11.48410869 | N165: -1823.830419 | O165: -581.8997239 | P165: -625.1434851 | Q165: 0
A166: 25
A167: 26 | C167: Total Operating Expenses | E167: =SUM(E157:E165) -> 118431123.6 | F167: 64147084.36 | G167: 28525947.32 | H167: 8233172.04 | I167: 4484993.212 | J167: 268875.9545 | K167: 1454043.292 | L167: 40877.48309 | M167: 24033.35092 | N167: 11174704.62 | O167: =SUM(O157:O165) -> 33603.04665 | P167: =SUM(P157:P165) -> 43788.8785 | Q167: =ROUND(SUM(F167:P167)-E167,0) -> 0
A168: 27
A169: 28
A170: 29 | C170: Rate Base :
A171: 30 | C171: Electric Plant In Service | E171: =SUM(F171:P171) -> 1395402566 | F171: 783270725.7 | G171: 326754341.5 | H171: 100234369.4 | I171: 37045989.75 | J171: 135464.276 | K171: 18581092.96 | L171: 266441.6013 | M171: 196158.2583 | N171: 128898791 | O171: 9595.608703 | P171: 9595.608703 | Q171: =ROUND(SUM(F171:P171)-E171,0) -> 0
A172: 31 | C172: Plant Held For Future Use | E172: 2095354.755 | F172: 1026368.082 | G172: 642278.8757 | H172: 198180.4047 | I172: 1544.824078 | J172: 0 | K172: 36442.2841 | L172: 458.2659815 | M172: 342.5881133 | N172: 189739.4306 | O172: 0 | P172: 0 | Q172: 0
A173: 32 | C173: Electric Plant Acquisition Adj | E173: 0 | F173: 0 | G173: 0 | H173: 0 | I173: 0 | J173: 0 | K173: 0 | L173: 0 | M173: 0 | N173: 0 | O173: 0 | P173: 0 | Q173: 0
A174: 33 | C174: Nuclear Fuel | E174: 0 | F174: 0 | G174: 0 | H174: 0 | I174: 0 | J174: 0 | K174: 0 | L174: 0 | M174: 0 | N174: 0 | O174: 0 | P174: 0 | Q174: 0
A175: 34 | C175: Prepayments | E175: 1112025.883 | F175: 643213.0871 | G175: 258973.0485 | H175: 73850.56096 | I175: 16632.48814 | J175: 1394.732139 | K175: 15119.79006 | L175: 527.6565646 | M175: 363.2992549 | N175: 101753.6287 | O175: 98.79581721 | P175: 98.79581721 | Q175: 0
A176: 35 | C176: Fuel Stock | E176: 0 | F176: 0 | G176: 0 | H176: 0 | I176: 0 | J176: 0 | K176: 0 | L176: 0 | M176: 0 | N176: 0 | O176: 0 | P176: 0 | Q176: 0
A177: 36 | C177: Materials & Supplies | E177: 5430905.225 | F177: 3141320.151 | G177: 1264770.995 | H177: 360670.9192 | I177: 81229.64413 | J177: 6811.584311 | K177: 73841.93847 | L177: 2576.965912 | M177: 1774.278685 | N177: 496943.751 | O177: 482.4984095 | P177: 482.4984095 | Q177: 0
A178: 37 | C178: Misc Deferred Debits | E178: 615558.2896 | F178: 356048.5001 | G178: 143353.6838 | H178: 40879.73642 | I178: 9206.859397 | J178: 772.0494125 | K178: 8369.510323 | L178: 292.0825651 | M178: 201.103114 | N178: 56325.38826 | O178: 54.68810141 | P178: 54.68810141 | Q178: 0
A179: 38 | C179: Cash Working Capital | E179: 2647080.364 | F179: 1447849.704 | G179: 628961.5548 | H179: 180474.1992 | I179: 85527.37944 | J179: 15762.24494 | K179: 32696.64366 | L179: 1297.291298 | M179: 655.1777489 | N179: 249933.7659 | O179: 1735.880742 | P179: 2186.522136 | Q179: 0
A180: 39 | C180: Weatherization Loans | E180: 0 | F180: 0 | G180: 0 | H180: 0 | I180: 0 | J180: 0 | K180: 0 | L180: 0 | M180: 0 | N180: 0 | O180: 0 | P180: 0 | Q180: 0
A181: 40 | C181: Miscellaneous Rate Base | E181: 0 | F181: 0 | G181: 0 | H181: 0 | I181: 0 | J181: 0 | K181: 0 | L181: 0 | M181: 0 | N181: 0 | O181: 0 | P181: 0 | Q181: 0
A182: 41
A183: 42 | C183: Total Rate Base Additions | E183: =SUM(E171:E181) -> 1407303490 | F183: 789885525.2 | G183: 329692679.7 | H183: 101088425.2 | I183: 37240130.95 | J183: 160204.8868 | K183: 18747563.13 | L183: 271593.8637 | M183: 199494.7052 | N183: 129993487 | O183: =SUM(O171:O181) -> 11967.47177 | P183: =SUM(P171:P181) -> 12418.11317 | Q183: =ROUND(SUM(F183:P183)-E183,0) -> 0
A184: 43
A185: 44 | C185: Rate Base Deductions :
A186: 45 | C186: Accum Provision For Depreciation | E186: =SUM(F186:P186) -> -543566761.8 | F186: -297490004.4 | G186: -130007150.4 | H186: -39975706.93 | I186: -18928703.48 | J186: -32018.19227 | K186: -7386257.742 | L186: -100631.4169 | M186: -74514.10872 | N186: -49567239.15 | O186: -2268.007873 | P186: -2268.007873 | Q186: =ROUND(SUM(F186:P186)-E186,0) -> 0
A187: 46 | C187: Accum Provision For Amortization | E187: -17004627.98 | F187: -9835741.621 | G187: -3960105.979 | H187: -1129291.444 | I187: -254336.9517 | J187: -21327.6521 | K187: -231205.4145 | L187: -8068.700308 | M187: -5555.418062 | N187: -1555973.317 | O187: -1510.743719 | P187: -1510.743719 | Q187: 0
A188: 47 | C188: Accum Deferred Income Taxes | E188: -198335494.7 | F188: -115770845.7 | G188: -46254144.49 | H188: -13068276.81 | I188: -1970266.557 | J188: -217176.3094 | K188: -2724740.199 | L188: -96340.50852 | M188: -70336.28184 | N188: -18132630.15 | O188: -15368.86696 | P188: -15368.86696 | Q188: 0
A189: 48 | C189: Unamortized ITC | E189: -14938.04565 | F189: -8700.883905 | G189: -3481.221618 | H189: -985.5653523 | I189: -164.8798475 | J189: -18.12710478 | K189: -204.5840012 | L189: -7.330652822 | M189: -5.207274492 | N189: -1367.679945 | O189: -1.282976297 | P189: -1.282976297 | Q189: 0
A190: 49 | C190: Customer Advance For Construction | E190: -1824417.925 | F190: -712202.5234 | G190: -100716.5957 | H190: -32268.79298 | I190: -1746.478147 | J190: -314601.8733 | K190: -6878.878196 | L190: -5253.598816 | M190: -13523.86859 | N190: -637225.3158 | O190: 0 | P190: 0 | Q190: 0
A191: 50 | C191: Customer Service Deposits | E191: 0 | F191: 0 | G191: 0 | H191: 0 | I191: 0 | J191: 0 | K191: 0 | L191: 0 | M191: 0 | N191: 0 | O191: 0 | P191: 0 | Q191: 0
A192: 51 | C192: Misc Rate Base Deductions | E192: -3586877.456 | F192: -1741678.999 | G192: -887321.5492 | H192: -266677.9657 | I192: -34967.43607 | J192: -253033.6814 | K192: -42661.14845 | L192: -1357.848243 | M192: -1311.373564 | N192: -293704.8576 | O192: -30938.81187 | P192: -33223.78486 | Q192: 0
A193: 52
A194: 53 | C194: Total Rate Base Deductions | E194: =SUM(E186:E192) -> -764333118 | F194: -425559174.1 | G194: -181212920.2 | H194: -54473207.5 | I194: -21190185.79 | J194: -838175.8355 | K194: -10391947.97 | L194: -211659.4035 | M194: -165246.258 | N194: -70188140.47 | O194: =SUM(O186:O192) -> -50087.71341 | P194: =SUM(P186:P192) -> -52372.68639 | Q194: =ROUND(SUM(F194:P194)-E194,0) -> 0
A195: 54
A196: 55 | C196: Total Rate Base | E196: =E183+E194 -> 642970372.3 | F196: 364326351.1 | G196: 148479759.5 | H196: 46615217.73 | I196: 16049945.16 | J196: -677970.9487 | K196: 8355615.162 | L196: 59934.4602 | M196: 34248.44718 | N196: 59805346.52 | O196: =O183+O194 -> -38120.24163 | P196: =P183+P194 -> -39954.57322 | Q196: =ROUND(SUM(F196:P196)-E196,0) -> 0
A197: 56
A198: 57 | C198: Calculated Return On Rate Base | F198: ='Class Summary'!F60 -> 0.06174997321 | G198: ='Class Summary'!G60 -> 0.0863287592 | H198: ='Class Summary'!H60 -> 0.07144063913 | I198: ='Class Summary'!I60 -> 0.1197016225 | J198: ='Class Summary'!J60 -> 0.05572637504 | K198: ='Class Summary'!K60 -> 0.06154738424 | L198: ='Class Summary'!L60 -> 0.04307748096 | M198: ='Class Summary'!M60 -> 0.1975054231 | N198: ='Class Summary'!N60 -> 0.07887265888 | O198: ='Class Summary'!O60 -> 0.04174468285 | P198: ='Class Summary'!P60 -> 0.05577984465
A199: 58
A200: 59 | C200: Return On Rate Base | D200: =ActualROR -> 0.06924334573 | E200: =$D$200*E196 -> 44521419.78 | F200: 25227175.49 | G200: 10281235.32 | H200: =$D$200*H196 -> 3227793.637 | I200: 1111351.902 | J200: -46944.9768 | K200: 578570.7494 | L200: 4150.062549 | M200: 2371.477069 | N200: 4141122.286 | O200: =$D$200*O196 -> -2639.573071 | P200: =$D$200*P196 -> -2766.588327 | Q200: =ROUND(SUM(F200:P200)-E200,0) -> 0
A201: 60 | C201: Total Operating Expenses | E201: =E167 -> 118431123.6 | F201: 64147084.36 | G201: 28525947.32 | H201: =H167 -> 8233172.04 | I201: 4484993.212 | J201: 268875.9545 | K201: 1454043.292 | L201: 40877.48309 | M201: 24033.35092 | N201: 11174704.62 | O201: =O167 -> 33603.04665 | P201: =P167 -> 43788.8785 | Q201: =ROUND(SUM(F201:P201)-E201,0) -> 0
A202: 61 | C202: Revenue Credits | E202: =SUM(F202:P202) -> -6981181.112 | F202: -3071005.248 | G202: -2272582.676 | H202: -560536.5755 | I202: -78211.13706 | J202: -68692.17907 | K202: -173075.325 | L202: -4262.313605 | M202: -1901.478374 | N202: -748424.4829 | O202: -1128.275609 | P202: -1361.421003 | Q202: =ROUND(SUM(F202:P202)-E202,0) -> 0
A203: 62
A204: 63 | C204: Total Revenue Requirements | E204: =E200+E201+E202 -> 155971362.2 | F204: 86303254.6 | G204: 36534599.96 | H204: 10900429.1 | I204: 5518133.976 | J204: 153238.7986 | K204: 1859538.716 | L204: 40765.23203 | M204: 24503.34961 | N204: 14567402.42 | O204: =O200+O201+O202 -> 29835.19797 | P204: =P200+P201+P202 -> 39660.86917 | Q204: =ROUND(SUM(F204:P204)-E204,0) -> 0
A205: 64
A206: 65
A207: 66 | C207: Return On Rate Base @ Target ROR | D207: =TargetROR -> 0.07780031876 | E207: =$D207*E196 -> 50023299.92 | F207: 28344706.25 | G207: 11551772.62 | H207: =$D207*H196 -> 3626678.799 | I207: 1248690.85 | J207: -52746.35592 | K207: 650069.5231 | L207: 4662.920109 | M207: 2664.540108 | N207: 4652875.023 | O207: =$D207*O196 -> -2965.76695 | P207: =$D207*P196 -> -3108.478533 | Q207: =ROUND(SUM(F207:P207)-E207,0) -> 0
A208: 67 | C208: Total Operating Expenses Adjusted for Taxes | E208: =SUM(F208:P208) -> 121049433.5 | F208: =F201+((F207-(F198*F196))*(1/NetToGross))-(F207-(F198*F196)) -> 67743145.33 | G208: 27747213.66 | H208: 8415483.945 | I208: 4071419.274 | J208: 259672.6649 | K208: 1537557.87 | L208: 42157.28833 | M208: 21512.16061 | N208: 11135265.73 | O208: 32757.80502 | P208: 43247.81874 | Q208: =ROUND(SUM(F208:P208)-E208,0) -> 0
A209: 68 | C209: Revenue Credits | E209: =E202 -> -6981181.112 | F209: -3071005.248 | G209: -2272582.676 | H209: =H202 -> -560536.5755 | I209: -78211.13706 | J209: -68692.17907 | K209: -173075.325 | L209: -4262.313605 | M209: -1901.478374 | N209: -748424.4829 | O209: =O202 -> -1128.275609 | P209: =P202 -> -1361.421003 | Q209: =ROUND(SUM(F209:P209)-E209,0) -> 0
A210: 69
A211: 70 | C211: Total Target Revenue Requirements | E211: =SUM(E207:E209) -> 164091552.3 | F211: 93016846.33 | G211: 37026403.6 | H211: 11481626.17 | I211: 5241898.986 | J211: 138234.1299 | K211: 2014552.068 | L211: 42557.89484 | M211: 22275.22234 | N211: 15039716.28 | O211: =SUM(O207:O209) -> 28663.76246 | P211: =SUM(P207:P209) -> 38777.91921 | Q211: =ROUND(SUM(F211:P211)-E211,0) -> 0
... 201 more rows

Sheet Retail Summary
C1: Retail Summary
C2: =Inputs!$C$4 -> Rocky Mountain Power
C3: Cost Of Service By Rate Schedule - Retail Services Function
C4: =Inputs!$C$5 -> State of Utah
C5: =Inputs!$C$7 -> 2010 Protocol (Non Wgt)
C6: =Inputs!$C$6 -> 12 Months Ended June 2013
C9: A | D9: B | E9: C | F9: D | G9: E | H9: F | I9: G | J9: H | K9: I | L9: J | M9: K | N9: L | O9: M | P9: N
E10: ='Hot Sheet'!$H$10 -> Utah | G10: ='Hot Sheet'!$J$10 -> General | H10: ='Hot Sheet'!K10 -> General | I10: ='Hot Sheet'!$L$10 -> Street & Area | J10: ='Hot Sheet'!$M$10 -> General | L10: ='Hot Sheet'!$O$10 -> Traffic | M10: ='Hot Sheet'!$P$10 -> Outdoor | N10: ='Hot Sheet'!$Q$10 -> General | Q10: Chk Total
E11: ='Hot Sheet'!$H$11 -> Jurisdiction | F11: ='Hot Sheet'!$I$11 -> Residential | G11: ='Hot Sheet'!$J$11 -> Large Dist. | H11: ='Hot Sheet'!K11 -> +1 MW | I11: ='Hot Sheet'!$L$11 -> Lighting | J11: ='Hot Sheet'!$M$11 -> Trans | K11: ='Hot Sheet'!$N$11 -> Irrigation | L11: ='Hot Sheet'!$O$11 -> Signals | M11: ='Hot Sheet'!$P$11 -> Lighting | N11: ='Hot Sheet'!$Q$11 -> Small Dist. | O11: ='Hot Sheet'!R$11 -> Industrial | P11: ='Hot Sheet'!S$11 -> Industrial
C12: DESCRIPTION | E12: ='Hot Sheet'!$H$12 -> Normalized | F12: ='Hot Sheet'!$I$12 -> Sch 1 | G12: ='Hot Sheet'!$J$12 -> Sch 6 | H12: ='Hot Sheet'!K12 -> Sch 8 | I12: ='Hot Sheet'!$L$12 -> Sch. 7,11,12 | J12: ='Hot Sheet'!$M$12 -> Sch 9 | K12: ='Hot Sheet'!$N$12 -> Sch 10 | L12: ='Hot Sheet'!$O$12 -> Sch 15 | M12: ='Hot Sheet'!$P$12 -> Sch 15 | N12: ='Hot Sheet'!$Q$12 -> Sch 23 | O12: ='Hot Sheet'!R$12 -> Cust 1 | P12: ='Hot Sheet'!S$12 -> Cust 2 | Q12: =ROUND(SUM(Q15:Q69),0) -> 0
A14: =ROW() -> 14 | C14: Operating Expenses
A15: =ROW() -> 15 | C15: Operation & Maintenance Expenses | E15: ='Function Summary'!$I15 -> 40941008.63 | F15: =Retail!$I$17 -> 35533632.7 | G15: =Retail!J17 -> 940877.5688 | H15: =Retail!K17 -> 204807.3276 | I15: =Retail!L17 -> 333639.3818 | J15: =Retail!M17 -> 204031.5176 | K15: =Retail!N17 -> 98494.85482 | L15: =Retail!O17 -> 95639.91772 | M15: =Retail!P17 -> 27224.32077 | N15: =Retail!Q17 -> 3498314.535 | O15: =Retail!R17 -> 1594.715232 | P15: =Retail!S17 -> 2751.791718 | Q15: =ROUND(SUM(F15:P15)-E15,0) -> 0
A16: =ROW() -> 16 | C16: Depreciation Expense | E16: ='Function Summary'!$I16 -> 805333.9993 | F16: =Retail!$I$18 -> 701044.2711 | G16: =Retail!J18 -> 15699.4452 | H16: =Retail!K18 -> 282.6842416 | I16: =Retail!L18 -> 8323.490513 | J16: =Retail!M18 -> 517.9061658 | K16: =Retail!N18 -> 2774.980245 | L16: =Retail!O18 -> 2034.670127 | M16: =Retail!P18 -> 578.1912949 | N16: =Retail!Q18 -> 74071.54586 | O16: =Retail!R18 -> 3.407277406 | P16: =Retail!S18 -> 3.407277406 | Q16: 0
A17: =ROW() -> 17 | C17: Amortization Expense | E17: ='Function Summary'!$I17 -> 3055455.636 | F17: =Retail!$I$19 -> 2659778.019 | G17: =Retail!J19 -> 59564.05459 | H17: =Retail!K19 -> 1072.510486 | I17: =Retail!L19 -> 31579.51362 | J17: =Retail!M19 -> 1964.947853 | K17: =Retail!N19 -> 10528.3386 | L17: =Retail!O19 -> 7719.585058 | M17: =Retail!P19 -> 2193.671014 | N17: =Retail!Q19 -> 281029.1413 | O17: =Retail!R19 -> 12.92728851 | P17: =Retail!S19 -> 12.92728851 | Q17: 0
A18: =ROW() -> 18 | C18: Taxes Other Than Income | E18: ='Function Summary'!$I18 -> 324809.9688 | F18: =Retail!$I$20 -> -601030.8248 | G18: =Retail!J20 -> 66292.25893 | H18: =Retail!K20 -> 164683.1142 | I18: =Retail!L20 -> -9523.204853 | J18: =Retail!M20 -> 281179.9177 | K18: =Retail!N20 -> 9292.558029 | L18: =Retail!O20 -> -3664.866809 | M18: =Retail!P20 -> -471.1806975 | N18: =Retail!Q20 -> 413151.346 | O18: =Retail!R20 -> 2362.371249 | P18: =Retail!S20 -> 2538.479809 | Q18: 0
A19: =ROW() -> 19 | C19: Income Taxes - Federal | E19: ='Function Summary'!$I19 -> 253430.3381 | F19: =Retail!$I$21 -> 551195.1904 | G19: =Retail!J21 -> 335487.6254 | H19: =Retail!K21 -> -81820.92064 | I19: =Retail!L21 -> 18603.04642 | J19: =Retail!M21 -> -130803.026 | K19: =Retail!N21 -> 2880.50304 | L19: =Retail!O21 -> 3163.069078 | M19: =Retail!P21 -> 1276.720651 | N19: =Retail!Q21 -> -499376.327 | O19: =Retail!R21 -> 25601.75105 | P19: =Retail!S21 -> 27222.70577 | Q19: 0
A20: =ROW() -> 20 | C20: Income Taxes - State | E20: ='Function Summary'!$I20 -> 34436.97391 | F20: =Retail!$I$22 -> 74898.27196 | G20: =Retail!J22 -> 45587.19641 | H20: =Retail!K22 -> -11118.10421 | I20: =Retail!L22 -> 2527.845044 | J20: =Retail!M22 -> -17773.95882 | K20: =Retail!N22 -> 391.4125228 | L20: =Retail!O22 -> 429.8085544 | M20: =Retail!P22 -> 173.4851323 | N20: =Retail!Q22 -> -67856.94905 | O20: =Retail!R22 -> 3478.852767 | P20: =Retail!S22 -> 3699.113591 | Q20: 0
A21: =ROW() -> 21 | C21: Income Taxes Deferred | E21: ='Function Summary'!$I21 -> -645181.1948 | F21: =Retail!$I$23 -> 1193848.166 | G21: =Retail!J23 -> -131678.5903 | H21: =Retail!K23 -> -327115.7249 | I21: =Retail!L23 -> 18916.26882 | J21: =Retail!M23 -> -558517.3261 | K21: =Retail!N23 -> -18458.12712 | L21: =Retail!O23 -> 7279.650793 | M21: =Retail!P23 -> 935.9223996 | N21: =Retail!Q23 -> -820656.706 | O21: =Retail!R23 -> -4692.459135 | P21: =Retail!S23 -> -5042.269615 | Q21: 0
A22: =ROW() -> 22 | C22: Investment Tax Credit Adj | E22: ='Function Summary'!$I22 -> 0 | F22: =Retail!$I$24 -> 0 | G22: =Retail!J24 -> 0 | H22: =Retail!K24 -> 0 | I22: =Retail!L24 -> 0 | J22: =Retail!M24 -> 0 | K22: =Retail!N24 -> 0 | L22: =Retail!O24 -> 0 | M22: =Retail!P24 -> 0 | N22: =Retail!Q24 -> 0 | O22: =Retail!R24 -> 0 | P22: =Retail!S24 -> 0 | Q22: 0
A23: =ROW() -> 23 | C23: Misc Revenues & Expense | E23: ='Function Summary'!$I23 -> 931249.07 | F23: =Retail!$I$25 -> 820185.9852 | G23: =Retail!J25 -> 52155.90536 | H23: =Retail!K25 -> 15545.90832 | I23: =Retail!L25 -> 0 | J23: =Retail!M25 -> 25934.88181 | K23: =Retail!N25 -> 3919.305805 | L23: =Retail!O25 -> 0 | M23: =Retail!P25 -> 0 | N23: =Retail!Q25 -> 13507.08349 | O23: =Retail!R25 -> 0 | P23: =Retail!S25 -> 0 | Q23: 0
A24: =ROW() -> 24
A25: =ROW() -> 25 | C25: Total Operating Expenses | E25: =SUM(E15:E23) -> 45700543.42 | F25: =SUM(F15:F23) -> 40933551.78 | G25: =SUM(G15:G23) -> 1383985.464 | H25: =SUM(H15:H23) -> -33663.2049 | I25: 404066.3413 | J25: -193465.1398 | K25: 109823.8259 | L25: 112601.8345 | M25: 31911.13056 | N25: 2892183.669 | O25: 28361.56573 | P25: 31186.15584 | Q25: =ROUND(SUM(F25:P25)-E25,0) -> 0
A26: =ROW() -> 26
A27: =ROW() -> 27
A28: =ROW() -> 28 | C28: Rate Base :
A29: =ROW() -> 29 | C29: Electric Plant In Service | E29: ='Function Summary'!$I29 -> 72135352.36 | F29: =Retail!$I$33 -> 62793916.01 | G29: =Retail!J33 -> 1406230.225 | H29: =Retail!K33 -> 25320.58425 | I29: =Retail!L33 -> 745551.4377 | J29: =Retail!M33 -> 46389.87525 | K29: =Retail!N33 -> 248560.4457 | L29: =Retail!O33 -> 182249.4104 | M29: =Retail!P33 -> 51789.73299 | N29: =Retail!Q33 -> 6634734.241 | O29: =Retail!R33 -> 305.1965477 | P29: =Retail!S33 -> 305.1965477 | Q29: =ROUND(SUM(F29:P29)-E29,0) -> 0
A30: =ROW() -> 30 | C30: Plant Held For Future Use | E30: ='Function Summary'!$I30 -> 0 | F30: =Retail!$I$34 -> 0 | G30: =Retail!J34 -> 0 | H30: =Retail!K34 -> 0 | I30: =Retail!L34 -> 0 | J30: =Retail!M34 -> 0 | K30: =Retail!N34 -> 0 | L30: =Retail!O34 -> 0 | M30: =Retail!P34 -> 0 | N30: =Retail!Q34 -> 0 | O30: =Retail!R34 -> 0 | P30: =Retail!S34 -> 0 | Q30: 0
A31: =ROW() -> 31 | C31: Electric Plant Acquisition Adj | E31: ='Function Summary'!$I31 -> 0 | F31: =Retail!$I$35 -> 0 | G31: =Retail!J35 -> 0 | H31: =Retail!K35 -> 0 | I31: =Retail!L35 -> 0 | J31: =Retail!M35 -> 0 | K31: =Retail!N35 -> 0 | L31: =Retail!O35 -> 0 | M31: =Retail!P35 -> 0 | N31: =Retail!Q35 -> 0 | O31: =Retail!R35 -> 0 | P31: =Retail!S35 -> 0 | Q31: 0
A32: =ROW() -> 32 | C32: Nuclear Fuel | E32: ='Function Summary'!$I32 -> 0 | F32: =Retail!$I$36 -> 0 | G32: =Retail!J36 -> 0 | H32: =Retail!K36 -> 0 | I32: =Retail!L36 -> 0 | J32: =Retail!M36 -> 0 | K32: =Retail!N36 -> 0 | L32: =Retail!O36 -> 0 | M32: =Retail!P36 -> 0 | N32: =Retail!Q36 -> 0 | O32: =Retail!R36 -> 0 | P32: =Retail!S36 -> 0 | Q32: 0
A33: =ROW() -> 33 | C33: Prepayments | E33: ='Function Summary'!$I33 -> 11004.1794 | F33: =Retail!$I$37 -> 4493.692721 | G33: =Retail!J37 -> 2850.922263 | H33: =Retail!K37 -> 889.3617879 | I33: =Retail!L37 -> 59.83100658 | J33: =Retail!M37 -> 1416.834389 | K33: =Retail!N37 -> 115.2606032 | L33: =Retail!O37 -> 3.289324005 | M33: =Retail!P37 -> 4.37221393 | N33: =Retail!Q37 -> 812.6446803 | O33: =Retail!R37 -> 172.7946726 | P33: =Retail!S37 -> 185.1757353 | Q33: 0
A34: =ROW() -> 34 | C34: Fuel Stock | E34: ='Function Summary'!$I34 -> 0 | F34: =Retail!$I$38 -> 0 | G34: =Retail!J38 -> 0 | H34: =Retail!K38 -> 0 | I34: =Retail!L38 -> 0 | J34: =Retail!M38 -> 0 | K34: =Retail!N38 -> 0 | L34: =Retail!O38 -> 0 | M34: =Retail!P38 -> 0 | N34: =Retail!Q38 -> 0 | O34: =Retail!R38 -> 0 | P34: =Retail!S38 -> 0 | Q34: 0
A35: =ROW() -> 35 | C35: Materials & Supplies | E35: ='Function Summary'!$I35 -> 0 | F35: =Retail!$I$39 -> 0 | G35: =Retail!J39 -> 0 | H35: =Retail!K39 -> 0 | I35: =Retail!L39 -> 0 | J35: =Retail!M39 -> 0 | K35: =Retail!N39 -> 0 | L35: =Retail!O39 -> 0 | M35: =Retail!P39 -> 0 | N35: =Retail!Q39 -> 0 | O35: =Retail!R39 -> 0 | P35: =Retail!S39 -> 0 | Q35: 0
A36: =ROW() -> 36 | C36: Misc Deferred Debits | E36: ='Function Summary'!$I36 -> -13010.44192 | F36: =Retail!$I$40 -> -5312.974831 | G36: =Retail!J40 -> -3370.697368 | H36: =Retail!K40 -> -1051.508656 | I36: =Retail!L40 -> -70.73928988 | J36: =Retail!M40 -> -1675.149129 | K36: =Retail!N40 -> -136.2747125 | L36: =Retail!O40 -> -3.88902774 | M36: =Retail!P40 -> -5.169348241 | N36: =Retail!Q40 -> -960.8046212 | O36: =Retail!R40 -> -204.2982917 | P36: =Retail!S40 -> -218.9366478 | Q36: 0
A37: =ROW() -> 37 | C37: Cash Working Capital | E37: ='Function Summary'!$I37 -> 757375.3669 | F37: =Retail!$I$41 -> 649034.4018 | G37: =Retail!J41 -> 24510.62993 | H37: =Retail!K41 -> 4914.989171 | I37: =Retail!L41 -> 6280.528798 | J37: =Retail!M41 -> 5898.807933 | K37: =Retail!N41 -> 2003.939984 | L37: =Retail!O41 -> 1744.610336 | M37: =Retail!P41 -> 513.0013202 | N37: =Retail!Q41 -> 61330.81548 | O37: =Retail!R41 -> 544.7202399 | P37: =Retail!S41 -> 598.9219108 | Q37: 0
A38: =ROW() -> 38 | C38: Weatherization Loans | E38: ='Function Summary'!$I38 -> 0 | F38: =Retail!$I$42 -> 0 | G38: =Retail!J42 -> 0 | H38: =Retail!K42 -> 0 | I38: =Retail!L42 -> 0 | J38: =Retail!M42 -> 0 | K38: =Retail!N42 -> 0 | L38: =Retail!O42 -> 0 | M38: =Retail!P42 -> 0 | N38: =Retail!Q42 -> 0 | O38: =Retail!R42 -> 0 | P38: =Retail!S42 -> 0 | Q38: 0
A39: =ROW() -> 39 | C39: Miscellaneous Rate Base | E39: ='Function Summary'!$I39 -> 0 | F39: =Retail!$I$43 -> 0 | G39: =Retail!J43 -> 0 | H39: =Retail!K43 -> 0 | I39: =Retail!L43 -> 0 | J39: =Retail!M43 -> 0 | K39: =Retail!N43 -> 0 | L39: =Retail!O43 -> 0 | M39: =Retail!P43 -> 0 | N39: =Retail!Q43 -> 0 | O39: =Retail!R43 -> 0 | P39: =Retail!S43 -> 0 | Q39: 0
A40: =ROW() -> 40
A41: =ROW() -> 41 | C41: Total Rate Base Additions | E41: =SUM(E29:E39) -> 72890721.46 | F41: =SUM(F29:F39) -> 63442131.13 | G41: =SUM(G29:G39) -> 1430221.08 | H41: =SUM(H29:H39) -> 30073.42655 | I41: 751821.0582 | J41: 52030.36844 | K41: 250543.3716 | L41: 183993.4211 | M41: 52301.93717 | N41: 6695916.896 | O41: 818.4131685 | P41: 870.3575459 | Q41: =ROUND(SUM(F41:P41)-E41,0) -> 0
A42: =ROW() -> 42
A43: =ROW() -> 43 | C43: Rate Base Deductions :
A44: =ROW() -> 44 | C44: Accum Provision For Depreciation | E44: ='Function Summary'!$I44 -> -4178464.867 | F44: =Retail!$I$48 -> -3637358.984 | G44: =Retail!J48 -> -81456.36499 | H44: =Retail!K48 -> -1466.703471 | I44: =Retail!L48 -> -43186.32109 | J44: =Retail!M48 -> -2687.149332 | K44: =Retail!N48 -> -14397.94852 | L44: =Retail!O48 -> -10556.85921 | M44: =Retail!P48 -> -2999.937932 | N44: =Retail!Q48 -> -384319.2418 | O44: =Retail!R48 -> -17.67861403 | P44: =Retail!S48 -> -17.67861403 | Q44: =ROUND(SUM(F44:P44)-E44,0) -> 0
A45: =ROW() -> 45 | C45: Accum Provision For Amortization | E45: ='Function Summary'!$I45 -> -53613373.11 | F45: =Retail!$I$49 -> -46663439.02 | G45: =Retail!J49 -> -1042829.79 | H45: =Retail!K49 -> -18777.19528 | I45: =Retail!L49 -> -555770.8524 | J45: =Retail!M49 -> -33748.06969 | K45: =Retail!N49 -> -184928.9255 | L45: =Retail!O49 -> -135855.3774 | M45: =Retail!P49 -> -38605.96148 | N45: =Retail!Q49 -> -4938973.859 | O45: =Retail!R49 -> -222.0267743 | P45: =Retail!S49 -> -222.0267743 | Q45: 0
A46: =ROW() -> 46 | C46: Accum Deferred Income Taxes | E46: ='Function Summary'!$I46 -> -1739016.037 | F46: =Retail!$I$50 -> -1472836.098 | G46: =Retail!J50 -> -15592.57581 | H46: =Retail!K50 -> 27055.40637 | I46: =Retail!L50 -> -23023.8907 | J46: =Retail!M50 -> 44742.59187 | K46: =Retail!N50 -> -7713.772394 | L46: =Retail!O50 -> 1958.813714 | M46: =Retail!P50 -> -5134.231185 | N46: =Retail!Q50 -> -288871.2029 | O46: =Retail!R50 -> 199.4606588 | P46: =Retail!S50 -> 199.4606588 | Q46: 0
A47: =ROW() -> 47 | C47: Unamortized ITC | E47: ='Function Summary'!$I47 -> 0 | F47: =Retail!$I$51 -> 0 | G47: =Retail!J51 -> 0 | H47: =Retail!K51 -> 0 | I47: =Retail!L51 -> 0 | J47: =Retail!M51 -> 0 | K47: =Retail!N51 -> 0 | L47: =Retail!O51 -> 0 | M47: =Retail!P51 -> 0 | N47: =Retail!Q51 -> 0 | O47: =Retail!R51 -> 0 | P47: =Retail!S51 -> 0 | Q47: 0
A48: =ROW() -> 48 | C48: Customer Advance For Construction | E48: ='Function Summary'!$I48 -> 0 | F48: =Retail!$I$52 -> 0 | G48: =Retail!J52 -> 0 | H48: =Retail!K52 -> 0 | I48: =Retail!L52 -> 0 | J48: =Retail!M52 -> 0 | K48: =Retail!N52 -> 0 | L48: =Retail!O52 -> 0 | M48: =Retail!P52 -> 0 | N48: =Retail!Q52 -> 0 | O48: =Retail!R52 -> 0 | P48: =Retail!S52 -> 0 | Q48: 0
A49: =ROW() -> 49 | C49: Customer Service Deposits | E49: ='Function Summary'!$I49 -> -15625767.56 | F49: =Retail!$I$53 -> -4811270.488 | G49: =Retail!J53 -> -673766.1072 | H49: =Retail!K53 -> -1696159.849 | I49: =Retail!L53 -> -25532.15656 | J49: =Retail!M53 -> -2859842.748 | K49: =Retail!N53 -> -131724.7381 | L49: =Retail!O53 -> 0 | M49: =Retail!P53 -> 0 | N49: =Retail!Q53 -> -5427471.476 | O49: =Retail!R53 -> 0 | P49: =Retail!S53 -> 0 | Q49: 0
A50: =ROW() -> 50 | C50: Misc Rate Base Deductions | E50: ='Function Summary'!$I50 -> -1213300.646 | F50: =Retail!$I$54 -> -419287.1258 | G50: =Retail!J54 -> -326665.524 | H50: =Retail!K54 -> -104727.6431 | I50: =Retail!L54 -> -2300.064632 | J50: =Retail!M54 -> -212352.6225 | K50: =Retail!N54 -> -11315.18735 | L50: =Retail!O54 -> -283.7911718 | M50: =Retail!P54 -> -514.7563057 | N50: =Retail!Q54 -> -81750.20235 | O50: =Retail!R54 -> -26082.69917 | P50: =Retail!S54 -> -28021.02973 | Q50: 0
A51: =ROW() -> 51
A52: =ROW() -> 52 | C52: Total Rate Base Deductions | E52: =SUM(E44:E50) -> -76369922.22 | F52: =SUM(F44:F50) -> -57004191.72 | G52: =SUM(G44:G50) -> -2140310.362 | H52: =SUM(H44:H50) -> -1794075.984 | I52: -649813.2853 | J52: -3063887.998 | K52: -350080.5719 | L52: -144737.2141 | M52: -47254.88691 | N52: -11121385.98 | O52: -26122.9439 | P52: -28061.27446 | Q52: =ROUND(SUM(F52:P52)-E52,0) -> 0
A53: =ROW() -> 53
A54: =ROW() -> 54 | C54: Total Rate Base | E54: =E41+E52 -> -3479200.757 | F54: =F41+F52 -> 6437939.416 | G54: =G41+G52 -> -710089.2818 | H54: =H41+H52 -> -1764002.558 | I54: 102007.7729 | J54: -3011857.629 | K54: -99537.20032 | L54: 39256.20702 | M54: 5047.050267 | N54: -4425469.086 | O54: -25304.53074 | P54: -27190.91691 | Q54: =ROUND(SUM(F54:P54)-E54,0) -> 0
A55: =ROW() -> 55
A56: =ROW() -> 56 | C56: Calculated Return On Rate Base | F56: ='Class Summary'!F60 -> 0.06174997321 | G56: ='Class Summary'!G60 -> 0.0863287592 | H56: ='Class Summary'!H60 -> 0.07144063913 | I56: ='Class Summary'!I60 -> 0.1197016225 | J56: ='Class Summary'!J60 -> 0.05572637504 | K56: ='Class Summary'!K60 -> 0.06154738424 | L56: ='Class Summary'!L60 -> 0.04307748096 | M56: ='Class Summary'!M60 -> 0.1975054231 | N56: ='Class Summary'!N60 -> 0.07887265888 | O56: ='Class Summary'!O60 -> 0.04174468285 | P56: ='Class Summary'!P60 -> 0.05577984465
A57: =ROW() -> 57
A58: =ROW() -> 58 | C58: Return On Rate Base | D58: =ActualROR -> 0.06924334573 | E58: =$D$58*E54 -> -240911.5009 | F58: =$D$58*F54 -> 445784.4647 | G58: =$D$58*G54 -> -49168.95763 | H58: =$D$58*H54 -> -122145.439 | I58: 7063.359486 | J58: -208551.0991 | K58: -6892.288775 | L58: 2718.231115 | M58: 349.4746465 | N58: -306434.2859 | O58: -1752.17037 | P58: -1882.79006 | Q58: =ROUND(SUM(F58:P58)-E58,0) -> 0
A59: =ROW() -> 59 | C59: Total Operating Expenses | E59: =E25 -> 45700543.42 | F59: =F25 -> 40933551.78 | G59: =G25 -> 1383985.464 | H59: =H25 -> -33663.2049 | I59: 404066.3413 | J59: -193465.1398 | K59: 109823.8259 | L59: 112601.8345 | M59: 31911.13056 | N59: 2892183.669 | O59: 28361.56573 | P59: 31186.15584 | Q59: =ROUND(SUM(F59:P59)-E59,0) -> 0
